Workbook

Sheet ProjectInformation
A1: CPN DATA
A2: INFORMATION ADDED BY DESIGNER
A3: Section Engineer | B3: Claman
A4: Design Team | B4: Cornelis
A6: County | B6: BENTON
A7: Project Number | B7: NHSX-030-6(231)--3H-06
A8: English or Metric | B8: ENGLISH
A9: Revised
A10: Bridge Block
A11: File No.

Sheet PrintSheets
EF75: HYDRAULIC DESIGN
ET77: I hereby certify that this engineering document was prepared
ET78: by me or under my direct personal supervision and that I
ET79: am a duly licensed Professional Engineer under the laws of
ET80: the State of Iowa.
FQ81: 2018-02-19
ET83: Signature | FQ83: Date
ET84: David R. Claman
ET86: Printed or Typed Name
ET87: My license renewal date is December 31, 20 | FL87: 18
EG89: Pages or sheets covered by this seal: | EY89: CD.1 - CD.3
B94: FILE NO. | I94: =IF(ProjectInformation!$B$11<>"",ProjectInformation!$B$11,"") ->  | P94: =UPPER(ProjectInformation!B8) -> ENGLISH | W94: DESIGN TEAM | AF94: =IF(AND(ProjectInformation!$B$3<>"",ProjectInformation!$B$4<>"",ProjectInformation!$B$5<>""),ProjectInformation!$B$3&"\"&ProjectInformation!$B$4&"\"&ProjectInformation!$B$5,IF(AND(ProjectInformation!$B$3<>"",ProjectInformation!$B$4<>""),ProjectInformation!$B$3&"\"&ProjectInformation!$B$4,IF(ProjectInformation!$B$3<>"",ProjectInformation!$B$3,""))) -> Claman\Cornelis | BN94: =IF(ProjectInformation!$B$6<>"",ProjectInformation!$B$6,"") -> BENTON | CX94: COUNTY | DD94: PROJECT NUMBER | DP94: =IF(ProjectInformation!$B$7<>"",ProjectInformation!$B$7,"") -> NHSX-030-6(231)--3H-06 | ET94: SHEET NUMBER | FD94: CD.1 | FJ94: =IF(FP94<>"","REVISED","") ->  | FP94: =IF(ProjectInformation!$B$9<>"",ProjectInformation!$B$9,"") -> 
B95: 2/19/2018 8:14:47 AM jbottje c:\pw_work\pwmain\jbottje\d0797678\06030231CD01.xlsm
B189: FILE NO. | I189: =IF(ProjectInformation!$B$11<>"",ProjectInformation!$B$11,"") ->  | P189: =UPPER(ProjectInformation!B8) -> ENGLISH | W189: DESIGN TEAM | AF189: =IF(AND(ProjectInformation!$B$3<>"",ProjectInformation!$B$4<>"",ProjectInformation!$B$5<>""),ProjectInformation!$B$3&"\"&ProjectInformation!$B$4&"\"&ProjectInformation!$B$5,IF(AND(ProjectInformation!$B$3<>"",ProjectInformation!$B$4<>""),ProjectInformation!$B$3&"\"&ProjectInformation!$B$4,IF(ProjectInformation!$B$3<>"",ProjectInformation!$B$3,""))) -> Claman\Cornelis | BN189: =IF(ProjectInformation!$B$6<>"",ProjectInformation!$B$6,"") -> BENTON | CX189: COUNTY | DD189: PROJECT NUMBER | DP189: =IF(ProjectInformation!$B$7<>"",ProjectInformation!$B$7,"") -> NHSX-030-6(231)--3H-06 | ET189: SHEET NUMBER | FD189: =IF($FD$94<>"","CD."& MID(OFFSET($FD$189,-95,0),4,LEN(OFFSET($FD$189,-95,0))-2)+1,"") -> CD.2 | FJ189: =IF(FP189<>"","REVISED","") ->  | FP189: =IF(ProjectInformation!$B$9<>"",ProjectInformation!$B$9,"") -> 
B190: 2/19/2018 8:14:47 AM jbottje c:\pw_work\pwmain\jbottje\d0797678\06030231CD01.xlsm
B284: FILE NO. | I284: =IF(ProjectInformation!$B$11<>"",ProjectInformation!$B$11,"") ->  | P284: =UPPER(ProjectInformation!B8) -> ENGLISH | W284: DESIGN TEAM | AF284: =IF(AND(ProjectInformation!$B$3<>"",ProjectInformation!$B$4<>"",ProjectInformation!$B$5<>""),ProjectInformation!$B$3&"\"&ProjectInformation!$B$4&"\"&ProjectInformation!$B$5,IF(AND(ProjectInformation!$B$3<>"",ProjectInformation!$B$4<>""),ProjectInformation!$B$3&"\"&ProjectInformation!$B$4,IF(ProjectInformation!$B$3<>"",ProjectInformation!$B$3,""))) -> Claman\Cornelis | BN284: =IF(ProjectInformation!$B$6<>"",ProjectInformation!$B$6,"") -> BENTON | CX284: COUNTY | DD284: PROJECT NUMBER | DP284: =IF(ProjectInformation!$B$7<>"",ProjectInformation!$B$7,"") -> NHSX-030-6(231)--3H-06 | ET284: SHEET NUMBER | FD284: =IF($FD$189<>"","CD."& MID(OFFSET($FD$284,-95,0),4,LEN(OFFSET($FD$284,-95,0))-2)+1,"") -> CD.3 | FJ284: =IF(FP284<>"","REVISED","") ->  | FP284: =IF(ProjectInformation!$B$9<>"",ProjectInformation!$B$9,"") -> 
B285: 2/19/2018 8:14:47 AM jbottje c:\pw_work\pwmain\jbottje\d0797678\06030231CD01.xlsm

Sheet DE104_3
A1: TabTitle | B1: =C16 -> DRAINAGE STRUCTURE BY ROAD CONTRACTOR
A2: Number of Tab Columns | B2: 41
A3: DE Starter Row Number | B3: 34
A4: TabSheet Starter Row Number | B4: 20
A5: TabSheet Header Row Count | B5: 19
A6: Top Header Cell | B6: AS15 | CS6: Type | CT6: Dia. | CU6: Class | CV6: Length | CW6: Aprons
A7: Bottom Header Cell | B7: CG33 | CS7: =H36 -> RCP | CT7: =F36 -> 24 | CU7: =G36 -> 2000 | CV7: =I36 -> 98 | CW7: =M36 -> 1 | CX7: =N36 -> 1
A8: DESheet Row Count | B8: 109 | CS8: RCP | CT8: 24 | CU8: 2000 | CV8: 68 | CW8: 1 | CX8: 0
A9: Fixed Empty Rows | B9: 0 | CS9: CMP | CT9: 24 | CU9: 0 | CV9: 30 | CW9: 0 | CX9: 1
A10: Usable Empty Rows | B10: 33 | CS10: RCP | CT10: 54 | CU10: 2000 | CV10: 168 | CW10: 0 | CX10: 1
A11: Total Rows Placed | B11: 142 | C11: xlRight | D11: xlRight | E11: xlRight | F11: xlRight | G11: xlRight | H11: xlRight | I11: xlRight | J11: xlRight | K11: xlRight | L11: xlRight | M11: xlRight | N11: xlRight | O11: xlRight | P11: xlRight | Q11: xlRight | R11: xlRight | S11: xlRight | T11: xlLeft | U11: xlRight | V11: xlLeft | W11: xlRight | X11: xlRight | Y11: xlRight | Z11: xlRight | AA11: xlRight | AB11: xlRight | AC11: xlRight | AD11: xlRight | AE11: xlRight | AF11: xlRight | AG11: xlRight | AH11: xlCenter | AI11: xlRight | AJ11: xlRight | AK11: xlRight | AL11: xlRight | AM11: xlRight | AN11: xlRight | AO11: xlRight | AP11: xlRight | AQ11: xlLeft | AS11: =C11 -> xlRight | AT11: xlRight | AU11: xlRight | AV11: xlRight | AW11: xlRight | AX11: xlRight | AY11: xlRight | AZ11: xlRight | BA11: xlRight | BB11: xlRight | BC11: xlRight | BD11: xlRight | BE11: xlRight | BF11: xlRight | BG11: xlRight | BH11: xlRight | BI11: =S11 -> xlRight | BJ11: xlLeft | BK11: xlRight | BL11: xlLeft | BM11: xlRight | BN11: xlRight | BO11: xlRight | BP11: xlRight | BQ11: xlRight | BR11: xlRight | BS11: xlRight | BT11: xlRight | BU11: xlRight | BV11: xlRight | BW11: xlRight | BX11: xlCenter | BY11: =AI11 -> xlRight | BZ11: xlRight | CA11: xlRight | CB11: xlRight | CC11: xlRight | CD11: xlRight | CE11: xlRight | CF11: xlRight | CG11: xlLeft | CS11: RCP | CT11: 24 | CU11: 2000 | CV11: 68 | CW11: 1 | CX11: 0
A12: Total Rows Needed | B12: =SUM(B8:B10) -> 142 | C12: 0.0 | D12: #+00.00 | E12: General | F12: 0 | G12: 0 | H12: General | I12: 0 | J12: General | K12: 0.0 | L12: 0.00 | M12: General | N12: General | O12: 0 | P12: 0 | Q12: 0 | R12: 0 | S12: 0 | T12: General | U12: 0 | V12: General | W12: 0 | X12: 0.00 | Y12: 0.00 | Z12: 0.00 | AA12: 0.00 | AB12: 0.0 | AC12: 0.0 | AD12: 0.0 | AE12: 0.0 | AF12: 0 | AG12: 0 | AH12: General | AI12: #+00.00 | AJ12: 0.00 | AK12: General | AL12: 0.0 | AM12: 0.0 | AN12: 0.0 | AO12: 0.0 | AP12: 0.0 | AQ12: General | AS12: 0.0 | AT12: #+00.00 | AU12: General | AV12: 0 | AW12: 0 | AX12: General | AY12: 0 | AZ12: General | BA12: 0.0 | BB12: 0.00 | BC12: General | BD12: General | BE12: 0 | BF12: 0 | BG12: 0 | BH12: 0 | BI12: 0 | BJ12: General | BK12: 0 | BL12: General | BM12: 0 | BN12: 0.00 | BO12: 0.00 | BP12: 0.00 | BQ12: 0.00 | BR12: 0.0 | BS12: 0.0 | BT12: 0.0 | BU12: 0.0 | BV12: 0 | BW12: 0 | BX12: General | BY12: #+00.00 | BZ12: 0.00 | CA12: General | CB12: 0.0 | CC12: 0.0 | CD12: 0.0 | CE12: 0.0 | CF12: 0.0 | CG12: General | CS12: CMP | CT12: 24 | CU12: 0 | CV12: 57 | CW12: 0 | CX12: 1
A13: Last Tab DE Starter Row | B13: 105 | C13: =CELL("width",C13) -> 6 | D13: 16 | E13: 8 | F13: 6 | G13: 6 | H13: 6 | I13: 6 | J13: 5 | K13: 6 | L13: 6 | M13: 5 | N13: 5 | O13: 5 | P13: 5 | Q13: 5 | R13: 5 | S13: 5 | T13: 6 | U13: 5 | V13: 8 | W13: 7 | X13: 10 | Y13: 10 | Z13: 10 | AA13: 10 | AB13: 7 | AC13: 7 | AD13: 7 | AE13: 7 | AF13: 5 | AG13: 5 | AH13: 5 | AI13: 16 | AJ13: 12 | AK13: 5 | AL13: 7 | AM13: 7 | AN13: 7 | AO13: 7 | AP13: 7 | AQ13: 12 | AS13: =CELL("width",AS13) -> 0 | AT13: 0 | AU13: 0 | AV13: 0 | AW13: 0 | AX13: 0 | AY13: 0 | AZ13: 0 | BA13: 0 | BB13: 0 | BC13: 0 | BD13: 0 | BE13: 0 | BF13: 0 | BG13: 0 | BH13: 0 | BI13: 0 | BJ13: 0 | BK13: 0 | BL13: 0 | BM13: 0 | BN13: 0 | BO13: 0 | BP13: 0 | BQ13: 0 | BR13: 0 | BS13: 0 | BT13: 0 | BU13: 0 | BV13: 0 | BW13: 0 | BX13: 0 | BY13: 0 | BZ13: 0 | CA13: 0 | CB13: 0 | CC13: 0 | CD13: 0 | CE13: 0 | CF13: 0 | CG13: 0 | CS13: RCP | CT13: 72 | CU13: 2000 | CV13: 152 | CW13: 0 | CX13: 1
A14: Last Tab Tabsheet Starter Row | B14: 110 | C14: A | D14: B | E14: C | F14: D | G14: E | H14: F | I14: G | J14: H | K14: I | L14: J | M14: K | N14: L | O14: M | P14: N | Q14: O | R14: P | S14: Q | T14: R | U14: S | V14: T | W14: U | X14: V | Y14: W | Z14: X | AA14: Y | AB14: Z | AC14: AA | AD14: AB | AE14: AC | AF14: AD | AG14: AE | AH14: AF | AI14: AG | AJ14: AH | AK14: AI | AL14: AJ | AM14: AK | AN14: AL | AO14: AM | AP14: AN | AQ14: AO | AS14: =LOWER(C14) -> a | AT14: b | AU14: c | AV14: d | AW14: e | AX14: f | AY14: g | AZ14: h | BA14: i | BB14: j | BC14: k | BD14: l | BE14: m | BF14: n | BG14: =LOWER(Q14) -> o | BH14: p | BI14: q | BJ14: r | BK14: s | BL14: t | BM14: u | BN14: v | BO14: w | BP14: x | BQ14: y | BR14: z | BS14: aa | BT14: ab | BU14: ac | BV14: ad | BW14: ae | BX14: af | BY14: ag | BZ14: ah | CA14: ai | CB14: aj | CC14: ak | CD14: al | CE14: am | CF14: an | CG14: ao | CS14: RCP | CT14: 36 | CU14: 2000 | CV14: 142 | CW14: 0 | CX14: 1
A15: Last Copy Starter Row | B15: 91 | AK15: Totals: | AL15: =SUBTOTAL(9,AL34:AL6037) -> 11583.13125 | AM15: =SUBTOTAL(9,AM34:AM6037) -> 0 | AN15: =SUBTOTAL(9,AN34:AN6037) -> 9695.451593 | AO15: =SUBTOTAL(9,AO34:AO6037) -> 615.976763 | AP15: =SUBTOTAL(9,AP34:AP6037) -> 10309.42836 | AS15: 104-3 | CI15: =H24 -> Kind Of Pipe | CJ15: Pipe Type | CK15: =T24 -> Type 'C' Connections* (DR-122) | CL15: =V24 -> Connected Pipe Joint* (DR-121) | CS15: RCP | CT15: 42 | CU15: 2000 | CV15: 108 | CW15: 1 | CX15: 0
A16: Tab Loop Number | B16: 3 | C16: DRAINAGE STRUCTURE BY ROAD CONTRACTOR | AS16: =B17 -> Modified | CI16: CMP | CJ16: Reinforced Concrete Pipe. | CK16: C-1 | CL16: Type 1 | CS16: RCP | CT16: 42 | CU16: 2000 | CV16: 112 | CW16: 0 | CX16: 1
A17: Revision Date | B17: Modified | AS17: =C16 -> DRAINAGE STRUCTURE BY ROAD CONTRACTOR | CI17: LCP | CJ17: Corrugated Metal Pipe. | CK17: C-2 | CL17: Type 2 | CS17: RCP | CT17: 24 | CU17: 2000 | CV17: 74 | CW17: 1 | CX17: 1
A18: Tabulation Width | B18: 4 | CI18: RCP | CK18: C-3 | CL18: Type 3 | CS18: RCP | CT18: 36 | CU18: 2000 | CV18: 100 | CW18: 0 | CX18: 1
A19: Horizontal Grid Lines | B19: Yes | C19: Length of unclassified pipe calculated is based on using | M19: Reinforced Concrete Pipe. | CI19: SARC | CK19: C-4 | CS19: RCP | CT19: 24 | CU19: 2000 | CV19: 80 | CW19: 1 | CX19: 1
C20: * Not a bid item | AS20: =C19 -> Length of unclassified pipe calculated is based on using | BC20: =M19 -> Reinforced Concrete Pipe. | CI20: UNCL | CS20: RCP | CT20: 24 | CU20: 2000 | CV20: 92 | CW20: 1 | CX20: 1
C21: Diameter or equivalent diameter | AS21: =C20 -> * Not a bid item | CS21: RCP | CT21: 36 | CU21: 2000 | CV21: 232 | CW21: 1 | CX21: 1
C22: UNCL = Unclassified Pipe CMP = Corrugated Metal Pipe RCP = Reinforced Concrete Pipe LCP = Arch or Elliptical Low Clearance Pipe SARC = Steel Arch Pipe Backfill according to DR-101 | AS22: =C21 -> Diameter or equivalent diameter | CS22: RCP | CT22: 24 | CU22: 2000 | CV22: 170 | CW22: 1 | CX22: 0
C23: ="This Data Entry Sheet fills Tab "&AS15&" effective "&TEXT(B17,"mm-dd-yy") -> This Data Entry Sheet fills Tab 104-3 effective Modified | AS23: =C22 -> UNCL = Unclassified Pipe CMP = Corrugated Metal Pipe RCP = Reinforced Concrete Pipe LCP = Arch or Elliptical Low Clearance Pipe SARC = Steel Arch Pipe Backfill according to DR-101 | CS23: RCP | CT23: 24 | CU23: 2000 | CV23: 32 | CW23: 0 | CX23: 1
C24: Drainage Area | D24: Location | E24: Type | F24: Size | G24: Pipe Classification | H24: Kind Of Pipe | I24: Length New Const. | J24: Bedding Class | K24: Design Cover (H) | L24: Camber* (DR-102) | M24: Apron No. | O24: Apron Guard* (DR-213) | P24: Elbow* (DR-141) | Q24: Tee Section* (DR-142) | R24: "D" Section* (DR-141) | S24: Reducer* | T24: Type 'C' Connections* (DR-122) | V24: Connected Pipe Joint* (DR-121) | W24: 4" Perforated Subdrain* | X24: Flow Line Elevations | AB24: Dimensions Lin. Ft. | AF24: Skew Ahead Degrees | AH24: Dike | AL24: Class 20 | AM24: Flowable Mortar | AN24: Floodable* Backfill | AO24: Porous* Backfill | AP24: Flooded Backfill | AQ24: Remarks | AS24: =C24 -> Drainage Area | AT24: Location | AU24: Type | AV24: Size | AW24: Pipe Classification | AX24: Kind Of Pipe | AY24: Length New Const. | AZ24: Bedding Class | BA24: Design Cover (H) | BB24: Camber* (DR-102) | BC24: Apron No. | BE24: =O24 -> Apron Guard* (DR-213) | BF24: Elbow* (DR-141) | BG24: Tee Section* (DR-142) | BH24: "D" Section* (DR-141) | BI24: Reducer* | BJ24: Type 'C' Connections* (DR-122) | BL24: =V24 -> Connected Pipe Joint* (DR-121) | BM24: =W24 -> 4" Perforated Subdrain* | BN24: =X24 -> Flow Line Elevations | BR24: =AB24 -> Dimensions Lin. Ft. | BV24: =AF24 -> Skew Ahead Degrees | BX24: =AH24 -> Dike | CB24: =AL24 -> Class 20 | CC24: Flowable Mortar | CD24: Floodable* Backfill | CE24: Porous* Backfill | CF24: Flooded Backfill | CG24: Remarks | CS24: RCP | CT24: 24 | CU24: 2000 | CV24: 74 | CW24: 1 | CX24: 1
CS25: RCP | CT25: 24 | CU25: 2000 | CV25: 170 | CW25: 0 | CX25: 1
CS26: RCP | CT26: 24 | CU26: 2000 | CV26: 16 | CW26: 1 | CX26: 0
CS27: 0 | CT27: 0 | CU27: 0 | CV27: 0 | CW27: 0 | CX27: 0
CS28: 0 | CT28: 0 | CU28: 0 | CV28: 0 | CW28: 0 | CX28: 0
CS29: 0 | CT29: 0 | CU29: 0 | CV29: 0 | CW29: 0 | CX29: 0
CS30: RCP | CT30: 24 | CU30: 3000 | CV30: 210 | CW30: 1 | CX30: 1
AH31: Rt. | AI31: Location Station | AJ31: Top Elevation | AK31: Type | BX31: =AH31 -> Rt. | BY31: =AI31 -> Location Station | BZ31: =AJ31 -> Top Elevation | CA31: =AK31 -> Type | CS31: RCP | CT31: 42 | CU31: 2000 | CV31: 282 | CW31: 1 | CX31: 1
AB32: Total | AD32: Extensions | AN32: (A) | AO32: (B) | AP32: (A+B) | BR32: =AB32 -> Total | BT32: =AD32 -> Extensions | CD32: =AN32 -> (A) | CE32: (B) | CF32: (A+B) | CS32: 0 | CT32: 0 | CU32: 0 | CV32: 0 | CW32: 0 | CX32: 0
C33: ACRE | F33: IN | I33: LF | K33: FT | L33: FT | M33: IN | N33: OUT | O33: No. | P33: No. | Q33: No. | R33: No. | S33: No. | T33: Type | U33: No. | V33: Type | W33: FT | X33: Lt. | Y33: Rt. | Z33: Other | AA33: Other | AB33: Lt. | AC33: Rt. | AD33: Lt. | AE33: Rt. | AF33: Lt. | AG33: Rt. | AH33: Lt. | AL33: CY | AM33: CY | AN33: CY | AO33: CY | AP33: CY | AS33: =C33 -> ACRE | AV33: =F33 -> IN | AY33: =I33 -> LF | BA33: =K33 -> FT | BB33: FT | BC33: IN | BD33: OUT | BE33: No. | BF33: No. | BG33: =Q33 -> No. | BH33: No. | BI33: No. | BJ33: Type | BK33: No. | BL33: Type | BM33: FT | BN33: Lt. | BO33: Rt. | BP33: Other | BQ33: Other | BR33: =AB33 -> Lt. | BS33: =AC33 -> Rt. | BT33: =AD33 -> Lt. | BU33: =AE33 -> Rt. | BV33: =AF33 -> Lt. | BW33: =AG33 -> Rt. | BX33: =AH33 -> Lt. | CB33: =AL33 -> CY | CC33: =AM33 -> CY | CD33: CY | CE33: CY | CF33: CY | CS33: 0 | CT33: 0 | CU33: 0 | CV33: 0 | CW33: 0 | CX33: 0
D34: STAGE 1 | CS34: 0 | CT34: 0 | CU34: 0 | CV34: 0 | CW34: 0 | CX34: 0
D35: US HWY 30 | CS35: RCP | CT35: 78 | CU35: 2000 | CV35: 74 | CW35: 1 | CX35: 1
C36: MED | D36: 138125 | E36: DR-601 | F36: 24 | G36: 2000 | H36: RCP | I36: 98 | J36: B | M36: 1 | N36: 1 | O36: 1 | V36: Type 3 | X36: 884.49 | Y36: 881.73 | AB36: 42.1 | AC36: 68.1 | AL36: =(18.04*110.28)/27 -> 73.68337778 | AN36: =(56.23*32)/27 -> 66.64296296 | AO36: =(2.11*108.28)/27 -> 8.461881481 | AP36: =AN36+AO36 -> 75.10484444 | CS36: 0 | CT36: 0 | CU36: 0 | CV36: 0 | CW36: 0 | CX36: 0
C37: MED | D37: 138200 | E37: DR-641 | F37: 24 | G37: 2000 | H37: RCP | I37: 68 | J37: B | K37: 3.9 | M37: 1 | O37: 1 | R37: 1 | T37: C-3 | U37: 1 | V37: Type 3 | X37: 887.95 | Y37: 884.76 | Z37: 886.1 | AB37: 37 | AC37: 37.1 | AN37: =(26.23*32)/27 -> 31.08740741 | AO37: =(2.11*72.33)/27 -> 5.652455556 | AP37: =AN37+AO37 -> 36.73986296 | AQ37: (1) | CS37: 0 | CT37: 0 | CU37: 0 | CV37: 0 | CW37: 0 | CX37: 0
F38: 24 | H38: CMP | I38: 30 | J38: B | N38: 1 | X38: 884.76 | Y38: 880.15 | Z38: 880.56 | AB38: 37.1 | AC38: 72 | AL38: =(15*25.4)/27 -> 14.11111111 | AO38: =(2.11*35.5)/27 -> 2.774259259 | AP38: 2.774259259 | AQ38: (2) | CS38: 0 | CT38: 0 | CU38: 0 | CV38: 0 | CW38: 0 | CX38: 0
C39: 113 | D39: 138810 | E39: DR-601 | F39: 54 | G39: 2000 | H39: RCP | I39: 168 | J39: B | K39: 14.8 | N39: 1 | V39: Type 3 | X39: 869.48 | Y39: 868.39 | AB39: 36.06 | AC39: 139.94 | AL39: =(10.56*176)/27 -> 68.83555556 | AN39: =(420.32*32)/27 -> 498.157037 | AO39: =(2.94*174)/27 -> 18.94666667 | AP39: =AN39+AO39 -> 517.1037037 | CS39: =H68 -> 0 | CT39: =F68 -> 0 | CU39: =G68 -> 0 | CV39: =I68 -> 0 | CW39: =M68 -> 0 | CX39: =N68 -> 0
C40: MED | D40: 142400 | E40: DR-641 | F40: 24 | G40: 2000 | H40: RCP | I40: 68 | J40: B | K40: 3 | M40: 1 | R40: 1 | T40: C-3 | U40: 1 | V40: Type 3 | X40: 892.36 | Y40: 889.2 | Z40: 890.52 | AB40: 37 | AC40: 36.93 | AN40: =(18.1*36)/27 -> 24.13333333 | AO40: =(2.11*72.17)/27 -> 5.639951852 | AP40: =AN40+AO40 -> 29.77328519 | AQ40: (3) | CS40: 0 | CT40: 0 | CU40: 0 | CV40: 0 | CW40: 0 | CX40: 0
F41: 24 | H41: CMP | I41: 57 | J41: B | N41: 1 | X41: 889.2 | Y41: 876.8 | Z41: 887.18 | AB41: 36.93 | AC41: 97.46 | AL41: =(44.29*24.3)/27 -> 39.861 | AO41: =(2.11*62.24)/27 -> 4.863940741 | AP41: 4.863940741 | CS41: 0 | CT41: 0 | CU41: 0 | CV41: 0 | CW41: 0 | CX41: 0
C42: 227 | D42: 142550 | E42: DR-601 | F42: 72 | G42: 2000 | H42: RCP | I42: 152 | J42: B | K42: 11.7 | N42: 1 | V42: Type 3 | AL42: =(59.64*160.25)/27 -> 353.9744444 | AN42: =(359.78*32)/27 -> 426.4059259 | AO42: =(3.44*158.25)/27 -> 20.16222222 | AP42: =AN42+AO42 -> 446.5681481 | CS42: RCP | CT42: 54 | CU42: 2000 | CV42: 90 | CW42: 1 | CX42: 0
C43: 25 | D43: 145400 | E43: DR-601 | F43: 36 | G43: 2000 | H43: RCP | I43: 142 | J43: B | K43: 11 | N43: 1 | V43: Type 3 | X43: 900.74 | Y43: 898.4 | AB43: 21.28 | AC43: 128.71 | AL43: =(24.96*150)/27 -> 138.6666667 | AN43: =(205.82*32)/27 -> 243.9348148 | AO43: =(2.44*148)/27 -> 13.37481481 | AP43: =AN43+AO43 -> 257.3096296 | CS43: RCP | CT43: 24 | CU43: 2000 | CV43: 68 | CW43: 1 | CX43: 1
C44: 48 | D44: 146075 | E44: JACK | F44: 42 | G44: 2000 | H44: RCP | I44: 108 | M44: 1 | V44: Type 3 | X44: 904.9 | Y44: 902.17 | AB44: 119.07 | AC44: 3.1 | CS44: RCP | CT44: 24 | CU44: 2000 | CV44: 92 | CW44: 1 | CX44: 1
E45: DR-621 | F45: 42 | G45: 2000 | H45: RCP | I45: 112 | J45: B | N45: 1 | V45: Type 3 | X45: 902.17 | Y45: 889.33 | AB45: 3.1 | AC45: 116.87 | AE45: 112 | AL45: =(71.5*120)/27 -> 317.7777778 | AN45: =(119.86*32)/27 -> 142.0562963 | AO45: =(2.61*120)/27 -> 11.6 | AP45: =AN45+AO45 -> 153.6562963 | CS45: RCP | CT45: 24 | CU45: 2000 | CV45: 86 | CW45: 1 | CX45: 1
C46: MED | D46: 146525 | E46: DR-601 | F46: 24 | G46: 2000 | H46: RCP | I46: 74 | J46: B | K46: 2.3 | M46: 1 | N46: 1 | V46: Type 3 | X46: 906.34 | Y46: 904.1 | AB46: 36 | AC46: 50.22 | AL46: =(31.96*86.25)/27 -> 102.0944444 | AN46: =(11.2*32)/27 -> 13.27407407 | AO46: =(2.11*84.25)/27 -> 6.583981481 | AP46: =AN46+AO46 -> 19.85805556 | CS46: RCP | CT46: 72 | CU46: 2000 | CV46: 90 | CW46: 1 | CX46: 0
C47: 48 | D47: 147000 | E47: DR-601 | F47: 36 | G47: 2000 | H47: RCP | I47: 100 | J47: B | K47: 2.3 | N47: 1 | V47: Type 3 | X47: 908.66 | Y47: 907.9 | AB47: 14 | AC47: 93.98 | AL47: =(102.24*108)/27 -> 408.96 | AN47: =(29.62*32)/27 -> 35.10518519 | AO47: =(2.44*106)/27 -> 9.579259259 | AP47: =AN47+AO47 -> 44.68444444 | CS47: RCP | CT47: 24 | CU47: 2000 | CV47: 82 | CW47: 1 | CX47: 1
C48: MED | D48: 147025 | E48: DR-601 | F48: 24 | G48: 2000 | H48: RCP | I48: 80 | J48: B | K48: 2.6 | M48: 1 | N48: 1 | V48: Type 3 | X48: 911.29 | Y48: 908.08 | AB48: 36 | AC48: 56.2 | AL48: =(68.44*92.25)/27 -> 233.8366667 | AN48: =(13.8*32)/27 -> 16.35555556 | AO48: =(2.11*90.25)/27 -> 7.05287037 | AP48: =AN48+AO48 -> 23.40842593 | CS48: RCP | CT48: 36 | CU48: 2000 | CV48: 96 | CW48: 1 | CX48: 0
C49: MED | D49: 147700 | E49: DR-601 | F49: 24 | G49: 2000 | H49: RCP | I49: 92 | J49: B | K49: 2.2 | M49: 1 | N49: 1 | V49: Type 3 | X49: 919.88 | Y49: 917.84 | AB49: 35 | AC49: 62.23 | AL49: =(68.44*104.25)/27 -> 264.2544444 | AN49: =(10.42*58.4)/27 -> 22.53807407 | AO49: =(2.11*102.25)/27 -> 7.990648148 | AP49: =AN49+AO49 -> 30.52872222 | CS49: RCP | CT49: 36 | CU49: 2000 | CV49: 64 | CW49: 1 | CX49: 0
D50: 148400 | E50: JACK | F50: 36 | G50: 2000 | H50: RCP | I50: 232 | K50: 7 | M50: 1 | N50: 1 | V50: Type 3 | X50: 920.5 | Y50: 915.56 | AB50: 106.62 | AC50: 123.33 | AQ50: (5) | CS50: 0 | CT50: 0 | CU50: 0 | CV50: 0 | CW50: 0 | CX50: 0
D51: 149385 | E51: JACK | F51: 24 | G51: 2000 | H51: RCP | I51: 170 | K51: 4.7 | M51: 1 | V51: Type 3 | X51: 926.52 | Y51: 925.51 | AB51: 97.98 | AC51: 78.14 | CS51: 0 | CT51: 0 | CU51: 2000 | CV51: 0 | CW51: 0 | CX51: 0
E52: DR-621 | F52: 24 | G52: 2000 | H52: RCP | I52: 32 | J52: B | K52: 4.7 | N52: 1 | V52: Type 3 | X52: 925.51 | Y52: 925.29 | AB52: 78.14 | AC52: 116.27 | AL52: =(13.09*38.125)/27 -> 18.48356481 | AO52: =(2.11*38.125)/27 -> 2.979398148 | AP52: =AN52+AO52 -> 2.979398148 | CS52: 0 | CT52: 0 | CU52: 2000 | CV52: 0 | CW52: 0 | CX52: 0
C53: MED | D53: 150100 | E53: DR-611 | F53: 24 | G53: 2000 | H53: RCP | I53: 74 | J53: B | K53: 3.2 | M53: 1 | N53: 1 | V53: Type 3 | X53: 927.97 | Y53: 926.26 | Z53: 927.09 | AB53: 37.5 | AC53: 48.6 | AL53: =(11.25*86.3)/27 -> 35.95833333 | AN53: =(12.82*36)/27 -> 17.09333333 | AO53: =(2.11*84.3)/27 -> 6.587888889 | AP53: =AN53+AO53 -> 23.68122222 | CS53: 0 | CT53: 0 | CU53: 0 | CV53: 0 | CW53: 0 | CX53: 0
D54: 150625 | E54: JACK | F54: 24 | G54: 2000 | H54: RCP | I54: 170 | N54: 1 | V54: Type 3 | X54: 916.49 | Y54: 919.19 | AB54: 99.45 | AC54: 76.65 | CS54: =H86 -> 0 | CT54: =F86 -> 0 | CU54: =G86 -> 0 | CV54: =I86 -> 0 | CW54: =M86 -> 0 | CX54: =N86 -> 0
E55: DR-621 | F55: 24 | G55: 2000 | H55: RCP | I55: 16 | J55: B | K55: 6.8 | M55: 1 | V55: Type 3 | X55: 919.19 | Y55: 919.53 | AB55: 79.67 | AC55: 98.78 | AL55: =(12.16*22.125)/27 -> 9.964444444 | AO55: =(2.11*22.125)/27 -> 1.729027778 | AP55: =AN55+AO55 -> 1.729027778 | CS55: 0 | CT55: 0 | CU55: 0 | CV55: 0 | CW55: 0 | CX55: 0
CS56: LCP | CT56: 44x27 | CU56: 2000 | CV56: 66 | CW56: 1 | CX56: 1
CS57: 0 | CT57: 0 | CU57: 0 | CV57: 0 | CW57: 0 | CX57: 0
D58: US 218 Ramp D | CS58: 0 | CT58: 0 | CU58: 0 | CV58: 0 | CW58: 0 | CX58: 0
D59: 4147617 | E59: DR-601 | F59: 24 | G59: 3000 | H59: RCP | I59: 210 | J59: B | K59: 19.8 | M59: 1 | N59: 1 | V59: Type 3 | X59: 912.32 | Y59: 910.82 | AB59: 129.33 | AC59: 92.91 | AL59: =(23.04*222.26)/27 -> 189.6618667 | AN59: =(490.23*50.85)/27 -> 923.2665 | AO59: =(2.11*220.26)/27 -> 17.21291111 | AP59: =AN59+AO59 -> 940.4794111 | CS59: 0 | CT59: 0 | CU59: 0 | CV59: 0 | CW59: 0 | CX59: 0
D60: 4148200 | E60: DR-601 | F60: 42 | G60: 2000 | H60: RCP | I60: 282 | J60: B | K60: 11.8 | M60: 1 | N60: 1 | V60: Type 3 | X60: 912.71 | Y60: 907.48 | AB60: 146.39 | AC60: 151.56 | AF60: 61 | AL60: =(8.5*298)/27 -> 93.81481481 | AN60: =(253.72*39)/27 -> 366.4844444 | AO60: =(2.61*296)/27 -> 28.61333333 | AP60: =AN60+AO60 -> 395.0977778 | CS60: RCP | CT60: 24 | CU60: 2000 | CV60: 56 | CW60: 1 | CX60: 1
CS61: 0 | CT61: 0 | CU61: 0 | CV61: 0 | CW61: 0 | CX61: 0
CS62: 0 | CT62: 0 | CU62: 0 | CV62: 0 | CW62: 0 | CX62: 0
D63: 23rd Avenue | CS63: 0 | CT63: 0 | CU63: 0 | CV63: 0 | CW63: 0 | CX63: 0
C64: 325 | D64: 23142088 | E64: DR-601 | F64: 78 | G64: 2000 | H64: RCP | I64: 74 | J64: B | K64: 7 | M64: 1 | N64: 1 | V64: Type 3 | X64: 875.5 | Y64: 876.05 | AB64: 46.95 | AC64: 45.55 | AL64: =(65.56*92.5)/27 -> 224.6037037 | AN64: =(342.31*30)/27 -> 380.3444444 | AO64: =(3.61*90.5)/27 -> 12.10018519 | AP64: =AN64+AO64 -> 392.4446296 | CS64: RCP | CT64: 24 | CU64: 2000 | CV64: 96 | CW64: 1 | CX64: 1
D69: STAGE 2
D70: US HWY 30
C71: 113 | D71: 138810 | E71: DR-621 | F71: 54 | G71: 2000 | H71: RCP | I71: 90 | J71: B | K71: 14.8 | M71: 1 | V71: Type 3 | X71: 870.09 | Y71: 869.48 | AB71: 134.05 | AC71: 36.06 | AD71: 90 | AL71: =(82.94*98)/27 -> 301.0414815 | AN71: =(407.48*17)/27 -> 256.5614815 | AO71: =(2.94*96)/27 -> 10.45333333 | AP71: =AN71+AO71 -> 267.0148148
C72: MED | D72: 139750 | E72: DR-601 | F72: 24 | G72: 2000 | H72: RCP | I72: 68 | J72: B | K72: 2.2 | M72: 1 | N72: 1 | V72: Type 3 | X72: 878.55 | Y72: 880.2 | AB72: 45.23 | AC72: 35 | AL72: =(25.81*28)/27 -> 26.76592593 | AN72: =(8.94*32)/27 -> 10.59555556 | AO72: =(2.11*78.25)/27 -> 6.115092593 | AP72: =AN72+AO72 -> 16.71064815
C73: MED | D73: 140475 | E73: DR-611 | F73: 24 | G73: 2000 | H73: RCP | I73: 92 | J73: B | K73: 3.8 | M73: 1 | N73: 1 | P73: 1 | V73: Type 3 | X73: 870 | Y73: 876.91 | Z73: 870.93 | AB73: 64.04 | AC73: 40 | AL73: =(42.84*54)/27 -> 85.68 | AN73: =(35.82*32)/27 -> 42.45333333 | AO73: =(2.11*102.35)/27 -> 7.998462963 | AP73: =AN73+AO73 -> 50.4517963 | AQ73: (6)
C74: MED | D74: 141375 | E74: DR-611 | F74: 24 | G74: 2000 | H74: RCP | I74: 86 | J74: B | K74: 3.4 | M74: 1 | N74: 1 | P74: 1 | V74: Type 3 | X74: 878.7 | Y74: 883.45 | Z74: 878.89 | AB74: 61.16 | AC74: 37 | AH74: MED | AI74: 141355 | AJ74: 886.21 | AK74: M | AL74: =(51.84*54)/27 -> 103.68 | AN74: =(27.54*32)/27 -> 32.64 | AO74: =(2.11*96.35)/27 -> 7.529574074 | AP74: =AN74+AO74 -> 40.16957407 | AQ74: (7)
C75: 227 | D75: 142550 | E75: DR-621 | F75: 72 | G75: 2000 | H75: RCP | I75: 90 | J75: B | K75: 11.7 | M75: 1 | AD75: 90 | AL75: =(176.64*98.25)/27 -> 642.7733333 | AN75: =(355.65*41.3)/27 -> 544.0127778 | AO75: =(3.44*96.25)/27 -> 12.26296296 | AP75: =AN75+AO75 -> 556.2757407
C76: MED | D76: 143900 | E76: DR-611 | F76: 24 | G76: 2000 | H76: RCP | I76: 82 | J76: B | K76: 2.8 | M76: 1 | N76: 1 | P76: 1 | V76: Type 3 | X76: 900.35 | Y76: 903.65 | Z76: 900.53 | AB76: 57.22 | AC76: 37 | AH76: MED | AI76: 143880 | AJ76: 906.41 | AK76: M | AL76: =(59.89*70)/27 -> 155.2703704 | AN76: =(19.98*32)/27 -> 23.68 | AO76: =(2.11*92.32)/27 -> 7.214637037 | AP76: =AN76+AO76 -> 30.89463704 | AQ76: (7)
C77: 25 | D77: 145400 | E77: DR-321 | F77: 36 | G77: 2000 | H77: RCP | I77: 96 | J77: B | K77: 11 | M77: 1 | V77: Type 3 | X77: 902.35 | Y77: 900.74 | AB77: 123.27 | AC77: 21.28 | AD77: 94 | AL77: =(127*102)/27 -> 479.7777778 | AN77: =(159.74*42.5)/27 -> 251.4425926 | AO77: =(2.44*100)/27 -> 9.037037037 | AP77: =AN77+AO77 -> 260.4796296
C78: 48 | D78: 147000 | E78: DR-621 | F78: 36 | G78: 2000 | H78: RCP | I78: 64 | J78: B | K78: 2.3 | M78: 1 | V78: Type 3 | X78: 909.15 | Y78: 908.66 | AB78: 86 | AC78: 14 | AH78: LT | AI78: 146975 | AJ78: 910.85 | AK78: M | AL78: =(45.51*72)/27 -> 121.36 | AN78: =(22.42*32)/27 -> 26.57185185 | AO78: =(2.44*70)/27 -> 6.325925926 | AP78: =AN78+AO78 -> 32.89777778
AH79: MED | AI79: 147000 | AJ79: 913.69 | AK79: M
C80: MED | D80: 147700 | G80: 2000 | AH80: MED | AI80: 147685 | AJ80: 921.82 | AK80: M
C81: MED | D81: 150100 | G81: 2000 | AH81: MED | AI81: 150115 | AJ81: 931 | AK81: M
D83: US 218
C84: 20 | D84: 24147690.9 | E84: DR-601 | F84: 36 | G84: 3000 | H84: RCP | I84: 296 | J84: B | K84: 17.3 | M84: 1 | N84: 1 | V84: Type 3 | X84: 913.72 | Y84: 919.4 | AB84: 117.6 | AC84: 194.4 | AF84: 5.89 | AL84: =72.24*296/27 -> 791.9644444 | AN84: =131.06*39.3/27 -> 190.7651111 | AO84: =2.42*310/27 -> 27.78518519 | AP84: =AN84+AO84 -> 218.5502963
AN85: 1
D87: US 218 Loop B
C88: 48 | D88: 2147400 | E88: DR-601 | F88: 44x27 | G88: 2000 | H88: LCP | I88: 66 | J88: B | K88: 1.5 | M88: 1 | N88: 1 | V88: Type 3 | X88: 909.37 | Y88: 910.03 | AB88: 54.78 | AC88: 27.22 | AL88: =(51.46*82)/27 -> 156.2859259 | AN88: =(38.39*24)/27 -> 34.12444444 | AO88: =(2.66*80)/27 -> 7.881481481 | AP88: =AN88+AO88 -> 42.00592593
D91: US 218 Ramp C
D92: 3145375 | E92: DR-601 | F92: 24 | G92: 2000 | H92: RCP | I92: 56 | J92: B | K92: 2 | M92: 1 | N92: 1 | V92: Type 3 | X92: 905.78 | Y92: 905.43 | AB92: 43.78 | AC92: 24.42 | AL92: =(27*68.25)/27 -> 68.25 | AN92: =(21.19*22)/27 -> 17.26592593 | AO92: =(2.11*66.25)/27 -> 5.177314815 | AP92: =AN92+AO92 -> 22.44324074
D95: 23rd Avenue
D96: 23142425 | E96: DR-601 | F96: 24 | G96: 2000 | H96: RCP | I96: 96 | J96: B | K96: 8.3 | M96: 1 | N96: 1 | V96: Type 3 | X96: 881.73 | Y96: 881.19 | AB96: 53.55 | AC96: 54.68 | AL96: =(67.4*108.23)/27 -> 270.1741481 | AN96: =(188.76*30)/27 -> 209.7333333 | AO96: =(2.11*106.23)/27 -> 8.301677778 | AP96: =AN96+AO96 -> 218.0350111
AJ98: TOTALS: | AL98: =SUM(AL36:AL96) -> 5791.565624 | AN98: =SUM(AN36:AN96) -> 4847.725796 | AO98: 307.9883815 | AP98: 5154.714178
D101: (Continued on sheet CD.3)
D109: BID ITEMS:
D110: APRONS, CONCRETE, 24 IN. DIA. | O110: ='Pipe Quantity Calcs'!K34 -> 30 | P110: EACH
D111: APRONS, CONCRETE, 36 IN. DIA. | O111: ='Pipe Quantity Calcs'!K47 -> 8 | P111: EACH
D112: APRONS, CONCRETE, 42 IN. DIA. | O112: ='Pipe Quantity Calcs'!K56 -> 4 | P112: EACH
D113: APRONS, CONCRETE, 54 IN. DIA. | O113: ='Pipe Quantity Calcs'!K61 -> 2 | P113: EACH
D114: APRONS, CONCRETE, 72 IN. DIA. | O114: ='Pipe Quantity Calcs'!K66 -> 2 | P114: EACH
D115: APRONS, CONCRETE, 78 IN. DIA. | O115: ='Pipe Quantity Calcs'!K70 -> 2 | P115: EACH
D116: APRON, LOW CLEARANCE CONCRETE, EQUIVALENT DIAMETER 36 IN. | O116: ='Pipe Quantity Calcs'!K7 -> 2 | P116: EACH
D117: CULVERT, CONCRETE ROADWAY PIPE, 24 IN. DIA. | O117: ='Pipe Quantity Calcs'!F30 -> 1082 | P117: LF
D118: CULVERT, CONCRETE ROADWAY PIPE, 36 IN. DIA. | O118: ='Pipe Quantity Calcs'!F47 -> 402 | P118: LF
D119: CULVERT, CONCRETE ROADWAY PIPE, 42 IN. DIA. | O119: ='Pipe Quantity Calcs'!F56 -> 394 | P119: LF
D120: CULVERT, CONCRETE ROADWAY PIPE, 54 IN. DIA. | O120: ='Pipe Quantity Calcs'!F61 -> 258 | P120: LF
D121: CULVERT, CONCRETE ROADWAY PIPE, 72 IN. DIA. | O121: ='Pipe Quantity Calcs'!F66 -> 242 | P121: LF
D122: CULVERT, CONCRETE ROADWAY PIPE, 78 IN. DIA. | O122: ='Pipe Quantity Calcs'!F70 -> 74 | P122: LF
D123: CULVERT, LOW CLEARANCE CONCRETE RDWY PIPE, EQ. DIA. 36 IN. | O123: ='Pipe Quantity Calcs'!F7 -> 66 | P123: LF
D124: CULVERT, 3000D CONCRETE ROADWAY PIPE, 24 IN. DIA. | O124: ='Pipe Quantity Calcs'!F34 -> 210 | P124: LF
D125: CULVERT, 3000D CONCRETE ROADWAY PIPE, 36 IN. DIA. | O125: ='Pipe Quantity Calcs'!F48 -> 296 | P125: LF
D126: CULVERT, CONCRETE PIPE, 2000D, TRENCHLESS, 24 IN. DIA. | O126: ='Pipe Quantity Calcs'!F12 -> 340 | P126: LF
D127: CULVERT, CONCRETE PIPE, 2000D, TRENCHLESS, 36 IN. DIA. | O127: ='Pipe Quantity Calcs'!F38 -> 232 | P127: LF
D128: CULVERT, CONCRETE PIPE, 2000D, TRENCHLESS, 42 IN. DIA. | O128: ='Pipe Quantity Calcs'!F51 -> 108 | P128: LF
D129: APRONS, METAL, 24 IN. DIA. | O129: ='Pipe Quantity Calcs'!K3 -> 2 | P129: EACH
D130: CULVERT, CORRUGATED METAL ROADWAY PIPE, 24 IN. DIA. | O130: ='Pipe Quantity Calcs'!F3 -> 87 | P130: LF
C134: NOTES:
C135: (1) | D135: A=68.0', D=6.0'; one 7.5° DR-141
C136: (2) | D136: B=15.0', C=2.0', E=15.0', L=3.5'; includes two 15° CMP elbows
C137: (3) | D137: A=68.0', D=6.0'; one 7.5° DR-141
C138: (4) | D138: B=43.0', C=2.0', E=14.0', L=3.5'; includes two 15° CMP elbows
C139: (5) | D139: Stage 1: Remove existing outlet apron to provide room to jack 232' of RCP. Install outlet apron
D140: Stage 2: Remove 18' of jacked 36" RCP from inlet end & install inlet apron
C141: (6) | D141: F=34.19; One 3° Elbow
C142: (7) | D142: F=28.19; One 3° Elbow

Sheet DE104_4
A1: TabTitle | B1: =C16 -> ROADWAY ITEMS FOR DRAINAGE STRUCTURES INSTALLED BY CULVERT CONTRACTOR
A2: Number of Tab Columns | B2: 21
A3: DE Starter Row Number | B3: 27
A4: TabSheet Starter Row Number | B4: 13
A5: TabSheet Header Row Count | B5: 12
A6: Top Header Cell | B6: AB15
A7: Bottom Header Cell | B7: AV26
A8: DESheet Row Count | B8: 11
A9: Fixed Empty Rows | B9: 20
A10: Usable Empty Rows | B10: 0
A11: Total Rows Placed | B11: 31 | C11: xlRight(1) | D11: xlRight(1) | E11: xlRight(1) | F11: xlRight(1) | G11: xlCenter | H11: xlCenter | I11: xlRight(1) | J11: xlRight(1) | K11: xlCenter | L11: xlRight(1) | M11: xlRight(1) | N11: xlRight(1) | O11: xlRight(1) | P11: xlRight(1) | Q11: xlRight(1) | R11: xlLeft(1) | S11: xlRight(1) | T11: xlLeft(1) | U11: xlRight(1) | V11: xlRight(1) | W11: xlLeft(1) | AB11: =C11 -> xlRight(1) | AC11: xlRight(1) | AD11: xlRight(1) | AE11: xlRight(1) | AF11: xlCenter | AG11: xlCenter | AH11: xlRight(1) | AI11: xlRight(1) | AJ11: xlCenter | AK11: xlRight(1) | AL11: xlRight(1) | AM11: xlRight(1) | AN11: xlRight(1) | AO11: xlRight(1) | AP11: xlRight(1) | AQ11: xlLeft(1) | AR11: xlRight(1) | AS11: xlLeft(1) | AT11: xlRight(1) | AU11: xlRight(1) | AV11: xlLeft(1)
A12: Total Rows Needed | B12: =SUM(B8:B10) -> 31 | C12: #+00.00 | D12: General | E12: General | F12: General | G12: General | H12: General | I12: #+00.0 | J12: 0.00 | K12: General | L12: 0.0 | M12: 0.0 | N12: 0.0 | O12: 0.0 | P12: 0.0 | Q12: 0.0 | R12: General | S12: 0.0 | T12: General | U12: 0.000 | V12: 0.0 | W12: General | AB12: =IF(C12<>"",C12,"") -> #+00.00 | AC12: General | AD12: General | AE12: General | AF12: General | AG12: General | AH12: #+00.0 | AI12: 0.00 | AJ12: General | AK12: 0.0 | AL12: 0.0 | AM12: 0.0 | AN12: 0.0 | AO12: 0.0 | AP12: 0.0 | AQ12: General | AR12: 0.0 | AS12: General | AT12: 0.000 | AU12: 0.0 | AV12: General
A13: Last Tab DE Starter Row | B13: 27 | C13: =CELL("width",C13) -> 16 | D13: =CELL("width",D13) -> 13 | E13: 18 | F13: 20 | G13: 5 | H13: 5 | I13: 16 | J13: 11 | K13: 6 | L13: 14 | M13: 14 | N13: 14 | O13: 14 | P13: 14 | Q13: =CELL("width",Q13) -> 14 | R13: =CELL("width",R13) -> 50 | S13: 11 | T13: 11 | U13: 11 | V13: 13 | W13: =CELL("width",W13) -> 20 | AB13: =CELL("width",AB13) -> 0 | AC13: =CELL("width",AC13) -> 0 | AD13: 0 | AE13: 0 | AF13: 0 | AG13: 0 | AH13: 0 | AI13: 0 | AJ13: 0 | AK13: 0 | AL13: 0 | AM13: 0 | AN13: 0 | AO13: 0 | AP13: 0 | AQ13: 0 | AR13: 0 | AS13: 0 | AT13: 0 | AU13: 0 | AV13: 0
A14: Last Tab Tabsheet Starter Row | B14: 13 | C14: A | D14: B | E14: C | F14: D | G14: E | H14: F | I14: G | J14: H | K14: I | L14: J | M14: K | N14: L | O14: M | P14: N | Q14: O | R14: P | S14: Q | T14: R | U14: S | V14: T | W14: U | AB14: =LOWER(C14) -> a | AC14: b | AD14: c | AE14: d | AF14: e | AG14: f | AH14: g | AI14: h | AJ14: i | AK14: j | AL14: k | AM14: l | AN14: m | AO14: n | AP14: o | AQ14: p | AR14: q | AS14: r | AT14: s | AU14: t | AV14: u
A15: Last Copy Starter Row | B15: 1 | K15: Totals: | L15: =SUBTOTAL(9,L27:L6000) -> 4123.2 | M15: =SUBTOTAL(9,M27:M6000) -> 0 | N15: =SUBTOTAL(9,N27:N6000) -> 0 | Q15: =SUBTOTAL(9,Q27:Q6000) -> 93 | V15: =SUBTOTAL(9,V27:V6000) -> 0 | Y15: Excavation Type | Z15: Quantity, CY | AB15: 104-4 | AX15: =F21 -> Kind | AY15: =R21 -> Excavation | AZ15: =T21 -> Revetment
A16: Tab Loop Number | B16: 2 | C16: ROADWAY ITEMS FOR DRAINAGE STRUCTURES INSTALLED BY CULVERT CONTRACTOR | Y16: =AY16 -> Class 10, Roadway and Borrow | Z16: =SUMIF(R27:R6000,Y16,S27:S6000) -> 0 | AB16: =B17 -> 2017-10-17 | AX16: RCB | AY16: Class 10, Roadway and Borrow | AZ16: Class D
A17: Revision Date | B17: 2017-10-17 | Y17: Class 10, Unsuitable or Unstable Material | Z17: =SUMIF(R27:R6000,Y17,S27:S6000) -> 0 | AB17: =C16 -> ROADWAY ITEMS FOR DRAINAGE STRUCTURES INSTALLED BY CULVERT CONTRACTOR | AX17: Flume | AY17: Class 10, Unsuitable or Unstable Material | AZ17: Class E
A18: Tabulation Width | B18: 4 | C18: * Not a Bid Item | Y18: Class 10, Waste | Z18: =SUMIF(R27:R6000,Y18,S27:S6000) -> 0 | AX18: Drop Inlet | AY18: Class 10, Waste
A19: Horizontal Grid Lines | B19: Yes | C19: Backfill according to DR-111 | Y19: Class 12, Bounders or Rock Fragments | Z19: =SUMIF(R27:R6000,Y19,S27:S6000) -> 0 | AB19: =C18 -> * Not a Bid Item | AX19: 3-sided Arch | AY19: Class 12, Bounders or Rock Fragments
C20: ="This Data Entry Sheet fills Tab "&AB15&" effective "&TEXT(B17,"mm-dd-yy") -> This Data Entry Sheet fills Tab 104-4 effective 10-17-17 | Y20: Class 10, Channel | Z20: =SUMIF(R27:R6000,Y20,S27:S6000) -> 0 | AB20: =C19 -> Backfill according to DR-111 | AY20: Class 10, Channel
C21: Location | D21: Design Number | E21: Size | F21: Kind | G21: By Road Contractor | O21: Floodable* Backfill | P21: Porous* Backfill | Q21: Flooded Backfill | R21: Excavation | T21: Revetment | V21: Engineering Fabric | W21: Remarks | Y21: Class 12, Channel | Z21: =SUMIF(R27:R6000,Y21,S27:S6000) -> 0 | AB21: =C21 -> Location | AC21: =D21 -> Design Number | AD21: =E21 -> Size | AE21: =F21 -> Kind | AF21: =G21 -> By Road Contractor | AN21: =O21 -> Floodable* Backfill | AO21: =P21 -> Porous* Backfill | AP21: =Q21 -> Flooded Backfill | AQ21: =R21 -> Excavation | AS21: =T21 -> Revetment | AU21: =V21 -> Engineering Fabric | AV21: =W21 -> Remarks | AY21: Class 12, Channel
G22: Dike | L22: Compacting Backfill Adjacent | M22: Compaction w/Moisture Control | N22: Compaction w/Moisture and Density | Y22: Class 13, Channel | Z22: =SUMIF(R27:R6000,Y22,S27:S6000) -> 0 | AF22: =G22 -> Dike | AK22: =L22 -> Compacting Backfill Adjacent | AL22: =M22 -> Compaction w/Moisture Control | AM22: Compaction w/Moisture and Density | AY22: Class 13, Channel
H24: Rt. | I24: Location Station | J24: Top. Elev. | K24: Type | Y24: Revetment Type | Z24: Quantity, TONS | AF24: =G24 ->  | AG24: =H24 -> Rt. | AH24: Location Station | AI24: Top. Elev. | AJ24: =K24 -> Type
O25: (A) | P25: (B) | Q25: (A+B) | R25: Type | S25: Quantity | T25: Type | U25: Quantity | Y25: =AZ16 -> Class D | Z25: =SUMIF(T27:T6000,Y25,U27:U6000) -> 0 | AN25: =O25 -> (A) | AO25: (B) | AP25: (A+B) | AQ25: =R25 -> Type | AR25: =S25 -> Quantity | AS25: =T25 -> Type | AT25: =U25 -> Quantity
G26: Lt. | L26: CY | M26: CY | N26: CY | O26: CY | P26: CY | Q26: CY | S26: CY | U26: TONS | V26: SY | Y26: =AZ17 -> Class E | Z26: =SUMIF(T27:T6000,Y26,U27:U6000) -> 0 | AF26: =G26 -> Lt. | AK26: =L26 -> CY | AL26: =M26 -> CY | AM26: CY | AN26: CY | AO26: CY | AP26: CY | AR26: =S26 -> CY | AT26: =U26 -> TONS | AU26: =V26 -> SY
C27: STAGE 1
C28: US HWY 30
C29: 140100 | D29: 718 | E29: 8' x 8' | F29: RCB | L29: 2061.6 | O29: 42.8 | P29: 3.7 | Q29: 46.5
C33: STAGE 2
C34: US HWY 30
C35: 140100 | D35: 718 | E35: 8' x 8' | F35: RCB
J37: TOTALS: | L37: =SUM(L29:L35) -> 2061.6 | O37: =SUM(O29:O35) -> 42.8 | P37: 3.7 | Q37: 46.5

Sheet Pipe Quantity Calcs
C1: 24 | E1: CMP | F1: 30 | K1: 1
C2: 24 | E2: CMP | F2: 57 | K2: 1
E3: TOTALS: | F3: =SUM(F1:F2) -> 87 | K3: =SUM(J1:K2) -> 2
A6: 2147400 | C6: 44x27 | D6: 2000 | E6: LCP | F6: 66 | J6: 1 | K6: 1
E7: TOTALS: | F7: =SUM(F6) -> 66 | K7: =SUM(J6:K6) -> 2
A10: 149385 | B10: JACK | C10: 24 | D10: 2000 | E10: RCP | F10: 170 | J10: 1
A11: 150625 | B11: JACK | C11: 24 | D11: 2000 | E11: RCP | F11: 170 | K11: 1
E12: TOTALS: | F12: =SUM(F10:F11) -> 340
A15: 23142425 | C15: 24 | D15: 2000 | E15: RCP | F15: 96 | J15: 1 | K15: 1
A16: 138125 | C16: 24 | D16: 2000 | E16: RCP | F16: 98 | J16: 1 | K16: 1
A17: 138200 | C17: 24 | D17: 2000 | E17: RCP | F17: 68 | J17: 1
A18: 142400 | C18: 24 | D18: 2000 | E18: RCP | F18: 68 | J18: 1
A19: 146525 | C19: 24 | D19: 2000 | E19: RCP | F19: 74 | J19: 1 | K19: 1
A20: 147025 | C20: 24 | D20: 2000 | E20: RCP | F20: 80 | J20: 1 | K20: 1
A21: 147700 | C21: 24 | D21: 2000 | E21: RCP | F21: 92 | J21: 1 | K21: 1
C22: 24 | D22: 2000 | E22: RCP | F22: 32 | K22: 1
A23: 150100 | C23: 24 | D23: 2000 | E23: RCP | F23: 74 | J23: 1 | K23: 1
C24: 24 | D24: 2000 | E24: RCP | F24: 16 | J24: 1
A25: 139750 | C25: 24 | D25: 2000 | E25: RCP | F25: 68 | J25: 1 | K25: 1
A26: 140475 | C26: 24 | D26: 2000 | E26: RCP | F26: 92 | J26: 1 | K26: 1
A27: 141375 | C27: 24 | D27: 2000 | E27: RCP | F27: 86 | J27: 1 | K27: 1
A28: 143900 | C28: 24 | D28: 2000 | E28: RCP | F28: 82 | J28: 1 | K28: 1
A29: 3145375 | C29: 24 | D29: 2000 | E29: RCP | F29: 56 | J29: 1 | K29: 1
E30: TOTALS: | F30: =SUM(F15:F29) -> 1082
A33: 4147617 | C33: 24 | D33: 3000 | E33: RCP | F33: 210 | J33: 1 | K33: 1
E34: TOTALS: | F34: =SUM(F33) -> 210 | K34: =SUM(J10:K33) -> 30
A37: 148400 | B37: JACK | C37: 36 | D37: 2000 | E37: RCP | F37: 232 | J37: 1 | K37: 1
E38: TOTALS: | F38: =SUM(F37) -> 232
A41: 145400 | C41: 36 | D41: 2000 | E41: RCP | F41: 142 | K41: 1
A42: 147000 | C42: 36 | D42: 2000 | E42: RCP | F42: 100 | K42: 1
A43: 145400 | C43: 36 | D43: 2000 | E43: RCP | F43: 96 | J43: 1
A44: 147000 | C44: 36 | D44: 2000 | E44: RCP | F44: 64 | J44: 1
A46: 24147690.9 | C46: 36 | D46: 3000 | E46: RCP | F46: 296 | J46: 1 | K46: 1
D47: 2000 TOTALS: | F47: =SUM(F41:F44) -> 402 | K47: =SUM(J37:K46) -> 8
D48: 3000 TOTAL: | F48: =F46 -> 296
A50: 146075 | B50: JACK | C50: 42 | D50: 2000 | E50: RCP | F50: 108 | J50: 1
E51: TOTALS: | F51: =SUM(F50) -> 108
C54: 42 | D54: 2000 | E54: RCP | F54: 112 | K54: 1
A55: 4148200 | C55: 42 | D55: 2000 | E55: RCP | F55: 282 | J55: 1 | K55: 1
E56: TOTALS: | F56: =SUM(F54:F55) -> 394 | K56: =SUM(J50:K55) -> 4
A59: 138810 | C59: 54 | D59: 2000 | E59: RCP | F59: 168 | K59: 1
A60: 138810 | C60: 54 | D60: 2000 | E60: RCP | F60: 90 | J60: 1
E61: TOTALS: | F61: =SUM(F59:F60) -> 258 | K61: =SUM(J59:K60) -> 2
A64: 142550 | C64: 72 | D64: 2000 | E64: RCP | F64: 152 | K64: 1
A65: 142550 | C65: 72 | D65: 2000 | E65: RCP | F65: 90 | J65: 1
E66: TOTALS: | F66: =SUM(F64:F65) -> 242 | K66: =SUM(J64:K65) -> 2
A69: 23142088 | C69: 78 | D69: 2000 | E69: RCP | F69: 74 | J69: 1 | K69: 1
E70: TOTALS: | F70: =SUM(F69) -> 74 | K70: =SUM(J69:K69) -> 2
A77: US 218 Ramp D
A80: 23rd Avenue
A85: STAGE 2
A86: US HWY 30
A88: US 218 Ramp B
A91: US 218 Ramp C
A94: 23rd Avenue

Sheet 104_3
A1: 104-3
A2: Modified
A3: DRAINAGE STRUCTURE BY ROAD CONTRACTOR
A6: Length of unclassified pipe calculated is based on using | K6: Reinforced Concrete Pipe.
A7: * Not a bid item
A8: Diameter or equivalent diameter
A9: UNCL = Unclassified Pipe CMP = Corrugated Metal Pipe RCP = Reinforced Concrete Pipe LCP = Arch or Elliptical Low Clearance Pipe SARC = Steel Arch Pipe Backfill according to DR-101
A10: Drainage Area | B10: Location | C10: Type | D10: Size | E10: Pipe Classification | F10: Kind Of Pipe | G10: Length New Const. | H10: Bedding Class | I10: Design Cover (H) | J10: Camber* (DR-102) | K10: Apron No. | M10: Apron Guard* (DR-213) | N10: Elbow* (DR-141) | O10: Tee Section* (DR-142) | P10: "D" Section* (DR-141) | Q10: Reducer* | R10: Type 'C' Connections* (DR-122) | T10: Connected Pipe Joint* (DR-121) | U10: 4" Perforated Subdrain* | V10: Flow Line Elevations | Z10: Dimensions Lin. Ft. | AD10: Skew Ahead Degrees | AF10: Dike | AJ10: Class 20 | AK10: Flowable Mortar | AL10: Floodable* Backfill | AM10: Porous* Backfill | AN10: Flooded Backfill | AO10: Remarks
AF17: Rt. | AG17: Location Station | AH17: Top Elevation | AI17: Type
Z18: Total | AB18: Extensions | AL18: (A) | AM18: (B) | AN18: (A+B)
A19: ACRE | D19: IN | G19: LF | I19: FT | J19: FT | K19: IN | L19: OUT | M19: No. | N19: No. | O19: No. | P19: No. | Q19: No. | R19: Type | S19: No. | T19: Type | U19: FT | V19: Lt. | W19: Rt. | X19: Other | Y19: Other | Z19: Lt. | AA19: Rt. | AB19: Lt. | AC19: Rt. | AD19: Lt. | AE19: Rt. | AF19: Lt. | AJ19: CY | AK19: CY | AL19: CY | AM19: CY | AN19: CY
A20: =IF(OFFSET(DE104_3!$C$34,ROWS($C$34:C34)-1,COLUMNS($C$34:C34)-1)<>"",OFFSET(DE104_3!$C$34,ROWS($C$34:C34)-1,COLUMNS($C$34:C34)-1),"") ->  | B20: =IF(OFFSET(DE104_3!$D$34,ROWS($D$34:D34)-1,COLUMNS($D$34:D34)-1)<>"",OFFSET(DE104_3!$D$34,ROWS($D$34:D34)-1,COLUMNS($D$34:D34)-1),"") -> STAGE 1 | C20: =IF(OFFSET(DE104_3!$E$34,ROWS($E$34:E34)-1,COLUMNS($E$34:E34)-1)<>"",OFFSET(DE104_3!$E$34,ROWS($E$34:E34)-1,COLUMNS($E$34:E34)-1),"") ->  | D20: =IF(OFFSET(DE104_3!$F$34,ROWS($F$34:F34)-1,COLUMNS($F$34:F34)-1)<>"",OFFSET(DE104_3!$F$34,ROWS($F$34:F34)-1,COLUMNS($F$34:F34)-1),"") ->  | E20: =IF(OFFSET(DE104_3!$G$34,ROWS($G$34:G34)-1,COLUMNS($G$34:G34)-1)<>"",OFFSET(DE104_3!$G$34,ROWS($G$34:G34)-1,COLUMNS($G$34:G34)-1),"") ->  | F20: =IF(OFFSET(DE104_3!$H$34,ROWS($H$34:H34)-1,COLUMNS($H$34:H34)-1)<>"",OFFSET(DE104_3!$H$34,ROWS($H$34:H34)-1,COLUMNS($H$34:H34)-1),"") ->  | G20: =IF(OFFSET(DE104_3!$I$34,ROWS($I$34:I34)-1,COLUMNS($I$34:I34)-1)<>"",OFFSET(DE104_3!$I$34,ROWS($I$34:I34)-1,COLUMNS($I$34:I34)-1),"") ->  | H20: =IF(OFFSET(DE104_3!$J$34,ROWS($J$34:J34)-1,COLUMNS($J$34:J34)-1)<>"",OFFSET(DE104_3!$J$34,ROWS($J$34:J34)-1,COLUMNS($J$34:J34)-1),"") ->  | I20: =IF(OFFSET(DE104_3!$K$34,ROWS($K$34:K34)-1,COLUMNS($K$34:K34)-1)<>"",OFFSET(DE104_3!$K$34,ROWS($K$34:K34)-1,COLUMNS($K$34:K34)-1),"") ->  | J20: =IF(OFFSET(DE104_3!$L$34,ROWS($L$34:L34)-1,COLUMNS($L$34:L34)-1)<>"",OFFSET(DE104_3!$L$34,ROWS($L$34:L34)-1,COLUMNS($L$34:L34)-1),"") ->  | K20: =IF(OFFSET(DE104_3!$M$34,ROWS($M$34:M34)-1,COLUMNS($M$34:M34)-1)<>"",OFFSET(DE104_3!$M$34,ROWS($M$34:M34)-1,COLUMNS($M$34:M34)-1),"") ->  | L20: =IF(OFFSET(DE104_3!$N$34,ROWS($N$34:N34)-1,COLUMNS($N$34:N34)-1)<>"",OFFSET(DE104_3!$N$34,ROWS($N$34:N34)-1,COLUMNS($N$34:N34)-1),"") ->  | M20: =IF(OFFSET(DE104_3!$O$34,ROWS($O$34:O34)-1,COLUMNS($O$34:O34)-1)<>"",OFFSET(DE104_3!$O$34,ROWS($O$34:O34)-1,COLUMNS($O$34:O34)-1),"") ->  | N20: =IF(OFFSET(DE104_3!$P$34,ROWS($P$34:P34)-1,COLUMNS($P$34:P34)-1)<>"",OFFSET(DE104_3!$P$34,ROWS($P$34:P34)-1,COLUMNS($P$34:P34)-1),"") ->  | O20: =IF(OFFSET(DE104_3!$Q$34,ROWS($Q$34:Q34)-1,COLUMNS($Q$34:Q34)-1)<>"",OFFSET(DE104_3!$Q$34,ROWS($Q$34:Q34)-1,COLUMNS($Q$34:Q34)-1),"") ->  | P20: =IF(OFFSET(DE104_3!$R$34,ROWS($R$34:R34)-1,COLUMNS($R$34:R34)-1)<>"",OFFSET(DE104_3!$R$34,ROWS($R$34:R34)-1,COLUMNS($R$34:R34)-1),"") ->  | Q20: =IF(OFFSET(DE104_3!$S$34,ROWS($S$34:S34)-1,COLUMNS($S$34:S34)-1)<>"",OFFSET(DE104_3!$S$34,ROWS($S$34:S34)-1,COLUMNS($S$34:S34)-1),"") ->  | R20: =IF(OFFSET(DE104_3!$T$34,ROWS($T$34:T34)-1,COLUMNS($T$34:T34)-1)<>"",OFFSET(DE104_3!$T$34,ROWS($T$34:T34)-1,COLUMNS($T$34:T34)-1),"") ->  | S20: =IF(OFFSET(DE104_3!$U$34,ROWS($U$34:U34)-1,COLUMNS($U$34:U34)-1)<>"",OFFSET(DE104_3!$U$34,ROWS($U$34:U34)-1,COLUMNS($U$34:U34)-1),"") ->  | T20: =IF(OFFSET(DE104_3!$V$34,ROWS($V$34:V34)-1,COLUMNS($V$34:V34)-1)<>"",OFFSET(DE104_3!$V$34,ROWS($V$34:V34)-1,COLUMNS($V$34:V34)-1),"") ->  | U20: =IF(OFFSET(DE104_3!$W$34,ROWS($W$34:W34)-1,COLUMNS($W$34:W34)-1)<>"",OFFSET(DE104_3!$W$34,ROWS($W$34:W34)-1,COLUMNS($W$34:W34)-1),"") ->  | V20: =IF(OFFSET(DE104_3!$X$34,ROWS($X$34:X34)-1,COLUMNS($X$34:X34)-1)<>"",OFFSET(DE104_3!$X$34,ROWS($X$34:X34)-1,COLUMNS($X$34:X34)-1),"") ->  | W20: =IF(OFFSET(DE104_3!$Y$34,ROWS($Y$34:Y34)-1,COLUMNS($Y$34:Y34)-1)<>"",OFFSET(DE104_3!$Y$34,ROWS($Y$34:Y34)-1,COLUMNS($Y$34:Y34)-1),"") ->  | X20: =IF(OFFSET(DE104_3!$Z$34,ROWS($Z$34:Z34)-1,COLUMNS($Z$34:Z34)-1)<>"",OFFSET(DE104_3!$Z$34,ROWS($Z$34:Z34)-1,COLUMNS($Z$34:Z34)-1),"") ->  | Y20: =IF(OFFSET(DE104_3!$AA$34,ROWS($AA$34:AA34)-1,COLUMNS($AA$34:AA34)-1)<>"",OFFSET(DE104_3!$AA$34,ROWS($AA$34:AA34)-1,COLUMNS($AA$34:AA34)-1),"") ->  | Z20: =IF(OFFSET(DE104_3!$AB$34,ROWS($AB$34:AB34)-1,COLUMNS($AB$34:AB34)-1)<>"",OFFSET(DE104_3!$AB$34,ROWS($AB$34:AB34)-1,COLUMNS($AB$34:AB34)-1),"") ->  | AA20: =IF(OFFSET(DE104_3!$AC$34,ROWS($AC$34:AC34)-1,COLUMNS($AC$34:AC34)-1)<>"",OFFSET(DE104_3!$AC$34,ROWS($AC$34:AC34)-1,COLUMNS($AC$34:AC34)-1),"") ->  | AB20: =IF(OFFSET(DE104_3!$AD$34,ROWS($AD$34:AD34)-1,COLUMNS($AD$34:AD34)-1)<>"",OFFSET(DE104_3!$AD$34,ROWS($AD$34:AD34)-1,COLUMNS($AD$34:AD34)-1),"") ->  | AC20: =IF(OFFSET(DE104_3!$AE$34,ROWS($AE$34:AE34)-1,COLUMNS($AE$34:AE34)-1)<>"",OFFSET(DE104_3!$AE$34,ROWS($AE$34:AE34)-1,COLUMNS($AE$34:AE34)-1),"") ->  | AD20: =IF(OFFSET(DE104_3!$AF$34,ROWS($AF$34:AF34)-1,COLUMNS($AF$34:AF34)-1)<>"",OFFSET(DE104_3!$AF$34,ROWS($AF$34:AF34)-1,COLUMNS($AF$34:AF34)-1),"") ->  | AE20: =IF(OFFSET(DE104_3!$AG$34,ROWS($AG$34:AG34)-1,COLUMNS($AG$34:AG34)-1)<>"",OFFSET(DE104_3!$AG$34,ROWS($AG$34:AG34)-1,COLUMNS($AG$34:AG34)-1),"") ->  | AF20: =IF(OFFSET(DE104_3!$AH$34,ROWS($AH$34:AH34)-1,COLUMNS($AH$34:AH34)-1)<>"",OFFSET(DE104_3!$AH$34,ROWS($AH$34:AH34)-1,COLUMNS($AH$34:AH34)-1),"") ->  | AG20: =IF(OFFSET(DE104_3!$AI$34,ROWS($AI$34:AI34)-1,COLUMNS($AI$34:AI34)-1)<>"",OFFSET(DE104_3!$AI$34,ROWS($AI$34:AI34)-1,COLUMNS($AI$34:AI34)-1),"") ->  | AH20: =IF(OFFSET(DE104_3!$AJ$34,ROWS($AJ$34:AJ34)-1,COLUMNS($AJ$34:AJ34)-1)<>"",OFFSET(DE104_3!$AJ$34,ROWS($AJ$34:AJ34)-1,COLUMNS($AJ$34:AJ34)-1),"") ->  | AI20: =IF(OFFSET(DE104_3!$AK$34,ROWS($AK$34:AK34)-1,COLUMNS($AK$34:AK34)-1)<>"",OFFSET(DE104_3!$AK$34,ROWS($AK$34:AK34)-1,COLUMNS($AK$34:AK34)-1),"") ->  | AJ20: =IF(OFFSET(DE104_3!$AL$34,ROWS($AL$34:AL34)-1,COLUMNS($AL$34:AL34)-1)<>"",OFFSET(DE104_3!$AL$34,ROWS($AL$34:AL34)-1,COLUMNS($AL$34:AL34)-1),"") ->  | AK20: =IF(OFFSET(DE104_3!$AM$34,ROWS($AM$34:AM34)-1,COLUMNS($AM$34:AM34)-1)<>"",OFFSET(DE104_3!$AM$34,ROWS($AM$34:AM34)-1,COLUMNS($AM$34:AM34)-1),"") ->  | AL20: =IF(OFFSET(DE104_3!$AN$34,ROWS($AN$34:AN34)-1,COLUMNS($AN$34:AN34)-1)<>"",OFFSET(DE104_3!$AN$34,ROWS($AN$34:AN34)-1,COLUMNS($AN$34:AN34)-1),"") ->  | AM20: =IF(OFFSET(DE104_3!$AO$34,ROWS($AO$34:AO34)-1,COLUMNS($AO$34:AO34)-1)<>"",OFFSET(DE104_3!$AO$34,ROWS($AO$34:AO34)-1,COLUMNS($AO$34:AO34)-1),"") ->  | AN20: =IF(OFFSET(DE104_3!$AP$34,ROWS($AP$34:AP34)-1,COLUMNS($AP$34:AP34)-1)<>"",OFFSET(DE104_3!$AP$34,ROWS($AP$34:AP34)-1,COLUMNS($AP$34:AP34)-1),"") ->  | AO20: =IF(OFFSET(DE104_3!$AQ$34,ROWS($AQ$34:AQ34)-1,COLUMNS($AQ$34:AQ34)-1)<>"",OFFSET(DE104_3!$AQ$34,ROWS($AQ$34:AQ34)-1,COLUMNS($AQ$34:AQ34)-1),"") -> 
A21: =IF(OFFSET(DE104_3!$C$34,ROWS($C$34:C35)-1,COLUMNS($C$34:C35)-1)<>"",OFFSET(DE104_3!$C$34,ROWS($C$34:C35)-1,COLUMNS($C$34:C35)-1),"") ->  | B21: =IF(OFFSET(DE104_3!$D$34,ROWS($D$34:D35)-1,COLUMNS($D$34:D35)-1)<>"",OFFSET(DE104_3!$D$34,ROWS($D$34:D35)-1,COLUMNS($D$34:D35)-1),"") -> US HWY 30 | C21: =IF(OFFSET(DE104_3!$E$34,ROWS($E$34:E35)-1,COLUMNS($E$34:E35)-1)<>"",OFFSET(DE104_3!$E$34,ROWS($E$34:E35)-1,COLUMNS($E$34:E35)-1),"") ->  | D21: =IF(OFFSET(DE104_3!$F$34,ROWS($F$34:F35)-1,COLUMNS($F$34:F35)-1)<>"",OFFSET(DE104_3!$F$34,ROWS($F$34:F35)-1,COLUMNS($F$34:F35)-1),"") ->  | E21: =IF(OFFSET(DE104_3!$G$34,ROWS($G$34:G35)-1,COLUMNS($G$34:G35)-1)<>"",OFFSET(DE104_3!$G$34,ROWS($G$34:G35)-1,COLUMNS($G$34:G35)-1),"") ->  | F21: =IF(OFFSET(DE104_3!$H$34,ROWS($H$34:H35)-1,COLUMNS($H$34:H35)-1)<>"",OFFSET(DE104_3!$H$34,ROWS($H$34:H35)-1,COLUMNS($H$34:H35)-1),"") ->  | G21: =IF(OFFSET(DE104_3!$I$34,ROWS($I$34:I35)-1,COLUMNS($I$34:I35)-1)<>"",OFFSET(DE104_3!$I$34,ROWS($I$34:I35)-1,COLUMNS($I$34:I35)-1),"") ->  | H21: =IF(OFFSET(DE104_3!$J$34,ROWS($J$34:J35)-1,COLUMNS($J$34:J35)-1)<>"",OFFSET(DE104_3!$J$34,ROWS($J$34:J35)-1,COLUMNS($J$34:J35)-1),"") ->  | I21: =IF(OFFSET(DE104_3!$K$34,ROWS($K$34:K35)-1,COLUMNS($K$34:K35)-1)<>"",OFFSET(DE104_3!$K$34,ROWS($K$34:K35)-1,COLUMNS($K$34:K35)-1),"") ->  | J21: =IF(OFFSET(DE104_3!$L$34,ROWS($L$34:L35)-1,COLUMNS($L$34:L35)-1)<>"",OFFSET(DE104_3!$L$34,ROWS($L$34:L35)-1,COLUMNS($L$34:L35)-1),"") ->  | K21: =IF(OFFSET(DE104_3!$M$34,ROWS($M$34:M35)-1,COLUMNS($M$34:M35)-1)<>"",OFFSET(DE104_3!$M$34,ROWS($M$34:M35)-1,COLUMNS($M$34:M35)-1),"") ->  | L21: =IF(OFFSET(DE104_3!$N$34,ROWS($N$34:N35)-1,COLUMNS($N$34:N35)-1)<>"",OFFSET(DE104_3!$N$34,ROWS($N$34:N35)-1,COLUMNS($N$34:N35)-1),"") ->  | M21: =IF(OFFSET(DE104_3!$O$34,ROWS($O$34:O35)-1,COLUMNS($O$34:O35)-1)<>"",OFFSET(DE104_3!$O$34,ROWS($O$34:O35)-1,COLUMNS($O$34:O35)-1),"") ->  | N21: =IF(OFFSET(DE104_3!$P$34,ROWS($P$34:P35)-1,COLUMNS($P$34:P35)-1)<>"",OFFSET(DE104_3!$P$34,ROWS($P$34:P35)-1,COLUMNS($P$34:P35)-1),"") ->  | O21: =IF(OFFSET(DE104_3!$Q$34,ROWS($Q$34:Q35)-1,COLUMNS($Q$34:Q35)-1)<>"",OFFSET(DE104_3!$Q$34,ROWS($Q$34:Q35)-1,COLUMNS($Q$34:Q35)-1),"") ->  | P21: =IF(OFFSET(DE104_3!$R$34,ROWS($R$34:R35)-1,COLUMNS($R$34:R35)-1)<>"",OFFSET(DE104_3!$R$34,ROWS($R$34:R35)-1,COLUMNS($R$34:R35)-1),"") ->  | Q21: =IF(OFFSET(DE104_3!$S$34,ROWS($S$34:S35)-1,COLUMNS($S$34:S35)-1)<>"",OFFSET(DE104_3!$S$34,ROWS($S$34:S35)-1,COLUMNS($S$34:S35)-1),"") ->  | R21: =IF(OFFSET(DE104_3!$T$34,ROWS($T$34:T35)-1,COLUMNS($T$34:T35)-1)<>"",OFFSET(DE104_3!$T$34,ROWS($T$34:T35)-1,COLUMNS($T$34:T35)-1),"") ->  | S21: =IF(OFFSET(DE104_3!$U$34,ROWS($U$34:U35)-1,COLUMNS($U$34:U35)-1)<>"",OFFSET(DE104_3!$U$34,ROWS($U$34:U35)-1,COLUMNS($U$34:U35)-1),"") ->  | T21: =IF(OFFSET(DE104_3!$V$34,ROWS($V$34:V35)-1,COLUMNS($V$34:V35)-1)<>"",OFFSET(DE104_3!$V$34,ROWS($V$34:V35)-1,COLUMNS($V$34:V35)-1),"") ->  | U21: =IF(OFFSET(DE104_3!$W$34,ROWS($W$34:W35)-1,COLUMNS($W$34:W35)-1)<>"",OFFSET(DE104_3!$W$34,ROWS($W$34:W35)-1,COLUMNS($W$34:W35)-1),"") ->  | V21: =IF(OFFSET(DE104_3!$X$34,ROWS($X$34:X35)-1,COLUMNS($X$34:X35)-1)<>"",OFFSET(DE104_3!$X$34,ROWS($X$34:X35)-1,COLUMNS($X$34:X35)-1),"") ->  | W21: =IF(OFFSET(DE104_3!$Y$34,ROWS($Y$34:Y35)-1,COLUMNS($Y$34:Y35)-1)<>"",OFFSET(DE104_3!$Y$34,ROWS($Y$34:Y35)-1,COLUMNS($Y$34:Y35)-1),"") ->  | X21: =IF(OFFSET(DE104_3!$Z$34,ROWS($Z$34:Z35)-1,COLUMNS($Z$34:Z35)-1)<>"",OFFSET(DE104_3!$Z$34,ROWS($Z$34:Z35)-1,COLUMNS($Z$34:Z35)-1),"") ->  | Y21: =IF(OFFSET(DE104_3!$AA$34,ROWS($AA$34:AA35)-1,COLUMNS($AA$34:AA35)-1)<>"",OFFSET(DE104_3!$AA$34,ROWS($AA$34:AA35)-1,COLUMNS($AA$34:AA35)-1),"") ->  | Z21: =IF(OFFSET(DE104_3!$AB$34,ROWS($AB$34:AB35)-1,COLUMNS($AB$34:AB35)-1)<>"",OFFSET(DE104_3!$AB$34,ROWS($AB$34:AB35)-1,COLUMNS($AB$34:AB35)-1),"") ->  | AA21: =IF(OFFSET(DE104_3!$AC$34,ROWS($AC$34:AC35)-1,COLUMNS($AC$34:AC35)-1)<>"",OFFSET(DE104_3!$AC$34,ROWS($AC$34:AC35)-1,COLUMNS($AC$34:AC35)-1),"") ->  | AB21: =IF(OFFSET(DE104_3!$AD$34,ROWS($AD$34:AD35)-1,COLUMNS($AD$34:AD35)-1)<>"",OFFSET(DE104_3!$AD$34,ROWS($AD$34:AD35)-1,COLUMNS($AD$34:AD35)-1),"") ->  | AC21: =IF(OFFSET(DE104_3!$AE$34,ROWS($AE$34:AE35)-1,COLUMNS($AE$34:AE35)-1)<>"",OFFSET(DE104_3!$AE$34,ROWS($AE$34:AE35)-1,COLUMNS($AE$34:AE35)-1),"") ->  | AD21: =IF(OFFSET(DE104_3!$AF$34,ROWS($AF$34:AF35)-1,COLUMNS($AF$34:AF35)-1)<>"",OFFSET(DE104_3!$AF$34,ROWS($AF$34:AF35)-1,COLUMNS($AF$34:AF35)-1),"") ->  | AE21: =IF(OFFSET(DE104_3!$AG$34,ROWS($AG$34:AG35)-1,COLUMNS($AG$34:AG35)-1)<>"",OFFSET(DE104_3!$AG$34,ROWS($AG$34:AG35)-1,COLUMNS($AG$34:AG35)-1),"") ->  | AF21: =IF(OFFSET(DE104_3!$AH$34,ROWS($AH$34:AH35)-1,COLUMNS($AH$34:AH35)-1)<>"",OFFSET(DE104_3!$AH$34,ROWS($AH$34:AH35)-1,COLUMNS($AH$34:AH35)-1),"") ->  | AG21: =IF(OFFSET(DE104_3!$AI$34,ROWS($AI$34:AI35)-1,COLUMNS($AI$34:AI35)-1)<>"",OFFSET(DE104_3!$AI$34,ROWS($AI$34:AI35)-1,COLUMNS($AI$34:AI35)-1),"") ->  | AH21: =IF(OFFSET(DE104_3!$AJ$34,ROWS($AJ$34:AJ35)-1,COLUMNS($AJ$34:AJ35)-1)<>"",OFFSET(DE104_3!$AJ$34,ROWS($AJ$34:AJ35)-1,COLUMNS($AJ$34:AJ35)-1),"") ->  | AI21: =IF(OFFSET(DE104_3!$AK$34,ROWS($AK$34:AK35)-1,COLUMNS($AK$34:AK35)-1)<>"",OFFSET(DE104_3!$AK$34,ROWS($AK$34:AK35)-1,COLUMNS($AK$34:AK35)-1),"") ->  | AJ21: =IF(OFFSET(DE104_3!$AL$34,ROWS($AL$34:AL35)-1,COLUMNS($AL$34:AL35)-1)<>"",OFFSET(DE104_3!$AL$34,ROWS($AL$34:AL35)-1,COLUMNS($AL$34:AL35)-1),"") ->  | AK21: =IF(OFFSET(DE104_3!$AM$34,ROWS($AM$34:AM35)-1,COLUMNS($AM$34:AM35)-1)<>"",OFFSET(DE104_3!$AM$34,ROWS($AM$34:AM35)-1,COLUMNS($AM$34:AM35)-1),"") ->  | AL21: =IF(OFFSET(DE104_3!$AN$34,ROWS($AN$34:AN35)-1,COLUMNS($AN$34:AN35)-1)<>"",OFFSET(DE104_3!$AN$34,ROWS($AN$34:AN35)-1,COLUMNS($AN$34:AN35)-1),"") ->  | AM21: =IF(OFFSET(DE104_3!$AO$34,ROWS($AO$34:AO35)-1,COLUMNS($AO$34:AO35)-1)<>"",OFFSET(DE104_3!$AO$34,ROWS($AO$34:AO35)-1,COLUMNS($AO$34:AO35)-1),"") ->  | AN21: =IF(OFFSET(DE104_3!$AP$34,ROWS($AP$34:AP35)-1,COLUMNS($AP$34:AP35)-1)<>"",OFFSET(DE104_3!$AP$34,ROWS($AP$34:AP35)-1,COLUMNS($AP$34:AP35)-1),"") ->  | AO21: =IF(OFFSET(DE104_3!$AQ$34,ROWS($AQ$34:AQ35)-1,COLUMNS($AQ$34:AQ35)-1)<>"",OFFSET(DE104_3!$AQ$34,ROWS($AQ$34:AQ35)-1,COLUMNS($AQ$34:AQ35)-1),"") -> 
A22: =IF(OFFSET(DE104_3!$C$34,ROWS($C$34:C36)-1,COLUMNS($C$34:C36)-1)<>"",OFFSET(DE104_3!$C$34,ROWS($C$34:C36)-1,COLUMNS($C$34:C36)-1),"") -> MED | B22: =IF(OFFSET(DE104_3!$D$34,ROWS($D$34:D36)-1,COLUMNS($D$34:D36)-1)<>"",OFFSET(DE104_3!$D$34,ROWS($D$34:D36)-1,COLUMNS($D$34:D36)-1),"") -> 138125 | C22: =IF(OFFSET(DE104_3!$E$34,ROWS($E$34:E36)-1,COLUMNS($E$34:E36)-1)<>"",OFFSET(DE104_3!$E$34,ROWS($E$34:E36)-1,COLUMNS($E$34:E36)-1),"") -> DR-601 | D22: =IF(OFFSET(DE104_3!$F$34,ROWS($F$34:F36)-1,COLUMNS($F$34:F36)-1)<>"",OFFSET(DE104_3!$F$34,ROWS($F$34:F36)-1,COLUMNS($F$34:F36)-1),"") -> 24 | E22: =IF(OFFSET(DE104_3!$G$34,ROWS($G$34:G36)-1,COLUMNS($G$34:G36)-1)<>"",OFFSET(DE104_3!$G$34,ROWS($G$34:G36)-1,COLUMNS($G$34:G36)-1),"") -> 2000 | F22: =IF(OFFSET(DE104_3!$H$34,ROWS($H$34:H36)-1,COLUMNS($H$34:H36)-1)<>"",OFFSET(DE104_3!$H$34,ROWS($H$34:H36)-1,COLUMNS($H$34:H36)-1),"") -> RCP | G22: =IF(OFFSET(DE104_3!$I$34,ROWS($I$34:I36)-1,COLUMNS($I$34:I36)-1)<>"",OFFSET(DE104_3!$I$34,ROWS($I$34:I36)-1,COLUMNS($I$34:I36)-1),"") -> 98 | H22: =IF(OFFSET(DE104_3!$J$34,ROWS($J$34:J36)-1,COLUMNS($J$34:J36)-1)<>"",OFFSET(DE104_3!$J$34,ROWS($J$34:J36)-1,COLUMNS($J$34:J36)-1),"") -> B | I22: =IF(OFFSET(DE104_3!$K$34,ROWS($K$34:K36)-1,COLUMNS($K$34:K36)-1)<>"",OFFSET(DE104_3!$K$34,ROWS($K$34:K36)-1,COLUMNS($K$34:K36)-1),"") ->  | J22: =IF(OFFSET(DE104_3!$L$34,ROWS($L$34:L36)-1,COLUMNS($L$34:L36)-1)<>"",OFFSET(DE104_3!$L$34,ROWS($L$34:L36)-1,COLUMNS($L$34:L36)-1),"") ->  | K22: =IF(OFFSET(DE104_3!$M$34,ROWS($M$34:M36)-1,COLUMNS($M$34:M36)-1)<>"",OFFSET(DE104_3!$M$34,ROWS($M$34:M36)-1,COLUMNS($M$34:M36)-1),"") -> 1 | L22: =IF(OFFSET(DE104_3!$N$34,ROWS($N$34:N36)-1,COLUMNS($N$34:N36)-1)<>"",OFFSET(DE104_3!$N$34,ROWS($N$34:N36)-1,COLUMNS($N$34:N36)-1),"") -> 1 | M22: =IF(OFFSET(DE104_3!$O$34,ROWS($O$34:O36)-1,COLUMNS($O$34:O36)-1)<>"",OFFSET(DE104_3!$O$34,ROWS($O$34:O36)-1,COLUMNS($O$34:O36)-1),"") -> 1 | N22: =IF(OFFSET(DE104_3!$P$34,ROWS($P$34:P36)-1,COLUMNS($P$34:P36)-1)<>"",OFFSET(DE104_3!$P$34,ROWS($P$34:P36)-1,COLUMNS($P$34:P36)-1),"") ->  | O22: =IF(OFFSET(DE104_3!$Q$34,ROWS($Q$34:Q36)-1,COLUMNS($Q$34:Q36)-1)<>"",OFFSET(DE104_3!$Q$34,ROWS($Q$34:Q36)-1,COLUMNS($Q$34:Q36)-1),"") ->  | P22: =IF(OFFSET(DE104_3!$R$34,ROWS($R$34:R36)-1,COLUMNS($R$34:R36)-1)<>"",OFFSET(DE104_3!$R$34,ROWS($R$34:R36)-1,COLUMNS($R$34:R36)-1),"") ->  | Q22: =IF(OFFSET(DE104_3!$S$34,ROWS($S$34:S36)-1,COLUMNS($S$34:S36)-1)<>"",OFFSET(DE104_3!$S$34,ROWS($S$34:S36)-1,COLUMNS($S$34:S36)-1),"") ->  | R22: =IF(OFFSET(DE104_3!$T$34,ROWS($T$34:T36)-1,COLUMNS($T$34:T36)-1)<>"",OFFSET(DE104_3!$T$34,ROWS($T$34:T36)-1,COLUMNS($T$34:T36)-1),"") ->  | S22: =IF(OFFSET(DE104_3!$U$34,ROWS($U$34:U36)-1,COLUMNS($U$34:U36)-1)<>"",OFFSET(DE104_3!$U$34,ROWS($U$34:U36)-1,COLUMNS($U$34:U36)-1),"") ->  | T22: =IF(OFFSET(DE104_3!$V$34,ROWS($V$34:V36)-1,COLUMNS($V$34:V36)-1)<>"",OFFSET(DE104_3!$V$34,ROWS($V$34:V36)-1,COLUMNS($V$34:V36)-1),"") -> Type 3 | U22: =IF(OFFSET(DE104_3!$W$34,ROWS($W$34:W36)-1,COLUMNS($W$34:W36)-1)<>"",OFFSET(DE104_3!$W$34,ROWS($W$34:W36)-1,COLUMNS($W$34:W36)-1),"") ->  | V22: =IF(OFFSET(DE104_3!$X$34,ROWS($X$34:X36)-1,COLUMNS($X$34:X36)-1)<>"",OFFSET(DE104_3!$X$34,ROWS($X$34:X36)-1,COLUMNS($X$34:X36)-1),"") -> 884.49 | W22: =IF(OFFSET(DE104_3!$Y$34,ROWS($Y$34:Y36)-1,COLUMNS($Y$34:Y36)-1)<>"",OFFSET(DE104_3!$Y$34,ROWS($Y$34:Y36)-1,COLUMNS($Y$34:Y36)-1),"") -> 881.73 | X22: =IF(OFFSET(DE104_3!$Z$34,ROWS($Z$34:Z36)-1,COLUMNS($Z$34:Z36)-1)<>"",OFFSET(DE104_3!$Z$34,ROWS($Z$34:Z36)-1,COLUMNS($Z$34:Z36)-1),"") ->  | Y22: =IF(OFFSET(DE104_3!$AA$34,ROWS($AA$34:AA36)-1,COLUMNS($AA$34:AA36)-1)<>"",OFFSET(DE104_3!$AA$34,ROWS($AA$34:AA36)-1,COLUMNS($AA$34:AA36)-1),"") ->  | Z22: =IF(OFFSET(DE104_3!$AB$34,ROWS($AB$34:AB36)-1,COLUMNS($AB$34:AB36)-1)<>"",OFFSET(DE104_3!$AB$34,ROWS($AB$34:AB36)-1,COLUMNS($AB$34:AB36)-1),"") -> 42.1 | AA22: =IF(OFFSET(DE104_3!$AC$34,ROWS($AC$34:AC36)-1,COLUMNS($AC$34:AC36)-1)<>"",OFFSET(DE104_3!$AC$34,ROWS($AC$34:AC36)-1,COLUMNS($AC$34:AC36)-1),"") -> 68.1 | AB22: =IF(OFFSET(DE104_3!$AD$34,ROWS($AD$34:AD36)-1,COLUMNS($AD$34:AD36)-1)<>"",OFFSET(DE104_3!$AD$34,ROWS($AD$34:AD36)-1,COLUMNS($AD$34:AD36)-1),"") ->  | AC22: =IF(OFFSET(DE104_3!$AE$34,ROWS($AE$34:AE36)-1,COLUMNS($AE$34:AE36)-1)<>"",OFFSET(DE104_3!$AE$34,ROWS($AE$34:AE36)-1,COLUMNS($AE$34:AE36)-1),"") ->  | AD22: =IF(OFFSET(DE104_3!$AF$34,ROWS($AF$34:AF36)-1,COLUMNS($AF$34:AF36)-1)<>"",OFFSET(DE104_3!$AF$34,ROWS($AF$34:AF36)-1,COLUMNS($AF$34:AF36)-1),"") ->  | AE22: =IF(OFFSET(DE104_3!$AG$34,ROWS($AG$34:AG36)-1,COLUMNS($AG$34:AG36)-1)<>"",OFFSET(DE104_3!$AG$34,ROWS($AG$34:AG36)-1,COLUMNS($AG$34:AG36)-1),"") ->  | AF22: =IF(OFFSET(DE104_3!$AH$34,ROWS($AH$34:AH36)-1,COLUMNS($AH$34:AH36)-1)<>"",OFFSET(DE104_3!$AH$34,ROWS($AH$34:AH36)-1,COLUMNS($AH$34:AH36)-1),"") ->  | AG22: =IF(OFFSET(DE104_3!$AI$34,ROWS($AI$34:AI36)-1,COLUMNS($AI$34:AI36)-1)<>"",OFFSET(DE104_3!$AI$34,ROWS($AI$34:AI36)-1,COLUMNS($AI$34:AI36)-1),"") ->  | AH22: =IF(OFFSET(DE104_3!$AJ$34,ROWS($AJ$34:AJ36)-1,COLUMNS($AJ$34:AJ36)-1)<>"",OFFSET(DE104_3!$AJ$34,ROWS($AJ$34:AJ36)-1,COLUMNS($AJ$34:AJ36)-1),"") ->  | AI22: =IF(OFFSET(DE104_3!$AK$34,ROWS($AK$34:AK36)-1,COLUMNS($AK$34:AK36)-1)<>"",OFFSET(DE104_3!$AK$34,ROWS($AK$34:AK36)-1,COLUMNS($AK$34:AK36)-1),"") ->  | AJ22: =IF(OFFSET(DE104_3!$AL$34,ROWS($AL$34:AL36)-1,COLUMNS($AL$34:AL36)-1)<>"",OFFSET(DE104_3!$AL$34,ROWS($AL$34:AL36)-1,COLUMNS($AL$34:AL36)-1),"") -> 73.68337778 | AK22: =IF(OFFSET(DE104_3!$AM$34,ROWS($AM$34:AM36)-1,COLUMNS($AM$34:AM36)-1)<>"",OFFSET(DE104_3!$AM$34,ROWS($AM$34:AM36)-1,COLUMNS($AM$34:AM36)-1),"") ->  | AL22: =IF(OFFSET(DE104_3!$AN$34,ROWS($AN$34:AN36)-1,COLUMNS($AN$34:AN36)-1)<>"",OFFSET(DE104_3!$AN$34,ROWS($AN$34:AN36)-1,COLUMNS($AN$34:AN36)-1),"") -> 66.64296296 | AM22: =IF(OFFSET(DE104_3!$AO$34,ROWS($AO$34:AO36)-1,COLUMNS($AO$34:AO36)-1)<>"",OFFSET(DE104_3!$AO$34,ROWS($AO$34:AO36)-1,COLUMNS($AO$34:AO36)-1),"") -> 8.461881481 | AN22: =IF(OFFSET(DE104_3!$AP$34,ROWS($AP$34:AP36)-1,COLUMNS($AP$34:AP36)-1)<>"",OFFSET(DE104_3!$AP$34,ROWS($AP$34:AP36)-1,COLUMNS($AP$34:AP36)-1),"") -> 75.10484444 | AO22: =IF(OFFSET(DE104_3!$AQ$34,ROWS($AQ$34:AQ36)-1,COLUMNS($AQ$34:AQ36)-1)<>"",OFFSET(DE104_3!$AQ$34,ROWS($AQ$34:AQ36)-1,COLUMNS($AQ$34:AQ36)-1),"") -> 
A23: =IF(OFFSET(DE104_3!$C$34,ROWS($C$34:C37)-1,COLUMNS($C$34:C37)-1)<>"",OFFSET(DE104_3!$C$34,ROWS($C$34:C37)-1,COLUMNS($C$34:C37)-1),"") -> MED | B23: =IF(OFFSET(DE104_3!$D$34,ROWS($D$34:D37)-1,COLUMNS($D$34:D37)-1)<>"",OFFSET(DE104_3!$D$34,ROWS($D$34:D37)-1,COLUMNS($D$34:D37)-1),"") -> 138200 | C23: =IF(OFFSET(DE104_3!$E$34,ROWS($E$34:E37)-1,COLUMNS($E$34:E37)-1)<>"",OFFSET(DE104_3!$E$34,ROWS($E$34:E37)-1,COLUMNS($E$34:E37)-1),"") -> DR-641 | D23: =IF(OFFSET(DE104_3!$F$34,ROWS($F$34:F37)-1,COLUMNS($F$34:F37)-1)<>"",OFFSET(DE104_3!$F$34,ROWS($F$34:F37)-1,COLUMNS($F$34:F37)-1),"") -> 24 | E23: =IF(OFFSET(DE104_3!$G$34,ROWS($G$34:G37)-1,COLUMNS($G$34:G37)-1)<>"",OFFSET(DE104_3!$G$34,ROWS($G$34:G37)-1,COLUMNS($G$34:G37)-1),"") -> 2000 | F23: =IF(OFFSET(DE104_3!$H$34,ROWS($H$34:H37)-1,COLUMNS($H$34:H37)-1)<>"",OFFSET(DE104_3!$H$34,ROWS($H$34:H37)-1,COLUMNS($H$34:H37)-1),"") -> RCP | G23: =IF(OFFSET(DE104_3!$I$34,ROWS($I$34:I37)-1,COLUMNS($I$34:I37)-1)<>"",OFFSET(DE104_3!$I$34,ROWS($I$34:I37)-1,COLUMNS($I$34:I37)-1),"") -> 68 | H23: =IF(OFFSET(DE104_3!$J$34,ROWS($J$34:J37)-1,COLUMNS($J$34:J37)-1)<>"",OFFSET(DE104_3!$J$34,ROWS($J$34:J37)-1,COLUMNS($J$34:J37)-1),"") -> B | I23: =IF(OFFSET(DE104_3!$K$34,ROWS($K$34:K37)-1,COLUMNS($K$34:K37)-1)<>"",OFFSET(DE104_3!$K$34,ROWS($K$34:K37)-1,COLUMNS($K$34:K37)-1),"") -> 3.9 | J23: =IF(OFFSET(DE104_3!$L$34,ROWS($L$34:L37)-1,COLUMNS($L$34:L37)-1)<>"",OFFSET(DE104_3!$L$34,ROWS($L$34:L37)-1,COLUMNS($L$34:L37)-1),"") ->  | K23: =IF(OFFSET(DE104_3!$M$34,ROWS($M$34:M37)-1,COLUMNS($M$34:M37)-1)<>"",OFFSET(DE104_3!$M$34,ROWS($M$34:M37)-1,COLUMNS($M$34:M37)-1),"") -> 1 | L23: =IF(OFFSET(DE104_3!$N$34,ROWS($N$34:N37)-1,COLUMNS($N$34:N37)-1)<>"",OFFSET(DE104_3!$N$34,ROWS($N$34:N37)-1,COLUMNS($N$34:N37)-1),"") ->  | M23: =IF(OFFSET(DE104_3!$O$34,ROWS($O$34:O37)-1,COLUMNS($O$34:O37)-1)<>"",OFFSET(DE104_3!$O$34,ROWS($O$34:O37)-1,COLUMNS($O$34:O37)-1),"") -> 1 | N23: =IF(OFFSET(DE104_3!$P$34,ROWS($P$34:P37)-1,COLUMNS($P$34:P37)-1)<>"",OFFSET(DE104_3!$P$34,ROWS($P$34:P37)-1,COLUMNS($P$34:P37)-1),"") ->  | O23: =IF(OFFSET(DE104_3!$Q$34,ROWS($Q$34:Q37)-1,COLUMNS($Q$34:Q37)-1)<>"",OFFSET(DE104_3!$Q$34,ROWS($Q$34:Q37)-1,COLUMNS($Q$34:Q37)-1),"") ->  | P23: =IF(OFFSET(DE104_3!$R$34,ROWS($R$34:R37)-1,COLUMNS($R$34:R37)-1)<>"",OFFSET(DE104_3!$R$34,ROWS($R$34:R37)-1,COLUMNS($R$34:R37)-1),"") -> 1 | Q23: =IF(OFFSET(DE104_3!$S$34,ROWS($S$34:S37)-1,COLUMNS($S$34:S37)-1)<>"",OFFSET(DE104_3!$S$34,ROWS($S$34:S37)-1,COLUMNS($S$34:S37)-1),"") ->  | R23: =IF(OFFSET(DE104_3!$T$34,ROWS($T$34:T37)-1,COLUMNS($T$34:T37)-1)<>"",OFFSET(DE104_3!$T$34,ROWS($T$34:T37)-1,COLUMNS($T$34:T37)-1),"") -> C-3 | S23: =IF(OFFSET(DE104_3!$U$34,ROWS($U$34:U37)-1,COLUMNS($U$34:U37)-1)<>"",OFFSET(DE104_3!$U$34,ROWS($U$34:U37)-1,COLUMNS($U$34:U37)-1),"") -> 1 | T23: =IF(OFFSET(DE104_3!$V$34,ROWS($V$34:V37)-1,COLUMNS($V$34:V37)-1)<>"",OFFSET(DE104_3!$V$34,ROWS($V$34:V37)-1,COLUMNS($V$34:V37)-1),"") -> Type 3 | U23: =IF(OFFSET(DE104_3!$W$34,ROWS($W$34:W37)-1,COLUMNS($W$34:W37)-1)<>"",OFFSET(DE104_3!$W$34,ROWS($W$34:W37)-1,COLUMNS($W$34:W37)-1),"") ->  | V23: =IF(OFFSET(DE104_3!$X$34,ROWS($X$34:X37)-1,COLUMNS($X$34:X37)-1)<>"",OFFSET(DE104_3!$X$34,ROWS($X$34:X37)-1,COLUMNS($X$34:X37)-1),"") -> 887.95 | W23: =IF(OFFSET(DE104_3!$Y$34,ROWS($Y$34:Y37)-1,COLUMNS($Y$34:Y37)-1)<>"",OFFSET(DE104_3!$Y$34,ROWS($Y$34:Y37)-1,COLUMNS($Y$34:Y37)-1),"") -> 884.76 | X23: =IF(OFFSET(DE104_3!$Z$34,ROWS($Z$34:Z37)-1,COLUMNS($Z$34:Z37)-1)<>"",OFFSET(DE104_3!$Z$34,ROWS($Z$34:Z37)-1,COLUMNS($Z$34:Z37)-1),"") -> 886.1 | Y23: =IF(OFFSET(DE104_3!$AA$34,ROWS($AA$34:AA37)-1,COLUMNS($AA$34:AA37)-1)<>"",OFFSET(DE104_3!$AA$34,ROWS($AA$34:AA37)-1,COLUMNS($AA$34:AA37)-1),"") ->  | Z23: =IF(OFFSET(DE104_3!$AB$34,ROWS($AB$34:AB37)-1,COLUMNS($AB$34:AB37)-1)<>"",OFFSET(DE104_3!$AB$34,ROWS($AB$34:AB37)-1,COLUMNS($AB$34:AB37)-1),"") -> 37 | AA23: =IF(OFFSET(DE104_3!$AC$34,ROWS($AC$34:AC37)-1,COLUMNS($AC$34:AC37)-1)<>"",OFFSET(DE104_3!$AC$34,ROWS($AC$34:AC37)-1,COLUMNS($AC$34:AC37)-1),"") -> 37.1 | AB23: =IF(OFFSET(DE104_3!$AD$34,ROWS($AD$34:AD37)-1,COLUMNS($AD$34:AD37)-1)<>"",OFFSET(DE104_3!$AD$34,ROWS($AD$34:AD37)-1,COLUMNS($AD$34:AD37)-1),"") ->  | AC23: =IF(OFFSET(DE104_3!$AE$34,ROWS($AE$34:AE37)-1,COLUMNS($AE$34:AE37)-1)<>"",OFFSET(DE104_3!$AE$34,ROWS($AE$34:AE37)-1,COLUMNS($AE$34:AE37)-1),"") ->  | AD23: =IF(OFFSET(DE104_3!$AF$34,ROWS($AF$34:AF37)-1,COLUMNS($AF$34:AF37)-1)<>"",OFFSET(DE104_3!$AF$34,ROWS($AF$34:AF37)-1,COLUMNS($AF$34:AF37)-1),"") ->  | AE23: =IF(OFFSET(DE104_3!$AG$34,ROWS($AG$34:AG37)-1,COLUMNS($AG$34:AG37)-1)<>"",OFFSET(DE104_3!$AG$34,ROWS($AG$34:AG37)-1,COLUMNS($AG$34:AG37)-1),"") ->  | AF23: =IF(OFFSET(DE104_3!$AH$34,ROWS($AH$34:AH37)-1,COLUMNS($AH$34:AH37)-1)<>"",OFFSET(DE104_3!$AH$34,ROWS($AH$34:AH37)-1,COLUMNS($AH$34:AH37)-1),"") ->  | AG23: =IF(OFFSET(DE104_3!$AI$34,ROWS($AI$34:AI37)-1,COLUMNS($AI$34:AI37)-1)<>"",OFFSET(DE104_3!$AI$34,ROWS($AI$34:AI37)-1,COLUMNS($AI$34:AI37)-1),"") ->  | AH23: =IF(OFFSET(DE104_3!$AJ$34,ROWS($AJ$34:AJ37)-1,COLUMNS($AJ$34:AJ37)-1)<>"",OFFSET(DE104_3!$AJ$34,ROWS($AJ$34:AJ37)-1,COLUMNS($AJ$34:AJ37)-1),"") ->  | AI23: =IF(OFFSET(DE104_3!$AK$34,ROWS($AK$34:AK37)-1,COLUMNS($AK$34:AK37)-1)<>"",OFFSET(DE104_3!$AK$34,ROWS($AK$34:AK37)-1,COLUMNS($AK$34:AK37)-1),"") ->  | AJ23: =IF(OFFSET(DE104_3!$AL$34,ROWS($AL$34:AL37)-1,COLUMNS($AL$34:AL37)-1)<>"",OFFSET(DE104_3!$AL$34,ROWS($AL$34:AL37)-1,COLUMNS($AL$34:AL37)-1),"") ->  | AK23: =IF(OFFSET(DE104_3!$AM$34,ROWS($AM$34:AM37)-1,COLUMNS($AM$34:AM37)-1)<>"",OFFSET(DE104_3!$AM$34,ROWS($AM$34:AM37)-1,COLUMNS($AM$34:AM37)-1),"") ->  | AL23: =IF(OFFSET(DE104_3!$AN$34,ROWS($AN$34:AN37)-1,COLUMNS($AN$34:AN37)-1)<>"",OFFSET(DE104_3!$AN$34,ROWS($AN$34:AN37)-1,COLUMNS($AN$34:AN37)-1),"") -> 31.08740741 | AM23: =IF(OFFSET(DE104_3!$AO$34,ROWS($AO$34:AO37)-1,COLUMNS($AO$34:AO37)-1)<>"",OFFSET(DE104_3!$AO$34,ROWS($AO$34:AO37)-1,COLUMNS($AO$34:AO37)-1),"") -> 5.652455556 | AN23: =IF(OFFSET(DE104_3!$AP$34,ROWS($AP$34:AP37)-1,COLUMNS($AP$34:AP37)-1)<>"",OFFSET(DE104_3!$AP$34,ROWS($AP$34:AP37)-1,COLUMNS($AP$34:AP37)-1),"") -> 36.73986296 | AO23: =IF(OFFSET(DE104_3!$AQ$34,ROWS($AQ$34:AQ37)-1,COLUMNS($AQ$34:AQ37)-1)<>"",OFFSET(DE104_3!$AQ$34,ROWS($AQ$34:AQ37)-1,COLUMNS($AQ$34:AQ37)-1),"") -> (1)
A24: =IF(OFFSET(DE104_3!$C$34,ROWS($C$34:C38)-1,COLUMNS($C$34:C38)-1)<>"",OFFSET(DE104_3!$C$34,ROWS($C$34:C38)-1,COLUMNS($C$34:C38)-1),"") ->  | B24: =IF(OFFSET(DE104_3!$D$34,ROWS($D$34:D38)-1,COLUMNS($D$34:D38)-1)<>"",OFFSET(DE104_3!$D$34,ROWS($D$34:D38)-1,COLUMNS($D$34:D38)-1),"") ->  | C24: =IF(OFFSET(DE104_3!$E$34,ROWS($E$34:E38)-1,COLUMNS($E$34:E38)-1)<>"",OFFSET(DE104_3!$E$34,ROWS($E$34:E38)-1,COLUMNS($E$34:E38)-1),"") ->  | D24: =IF(OFFSET(DE104_3!$F$34,ROWS($F$34:F38)-1,COLUMNS($F$34:F38)-1)<>"",OFFSET(DE104_3!$F$34,ROWS($F$34:F38)-1,COLUMNS($F$34:F38)-1),"") -> 24 | E24: =IF(OFFSET(DE104_3!$G$34,ROWS($G$34:G38)-1,COLUMNS($G$34:G38)-1)<>"",OFFSET(DE104_3!$G$34,ROWS($G$34:G38)-1,COLUMNS($G$34:G38)-1),"") ->  | F24: =IF(OFFSET(DE104_3!$H$34,ROWS($H$34:H38)-1,COLUMNS($H$34:H38)-1)<>"",OFFSET(DE104_3!$H$34,ROWS($H$34:H38)-1,COLUMNS($H$34:H38)-1),"") -> CMP | G24: =IF(OFFSET(DE104_3!$I$34,ROWS($I$34:I38)-1,COLUMNS($I$34:I38)-1)<>"",OFFSET(DE104_3!$I$34,ROWS($I$34:I38)-1,COLUMNS($I$34:I38)-1),"") -> 30 | H24: =IF(OFFSET(DE104_3!$J$34,ROWS($J$34:J38)-1,COLUMNS($J$34:J38)-1)<>"",OFFSET(DE104_3!$J$34,ROWS($J$34:J38)-1,COLUMNS($J$34:J38)-1),"") -> B | I24: =IF(OFFSET(DE104_3!$K$34,ROWS($K$34:K38)-1,COLUMNS($K$34:K38)-1)<>"",OFFSET(DE104_3!$K$34,ROWS($K$34:K38)-1,COLUMNS($K$34:K38)-1),"") ->  | J24: =IF(OFFSET(DE104_3!$L$34,ROWS($L$34:L38)-1,COLUMNS($L$34:L38)-1)<>"",OFFSET(DE104_3!$L$34,ROWS($L$34:L38)-1,COLUMNS($L$34:L38)-1),"") ->  | K24: =IF(OFFSET(DE104_3!$M$34,ROWS($M$34:M38)-1,COLUMNS($M$34:M38)-1)<>"",OFFSET(DE104_3!$M$34,ROWS($M$34:M38)-1,COLUMNS($M$34:M38)-1),"") ->  | L24: =IF(OFFSET(DE104_3!$N$34,ROWS($N$34:N38)-1,COLUMNS($N$34:N38)-1)<>"",OFFSET(DE104_3!$N$34,ROWS($N$34:N38)-1,COLUMNS($N$34:N38)-1),"") -> 1 | M24: =IF(OFFSET(DE104_3!$O$34,ROWS($O$34:O38)-1,COLUMNS($O$34:O38)-1)<>"",OFFSET(DE104_3!$O$34,ROWS($O$34:O38)-1,COLUMNS($O$34:O38)-1),"") ->  | N24: =IF(OFFSET(DE104_3!$P$34,ROWS($P$34:P38)-1,COLUMNS($P$34:P38)-1)<>"",OFFSET(DE104_3!$P$34,ROWS($P$34:P38)-1,COLUMNS($P$34:P38)-1),"") ->  | O24: =IF(OFFSET(DE104_3!$Q$34,ROWS($Q$34:Q38)-1,COLUMNS($Q$34:Q38)-1)<>"",OFFSET(DE104_3!$Q$34,ROWS($Q$34:Q38)-1,COLUMNS($Q$34:Q38)-1),"") ->  | P24: =IF(OFFSET(DE104_3!$R$34,ROWS($R$34:R38)-1,COLUMNS($R$34:R38)-1)<>"",OFFSET(DE104_3!$R$34,ROWS($R$34:R38)-1,COLUMNS($R$34:R38)-1),"") ->  | Q24: =IF(OFFSET(DE104_3!$S$34,ROWS($S$34:S38)-1,COLUMNS($S$34:S38)-1)<>"",OFFSET(DE104_3!$S$34,ROWS($S$34:S38)-1,COLUMNS($S$34:S38)-1),"") ->  | R24: =IF(OFFSET(DE104_3!$T$34,ROWS($T$34:T38)-1,COLUMNS($T$34:T38)-1)<>"",OFFSET(DE104_3!$T$34,ROWS($T$34:T38)-1,COLUMNS($T$34:T38)-1),"") ->  | S24: =IF(OFFSET(DE104_3!$U$34,ROWS($U$34:U38)-1,COLUMNS($U$34:U38)-1)<>"",OFFSET(DE104_3!$U$34,ROWS($U$34:U38)-1,COLUMNS($U$34:U38)-1),"") ->  | T24: =IF(OFFSET(DE104_3!$V$34,ROWS($V$34:V38)-1,COLUMNS($V$34:V38)-1)<>"",OFFSET(DE104_3!$V$34,ROWS($V$34:V38)-1,COLUMNS($V$34:V38)-1),"") ->  | U24: =IF(OFFSET(DE104_3!$W$34,ROWS($W$34:W38)-1,COLUMNS($W$34:W38)-1)<>"",OFFSET(DE104_3!$W$34,ROWS($W$34:W38)-1,COLUMNS($W$34:W38)-1),"") ->  | V24: =IF(OFFSET(DE104_3!$X$34,ROWS($X$34:X38)-1,COLUMNS($X$34:X38)-1)<>"",OFFSET(DE104_3!$X$34,ROWS($X$34:X38)-1,COLUMNS($X$34:X38)-1),"") -> 884.76 | W24: =IF(OFFSET(DE104_3!$Y$34,ROWS($Y$34:Y38)-1,COLUMNS($Y$34:Y38)-1)<>"",OFFSET(DE104_3!$Y$34,ROWS($Y$34:Y38)-1,COLUMNS($Y$34:Y38)-1),"") -> 880.15 | X24: =IF(OFFSET(DE104_3!$Z$34,ROWS($Z$34:Z38)-1,COLUMNS($Z$34:Z38)-1)<>"",OFFSET(DE104_3!$Z$34,ROWS($Z$34:Z38)-1,COLUMNS($Z$34:Z38)-1),"") -> 880.56 | Y24: =IF(OFFSET(DE104_3!$AA$34,ROWS($AA$34:AA38)-1,COLUMNS($AA$34:AA38)-1)<>"",OFFSET(DE104_3!$AA$34,ROWS($AA$34:AA38)-1,COLUMNS($AA$34:AA38)-1),"") ->  | Z24: =IF(OFFSET(DE104_3!$AB$34,ROWS($AB$34:AB38)-1,COLUMNS($AB$34:AB38)-1)<>"",OFFSET(DE104_3!$AB$34,ROWS($AB$34:AB38)-1,COLUMNS($AB$34:AB38)-1),"") -> 37.1 | AA24: =IF(OFFSET(DE104_3!$AC$34,ROWS($AC$34:AC38)-1,COLUMNS($AC$34:AC38)-1)<>"",OFFSET(DE104_3!$AC$34,ROWS($AC$34:AC38)-1,COLUMNS($AC$34:AC38)-1),"") -> 72 | AB24: =IF(OFFSET(DE104_3!$AD$34,ROWS($AD$34:AD38)-1,COLUMNS($AD$34:AD38)-1)<>"",OFFSET(DE104_3!$AD$34,ROWS($AD$34:AD38)-1,COLUMNS($AD$34:AD38)-1),"") ->  | AC24: =IF(OFFSET(DE104_3!$AE$34,ROWS($AE$34:AE38)-1,COLUMNS($AE$34:AE38)-1)<>"",OFFSET(DE104_3!$AE$34,ROWS($AE$34:AE38)-1,COLUMNS($AE$34:AE38)-1),"") ->  | AD24: =IF(OFFSET(DE104_3!$AF$34,ROWS($AF$34:AF38)-1,COLUMNS($AF$34:AF38)-1)<>"",OFFSET(DE104_3!$AF$34,ROWS($AF$34:AF38)-1,COLUMNS($AF$34:AF38)-1),"") ->  | AE24: =IF(OFFSET(DE104_3!$AG$34,ROWS($AG$34:AG38)-1,COLUMNS($AG$34:AG38)-1)<>"",OFFSET(DE104_3!$AG$34,ROWS($AG$34:AG38)-1,COLUMNS($AG$34:AG38)-1),"") ->  | AF24: =IF(OFFSET(DE104_3!$AH$34,ROWS($AH$34:AH38)-1,COLUMNS($AH$34:AH38)-1)<>"",OFFSET(DE104_3!$AH$34,ROWS($AH$34:AH38)-1,COLUMNS($AH$34:AH38)-1),"") ->  | AG24: =IF(OFFSET(DE104_3!$AI$34,ROWS($AI$34:AI38)-1,COLUMNS($AI$34:AI38)-1)<>"",OFFSET(DE104_3!$AI$34,ROWS($AI$34:AI38)-1,COLUMNS($AI$34:AI38)-1),"") ->  | AH24: =IF(OFFSET(DE104_3!$AJ$34,ROWS($AJ$34:AJ38)-1,COLUMNS($AJ$34:AJ38)-1)<>"",OFFSET(DE104_3!$AJ$34,ROWS($AJ$34:AJ38)-1,COLUMNS($AJ$34:AJ38)-1),"") ->  | AI24: =IF(OFFSET(DE104_3!$AK$34,ROWS($AK$34:AK38)-1,COLUMNS($AK$34:AK38)-1)<>"",OFFSET(DE104_3!$AK$34,ROWS($AK$34:AK38)-1,COLUMNS($AK$34:AK38)-1),"") ->  | AJ24: =IF(OFFSET(DE104_3!$AL$34,ROWS($AL$34:AL38)-1,COLUMNS($AL$34:AL38)-1)<>"",OFFSET(DE104_3!$AL$34,ROWS($AL$34:AL38)-1,COLUMNS($AL$34:AL38)-1),"") -> 14.11111111 | AK24: =IF(OFFSET(DE104_3!$AM$34,ROWS($AM$34:AM38)-1,COLUMNS($AM$34:AM38)-1)<>"",OFFSET(DE104_3!$AM$34,ROWS($AM$34:AM38)-1,COLUMNS($AM$34:AM38)-1),"") ->  | AL24: =IF(OFFSET(DE104_3!$AN$34,ROWS($AN$34:AN38)-1,COLUMNS($AN$34:AN38)-1)<>"",OFFSET(DE104_3!$AN$34,ROWS($AN$34:AN38)-1,COLUMNS($AN$34:AN38)-1),"") ->  | AM24: =IF(OFFSET(DE104_3!$AO$34,ROWS($AO$34:AO38)-1,COLUMNS($AO$34:AO38)-1)<>"",OFFSET(DE104_3!$AO$34,ROWS($AO$34:AO38)-1,COLUMNS($AO$34:AO38)-1),"") -> 2.774259259 | AN24: =IF(OFFSET(DE104_3!$AP$34,ROWS($AP$34:AP38)-1,COLUMNS($AP$34:AP38)-1)<>"",OFFSET(DE104_3!$AP$34,ROWS($AP$34:AP38)-1,COLUMNS($AP$34:AP38)-1),"") -> 2.774259259 | AO24: =IF(OFFSET(DE104_3!$AQ$34,ROWS($AQ$34:AQ38)-1,COLUMNS($AQ$34:AQ38)-1)<>"",OFFSET(DE104_3!$AQ$34,ROWS($AQ$34:AQ38)-1,COLUMNS($AQ$34:AQ38)-1),"") -> (2)
A25: =IF(OFFSET(DE104_3!$C$34,ROWS($C$34:C39)-1,COLUMNS($C$34:C39)-1)<>"",OFFSET(DE104_3!$C$34,ROWS($C$34:C39)-1,COLUMNS($C$34:C39)-1),"") -> 113 | B25: =IF(OFFSET(DE104_3!$D$34,ROWS($D$34:D39)-1,COLUMNS($D$34:D39)-1)<>"",OFFSET(DE104_3!$D$34,ROWS($D$34:D39)-1,COLUMNS($D$34:D39)-1),"") -> 138810 | C25: =IF(OFFSET(DE104_3!$E$34,ROWS($E$34:E39)-1,COLUMNS($E$34:E39)-1)<>"",OFFSET(DE104_3!$E$34,ROWS($E$34:E39)-1,COLUMNS($E$34:E39)-1),"") -> DR-601 | D25: =IF(OFFSET(DE104_3!$F$34,ROWS($F$34:F39)-1,COLUMNS($F$34:F39)-1)<>"",OFFSET(DE104_3!$F$34,ROWS($F$34:F39)-1,COLUMNS($F$34:F39)-1),"") -> 54 | E25: =IF(OFFSET(DE104_3!$G$34,ROWS($G$34:G39)-1,COLUMNS($G$34:G39)-1)<>"",OFFSET(DE104_3!$G$34,ROWS($G$34:G39)-1,COLUMNS($G$34:G39)-1),"") -> 2000 | F25: =IF(OFFSET(DE104_3!$H$34,ROWS($H$34:H39)-1,COLUMNS($H$34:H39)-1)<>"",OFFSET(DE104_3!$H$34,ROWS($H$34:H39)-1,COLUMNS($H$34:H39)-1),"") -> RCP | G25: =IF(OFFSET(DE104_3!$I$34,ROWS($I$34:I39)-1,COLUMNS($I$34:I39)-1)<>"",OFFSET(DE104_3!$I$34,ROWS($I$34:I39)-1,COLUMNS($I$34:I39)-1),"") -> 168 | H25: =IF(OFFSET(DE104_3!$J$34,ROWS($J$34:J39)-1,COLUMNS($J$34:J39)-1)<>"",OFFSET(DE104_3!$J$34,ROWS($J$34:J39)-1,COLUMNS($J$34:J39)-1),"") -> B | I25: =IF(OFFSET(DE104_3!$K$34,ROWS($K$34:K39)-1,COLUMNS($K$34:K39)-1)<>"",OFFSET(DE104_3!$K$34,ROWS($K$34:K39)-1,COLUMNS($K$34:K39)-1),"") -> 14.8 | J25: =IF(OFFSET(DE104_3!$L$34,ROWS($L$34:L39)-1,COLUMNS($L$34:L39)-1)<>"",OFFSET(DE104_3!$L$34,ROWS($L$34:L39)-1,COLUMNS($L$34:L39)-1),"") ->  | K25: =IF(OFFSET(DE104_3!$M$34,ROWS($M$34:M39)-1,COLUMNS($M$34:M39)-1)<>"",OFFSET(DE104_3!$M$34,ROWS($M$34:M39)-1,COLUMNS($M$34:M39)-1),"") ->  | L25: =IF(OFFSET(DE104_3!$N$34,ROWS($N$34:N39)-1,COLUMNS($N$34:N39)-1)<>"",OFFSET(DE104_3!$N$34,ROWS($N$34:N39)-1,COLUMNS($N$34:N39)-1),"") -> 1 | M25: =IF(OFFSET(DE104_3!$O$34,ROWS($O$34:O39)-1,COLUMNS($O$34:O39)-1)<>"",OFFSET(DE104_3!$O$34,ROWS($O$34:O39)-1,COLUMNS($O$34:O39)-1),"") ->  | N25: =IF(OFFSET(DE104_3!$P$34,ROWS($P$34:P39)-1,COLUMNS($P$34:P39)-1)<>"",OFFSET(DE104_3!$P$34,ROWS($P$34:P39)-1,COLUMNS($P$34:P39)-1),"") ->  | O25: =IF(OFFSET(DE104_3!$Q$34,ROWS($Q$34:Q39)-1,COLUMNS($Q$34:Q39)-1)<>"",OFFSET(DE104_3!$Q$34,ROWS($Q$34:Q39)-1,COLUMNS($Q$34:Q39)-1),"") ->  | P25: =IF(OFFSET(DE104_3!$R$34,ROWS($R$34:R39)-1,COLUMNS($R$34:R39)-1)<>"",OFFSET(DE104_3!$R$34,ROWS($R$34:R39)-1,COLUMNS($R$34:R39)-1),"") ->  | Q25: =IF(OFFSET(DE104_3!$S$34,ROWS($S$34:S39)-1,COLUMNS($S$34:S39)-1)<>"",OFFSET(DE104_3!$S$34,ROWS($S$34:S39)-1,COLUMNS($S$34:S39)-1),"") ->  | R25: =IF(OFFSET(DE104_3!$T$34,ROWS($T$34:T39)-1,COLUMNS($T$34:T39)-1)<>"",OFFSET(DE104_3!$T$34,ROWS($T$34:T39)-1,COLUMNS($T$34:T39)-1),"") ->  | S25: =IF(OFFSET(DE104_3!$U$34,ROWS($U$34:U39)-1,COLUMNS($U$34:U39)-1)<>"",OFFSET(DE104_3!$U$34,ROWS($U$34:U39)-1,COLUMNS($U$34:U39)-1),"") ->  | T25: =IF(OFFSET(DE104_3!$V$34,ROWS($V$34:V39)-1,COLUMNS($V$34:V39)-1)<>"",OFFSET(DE104_3!$V$34,ROWS($V$34:V39)-1,COLUMNS($V$34:V39)-1),"") -> Type 3 | U25: =IF(OFFSET(DE104_3!$W$34,ROWS($W$34:W39)-1,COLUMNS($W$34:W39)-1)<>"",OFFSET(DE104_3!$W$34,ROWS($W$34:W39)-1,COLUMNS($W$34:W39)-1),"") ->  | V25: =IF(OFFSET(DE104_3!$X$34,ROWS($X$34:X39)-1,COLUMNS($X$34:X39)-1)<>"",OFFSET(DE104_3!$X$34,ROWS($X$34:X39)-1,COLUMNS($X$34:X39)-1),"") -> 869.48 | W25: =IF(OFFSET(DE104_3!$Y$34,ROWS($Y$34:Y39)-1,COLUMNS($Y$34:Y39)-1)<>"",OFFSET(DE104_3!$Y$34,ROWS($Y$34:Y39)-1,COLUMNS($Y$34:Y39)-1),"") -> 868.39 | X25: =IF(OFFSET(DE104_3!$Z$34,ROWS($Z$34:Z39)-1,COLUMNS($Z$34:Z39)-1)<>"",OFFSET(DE104_3!$Z$34,ROWS($Z$34:Z39)-1,COLUMNS($Z$34:Z39)-1),"") ->  | Y25: =IF(OFFSET(DE104_3!$AA$34,ROWS($AA$34:AA39)-1,COLUMNS($AA$34:AA39)-1)<>"",OFFSET(DE104_3!$AA$34,ROWS($AA$34:AA39)-1,COLUMNS($AA$34:AA39)-1),"") ->  | Z25: =IF(OFFSET(DE104_3!$AB$34,ROWS($AB$34:AB39)-1,COLUMNS($AB$34:AB39)-1)<>"",OFFSET(DE104_3!$AB$34,ROWS($AB$34:AB39)-1,COLUMNS($AB$34:AB39)-1),"") -> 36.06 | AA25: =IF(OFFSET(DE104_3!$AC$34,ROWS($AC$34:AC39)-1,COLUMNS($AC$34:AC39)-1)<>"",OFFSET(DE104_3!$AC$34,ROWS($AC$34:AC39)-1,COLUMNS($AC$34:AC39)-1),"") -> 139.94 | AB25: =IF(OFFSET(DE104_3!$AD$34,ROWS($AD$34:AD39)-1,COLUMNS($AD$34:AD39)-1)<>"",OFFSET(DE104_3!$AD$34,ROWS($AD$34:AD39)-1,COLUMNS($AD$34:AD39)-1),"") ->  | AC25: =IF(OFFSET(DE104_3!$AE$34,ROWS($AE$34:AE39)-1,COLUMNS($AE$34:AE39)-1)<>"",OFFSET(DE104_3!$AE$34,ROWS($AE$34:AE39)-1,COLUMNS($AE$34:AE39)-1),"") ->  | AD25: =IF(OFFSET(DE104_3!$AF$34,ROWS($AF$34:AF39)-1,COLUMNS($AF$34:AF39)-1)<>"",OFFSET(DE104_3!$AF$34,ROWS($AF$34:AF39)-1,COLUMNS($AF$34:AF39)-1),"") ->  | AE25: =IF(OFFSET(DE104_3!$AG$34,ROWS($AG$34:AG39)-1,COLUMNS($AG$34:AG39)-1)<>"",OFFSET(DE104_3!$AG$34,ROWS($AG$34:AG39)-1,COLUMNS($AG$34:AG39)-1),"") ->  | AF25: =IF(OFFSET(DE104_3!$AH$34,ROWS($AH$34:AH39)-1,COLUMNS($AH$34:AH39)-1)<>"",OFFSET(DE104_3!$AH$34,ROWS($AH$34:AH39)-1,COLUMNS($AH$34:AH39)-1),"") ->  | AG25: =IF(OFFSET(DE104_3!$AI$34,ROWS($AI$34:AI39)-1,COLUMNS($AI$34:AI39)-1)<>"",OFFSET(DE104_3!$AI$34,ROWS($AI$34:AI39)-1,COLUMNS($AI$34:AI39)-1),"") ->  | AH25: =IF(OFFSET(DE104_3!$AJ$34,ROWS($AJ$34:AJ39)-1,COLUMNS($AJ$34:AJ39)-1)<>"",OFFSET(DE104_3!$AJ$34,ROWS($AJ$34:AJ39)-1,COLUMNS($AJ$34:AJ39)-1),"") ->  | AI25: =IF(OFFSET(DE104_3!$AK$34,ROWS($AK$34:AK39)-1,COLUMNS($AK$34:AK39)-1)<>"",OFFSET(DE104_3!$AK$34,ROWS($AK$34:AK39)-1,COLUMNS($AK$34:AK39)-1),"") ->  | AJ25: =IF(OFFSET(DE104_3!$AL$34,ROWS($AL$34:AL39)-1,COLUMNS($AL$34:AL39)-1)<>"",OFFSET(DE104_3!$AL$34,ROWS($AL$34:AL39)-1,COLUMNS($AL$34:AL39)-1),"") -> 68.83555556 | AK25: =IF(OFFSET(DE104_3!$AM$34,ROWS($AM$34:AM39)-1,COLUMNS($AM$34:AM39)-1)<>"",OFFSET(DE104_3!$AM$34,ROWS($AM$34:AM39)-1,COLUMNS($AM$34:AM39)-1),"") ->  | AL25: =IF(OFFSET(DE104_3!$AN$34,ROWS($AN$34:AN39)-1,COLUMNS($AN$34:AN39)-1)<>"",OFFSET(DE104_3!$AN$34,ROWS($AN$34:AN39)-1,COLUMNS($AN$34:AN39)-1),"") -> 498.157037 | AM25: =IF(OFFSET(DE104_3!$AO$34,ROWS($AO$34:AO39)-1,COLUMNS($AO$34:AO39)-1)<>"",OFFSET(DE104_3!$AO$34,ROWS($AO$34:AO39)-1,COLUMNS($AO$34:AO39)-1),"") -> 18.94666667 | AN25: =IF(OFFSET(DE104_3!$AP$34,ROWS($AP$34:AP39)-1,COLUMNS($AP$34:AP39)-1)<>"",OFFSET(DE104_3!$AP$34,ROWS($AP$34:AP39)-1,COLUMNS($AP$34:AP39)-1),"") -> 517.1037037 | AO25: =IF(OFFSET(DE104_3!$AQ$34,ROWS($AQ$34:AQ39)-1,COLUMNS($AQ$34:AQ39)-1)<>"",OFFSET(DE104_3!$AQ$34,ROWS($AQ$34:AQ39)-1,COLUMNS($AQ$34:AQ39)-1),"") -> 
A26: =IF(OFFSET(DE104_3!$C$34,ROWS($C$34:C40)-1,COLUMNS($C$34:C40)-1)<>"",OFFSET(DE104_3!$C$34,ROWS($C$34:C40)-1,COLUMNS($C$34:C40)-1),"") -> MED | B26: =IF(OFFSET(DE104_3!$D$34,ROWS($D$34:D40)-1,COLUMNS($D$34:D40)-1)<>"",OFFSET(DE104_3!$D$34,ROWS($D$34:D40)-1,COLUMNS($D$34:D40)-1),"") -> 142400 | C26: =IF(OFFSET(DE104_3!$E$34,ROWS($E$34:E40)-1,COLUMNS($E$34:E40)-1)<>"",OFFSET(DE104_3!$E$34,ROWS($E$34:E40)-1,COLUMNS($E$34:E40)-1),"") -> DR-641 | D26: =IF(OFFSET(DE104_3!$F$34,ROWS($F$34:F40)-1,COLUMNS($F$34:F40)-1)<>"",OFFSET(DE104_3!$F$34,ROWS($F$34:F40)-1,COLUMNS($F$34:F40)-1),"") -> 24 | E26: =IF(OFFSET(DE104_3!$G$34,ROWS($G$34:G40)-1,COLUMNS($G$34:G40)-1)<>"",OFFSET(DE104_3!$G$34,ROWS($G$34:G40)-1,COLUMNS($G$34:G40)-1),"") -> 2000 | F26: =IF(OFFSET(DE104_3!$H$34,ROWS($H$34:H40)-1,COLUMNS($H$34:H40)-1)<>"",OFFSET(DE104_3!$H$34,ROWS($H$34:H40)-1,COLUMNS($H$34:H40)-1),"") -> RCP | G26: =IF(OFFSET(DE104_3!$I$34,ROWS($I$34:I40)-1,COLUMNS($I$34:I40)-1)<>"",OFFSET(DE104_3!$I$34,ROWS($I$34:I40)-1,COLUMNS($I$34:I40)-1),"") -> 68 | H26: =IF(OFFSET(DE104_3!$J$34,ROWS($J$34:J40)-1,COLUMNS($J$34:J40)-1)<>"",OFFSET(DE104_3!$J$34,ROWS($J$34:J40)-1,COLUMNS($J$34:J40)-1),"") -> B | I26: =IF(OFFSET(DE104_3!$K$34,ROWS($K$34:K40)-1,COLUMNS($K$34:K40)-1)<>"",OFFSET(DE104_3!$K$34,ROWS($K$34:K40)-1,COLUMNS($K$34:K40)-1),"") -> 3 | J26: =IF(OFFSET(DE104_3!$L$34,ROWS($L$34:L40)-1,COLUMNS($L$34:L40)-1)<>"",OFFSET(DE104_3!$L$34,ROWS($L$34:L40)-1,COLUMNS($L$34:L40)-1),"") ->  | K26: =IF(OFFSET(DE104_3!$M$34,ROWS($M$34:M40)-1,COLUMNS($M$34:M40)-1)<>"",OFFSET(DE104_3!$M$34,ROWS($M$34:M40)-1,COLUMNS($M$34:M40)-1),"") -> 1 | L26: =IF(OFFSET(DE104_3!$N$34,ROWS($N$34:N40)-1,COLUMNS($N$34:N40)-1)<>"",OFFSET(DE104_3!$N$34,ROWS($N$34:N40)-1,COLUMNS($N$34:N40)-1),"") ->  | M26: =IF(OFFSET(DE104_3!$O$34,ROWS($O$34:O40)-1,COLUMNS($O$34:O40)-1)<>"",OFFSET(DE104_3!$O$34,ROWS($O$34:O40)-1,COLUMNS($O$34:O40)-1),"") ->  | N26: =IF(OFFSET(DE104_3!$P$34,ROWS($P$34:P40)-1,COLUMNS($P$34:P40)-1)<>"",OFFSET(DE104_3!$P$34,ROWS($P$34:P40)-1,COLUMNS($P$34:P40)-1),"") ->  | O26: =IF(OFFSET(DE104_3!$Q$34,ROWS($Q$34:Q40)-1,COLUMNS($Q$34:Q40)-1)<>"",OFFSET(DE104_3!$Q$34,ROWS($Q$34:Q40)-1,COLUMNS($Q$34:Q40)-1),"") ->  | P26: =IF(OFFSET(DE104_3!$R$34,ROWS($R$34:R40)-1,COLUMNS($R$34:R40)-1)<>"",OFFSET(DE104_3!$R$34,ROWS($R$34:R40)-1,COLUMNS($R$34:R40)-1),"") -> 1 | Q26: =IF(OFFSET(DE104_3!$S$34,ROWS($S$34:S40)-1,COLUMNS($S$34:S40)-1)<>"",OFFSET(DE104_3!$S$34,ROWS($S$34:S40)-1,COLUMNS($S$34:S40)-1),"") ->  | R26: =IF(OFFSET(DE104_3!$T$34,ROWS($T$34:T40)-1,COLUMNS($T$34:T40)-1)<>"",OFFSET(DE104_3!$T$34,ROWS($T$34:T40)-1,COLUMNS($T$34:T40)-1),"") -> C-3 | S26: =IF(OFFSET(DE104_3!$U$34,ROWS($U$34:U40)-1,COLUMNS($U$34:U40)-1)<>"",OFFSET(DE104_3!$U$34,ROWS($U$34:U40)-1,COLUMNS($U$34:U40)-1),"") -> 1 | T26: =IF(OFFSET(DE104_3!$V$34,ROWS($V$34:V40)-1,COLUMNS($V$34:V40)-1)<>"",OFFSET(DE104_3!$V$34,ROWS($V$34:V40)-1,COLUMNS($V$34:V40)-1),"") -> Type 3 | U26: =IF(OFFSET(DE104_3!$W$34,ROWS($W$34:W40)-1,COLUMNS($W$34:W40)-1)<>"",OFFSET(DE104_3!$W$34,ROWS($W$34:W40)-1,COLUMNS($W$34:W40)-1),"") ->  | V26: =IF(OFFSET(DE104_3!$X$34,ROWS($X$34:X40)-1,COLUMNS($X$34:X40)-1)<>"",OFFSET(DE104_3!$X$34,ROWS($X$34:X40)-1,COLUMNS($X$34:X40)-1),"") -> 892.36 | W26: =IF(OFFSET(DE104_3!$Y$34,ROWS($Y$34:Y40)-1,COLUMNS($Y$34:Y40)-1)<>"",OFFSET(DE104_3!$Y$34,ROWS($Y$34:Y40)-1,COLUMNS($Y$34:Y40)-1),"") -> 889.2 | X26: =IF(OFFSET(DE104_3!$Z$34,ROWS($Z$34:Z40)-1,COLUMNS($Z$34:Z40)-1)<>"",OFFSET(DE104_3!$Z$34,ROWS($Z$34:Z40)-1,COLUMNS($Z$34:Z40)-1),"") -> 890.52 | Y26: =IF(OFFSET(DE104_3!$AA$34,ROWS($AA$34:AA40)-1,COLUMNS($AA$34:AA40)-1)<>"",OFFSET(DE104_3!$AA$34,ROWS($AA$34:AA40)-1,COLUMNS($AA$34:AA40)-1),"") ->  | Z26: =IF(OFFSET(DE104_3!$AB$34,ROWS($AB$34:AB40)-1,COLUMNS($AB$34:AB40)-1)<>"",OFFSET(DE104_3!$AB$34,ROWS($AB$34:AB40)-1,COLUMNS($AB$34:AB40)-1),"") -> 37 | AA26: =IF(OFFSET(DE104_3!$AC$34,ROWS($AC$34:AC40)-1,COLUMNS($AC$34:AC40)-1)<>"",OFFSET(DE104_3!$AC$34,ROWS($AC$34:AC40)-1,COLUMNS($AC$34:AC40)-1),"") -> 36.93 | AB26: =IF(OFFSET(DE104_3!$AD$34,ROWS($AD$34:AD40)-1,COLUMNS($AD$34:AD40)-1)<>"",OFFSET(DE104_3!$AD$34,ROWS($AD$34:AD40)-1,COLUMNS($AD$34:AD40)-1),"") ->  | AC26: =IF(OFFSET(DE104_3!$AE$34,ROWS($AE$34:AE40)-1,COLUMNS($AE$34:AE40)-1)<>"",OFFSET(DE104_3!$AE$34,ROWS($AE$34:AE40)-1,COLUMNS($AE$34:AE40)-1),"") ->  | AD26: =IF(OFFSET(DE104_3!$AF$34,ROWS($AF$34:AF40)-1,COLUMNS($AF$34:AF40)-1)<>"",OFFSET(DE104_3!$AF$34,ROWS($AF$34:AF40)-1,COLUMNS($AF$34:AF40)-1),"") ->  | AE26: =IF(OFFSET(DE104_3!$AG$34,ROWS($AG$34:AG40)-1,COLUMNS($AG$34:AG40)-1)<>"",OFFSET(DE104_3!$AG$34,ROWS($AG$34:AG40)-1,COLUMNS($AG$34:AG40)-1),"") ->  | AF26: =IF(OFFSET(DE104_3!$AH$34,ROWS($AH$34:AH40)-1,COLUMNS($AH$34:AH40)-1)<>"",OFFSET(DE104_3!$AH$34,ROWS($AH$34:AH40)-1,COLUMNS($AH$34:AH40)-1),"") ->  | AG26: =IF(OFFSET(DE104_3!$AI$34,ROWS($AI$34:AI40)-1,COLUMNS($AI$34:AI40)-1)<>"",OFFSET(DE104_3!$AI$34,ROWS($AI$34:AI40)-1,COLUMNS($AI$34:AI40)-1),"") ->  | AH26: =IF(OFFSET(DE104_3!$AJ$34,ROWS($AJ$34:AJ40)-1,COLUMNS($AJ$34:AJ40)-1)<>"",OFFSET(DE104_3!$AJ$34,ROWS($AJ$34:AJ40)-1,COLUMNS($AJ$34:AJ40)-1),"") ->  | AI26: =IF(OFFSET(DE104_3!$AK$34,ROWS($AK$34:AK40)-1,COLUMNS($AK$34:AK40)-1)<>"",OFFSET(DE104_3!$AK$34,ROWS($AK$34:AK40)-1,COLUMNS($AK$34:AK40)-1),"") ->  | AJ26: =IF(OFFSET(DE104_3!$AL$34,ROWS($AL$34:AL40)-1,COLUMNS($AL$34:AL40)-1)<>"",OFFSET(DE104_3!$AL$34,ROWS($AL$34:AL40)-1,COLUMNS($AL$34:AL40)-1),"") ->  | AK26: =IF(OFFSET(DE104_3!$AM$34,ROWS($AM$34:AM40)-1,COLUMNS($AM$34:AM40)-1)<>"",OFFSET(DE104_3!$AM$34,ROWS($AM$34:AM40)-1,COLUMNS($AM$34:AM40)-1),"") ->  | AL26: =IF(OFFSET(DE104_3!$AN$34,ROWS($AN$34:AN40)-1,COLUMNS($AN$34:AN40)-1)<>"",OFFSET(DE104_3!$AN$34,ROWS($AN$34:AN40)-1,COLUMNS($AN$34:AN40)-1),"") -> 24.13333333 | AM26: =IF(OFFSET(DE104_3!$AO$34,ROWS($AO$34:AO40)-1,COLUMNS($AO$34:AO40)-1)<>"",OFFSET(DE104_3!$AO$34,ROWS($AO$34:AO40)-1,COLUMNS($AO$34:AO40)-1),"") -> 5.639951852 | AN26: =IF(OFFSET(DE104_3!$AP$34,ROWS($AP$34:AP40)-1,COLUMNS($AP$34:AP40)-1)<>"",OFFSET(DE104_3!$AP$34,ROWS($AP$34:AP40)-1,COLUMNS($AP$34:AP40)-1),"") -> 29.77328519 | AO26: =IF(OFFSET(DE104_3!$AQ$34,ROWS($AQ$34:AQ40)-1,COLUMNS($AQ$34:AQ40)-1)<>"",OFFSET(DE104_3!$AQ$34,ROWS($AQ$34:AQ40)-1,COLUMNS($AQ$34:AQ40)-1),"") -> (3)
A27: =IF(OFFSET(DE104_3!$C$34,ROWS($C$34:C41)-1,COLUMNS($C$34:C41)-1)<>"",OFFSET(DE104_3!$C$34,ROWS($C$34:C41)-1,COLUMNS($C$34:C41)-1),"") ->  | B27: =IF(OFFSET(DE104_3!$D$34,ROWS($D$34:D41)-1,COLUMNS($D$34:D41)-1)<>"",OFFSET(DE104_3!$D$34,ROWS($D$34:D41)-1,COLUMNS($D$34:D41)-1),"") ->  | C27: =IF(OFFSET(DE104_3!$E$34,ROWS($E$34:E41)-1,COLUMNS($E$34:E41)-1)<>"",OFFSET(DE104_3!$E$34,ROWS($E$34:E41)-1,COLUMNS($E$34:E41)-1),"") ->  | D27: =IF(OFFSET(DE104_3!$F$34,ROWS($F$34:F41)-1,COLUMNS($F$34:F41)-1)<>"",OFFSET(DE104_3!$F$34,ROWS($F$34:F41)-1,COLUMNS($F$34:F41)-1),"") -> 24 | E27: =IF(OFFSET(DE104_3!$G$34,ROWS($G$34:G41)-1,COLUMNS($G$34:G41)-1)<>"",OFFSET(DE104_3!$G$34,ROWS($G$34:G41)-1,COLUMNS($G$34:G41)-1),"") ->  | F27: =IF(OFFSET(DE104_3!$H$34,ROWS($H$34:H41)-1,COLUMNS($H$34:H41)-1)<>"",OFFSET(DE104_3!$H$34,ROWS($H$34:H41)-1,COLUMNS($H$34:H41)-1),"") -> CMP | G27: =IF(OFFSET(DE104_3!$I$34,ROWS($I$34:I41)-1,COLUMNS($I$34:I41)-1)<>"",OFFSET(DE104_3!$I$34,ROWS($I$34:I41)-1,COLUMNS($I$34:I41)-1),"") -> 57 | H27: =IF(OFFSET(DE104_3!$J$34,ROWS($J$34:J41)-1,COLUMNS($J$34:J41)-1)<>"",OFFSET(DE104_3!$J$34,ROWS($J$34:J41)-1,COLUMNS($J$34:J41)-1),"") -> B | I27: =IF(OFFSET(DE104_3!$K$34,ROWS($K$34:K41)-1,COLUMNS($K$34:K41)-1)<>"",OFFSET(DE104_3!$K$34,ROWS($K$34:K41)-1,COLUMNS($K$34:K41)-1),"") ->  | J27: =IF(OFFSET(DE104_3!$L$34,ROWS($L$34:L41)-1,COLUMNS($L$34:L41)-1)<>"",OFFSET(DE104_3!$L$34,ROWS($L$34:L41)-1,COLUMNS($L$34:L41)-1),"") ->  | K27: =IF(OFFSET(DE104_3!$M$34,ROWS($M$34:M41)-1,COLUMNS($M$34:M41)-1)<>"",OFFSET(DE104_3!$M$34,ROWS($M$34:M41)-1,COLUMNS($M$34:M41)-1),"") ->  | L27: =IF(OFFSET(DE104_3!$N$34,ROWS($N$34:N41)-1,COLUMNS($N$34:N41)-1)<>"",OFFSET(DE104_3!$N$34,ROWS($N$34:N41)-1,COLUMNS($N$34:N41)-1),"") -> 1 | M27: =IF(OFFSET(DE104_3!$O$34,ROWS($O$34:O41)-1,COLUMNS($O$34:O41)-1)<>"",OFFSET(DE104_3!$O$34,ROWS($O$34:O41)-1,COLUMNS($O$34:O41)-1),"") ->  | N27: =IF(OFFSET(DE104_3!$P$34,ROWS($P$34:P41)-1,COLUMNS($P$34:P41)-1)<>"",OFFSET(DE104_3!$P$34,ROWS($P$34:P41)-1,COLUMNS($P$34:P41)-1),"") ->  | O27: =IF(OFFSET(DE104_3!$Q$34,ROWS($Q$34:Q41)-1,COLUMNS($Q$34:Q41)-1)<>"",OFFSET(DE104_3!$Q$34,ROWS($Q$34:Q41)-1,COLUMNS($Q$34:Q41)-1),"") ->  | P27: =IF(OFFSET(DE104_3!$R$34,ROWS($R$34:R41)-1,COLUMNS($R$34:R41)-1)<>"",OFFSET(DE104_3!$R$34,ROWS($R$34:R41)-1,COLUMNS($R$34:R41)-1),"") ->  | Q27: =IF(OFFSET(DE104_3!$S$34,ROWS($S$34:S41)-1,COLUMNS($S$34:S41)-1)<>"",OFFSET(DE104_3!$S$34,ROWS($S$34:S41)-1,COLUMNS($S$34:S41)-1),"") ->  | R27: =IF(OFFSET(DE104_3!$T$34,ROWS($T$34:T41)-1,COLUMNS($T$34:T41)-1)<>"",OFFSET(DE104_3!$T$34,ROWS($T$34:T41)-1,COLUMNS($T$34:T41)-1),"") ->  | S27: =IF(OFFSET(DE104_3!$U$34,ROWS($U$34:U41)-1,COLUMNS($U$34:U41)-1)<>"",OFFSET(DE104_3!$U$34,ROWS($U$34:U41)-1,COLUMNS($U$34:U41)-1),"") ->  | T27: =IF(OFFSET(DE104_3!$V$34,ROWS($V$34:V41)-1,COLUMNS($V$34:V41)-1)<>"",OFFSET(DE104_3!$V$34,ROWS($V$34:V41)-1,COLUMNS($V$34:V41)-1),"") ->  | U27: =IF(OFFSET(DE104_3!$W$34,ROWS($W$34:W41)-1,COLUMNS($W$34:W41)-1)<>"",OFFSET(DE104_3!$W$34,ROWS($W$34:W41)-1,COLUMNS($W$34:W41)-1),"") ->  | V27: =IF(OFFSET(DE104_3!$X$34,ROWS($X$34:X41)-1,COLUMNS($X$34:X41)-1)<>"",OFFSET(DE104_3!$X$34,ROWS($X$34:X41)-1,COLUMNS($X$34:X41)-1),"") -> 889.2 | W27: =IF(OFFSET(DE104_3!$Y$34,ROWS($Y$34:Y41)-1,COLUMNS($Y$34:Y41)-1)<>"",OFFSET(DE104_3!$Y$34,ROWS($Y$34:Y41)-1,COLUMNS($Y$34:Y41)-1),"") -> 876.8 | X27: =IF(OFFSET(DE104_3!$Z$34,ROWS($Z$34:Z41)-1,COLUMNS($Z$34:Z41)-1)<>"",OFFSET(DE104_3!$Z$34,ROWS($Z$34:Z41)-1,COLUMNS($Z$34:Z41)-1),"") -> 887.18 | Y27: =IF(OFFSET(DE104_3!$AA$34,ROWS($AA$34:AA41)-1,COLUMNS($AA$34:AA41)-1)<>"",OFFSET(DE104_3!$AA$34,ROWS($AA$34:AA41)-1,COLUMNS($AA$34:AA41)-1),"") ->  | Z27: =IF(OFFSET(DE104_3!$AB$34,ROWS($AB$34:AB41)-1,COLUMNS($AB$34:AB41)-1)<>"",OFFSET(DE104_3!$AB$34,ROWS($AB$34:AB41)-1,COLUMNS($AB$34:AB41)-1),"") -> 36.93 | AA27: =IF(OFFSET(DE104_3!$AC$34,ROWS($AC$34:AC41)-1,COLUMNS($AC$34:AC41)-1)<>"",OFFSET(DE104_3!$AC$34,ROWS($AC$34:AC41)-1,COLUMNS($AC$34:AC41)-1),"") -> 97.46 | AB27: =IF(OFFSET(DE104_3!$AD$34,ROWS($AD$34:AD41)-1,COLUMNS($AD$34:AD41)-1)<>"",OFFSET(DE104_3!$AD$34,ROWS($AD$34:AD41)-1,COLUMNS($AD$34:AD41)-1),"") ->  | AC27: =IF(OFFSET(DE104_3!$AE$34,ROWS($AE$34:AE41)-1,COLUMNS($AE$34:AE41)-1)<>"",OFFSET(DE104_3!$AE$34,ROWS($AE$34:AE41)-1,COLUMNS($AE$34:AE41)-1),"") ->  | AD27: =IF(OFFSET(DE104_3!$AF$34,ROWS($AF$34:AF41)-1,COLUMNS($AF$34:AF41)-1)<>"",OFFSET(DE104_3!$AF$34,ROWS($AF$34:AF41)-1,COLUMNS($AF$34:AF41)-1),"") ->  | AE27: =IF(OFFSET(DE104_3!$AG$34,ROWS($AG$34:AG41)-1,COLUMNS($AG$34:AG41)-1)<>"",OFFSET(DE104_3!$AG$34,ROWS($AG$34:AG41)-1,COLUMNS($AG$34:AG41)-1),"") ->  | AF27: =IF(OFFSET(DE104_3!$AH$34,ROWS($AH$34:AH41)-1,COLUMNS($AH$34:AH41)-1)<>"",OFFSET(DE104_3!$AH$34,ROWS($AH$34:AH41)-1,COLUMNS($AH$34:AH41)-1),"") ->  | AG27: =IF(OFFSET(DE104_3!$AI$34,ROWS($AI$34:AI41)-1,COLUMNS($AI$34:AI41)-1)<>"",OFFSET(DE104_3!$AI$34,ROWS($AI$34:AI41)-1,COLUMNS($AI$34:AI41)-1),"") ->  | AH27: =IF(OFFSET(DE104_3!$AJ$34,ROWS($AJ$34:AJ41)-1,COLUMNS($AJ$34:AJ41)-1)<>"",OFFSET(DE104_3!$AJ$34,ROWS($AJ$34:AJ41)-1,COLUMNS($AJ$34:AJ41)-1),"") ->  | AI27: =IF(OFFSET(DE104_3!$AK$34,ROWS($AK$34:AK41)-1,COLUMNS($AK$34:AK41)-1)<>"",OFFSET(DE104_3!$AK$34,ROWS($AK$34:AK41)-1,COLUMNS($AK$34:AK41)-1),"") ->  | AJ27: =IF(OFFSET(DE104_3!$AL$34,ROWS($AL$34:AL41)-1,COLUMNS($AL$34:AL41)-1)<>"",OFFSET(DE104_3!$AL$34,ROWS($AL$34:AL41)-1,COLUMNS($AL$34:AL41)-1),"") -> 39.861 | AK27: =IF(OFFSET(DE104_3!$AM$34,ROWS($AM$34:AM41)-1,COLUMNS($AM$34:AM41)-1)<>"",OFFSET(DE104_3!$AM$34,ROWS($AM$34:AM41)-1,COLUMNS($AM$34:AM41)-1),"") ->  | AL27: =IF(OFFSET(DE104_3!$AN$34,ROWS($AN$34:AN41)-1,COLUMNS($AN$34:AN41)-1)<>"",OFFSET(DE104_3!$AN$34,ROWS($AN$34:AN41)-1,COLUMNS($AN$34:AN41)-1),"") ->  | AM27: =IF(OFFSET(DE104_3!$AO$34,ROWS($AO$34:AO41)-1,COLUMNS($AO$34:AO41)-1)<>"",OFFSET(DE104_3!$AO$34,ROWS($AO$34:AO41)-1,COLUMNS($AO$34:AO41)-1),"") -> 4.863940741 | AN27: =IF(OFFSET(DE104_3!$AP$34,ROWS($AP$34:AP41)-1,COLUMNS($AP$34:AP41)-1)<>"",OFFSET(DE104_3!$AP$34,ROWS($AP$34:AP41)-1,COLUMNS($AP$34:AP41)-1),"") -> 4.863940741 | AO27: =IF(OFFSET(DE104_3!$AQ$34,ROWS($AQ$34:AQ41)-1,COLUMNS($AQ$34:AQ41)-1)<>"",OFFSET(DE104_3!$AQ$34,ROWS($AQ$34:AQ41)-1,COLUMNS($AQ$34:AQ41)-1),"") -> 
A28: =IF(OFFSET(DE104_3!$C$34,ROWS($C$34:C42)-1,COLUMNS($C$34:C42)-1)<>"",OFFSET(DE104_3!$C$34,ROWS($C$34:C42)-1,COLUMNS($C$34:C42)-1),"") -> 227 | B28: =IF(OFFSET(DE104_3!$D$34,ROWS($D$34:D42)-1,COLUMNS($D$34:D42)-1)<>"",OFFSET(DE104_3!$D$34,ROWS($D$34:D42)-1,COLUMNS($D$34:D42)-1),"") -> 142550 | C28: =IF(OFFSET(DE104_3!$E$34,ROWS($E$34:E42)-1,COLUMNS($E$34:E42)-1)<>"",OFFSET(DE104_3!$E$34,ROWS($E$34:E42)-1,COLUMNS($E$34:E42)-1),"") -> DR-601 | D28: =IF(OFFSET(DE104_3!$F$34,ROWS($F$34:F42)-1,COLUMNS($F$34:F42)-1)<>"",OFFSET(DE104_3!$F$34,ROWS($F$34:F42)-1,COLUMNS($F$34:F42)-1),"") -> 72 | E28: =IF(OFFSET(DE104_3!$G$34,ROWS($G$34:G42)-1,COLUMNS($G$34:G42)-1)<>"",OFFSET(DE104_3!$G$34,ROWS($G$34:G42)-1,COLUMNS($G$34:G42)-1),"") -> 2000 | F28: =IF(OFFSET(DE104_3!$H$34,ROWS($H$34:H42)-1,COLUMNS($H$34:H42)-1)<>"",OFFSET(DE104_3!$H$34,ROWS($H$34:H42)-1,COLUMNS($H$34:H42)-1),"") -> RCP | G28: =IF(OFFSET(DE104_3!$I$34,ROWS($I$34:I42)-1,COLUMNS($I$34:I42)-1)<>"",OFFSET(DE104_3!$I$34,ROWS($I$34:I42)-1,COLUMNS($I$34:I42)-1),"") -> 152 | H28: =IF(OFFSET(DE104_3!$J$34,ROWS($J$34:J42)-1,COLUMNS($J$34:J42)-1)<>"",OFFSET(DE104_3!$J$34,ROWS($J$34:J42)-1,COLUMNS($J$34:J42)-1),"") -> B | I28: =IF(OFFSET(DE104_3!$K$34,ROWS($K$34:K42)-1,COLUMNS($K$34:K42)-1)<>"",OFFSET(DE104_3!$K$34,ROWS($K$34:K42)-1,COLUMNS($K$34:K42)-1),"") -> 11.7 | J28: =IF(OFFSET(DE104_3!$L$34,ROWS($L$34:L42)-1,COLUMNS($L$34:L42)-1)<>"",OFFSET(DE104_3!$L$34,ROWS($L$34:L42)-1,COLUMNS($L$34:L42)-1),"") ->  | K28: =IF(OFFSET(DE104_3!$M$34,ROWS($M$34:M42)-1,COLUMNS($M$34:M42)-1)<>"",OFFSET(DE104_3!$M$34,ROWS($M$34:M42)-1,COLUMNS($M$34:M42)-1),"") ->  | L28: =IF(OFFSET(DE104_3!$N$34,ROWS($N$34:N42)-1,COLUMNS($N$34:N42)-1)<>"",OFFSET(DE104_3!$N$34,ROWS($N$34:N42)-1,COLUMNS($N$34:N42)-1),"") -> 1 | M28: =IF(OFFSET(DE104_3!$O$34,ROWS($O$34:O42)-1,COLUMNS($O$34:O42)-1)<>"",OFFSET(DE104_3!$O$34,ROWS($O$34:O42)-1,COLUMNS($O$34:O42)-1),"") ->  | N28: =IF(OFFSET(DE104_3!$P$34,ROWS($P$34:P42)-1,COLUMNS($P$34:P42)-1)<>"",OFFSET(DE104_3!$P$34,ROWS($P$34:P42)-1,COLUMNS($P$34:P42)-1),"") ->  | O28: =IF(OFFSET(DE104_3!$Q$34,ROWS($Q$34:Q42)-1,COLUMNS($Q$34:Q42)-1)<>"",OFFSET(DE104_3!$Q$34,ROWS($Q$34:Q42)-1,COLUMNS($Q$34:Q42)-1),"") ->  | P28: =IF(OFFSET(DE104_3!$R$34,ROWS($R$34:R42)-1,COLUMNS($R$34:R42)-1)<>"",OFFSET(DE104_3!$R$34,ROWS($R$34:R42)-1,COLUMNS($R$34:R42)-1),"") ->  | Q28: =IF(OFFSET(DE104_3!$S$34,ROWS($S$34:S42)-1,COLUMNS($S$34:S42)-1)<>"",OFFSET(DE104_3!$S$34,ROWS($S$34:S42)-1,COLUMNS($S$34:S42)-1),"") ->  | R28: =IF(OFFSET(DE104_3!$T$34,ROWS($T$34:T42)-1,COLUMNS($T$34:T42)-1)<>"",OFFSET(DE104_3!$T$34,ROWS($T$34:T42)-1,COLUMNS($T$34:T42)-1),"") ->  | S28: =IF(OFFSET(DE104_3!$U$34,ROWS($U$34:U42)-1,COLUMNS($U$34:U42)-1)<>"",OFFSET(DE104_3!$U$34,ROWS($U$34:U42)-1,COLUMNS($U$34:U42)-1),"") ->  | T28: =IF(OFFSET(DE104_3!$V$34,ROWS($V$34:V42)-1,COLUMNS($V$34:V42)-1)<>"",OFFSET(DE104_3!$V$34,ROWS($V$34:V42)-1,COLUMNS($V$34:V42)-1),"") -> Type 3 | U28: =IF(OFFSET(DE104_3!$W$34,ROWS($W$34:W42)-1,COLUMNS($W$34:W42)-1)<>"",OFFSET(DE104_3!$W$34,ROWS($W$34:W42)-1,COLUMNS($W$34:W42)-1),"") ->  | V28: =IF(OFFSET(DE104_3!$X$34,ROWS($X$34:X42)-1,COLUMNS($X$34:X42)-1)<>"",OFFSET(DE104_3!$X$34,ROWS($X$34:X42)-1,COLUMNS($X$34:X42)-1),"") ->  | W28: =IF(OFFSET(DE104_3!$Y$34,ROWS($Y$34:Y42)-1,COLUMNS($Y$34:Y42)-1)<>"",OFFSET(DE104_3!$Y$34,ROWS($Y$34:Y42)-1,COLUMNS($Y$34:Y42)-1),"") ->  | X28: =IF(OFFSET(DE104_3!$Z$34,ROWS($Z$34:Z42)-1,COLUMNS($Z$34:Z42)-1)<>"",OFFSET(DE104_3!$Z$34,ROWS($Z$34:Z42)-1,COLUMNS($Z$34:Z42)-1),"") ->  | Y28: =IF(OFFSET(DE104_3!$AA$34,ROWS($AA$34:AA42)-1,COLUMNS($AA$34:AA42)-1)<>"",OFFSET(DE104_3!$AA$34,ROWS($AA$34:AA42)-1,COLUMNS($AA$34:AA42)-1),"") ->  | Z28: =IF(OFFSET(DE104_3!$AB$34,ROWS($AB$34:AB42)-1,COLUMNS($AB$34:AB42)-1)<>"",OFFSET(DE104_3!$AB$34,ROWS($AB$34:AB42)-1,COLUMNS($AB$34:AB42)-1),"") ->  | AA28: =IF(OFFSET(DE104_3!$AC$34,ROWS($AC$34:AC42)-1,COLUMNS($AC$34:AC42)-1)<>"",OFFSET(DE104_3!$AC$34,ROWS($AC$34:AC42)-1,COLUMNS($AC$34:AC42)-1),"") ->  | AB28: =IF(OFFSET(DE104_3!$AD$34,ROWS($AD$34:AD42)-1,COLUMNS($AD$34:AD42)-1)<>"",OFFSET(DE104_3!$AD$34,ROWS($AD$34:AD42)-1,COLUMNS($AD$34:AD42)-1),"") ->  | AC28: =IF(OFFSET(DE104_3!$AE$34,ROWS($AE$34:AE42)-1,COLUMNS($AE$34:AE42)-1)<>"",OFFSET(DE104_3!$AE$34,ROWS($AE$34:AE42)-1,COLUMNS($AE$34:AE42)-1),"") ->  | AD28: =IF(OFFSET(DE104_3!$AF$34,ROWS($AF$34:AF42)-1,COLUMNS($AF$34:AF42)-1)<>"",OFFSET(DE104_3!$AF$34,ROWS($AF$34:AF42)-1,COLUMNS($AF$34:AF42)-1),"") ->  | AE28: =IF(OFFSET(DE104_3!$AG$34,ROWS($AG$34:AG42)-1,COLUMNS($AG$34:AG42)-1)<>"",OFFSET(DE104_3!$AG$34,ROWS($AG$34:AG42)-1,COLUMNS($AG$34:AG42)-1),"") ->  | AF28: =IF(OFFSET(DE104_3!$AH$34,ROWS($AH$34:AH42)-1,COLUMNS($AH$34:AH42)-1)<>"",OFFSET(DE104_3!$AH$34,ROWS($AH$34:AH42)-1,COLUMNS($AH$34:AH42)-1),"") ->  | AG28: =IF(OFFSET(DE104_3!$AI$34,ROWS($AI$34:AI42)-1,COLUMNS($AI$34:AI42)-1)<>"",OFFSET(DE104_3!$AI$34,ROWS($AI$34:AI42)-1,COLUMNS($AI$34:AI42)-1),"") ->  | AH28: =IF(OFFSET(DE104_3!$AJ$34,ROWS($AJ$34:AJ42)-1,COLUMNS($AJ$34:AJ42)-1)<>"",OFFSET(DE104_3!$AJ$34,ROWS($AJ$34:AJ42)-1,COLUMNS($AJ$34:AJ42)-1),"") ->  | AI28: =IF(OFFSET(DE104_3!$AK$34,ROWS($AK$34:AK42)-1,COLUMNS($AK$34:AK42)-1)<>"",OFFSET(DE104_3!$AK$34,ROWS($AK$34:AK42)-1,COLUMNS($AK$34:AK42)-1),"") ->  | AJ28: =IF(OFFSET(DE104_3!$AL$34,ROWS($AL$34:AL42)-1,COLUMNS($AL$34:AL42)-1)<>"",OFFSET(DE104_3!$AL$34,ROWS($AL$34:AL42)-1,COLUMNS($AL$34:AL42)-1),"") -> 353.9744444 | AK28: =IF(OFFSET(DE104_3!$AM$34,ROWS($AM$34:AM42)-1,COLUMNS($AM$34:AM42)-1)<>"",OFFSET(DE104_3!$AM$34,ROWS($AM$34:AM42)-1,COLUMNS($AM$34:AM42)-1),"") ->  | AL28: =IF(OFFSET(DE104_3!$AN$34,ROWS($AN$34:AN42)-1,COLUMNS($AN$34:AN42)-1)<>"",OFFSET(DE104_3!$AN$34,ROWS($AN$34:AN42)-1,COLUMNS($AN$34:AN42)-1),"") -> 426.4059259 | AM28: =IF(OFFSET(DE104_3!$AO$34,ROWS($AO$34:AO42)-1,COLUMNS($AO$34:AO42)-1)<>"",OFFSET(DE104_3!$AO$34,ROWS($AO$34:AO42)-1,COLUMNS($AO$34:AO42)-1),"") -> 20.16222222 | AN28: =IF(OFFSET(DE104_3!$AP$34,ROWS($AP$34:AP42)-1,COLUMNS($AP$34:AP42)-1)<>"",OFFSET(DE104_3!$AP$34,ROWS($AP$34:AP42)-1,COLUMNS($AP$34:AP42)-1),"") -> 446.5681481 | AO28: =IF(OFFSET(DE104_3!$AQ$34,ROWS($AQ$34:AQ42)-1,COLUMNS($AQ$34:AQ42)-1)<>"",OFFSET(DE104_3!$AQ$34,ROWS($AQ$34:AQ42)-1,COLUMNS($AQ$34:AQ42)-1),"") -> 
A29: =IF(OFFSET(DE104_3!$C$34,ROWS($C$34:C43)-1,COLUMNS($C$34:C43)-1)<>"",OFFSET(DE104_3!$C$34,ROWS($C$34:C43)-1,COLUMNS($C$34:C43)-1),"") -> 25 | B29: =IF(OFFSET(DE104_3!$D$34,ROWS($D$34:D43)-1,COLUMNS($D$34:D43)-1)<>"",OFFSET(DE104_3!$D$34,ROWS($D$34:D43)-1,COLUMNS($D$34:D43)-1),"") -> 145400 | C29: =IF(OFFSET(DE104_3!$E$34,ROWS($E$34:E43)-1,COLUMNS($E$34:E43)-1)<>"",OFFSET(DE104_3!$E$34,ROWS($E$34:E43)-1,COLUMNS($E$34:E43)-1),"") -> DR-601 | D29: =IF(OFFSET(DE104_3!$F$34,ROWS($F$34:F43)-1,COLUMNS($F$34:F43)-1)<>"",OFFSET(DE104_3!$F$34,ROWS($F$34:F43)-1,COLUMNS($F$34:F43)-1),"") -> 36 | E29: =IF(OFFSET(DE104_3!$G$34,ROWS($G$34:G43)-1,COLUMNS($G$34:G43)-1)<>"",OFFSET(DE104_3!$G$34,ROWS($G$34:G43)-1,COLUMNS($G$34:G43)-1),"") -> 2000 | F29: =IF(OFFSET(DE104_3!$H$34,ROWS($H$34:H43)-1,COLUMNS($H$34:H43)-1)<>"",OFFSET(DE104_3!$H$34,ROWS($H$34:H43)-1,COLUMNS($H$34:H43)-1),"") -> RCP | G29: =IF(OFFSET(DE104_3!$I$34,ROWS($I$34:I43)-1,COLUMNS($I$34:I43)-1)<>"",OFFSET(DE104_3!$I$34,ROWS($I$34:I43)-1,COLUMNS($I$34:I43)-1),"") -> 142 | H29: =IF(OFFSET(DE104_3!$J$34,ROWS($J$34:J43)-1,COLUMNS($J$34:J43)-1)<>"",OFFSET(DE104_3!$J$34,ROWS($J$34:J43)-1,COLUMNS($J$34:J43)-1),"") -> B | I29: =IF(OFFSET(DE104_3!$K$34,ROWS($K$34:K43)-1,COLUMNS($K$34:K43)-1)<>"",OFFSET(DE104_3!$K$34,ROWS($K$34:K43)-1,COLUMNS($K$34:K43)-1),"") -> 11 | J29: =IF(OFFSET(DE104_3!$L$34,ROWS($L$34:L43)-1,COLUMNS($L$34:L43)-1)<>"",OFFSET(DE104_3!$L$34,ROWS($L$34:L43)-1,COLUMNS($L$34:L43)-1),"") ->  | K29: =IF(OFFSET(DE104_3!$M$34,ROWS($M$34:M43)-1,COLUMNS($M$34:M43)-1)<>"",OFFSET(DE104_3!$M$34,ROWS($M$34:M43)-1,COLUMNS($M$34:M43)-1),"") ->  | L29: =IF(OFFSET(DE104_3!$N$34,ROWS($N$34:N43)-1,COLUMNS($N$34:N43)-1)<>"",OFFSET(DE104_3!$N$34,ROWS($N$34:N43)-1,COLUMNS($N$34:N43)-1),"") -> 1 | M29: =IF(OFFSET(DE104_3!$O$34,ROWS($O$34:O43)-1,COLUMNS($O$34:O43)-1)<>"",OFFSET(DE104_3!$O$34,ROWS($O$34:O43)-1,COLUMNS($O$34:O43)-1),"") ->  | N29: =IF(OFFSET(DE104_3!$P$34,ROWS($P$34:P43)-1,COLUMNS($P$34:P43)-1)<>"",OFFSET(DE104_3!$P$34,ROWS($P$34:P43)-1,COLUMNS($P$34:P43)-1),"") ->  | O29: =IF(OFFSET(DE104_3!$Q$34,ROWS($Q$34:Q43)-1,COLUMNS($Q$34:Q43)-1)<>"",OFFSET(DE104_3!$Q$34,ROWS($Q$34:Q43)-1,COLUMNS($Q$34:Q43)-1),"") ->  | P29: =IF(OFFSET(DE104_3!$R$34,ROWS($R$34:R43)-1,COLUMNS($R$34:R43)-1)<>"",OFFSET(DE104_3!$R$34,ROWS($R$34:R43)-1,COLUMNS($R$34:R43)-1),"") ->  | Q29: =IF(OFFSET(DE104_3!$S$34,ROWS($S$34:S43)-1,COLUMNS($S$34:S43)-1)<>"",OFFSET(DE104_3!$S$34,ROWS($S$34:S43)-1,COLUMNS($S$34:S43)-1),"") ->  | R29: =IF(OFFSET(DE104_3!$T$34,ROWS($T$34:T43)-1,COLUMNS($T$34:T43)-1)<>"",OFFSET(DE104_3!$T$34,ROWS($T$34:T43)-1,COLUMNS($T$34:T43)-1),"") ->  | S29: =IF(OFFSET(DE104_3!$U$34,ROWS($U$34:U43)-1,COLUMNS($U$34:U43)-1)<>"",OFFSET(DE104_3!$U$34,ROWS($U$34:U43)-1,COLUMNS($U$34:U43)-1),"") ->  | T29: =IF(OFFSET(DE104_3!$V$34,ROWS($V$34:V43)-1,COLUMNS($V$34:V43)-1)<>"",OFFSET(DE104_3!$V$34,ROWS($V$34:V43)-1,COLUMNS($V$34:V43)-1),"") -> Type 3 | U29: =IF(OFFSET(DE104_3!$W$34,ROWS($W$34:W43)-1,COLUMNS($W$34:W43)-1)<>"",OFFSET(DE104_3!$W$34,ROWS($W$34:W43)-1,COLUMNS($W$34:W43)-1),"") ->  | V29: =IF(OFFSET(DE104_3!$X$34,ROWS($X$34:X43)-1,COLUMNS($X$34:X43)-1)<>"",OFFSET(DE104_3!$X$34,ROWS($X$34:X43)-1,COLUMNS($X$34:X43)-1),"") -> 900.74 | W29: =IF(OFFSET(DE104_3!$Y$34,ROWS($Y$34:Y43)-1,COLUMNS($Y$34:Y43)-1)<>"",OFFSET(DE104_3!$Y$34,ROWS($Y$34:Y43)-1,COLUMNS($Y$34:Y43)-1),"") -> 898.4 | X29: =IF(OFFSET(DE104_3!$Z$34,ROWS($Z$34:Z43)-1,COLUMNS($Z$34:Z43)-1)<>"",OFFSET(DE104_3!$Z$34,ROWS($Z$34:Z43)-1,COLUMNS($Z$34:Z43)-1),"") ->  | Y29: =IF(OFFSET(DE104_3!$AA$34,ROWS($AA$34:AA43)-1,COLUMNS($AA$34:AA43)-1)<>"",OFFSET(DE104_3!$AA$34,ROWS($AA$34:AA43)-1,COLUMNS($AA$34:AA43)-1),"") ->  | Z29: =IF(OFFSET(DE104_3!$AB$34,ROWS($AB$34:AB43)-1,COLUMNS($AB$34:AB43)-1)<>"",OFFSET(DE104_3!$AB$34,ROWS($AB$34:AB43)-1,COLUMNS($AB$34:AB43)-1),"") -> 21.28 | AA29: =IF(OFFSET(DE104_3!$AC$34,ROWS($AC$34:AC43)-1,COLUMNS($AC$34:AC43)-1)<>"",OFFSET(DE104_3!$AC$34,ROWS($AC$34:AC43)-1,COLUMNS($AC$34:AC43)-1),"") -> 128.71 | AB29: =IF(OFFSET(DE104_3!$AD$34,ROWS($AD$34:AD43)-1,COLUMNS($AD$34:AD43)-1)<>"",OFFSET(DE104_3!$AD$34,ROWS($AD$34:AD43)-1,COLUMNS($AD$34:AD43)-1),"") ->  | AC29: =IF(OFFSET(DE104_3!$AE$34,ROWS($AE$34:AE43)-1,COLUMNS($AE$34:AE43)-1)<>"",OFFSET(DE104_3!$AE$34,ROWS($AE$34:AE43)-1,COLUMNS($AE$34:AE43)-1),"") ->  | AD29: =IF(OFFSET(DE104_3!$AF$34,ROWS($AF$34:AF43)-1,COLUMNS($AF$34:AF43)-1)<>"",OFFSET(DE104_3!$AF$34,ROWS($AF$34:AF43)-1,COLUMNS($AF$34:AF43)-1),"") ->  | AE29: =IF(OFFSET(DE104_3!$AG$34,ROWS($AG$34:AG43)-1,COLUMNS($AG$34:AG43)-1)<>"",OFFSET(DE104_3!$AG$34,ROWS($AG$34:AG43)-1,COLUMNS($AG$34:AG43)-1),"") ->  | AF29: =IF(OFFSET(DE104_3!$AH$34,ROWS($AH$34:AH43)-1,COLUMNS($AH$34:AH43)-1)<>"",OFFSET(DE104_3!$AH$34,ROWS($AH$34:AH43)-1,COLUMNS($AH$34:AH43)-1),"") ->  | AG29: =IF(OFFSET(DE104_3!$AI$34,ROWS($AI$34:AI43)-1,COLUMNS($AI$34:AI43)-1)<>"",OFFSET(DE104_3!$AI$34,ROWS($AI$34:AI43)-1,COLUMNS($AI$34:AI43)-1),"") ->  | AH29: =IF(OFFSET(DE104_3!$AJ$34,ROWS($AJ$34:AJ43)-1,COLUMNS($AJ$34:AJ43)-1)<>"",OFFSET(DE104_3!$AJ$34,ROWS($AJ$34:AJ43)-1,COLUMNS($AJ$34:AJ43)-1),"") ->  | AI29: =IF(OFFSET(DE104_3!$AK$34,ROWS($AK$34:AK43)-1,COLUMNS($AK$34:AK43)-1)<>"",OFFSET(DE104_3!$AK$34,ROWS($AK$34:AK43)-1,COLUMNS($AK$34:AK43)-1),"") ->  | AJ29: =IF(OFFSET(DE104_3!$AL$34,ROWS($AL$34:AL43)-1,COLUMNS($AL$34:AL43)-1)<>"",OFFSET(DE104_3!$AL$34,ROWS($AL$34:AL43)-1,COLUMNS($AL$34:AL43)-1),"") -> 138.6666667 | AK29: =IF(OFFSET(DE104_3!$AM$34,ROWS($AM$34:AM43)-1,COLUMNS($AM$34:AM43)-1)<>"",OFFSET(DE104_3!$AM$34,ROWS($AM$34:AM43)-1,COLUMNS($AM$34:AM43)-1),"") ->  | AL29: =IF(OFFSET(DE104_3!$AN$34,ROWS($AN$34:AN43)-1,COLUMNS($AN$34:AN43)-1)<>"",OFFSET(DE104_3!$AN$34,ROWS($AN$34:AN43)-1,COLUMNS($AN$34:AN43)-1),"") -> 243.9348148 | AM29: =IF(OFFSET(DE104_3!$AO$34,ROWS($AO$34:AO43)-1,COLUMNS($AO$34:AO43)-1)<>"",OFFSET(DE104_3!$AO$34,ROWS($AO$34:AO43)-1,COLUMNS($AO$34:AO43)-1),"") -> 13.37481481 | AN29: =IF(OFFSET(DE104_3!$AP$34,ROWS($AP$34:AP43)-1,COLUMNS($AP$34:AP43)-1)<>"",OFFSET(DE104_3!$AP$34,ROWS($AP$34:AP43)-1,COLUMNS($AP$34:AP43)-1),"") -> 257.3096296 | AO29: =IF(OFFSET(DE104_3!$AQ$34,ROWS($AQ$34:AQ43)-1,COLUMNS($AQ$34:AQ43)-1)<>"",OFFSET(DE104_3!$AQ$34,ROWS($AQ$34:AQ43)-1,COLUMNS($AQ$34:AQ43)-1),"") -> 
A30: =IF(OFFSET(DE104_3!$C$34,ROWS($C$34:C44)-1,COLUMNS($C$34:C44)-1)<>"",OFFSET(DE104_3!$C$34,ROWS($C$34:C44)-1,COLUMNS($C$34:C44)-1),"") -> 48 | B30: =IF(OFFSET(DE104_3!$D$34,ROWS($D$34:D44)-1,COLUMNS($D$34:D44)-1)<>"",OFFSET(DE104_3!$D$34,ROWS($D$34:D44)-1,COLUMNS($D$34:D44)-1),"") -> 146075 | C30: =IF(OFFSET(DE104_3!$E$34,ROWS($E$34:E44)-1,COLUMNS($E$34:E44)-1)<>"",OFFSET(DE104_3!$E$34,ROWS($E$34:E44)-1,COLUMNS($E$34:E44)-1),"") -> JACK | D30: =IF(OFFSET(DE104_3!$F$34,ROWS($F$34:F44)-1,COLUMNS($F$34:F44)-1)<>"",OFFSET(DE104_3!$F$34,ROWS($F$34:F44)-1,COLUMNS($F$34:F44)-1),"") -> 42 | E30: =IF(OFFSET(DE104_3!$G$34,ROWS($G$34:G44)-1,COLUMNS($G$34:G44)-1)<>"",OFFSET(DE104_3!$G$34,ROWS($G$34:G44)-1,COLUMNS($G$34:G44)-1),"") -> 2000 | F30: =IF(OFFSET(DE104_3!$H$34,ROWS($H$34:H44)-1,COLUMNS($H$34:H44)-1)<>"",OFFSET(DE104_3!$H$34,ROWS($H$34:H44)-1,COLUMNS($H$34:H44)-1),"") -> RCP | G30: =IF(OFFSET(DE104_3!$I$34,ROWS($I$34:I44)-1,COLUMNS($I$34:I44)-1)<>"",OFFSET(DE104_3!$I$34,ROWS($I$34:I44)-1,COLUMNS($I$34:I44)-1),"") -> 108 | H30: =IF(OFFSET(DE104_3!$J$34,ROWS($J$34:J44)-1,COLUMNS($J$34:J44)-1)<>"",OFFSET(DE104_3!$J$34,ROWS($J$34:J44)-1,COLUMNS($J$34:J44)-1),"") ->  | I30: =IF(OFFSET(DE104_3!$K$34,ROWS($K$34:K44)-1,COLUMNS($K$34:K44)-1)<>"",OFFSET(DE104_3!$K$34,ROWS($K$34:K44)-1,COLUMNS($K$34:K44)-1),"") ->  | J30: =IF(OFFSET(DE104_3!$L$34,ROWS($L$34:L44)-1,COLUMNS($L$34:L44)-1)<>"",OFFSET(DE104_3!$L$34,ROWS($L$34:L44)-1,COLUMNS($L$34:L44)-1),"") ->  | K30: =IF(OFFSET(DE104_3!$M$34,ROWS($M$34:M44)-1,COLUMNS($M$34:M44)-1)<>"",OFFSET(DE104_3!$M$34,ROWS($M$34:M44)-1,COLUMNS($M$34:M44)-1),"") -> 1 | L30: =IF(OFFSET(DE104_3!$N$34,ROWS($N$34:N44)-1,COLUMNS($N$34:N44)-1)<>"",OFFSET(DE104_3!$N$34,ROWS($N$34:N44)-1,COLUMNS($N$34:N44)-1),"") ->  | M30: =IF(OFFSET(DE104_3!$O$34,ROWS($O$34:O44)-1,COLUMNS($O$34:O44)-1)<>"",OFFSET(DE104_3!$O$34,ROWS($O$34:O44)-1,COLUMNS($O$34:O44)-1),"") ->  | N30: =IF(OFFSET(DE104_3!$P$34,ROWS($P$34:P44)-1,COLUMNS($P$34:P44)-1)<>"",OFFSET(DE104_3!$P$34,ROWS($P$34:P44)-1,COLUMNS($P$34:P44)-1),"") ->  | O30: =IF(OFFSET(DE104_3!$Q$34,ROWS($Q$34:Q44)-1,COLUMNS($Q$34:Q44)-1)<>"",OFFSET(DE104_3!$Q$34,ROWS($Q$34:Q44)-1,COLUMNS($Q$34:Q44)-1),"") ->  | P30: =IF(OFFSET(DE104_3!$R$34,ROWS($R$34:R44)-1,COLUMNS($R$34:R44)-1)<>"",OFFSET(DE104_3!$R$34,ROWS($R$34:R44)-1,COLUMNS($R$34:R44)-1),"") ->  | Q30: =IF(OFFSET(DE104_3!$S$34,ROWS($S$34:S44)-1,COLUMNS($S$34:S44)-1)<>"",OFFSET(DE104_3!$S$34,ROWS($S$34:S44)-1,COLUMNS($S$34:S44)-1),"") ->  | R30: =IF(OFFSET(DE104_3!$T$34,ROWS($T$34:T44)-1,COLUMNS($T$34:T44)-1)<>"",OFFSET(DE104_3!$T$34,ROWS($T$34:T44)-1,COLUMNS($T$34:T44)-1),"") ->  | S30: =IF(OFFSET(DE104_3!$U$34,ROWS($U$34:U44)-1,COLUMNS($U$34:U44)-1)<>"",OFFSET(DE104_3!$U$34,ROWS($U$34:U44)-1,COLUMNS($U$34:U44)-1),"") ->  | T30: =IF(OFFSET(DE104_3!$V$34,ROWS($V$34:V44)-1,COLUMNS($V$34:V44)-1)<>"",OFFSET(DE104_3!$V$34,ROWS($V$34:V44)-1,COLUMNS($V$34:V44)-1),"") -> Type 3 | U30: =IF(OFFSET(DE104_3!$W$34,ROWS($W$34:W44)-1,COLUMNS($W$34:W44)-1)<>"",OFFSET(DE104_3!$W$34,ROWS($W$34:W44)-1,COLUMNS($W$34:W44)-1),"") ->  | V30: =IF(OFFSET(DE104_3!$X$34,ROWS($X$34:X44)-1,COLUMNS($X$34:X44)-1)<>"",OFFSET(DE104_3!$X$34,ROWS($X$34:X44)-1,COLUMNS($X$34:X44)-1),"") -> 904.9 | W30: =IF(OFFSET(DE104_3!$Y$34,ROWS($Y$34:Y44)-1,COLUMNS($Y$34:Y44)-1)<>"",OFFSET(DE104_3!$Y$34,ROWS($Y$34:Y44)-1,COLUMNS($Y$34:Y44)-1),"") -> 902.17 | X30: =IF(OFFSET(DE104_3!$Z$34,ROWS($Z$34:Z44)-1,COLUMNS($Z$34:Z44)-1)<>"",OFFSET(DE104_3!$Z$34,ROWS($Z$34:Z44)-1,COLUMNS($Z$34:Z44)-1),"") ->  | Y30: =IF(OFFSET(DE104_3!$AA$34,ROWS($AA$34:AA44)-1,COLUMNS($AA$34:AA44)-1)<>"",OFFSET(DE104_3!$AA$34,ROWS($AA$34:AA44)-1,COLUMNS($AA$34:AA44)-1),"") ->  | Z30: =IF(OFFSET(DE104_3!$AB$34,ROWS($AB$34:AB44)-1,COLUMNS($AB$34:AB44)-1)<>"",OFFSET(DE104_3!$AB$34,ROWS($AB$34:AB44)-1,COLUMNS($AB$34:AB44)-1),"") -> 119.07 | AA30: =IF(OFFSET(DE104_3!$AC$34,ROWS($AC$34:AC44)-1,COLUMNS($AC$34:AC44)-1)<>"",OFFSET(DE104_3!$AC$34,ROWS($AC$34:AC44)-1,COLUMNS($AC$34:AC44)-1),"") -> 3.1 | AB30: =IF(OFFSET(DE104_3!$AD$34,ROWS($AD$34:AD44)-1,COLUMNS($AD$34:AD44)-1)<>"",OFFSET(DE104_3!$AD$34,ROWS($AD$34:AD44)-1,COLUMNS($AD$34:AD44)-1),"") ->  | AC30: =IF(OFFSET(DE104_3!$AE$34,ROWS($AE$34:AE44)-1,COLUMNS($AE$34:AE44)-1)<>"",OFFSET(DE104_3!$AE$34,ROWS($AE$34:AE44)-1,COLUMNS($AE$34:AE44)-1),"") ->  | AD30: =IF(OFFSET(DE104_3!$AF$34,ROWS($AF$34:AF44)-1,COLUMNS($AF$34:AF44)-1)<>"",OFFSET(DE104_3!$AF$34,ROWS($AF$34:AF44)-1,COLUMNS($AF$34:AF44)-1),"") ->  | AE30: =IF(OFFSET(DE104_3!$AG$34,ROWS($AG$34:AG44)-1,COLUMNS($AG$34:AG44)-1)<>"",OFFSET(DE104_3!$AG$34,ROWS($AG$34:AG44)-1,COLUMNS($AG$34:AG44)-1),"") ->  | AF30: =IF(OFFSET(DE104_3!$AH$34,ROWS($AH$34:AH44)-1,COLUMNS($AH$34:AH44)-1)<>"",OFFSET(DE104_3!$AH$34,ROWS($AH$34:AH44)-1,COLUMNS($AH$34:AH44)-1),"") ->  | AG30: =IF(OFFSET(DE104_3!$AI$34,ROWS($AI$34:AI44)-1,COLUMNS($AI$34:AI44)-1)<>"",OFFSET(DE104_3!$AI$34,ROWS($AI$34:AI44)-1,COLUMNS($AI$34:AI44)-1),"") ->  | AH30: =IF(OFFSET(DE104_3!$AJ$34,ROWS($AJ$34:AJ44)-1,COLUMNS($AJ$34:AJ44)-1)<>"",OFFSET(DE104_3!$AJ$34,ROWS($AJ$34:AJ44)-1,COLUMNS($AJ$34:AJ44)-1),"") ->  | AI30: =IF(OFFSET(DE104_3!$AK$34,ROWS($AK$34:AK44)-1,COLUMNS($AK$34:AK44)-1)<>"",OFFSET(DE104_3!$AK$34,ROWS($AK$34:AK44)-1,COLUMNS($AK$34:AK44)-1),"") ->  | AJ30: =IF(OFFSET(DE104_3!$AL$34,ROWS($AL$34:AL44)-1,COLUMNS($AL$34:AL44)-1)<>"",OFFSET(DE104_3!$AL$34,ROWS($AL$34:AL44)-1,COLUMNS($AL$34:AL44)-1),"") ->  | AK30: =IF(OFFSET(DE104_3!$AM$34,ROWS($AM$34:AM44)-1,COLUMNS($AM$34:AM44)-1)<>"",OFFSET(DE104_3!$AM$34,ROWS($AM$34:AM44)-1,COLUMNS($AM$34:AM44)-1),"") ->  | AL30: =IF(OFFSET(DE104_3!$AN$34,ROWS($AN$34:AN44)-1,COLUMNS($AN$34:AN44)-1)<>"",OFFSET(DE104_3!$AN$34,ROWS($AN$34:AN44)-1,COLUMNS($AN$34:AN44)-1),"") ->  | AM30: =IF(OFFSET(DE104_3!$AO$34,ROWS($AO$34:AO44)-1,COLUMNS($AO$34:AO44)-1)<>"",OFFSET(DE104_3!$AO$34,ROWS($AO$34:AO44)-1,COLUMNS($AO$34:AO44)-1),"") ->  | AN30: =IF(OFFSET(DE104_3!$AP$34,ROWS($AP$34:AP44)-1,COLUMNS($AP$34:AP44)-1)<>"",OFFSET(DE104_3!$AP$34,ROWS($AP$34:AP44)-1,COLUMNS($AP$34:AP44)-1),"") ->  | AO30: =IF(OFFSET(DE104_3!$AQ$34,ROWS($AQ$34:AQ44)-1,COLUMNS($AQ$34:AQ44)-1)<>"",OFFSET(DE104_3!$AQ$34,ROWS($AQ$34:AQ44)-1,COLUMNS($AQ$34:AQ44)-1),"") -> 
A31: =IF(OFFSET(DE104_3!$C$34,ROWS($C$34:C45)-1,COLUMNS($C$34:C45)-1)<>"",OFFSET(DE104_3!$C$34,ROWS($C$34:C45)-1,COLUMNS($C$34:C45)-1),"") ->  | B31: =IF(OFFSET(DE104_3!$D$34,ROWS($D$34:D45)-1,COLUMNS($D$34:D45)-1)<>"",OFFSET(DE104_3!$D$34,ROWS($D$34:D45)-1,COLUMNS($D$34:D45)-1),"") ->  | C31: =IF(OFFSET(DE104_3!$E$34,ROWS($E$34:E45)-1,COLUMNS($E$34:E45)-1)<>"",OFFSET(DE104_3!$E$34,ROWS($E$34:E45)-1,COLUMNS($E$34:E45)-1),"") -> DR-621 | D31: =IF(OFFSET(DE104_3!$F$34,ROWS($F$34:F45)-1,COLUMNS($F$34:F45)-1)<>"",OFFSET(DE104_3!$F$34,ROWS($F$34:F45)-1,COLUMNS($F$34:F45)-1),"") -> 42 | E31: =IF(OFFSET(DE104_3!$G$34,ROWS($G$34:G45)-1,COLUMNS($G$34:G45)-1)<>"",OFFSET(DE104_3!$G$34,ROWS($G$34:G45)-1,COLUMNS($G$34:G45)-1),"") -> 2000 | F31: =IF(OFFSET(DE104_3!$H$34,ROWS($H$34:H45)-1,COLUMNS($H$34:H45)-1)<>"",OFFSET(DE104_3!$H$34,ROWS($H$34:H45)-1,COLUMNS($H$34:H45)-1),"") -> RCP | G31: =IF(OFFSET(DE104_3!$I$34,ROWS($I$34:I45)-1,COLUMNS($I$34:I45)-1)<>"",OFFSET(DE104_3!$I$34,ROWS($I$34:I45)-1,COLUMNS($I$34:I45)-1),"") -> 112 | H31: =IF(OFFSET(DE104_3!$J$34,ROWS($J$34:J45)-1,COLUMNS($J$34:J45)-1)<>"",OFFSET(DE104_3!$J$34,ROWS($J$34:J45)-1,COLUMNS($J$34:J45)-1),"") -> B | I31: =IF(OFFSET(DE104_3!$K$34,ROWS($K$34:K45)-1,COLUMNS($K$34:K45)-1)<>"",OFFSET(DE104_3!$K$34,ROWS($K$34:K45)-1,COLUMNS($K$34:K45)-1),"") ->  | J31: =IF(OFFSET(DE104_3!$L$34,ROWS($L$34:L45)-1,COLUMNS($L$34:L45)-1)<>"",OFFSET(DE104_3!$L$34,ROWS($L$34:L45)-1,COLUMNS($L$34:L45)-1),"") ->  | K31: =IF(OFFSET(DE104_3!$M$34,ROWS($M$34:M45)-1,COLUMNS($M$34:M45)-1)<>"",OFFSET(DE104_3!$M$34,ROWS($M$34:M45)-1,COLUMNS($M$34:M45)-1),"") ->  | L31: =IF(OFFSET(DE104_3!$N$34,ROWS($N$34:N45)-1,COLUMNS($N$34:N45)-1)<>"",OFFSET(DE104_3!$N$34,ROWS($N$34:N45)-1,COLUMNS($N$34:N45)-1),"") -> 1 | M31: =IF(OFFSET(DE104_3!$O$34,ROWS($O$34:O45)-1,COLUMNS($O$34:O45)-1)<>"",OFFSET(DE104_3!$O$34,ROWS($O$34:O45)-1,COLUMNS($O$34:O45)-1),"") ->  | N31: =IF(OFFSET(DE104_3!$P$34,ROWS($P$34:P45)-1,COLUMNS($P$34:P45)-1)<>"",OFFSET(DE104_3!$P$34,ROWS($P$34:P45)-1,COLUMNS($P$34:P45)-1),"") ->  | O31: =IF(OFFSET(DE104_3!$Q$34,ROWS($Q$34:Q45)-1,COLUMNS($Q$34:Q45)-1)<>"",OFFSET(DE104_3!$Q$34,ROWS($Q$34:Q45)-1,COLUMNS($Q$34:Q45)-1),"") ->  | P31: =IF(OFFSET(DE104_3!$R$34,ROWS($R$34:R45)-1,COLUMNS($R$34:R45)-1)<>"",OFFSET(DE104_3!$R$34,ROWS($R$34:R45)-1,COLUMNS($R$34:R45)-1),"") ->  | Q31: =IF(OFFSET(DE104_3!$S$34,ROWS($S$34:S45)-1,COLUMNS($S$34:S45)-1)<>"",OFFSET(DE104_3!$S$34,ROWS($S$34:S45)-1,COLUMNS($S$34:S45)-1),"") ->  | R31: =IF(OFFSET(DE104_3!$T$34,ROWS($T$34:T45)-1,COLUMNS($T$34:T45)-1)<>"",OFFSET(DE104_3!$T$34,ROWS($T$34:T45)-1,COLUMNS($T$34:T45)-1),"") ->  | S31: =IF(OFFSET(DE104_3!$U$34,ROWS($U$34:U45)-1,COLUMNS($U$34:U45)-1)<>"",OFFSET(DE104_3!$U$34,ROWS($U$34:U45)-1,COLUMNS($U$34:U45)-1),"") ->  | T31: =IF(OFFSET(DE104_3!$V$34,ROWS($V$34:V45)-1,COLUMNS($V$34:V45)-1)<>"",OFFSET(DE104_3!$V$34,ROWS($V$34:V45)-1,COLUMNS($V$34:V45)-1),"") -> Type 3 | U31: =IF(OFFSET(DE104_3!$W$34,ROWS($W$34:W45)-1,COLUMNS($W$34:W45)-1)<>"",OFFSET(DE104_3!$W$34,ROWS($W$34:W45)-1,COLUMNS($W$34:W45)-1),"") ->  | V31: =IF(OFFSET(DE104_3!$X$34,ROWS($X$34:X45)-1,COLUMNS($X$34:X45)-1)<>"",OFFSET(DE104_3!$X$34,ROWS($X$34:X45)-1,COLUMNS($X$34:X45)-1),"") -> 902.17 | W31: =IF(OFFSET(DE104_3!$Y$34,ROWS($Y$34:Y45)-1,COLUMNS($Y$34:Y45)-1)<>"",OFFSET(DE104_3!$Y$34,ROWS($Y$34:Y45)-1,COLUMNS($Y$34:Y45)-1),"") -> 889.33 | X31: =IF(OFFSET(DE104_3!$Z$34,ROWS($Z$34:Z45)-1,COLUMNS($Z$34:Z45)-1)<>"",OFFSET(DE104_3!$Z$34,ROWS($Z$34:Z45)-1,COLUMNS($Z$34:Z45)-1),"") ->  | Y31: =IF(OFFSET(DE104_3!$AA$34,ROWS($AA$34:AA45)-1,COLUMNS($AA$34:AA45)-1)<>"",OFFSET(DE104_3!$AA$34,ROWS($AA$34:AA45)-1,COLUMNS($AA$34:AA45)-1),"") ->  | Z31: =IF(OFFSET(DE104_3!$AB$34,ROWS($AB$34:AB45)-1,COLUMNS($AB$34:AB45)-1)<>"",OFFSET(DE104_3!$AB$34,ROWS($AB$34:AB45)-1,COLUMNS($AB$34:AB45)-1),"") -> 3.1 | AA31: =IF(OFFSET(DE104_3!$AC$34,ROWS($AC$34:AC45)-1,COLUMNS($AC$34:AC45)-1)<>"",OFFSET(DE104_3!$AC$34,ROWS($AC$34:AC45)-1,COLUMNS($AC$34:AC45)-1),"") -> 116.87 | AB31: =IF(OFFSET(DE104_3!$AD$34,ROWS($AD$34:AD45)-1,COLUMNS($AD$34:AD45)-1)<>"",OFFSET(DE104_3!$AD$34,ROWS($AD$34:AD45)-1,COLUMNS($AD$34:AD45)-1),"") ->  | AC31: =IF(OFFSET(DE104_3!$AE$34,ROWS($AE$34:AE45)-1,COLUMNS($AE$34:AE45)-1)<>"",OFFSET(DE104_3!$AE$34,ROWS($AE$34:AE45)-1,COLUMNS($AE$34:AE45)-1),"") -> 112 | AD31: =IF(OFFSET(DE104_3!$AF$34,ROWS($AF$34:AF45)-1,COLUMNS($AF$34:AF45)-1)<>"",OFFSET(DE104_3!$AF$34,ROWS($AF$34:AF45)-1,COLUMNS($AF$34:AF45)-1),"") ->  | AE31: =IF(OFFSET(DE104_3!$AG$34,ROWS($AG$34:AG45)-1,COLUMNS($AG$34:AG45)-1)<>"",OFFSET(DE104_3!$AG$34,ROWS($AG$34:AG45)-1,COLUMNS($AG$34:AG45)-1),"") ->  | AF31: =IF(OFFSET(DE104_3!$AH$34,ROWS($AH$34:AH45)-1,COLUMNS($AH$34:AH45)-1)<>"",OFFSET(DE104_3!$AH$34,ROWS($AH$34:AH45)-1,COLUMNS($AH$34:AH45)-1),"") ->  | AG31: =IF(OFFSET(DE104_3!$AI$34,ROWS($AI$34:AI45)-1,COLUMNS($AI$34:AI45)-1)<>"",OFFSET(DE104_3!$AI$34,ROWS($AI$34:AI45)-1,COLUMNS($AI$34:AI45)-1),"") ->  | AH31: =IF(OFFSET(DE104_3!$AJ$34,ROWS($AJ$34:AJ45)-1,COLUMNS($AJ$34:AJ45)-1)<>"",OFFSET(DE104_3!$AJ$34,ROWS($AJ$34:AJ45)-1,COLUMNS($AJ$34:AJ45)-1),"") ->  | AI31: =IF(OFFSET(DE104_3!$AK$34,ROWS($AK$34:AK45)-1,COLUMNS($AK$34:AK45)-1)<>"",OFFSET(DE104_3!$AK$34,ROWS($AK$34:AK45)-1,COLUMNS($AK$34:AK45)-1),"") ->  | AJ31: =IF(OFFSET(DE104_3!$AL$34,ROWS($AL$34:AL45)-1,COLUMNS($AL$34:AL45)-1)<>"",OFFSET(DE104_3!$AL$34,ROWS($AL$34:AL45)-1,COLUMNS($AL$34:AL45)-1),"") -> 317.7777778 | AK31: =IF(OFFSET(DE104_3!$AM$34,ROWS($AM$34:AM45)-1,COLUMNS($AM$34:AM45)-1)<>"",OFFSET(DE104_3!$AM$34,ROWS($AM$34:AM45)-1,COLUMNS($AM$34:AM45)-1),"") ->  | AL31: =IF(OFFSET(DE104_3!$AN$34,ROWS($AN$34:AN45)-1,COLUMNS($AN$34:AN45)-1)<>"",OFFSET(DE104_3!$AN$34,ROWS($AN$34:AN45)-1,COLUMNS($AN$34:AN45)-1),"") -> 142.0562963 | AM31: =IF(OFFSET(DE104_3!$AO$34,ROWS($AO$34:AO45)-1,COLUMNS($AO$34:AO45)-1)<>"",OFFSET(DE104_3!$AO$34,ROWS($AO$34:AO45)-1,COLUMNS($AO$34:AO45)-1),"") -> 11.6 | AN31: =IF(OFFSET(DE104_3!$AP$34,ROWS($AP$34:AP45)-1,COLUMNS($AP$34:AP45)-1)<>"",OFFSET(DE104_3!$AP$34,ROWS($AP$34:AP45)-1,COLUMNS($AP$34:AP45)-1),"") -> 153.6562963 | AO31: =IF(OFFSET(DE104_3!$AQ$34,ROWS($AQ$34:AQ45)-1,COLUMNS($AQ$34:AQ45)-1)<>"",OFFSET(DE104_3!$AQ$34,ROWS($AQ$34:AQ45)-1,COLUMNS($AQ$34:AQ45)-1),"") -> 
A32: =IF(OFFSET(DE104_3!$C$34,ROWS($C$34:C46)-1,COLUMNS($C$34:C46)-1)<>"",OFFSET(DE104_3!$C$34,ROWS($C$34:C46)-1,COLUMNS($C$34:C46)-1),"") -> MED | B32: =IF(OFFSET(DE104_3!$D$34,ROWS($D$34:D46)-1,COLUMNS($D$34:D46)-1)<>"",OFFSET(DE104_3!$D$34,ROWS($D$34:D46)-1,COLUMNS($D$34:D46)-1),"") -> 146525 | C32: =IF(OFFSET(DE104_3!$E$34,ROWS($E$34:E46)-1,COLUMNS($E$34:E46)-1)<>"",OFFSET(DE104_3!$E$34,ROWS($E$34:E46)-1,COLUMNS($E$34:E46)-1),"") -> DR-601 | D32: =IF(OFFSET(DE104_3!$F$34,ROWS($F$34:F46)-1,COLUMNS($F$34:F46)-1)<>"",OFFSET(DE104_3!$F$34,ROWS($F$34:F46)-1,COLUMNS($F$34:F46)-1),"") -> 24 | E32: =IF(OFFSET(DE104_3!$G$34,ROWS($G$34:G46)-1,COLUMNS($G$34:G46)-1)<>"",OFFSET(DE104_3!$G$34,ROWS($G$34:G46)-1,COLUMNS($G$34:G46)-1),"") -> 2000 | F32: =IF(OFFSET(DE104_3!$H$34,ROWS($H$34:H46)-1,COLUMNS($H$34:H46)-1)<>"",OFFSET(DE104_3!$H$34,ROWS($H$34:H46)-1,COLUMNS($H$34:H46)-1),"") -> RCP | G32: =IF(OFFSET(DE104_3!$I$34,ROWS($I$34:I46)-1,COLUMNS($I$34:I46)-1)<>"",OFFSET(DE104_3!$I$34,ROWS($I$34:I46)-1,COLUMNS($I$34:I46)-1),"") -> 74 | H32: =IF(OFFSET(DE104_3!$J$34,ROWS($J$34:J46)-1,COLUMNS($J$34:J46)-1)<>"",OFFSET(DE104_3!$J$34,ROWS($J$34:J46)-1,COLUMNS($J$34:J46)-1),"") -> B | I32: =IF(OFFSET(DE104_3!$K$34,ROWS($K$34:K46)-1,COLUMNS($K$34:K46)-1)<>"",OFFSET(DE104_3!$K$34,ROWS($K$34:K46)-1,COLUMNS($K$34:K46)-1),"") -> 2.3 | J32: =IF(OFFSET(DE104_3!$L$34,ROWS($L$34:L46)-1,COLUMNS($L$34:L46)-1)<>"",OFFSET(DE104_3!$L$34,ROWS($L$34:L46)-1,COLUMNS($L$34:L46)-1),"") ->  | K32: =IF(OFFSET(DE104_3!$M$34,ROWS($M$34:M46)-1,COLUMNS($M$34:M46)-1)<>"",OFFSET(DE104_3!$M$34,ROWS($M$34:M46)-1,COLUMNS($M$34:M46)-1),"") -> 1 | L32: =IF(OFFSET(DE104_3!$N$34,ROWS($N$34:N46)-1,COLUMNS($N$34:N46)-1)<>"",OFFSET(DE104_3!$N$34,ROWS($N$34:N46)-1,COLUMNS($N$34:N46)-1),"") -> 1 | M32: =IF(OFFSET(DE104_3!$O$34,ROWS($O$34:O46)-1,COLUMNS($O$34:O46)-1)<>"",OFFSET(DE104_3!$O$34,ROWS($O$34:O46)-1,COLUMNS($O$34:O46)-1),"") ->  | N32: =IF(OFFSET(DE104_3!$P$34,ROWS($P$34:P46)-1,COLUMNS($P$34:P46)-1)<>"",OFFSET(DE104_3!$P$34,ROWS($P$34:P46)-1,COLUMNS($P$34:P46)-1),"") ->  | O32: =IF(OFFSET(DE104_3!$Q$34,ROWS($Q$34:Q46)-1,COLUMNS($Q$34:Q46)-1)<>"",OFFSET(DE104_3!$Q$34,ROWS($Q$34:Q46)-1,COLUMNS($Q$34:Q46)-1),"") ->  | P32: =IF(OFFSET(DE104_3!$R$34,ROWS($R$34:R46)-1,COLUMNS($R$34:R46)-1)<>"",OFFSET(DE104_3!$R$34,ROWS($R$34:R46)-1,COLUMNS($R$34:R46)-1),"") ->  | Q32: =IF(OFFSET(DE104_3!$S$34,ROWS($S$34:S46)-1,COLUMNS($S$34:S46)-1)<>"",OFFSET(DE104_3!$S$34,ROWS($S$34:S46)-1,COLUMNS($S$34:S46)-1),"") ->  | R32: =IF(OFFSET(DE104_3!$T$34,ROWS($T$34:T46)-1,COLUMNS($T$34:T46)-1)<>"",OFFSET(DE104_3!$T$34,ROWS($T$34:T46)-1,COLUMNS($T$34:T46)-1),"") ->  | S32: =IF(OFFSET(DE104_3!$U$34,ROWS($U$34:U46)-1,COLUMNS($U$34:U46)-1)<>"",OFFSET(DE104_3!$U$34,ROWS($U$34:U46)-1,COLUMNS($U$34:U46)-1),"") ->  | T32: =IF(OFFSET(DE104_3!$V$34,ROWS($V$34:V46)-1,COLUMNS($V$34:V46)-1)<>"",OFFSET(DE104_3!$V$34,ROWS($V$34:V46)-1,COLUMNS($V$34:V46)-1),"") -> Type 3 | U32: =IF(OFFSET(DE104_3!$W$34,ROWS($W$34:W46)-1,COLUMNS($W$34:W46)-1)<>"",OFFSET(DE104_3!$W$34,ROWS($W$34:W46)-1,COLUMNS($W$34:W46)-1),"") ->  | V32: =IF(OFFSET(DE104_3!$X$34,ROWS($X$34:X46)-1,COLUMNS($X$34:X46)-1)<>"",OFFSET(DE104_3!$X$34,ROWS($X$34:X46)-1,COLUMNS($X$34:X46)-1),"") -> 906.34 | W32: =IF(OFFSET(DE104_3!$Y$34,ROWS($Y$34:Y46)-1,COLUMNS($Y$34:Y46)-1)<>"",OFFSET(DE104_3!$Y$34,ROWS($Y$34:Y46)-1,COLUMNS($Y$34:Y46)-1),"") -> 904.1 | X32: =IF(OFFSET(DE104_3!$Z$34,ROWS($Z$34:Z46)-1,COLUMNS($Z$34:Z46)-1)<>"",OFFSET(DE104_3!$Z$34,ROWS($Z$34:Z46)-1,COLUMNS($Z$34:Z46)-1),"") ->  | Y32: =IF(OFFSET(DE104_3!$AA$34,ROWS($AA$34:AA46)-1,COLUMNS($AA$34:AA46)-1)<>"",OFFSET(DE104_3!$AA$34,ROWS($AA$34:AA46)-1,COLUMNS($AA$34:AA46)-1),"") ->  | Z32: =IF(OFFSET(DE104_3!$AB$34,ROWS($AB$34:AB46)-1,COLUMNS($AB$34:AB46)-1)<>"",OFFSET(DE104_3!$AB$34,ROWS($AB$34:AB46)-1,COLUMNS($AB$34:AB46)-1),"") -> 36 | AA32: =IF(OFFSET(DE104_3!$AC$34,ROWS($AC$34:AC46)-1,COLUMNS($AC$34:AC46)-1)<>"",OFFSET(DE104_3!$AC$34,ROWS($AC$34:AC46)-1,COLUMNS($AC$34:AC46)-1),"") -> 50.22 | AB32: =IF(OFFSET(DE104_3!$AD$34,ROWS($AD$34:AD46)-1,COLUMNS($AD$34:AD46)-1)<>"",OFFSET(DE104_3!$AD$34,ROWS($AD$34:AD46)-1,COLUMNS($AD$34:AD46)-1),"") ->  | AC32: =IF(OFFSET(DE104_3!$AE$34,ROWS($AE$34:AE46)-1,COLUMNS($AE$34:AE46)-1)<>"",OFFSET(DE104_3!$AE$34,ROWS($AE$34:AE46)-1,COLUMNS($AE$34:AE46)-1),"") ->  | AD32: =IF(OFFSET(DE104_3!$AF$34,ROWS($AF$34:AF46)-1,COLUMNS($AF$34:AF46)-1)<>"",OFFSET(DE104_3!$AF$34,ROWS($AF$34:AF46)-1,COLUMNS($AF$34:AF46)-1),"") ->  | AE32: =IF(OFFSET(DE104_3!$AG$34,ROWS($AG$34:AG46)-1,COLUMNS($AG$34:AG46)-1)<>"",OFFSET(DE104_3!$AG$34,ROWS($AG$34:AG46)-1,COLUMNS($AG$34:AG46)-1),"") ->  | AF32: =IF(OFFSET(DE104_3!$AH$34,ROWS($AH$34:AH46)-1,COLUMNS($AH$34:AH46)-1)<>"",OFFSET(DE104_3!$AH$34,ROWS($AH$34:AH46)-1,COLUMNS($AH$34:AH46)-1),"") ->  | AG32: =IF(OFFSET(DE104_3!$AI$34,ROWS($AI$34:AI46)-1,COLUMNS($AI$34:AI46)-1)<>"",OFFSET(DE104_3!$AI$34,ROWS($AI$34:AI46)-1,COLUMNS($AI$34:AI46)-1),"") ->  | AH32: =IF(OFFSET(DE104_3!$AJ$34,ROWS($AJ$34:AJ46)-1,COLUMNS($AJ$34:AJ46)-1)<>"",OFFSET(DE104_3!$AJ$34,ROWS($AJ$34:AJ46)-1,COLUMNS($AJ$34:AJ46)-1),"") ->  | AI32: =IF(OFFSET(DE104_3!$AK$34,ROWS($AK$34:AK46)-1,COLUMNS($AK$34:AK46)-1)<>"",OFFSET(DE104_3!$AK$34,ROWS($AK$34:AK46)-1,COLUMNS($AK$34:AK46)-1),"") ->  | AJ32: =IF(OFFSET(DE104_3!$AL$34,ROWS($AL$34:AL46)-1,COLUMNS($AL$34:AL46)-1)<>"",OFFSET(DE104_3!$AL$34,ROWS($AL$34:AL46)-1,COLUMNS($AL$34:AL46)-1),"") -> 102.0944444 | AK32: =IF(OFFSET(DE104_3!$AM$34,ROWS($AM$34:AM46)-1,COLUMNS($AM$34:AM46)-1)<>"",OFFSET(DE104_3!$AM$34,ROWS($AM$34:AM46)-1,COLUMNS($AM$34:AM46)-1),"") ->  | AL32: =IF(OFFSET(DE104_3!$AN$34,ROWS($AN$34:AN46)-1,COLUMNS($AN$34:AN46)-1)<>"",OFFSET(DE104_3!$AN$34,ROWS($AN$34:AN46)-1,COLUMNS($AN$34:AN46)-1),"") -> 13.27407407 | AM32: =IF(OFFSET(DE104_3!$AO$34,ROWS($AO$34:AO46)-1,COLUMNS($AO$34:AO46)-1)<>"",OFFSET(DE104_3!$AO$34,ROWS($AO$34:AO46)-1,COLUMNS($AO$34:AO46)-1),"") -> 6.583981481 | AN32: =IF(OFFSET(DE104_3!$AP$34,ROWS($AP$34:AP46)-1,COLUMNS($AP$34:AP46)-1)<>"",OFFSET(DE104_3!$AP$34,ROWS($AP$34:AP46)-1,COLUMNS($AP$34:AP46)-1),"") -> 19.85805556 | AO32: =IF(OFFSET(DE104_3!$AQ$34,ROWS($AQ$34:AQ46)-1,COLUMNS($AQ$34:AQ46)-1)<>"",OFFSET(DE104_3!$AQ$34,ROWS($AQ$34:AQ46)-1,COLUMNS($AQ$34:AQ46)-1),"") -> 
A33: =IF(OFFSET(DE104_3!$C$34,ROWS($C$34:C47)-1,COLUMNS($C$34:C47)-1)<>"",OFFSET(DE104_3!$C$34,ROWS($C$34:C47)-1,COLUMNS($C$34:C47)-1),"") -> 48 | B33: =IF(OFFSET(DE104_3!$D$34,ROWS($D$34:D47)-1,COLUMNS($D$34:D47)-1)<>"",OFFSET(DE104_3!$D$34,ROWS($D$34:D47)-1,COLUMNS($D$34:D47)-1),"") -> 147000 | C33: =IF(OFFSET(DE104_3!$E$34,ROWS($E$34:E47)-1,COLUMNS($E$34:E47)-1)<>"",OFFSET(DE104_3!$E$34,ROWS($E$34:E47)-1,COLUMNS($E$34:E47)-1),"") -> DR-601 | D33: =IF(OFFSET(DE104_3!$F$34,ROWS($F$34:F47)-1,COLUMNS($F$34:F47)-1)<>"",OFFSET(DE104_3!$F$34,ROWS($F$34:F47)-1,COLUMNS($F$34:F47)-1),"") -> 36 | E33: =IF(OFFSET(DE104_3!$G$34,ROWS($G$34:G47)-1,COLUMNS($G$34:G47)-1)<>"",OFFSET(DE104_3!$G$34,ROWS($G$34:G47)-1,COLUMNS($G$34:G47)-1),"") -> 2000 | F33: =IF(OFFSET(DE104_3!$H$34,ROWS($H$34:H47)-1,COLUMNS($H$34:H47)-1)<>"",OFFSET(DE104_3!$H$34,ROWS($H$34:H47)-1,COLUMNS($H$34:H47)-1),"") -> RCP | G33: =IF(OFFSET(DE104_3!$I$34,ROWS($I$34:I47)-1,COLUMNS($I$34:I47)-1)<>"",OFFSET(DE104_3!$I$34,ROWS($I$34:I47)-1,COLUMNS($I$34:I47)-1),"") -> 100 | H33: =IF(OFFSET(DE104_3!$J$34,ROWS($J$34:J47)-1,COLUMNS($J$34:J47)-1)<>"",OFFSET(DE104_3!$J$34,ROWS($J$34:J47)-1,COLUMNS($J$34:J47)-1),"") -> B | I33: =IF(OFFSET(DE104_3!$K$34,ROWS($K$34:K47)-1,COLUMNS($K$34:K47)-1)<>"",OFFSET(DE104_3!$K$34,ROWS($K$34:K47)-1,COLUMNS($K$34:K47)-1),"") -> 2.3 | J33: =IF(OFFSET(DE104_3!$L$34,ROWS($L$34:L47)-1,COLUMNS($L$34:L47)-1)<>"",OFFSET(DE104_3!$L$34,ROWS($L$34:L47)-1,COLUMNS($L$34:L47)-1),"") ->  | K33: =IF(OFFSET(DE104_3!$M$34,ROWS($M$34:M47)-1,COLUMNS($M$34:M47)-1)<>"",OFFSET(DE104_3!$M$34,ROWS($M$34:M47)-1,COLUMNS($M$34:M47)-1),"") ->  | L33: =IF(OFFSET(DE104_3!$N$34,ROWS($N$34:N47)-1,COLUMNS($N$34:N47)-1)<>"",OFFSET(DE104_3!$N$34,ROWS($N$34:N47)-1,COLUMNS($N$34:N47)-1),"") -> 1 | M33: =IF(OFFSET(DE104_3!$O$34,ROWS($O$34:O47)-1,COLUMNS($O$34:O47)-1)<>"",OFFSET(DE104_3!$O$34,ROWS($O$34:O47)-1,COLUMNS($O$34:O47)-1),"") ->  | N33: =IF(OFFSET(DE104_3!$P$34,ROWS($P$34:P47)-1,COLUMNS($P$34:P47)-1)<>"",OFFSET(DE104_3!$P$34,ROWS($P$34:P47)-1,COLUMNS($P$34:P47)-1),"") ->  | O33: =IF(OFFSET(DE104_3!$Q$34,ROWS($Q$34:Q47)-1,COLUMNS($Q$34:Q47)-1)<>"",OFFSET(DE104_3!$Q$34,ROWS($Q$34:Q47)-1,COLUMNS($Q$34:Q47)-1),"") ->  | P33: =IF(OFFSET(DE104_3!$R$34,ROWS($R$34:R47)-1,COLUMNS($R$34:R47)-1)<>"",OFFSET(DE104_3!$R$34,ROWS($R$34:R47)-1,COLUMNS($R$34:R47)-1),"") ->  | Q33: =IF(OFFSET(DE104_3!$S$34,ROWS($S$34:S47)-1,COLUMNS($S$34:S47)-1)<>"",OFFSET(DE104_3!$S$34,ROWS($S$34:S47)-1,COLUMNS($S$34:S47)-1),"") ->  | R33: =IF(OFFSET(DE104_3!$T$34,ROWS($T$34:T47)-1,COLUMNS($T$34:T47)-1)<>"",OFFSET(DE104_3!$T$34,ROWS($T$34:T47)-1,COLUMNS($T$34:T47)-1),"") ->  | S33: =IF(OFFSET(DE104_3!$U$34,ROWS($U$34:U47)-1,COLUMNS($U$34:U47)-1)<>"",OFFSET(DE104_3!$U$34,ROWS($U$34:U47)-1,COLUMNS($U$34:U47)-1),"") ->  | T33: =IF(OFFSET(DE104_3!$V$34,ROWS($V$34:V47)-1,COLUMNS($V$34:V47)-1)<>"",OFFSET(DE104_3!$V$34,ROWS($V$34:V47)-1,COLUMNS($V$34:V47)-1),"") -> Type 3 | U33: =IF(OFFSET(DE104_3!$W$34,ROWS($W$34:W47)-1,COLUMNS($W$34:W47)-1)<>"",OFFSET(DE104_3!$W$34,ROWS($W$34:W47)-1,COLUMNS($W$34:W47)-1),"") ->  | V33: =IF(OFFSET(DE104_3!$X$34,ROWS($X$34:X47)-1,COLUMNS($X$34:X47)-1)<>"",OFFSET(DE104_3!$X$34,ROWS($X$34:X47)-1,COLUMNS($X$34:X47)-1),"") -> 908.66 | W33: =IF(OFFSET(DE104_3!$Y$34,ROWS($Y$34:Y47)-1,COLUMNS($Y$34:Y47)-1)<>"",OFFSET(DE104_3!$Y$34,ROWS($Y$34:Y47)-1,COLUMNS($Y$34:Y47)-1),"") -> 907.9 | X33: =IF(OFFSET(DE104_3!$Z$34,ROWS($Z$34:Z47)-1,COLUMNS($Z$34:Z47)-1)<>"",OFFSET(DE104_3!$Z$34,ROWS($Z$34:Z47)-1,COLUMNS($Z$34:Z47)-1),"") ->  | Y33: =IF(OFFSET(DE104_3!$AA$34,ROWS($AA$34:AA47)-1,COLUMNS($AA$34:AA47)-1)<>"",OFFSET(DE104_3!$AA$34,ROWS($AA$34:AA47)-1,COLUMNS($AA$34:AA47)-1),"") ->  | Z33: =IF(OFFSET(DE104_3!$AB$34,ROWS($AB$34:AB47)-1,COLUMNS($AB$34:AB47)-1)<>"",OFFSET(DE104_3!$AB$34,ROWS($AB$34:AB47)-1,COLUMNS($AB$34:AB47)-1),"") -> 14 | AA33: =IF(OFFSET(DE104_3!$AC$34,ROWS($AC$34:AC47)-1,COLUMNS($AC$34:AC47)-1)<>"",OFFSET(DE104_3!$AC$34,ROWS($AC$34:AC47)-1,COLUMNS($AC$34:AC47)-1),"") -> 93.98 | AB33: =IF(OFFSET(DE104_3!$AD$34,ROWS($AD$34:AD47)-1,COLUMNS($AD$34:AD47)-1)<>"",OFFSET(DE104_3!$AD$34,ROWS($AD$34:AD47)-1,COLUMNS($AD$34:AD47)-1),"") ->  | AC33: =IF(OFFSET(DE104_3!$AE$34,ROWS($AE$34:AE47)-1,COLUMNS($AE$34:AE47)-1)<>"",OFFSET(DE104_3!$AE$34,ROWS($AE$34:AE47)-1,COLUMNS($AE$34:AE47)-1),"") ->  | AD33: =IF(OFFSET(DE104_3!$AF$34,ROWS($AF$34:AF47)-1,COLUMNS($AF$34:AF47)-1)<>"",OFFSET(DE104_3!$AF$34,ROWS($AF$34:AF47)-1,COLUMNS($AF$34:AF47)-1),"") ->  | AE33: =IF(OFFSET(DE104_3!$AG$34,ROWS($AG$34:AG47)-1,COLUMNS($AG$34:AG47)-1)<>"",OFFSET(DE104_3!$AG$34,ROWS($AG$34:AG47)-1,COLUMNS($AG$34:AG47)-1),"") ->  | AF33: =IF(OFFSET(DE104_3!$AH$34,ROWS($AH$34:AH47)-1,COLUMNS($AH$34:AH47)-1)<>"",OFFSET(DE104_3!$AH$34,ROWS($AH$34:AH47)-1,COLUMNS($AH$34:AH47)-1),"") ->  | AG33: =IF(OFFSET(DE104_3!$AI$34,ROWS($AI$34:AI47)-1,COLUMNS($AI$34:AI47)-1)<>"",OFFSET(DE104_3!$AI$34,ROWS($AI$34:AI47)-1,COLUMNS($AI$34:AI47)-1),"") ->  | AH33: =IF(OFFSET(DE104_3!$AJ$34,ROWS($AJ$34:AJ47)-1,COLUMNS($AJ$34:AJ47)-1)<>"",OFFSET(DE104_3!$AJ$34,ROWS($AJ$34:AJ47)-1,COLUMNS($AJ$34:AJ47)-1),"") ->  | AI33: =IF(OFFSET(DE104_3!$AK$34,ROWS($AK$34:AK47)-1,COLUMNS($AK$34:AK47)-1)<>"",OFFSET(DE104_3!$AK$34,ROWS($AK$34:AK47)-1,COLUMNS($AK$34:AK47)-1),"") ->  | AJ33: =IF(OFFSET(DE104_3!$AL$34,ROWS($AL$34:AL47)-1,COLUMNS($AL$34:AL47)-1)<>"",OFFSET(DE104_3!$AL$34,ROWS($AL$34:AL47)-1,COLUMNS($AL$34:AL47)-1),"") -> 408.96 | AK33: =IF(OFFSET(DE104_3!$AM$34,ROWS($AM$34:AM47)-1,COLUMNS($AM$34:AM47)-1)<>"",OFFSET(DE104_3!$AM$34,ROWS($AM$34:AM47)-1,COLUMNS($AM$34:AM47)-1),"") ->  | AL33: =IF(OFFSET(DE104_3!$AN$34,ROWS($AN$34:AN47)-1,COLUMNS($AN$34:AN47)-1)<>"",OFFSET(DE104_3!$AN$34,ROWS($AN$34:AN47)-1,COLUMNS($AN$34:AN47)-1),"") -> 35.10518519 | AM33: =IF(OFFSET(DE104_3!$AO$34,ROWS($AO$34:AO47)-1,COLUMNS($AO$34:AO47)-1)<>"",OFFSET(DE104_3!$AO$34,ROWS($AO$34:AO47)-1,COLUMNS($AO$34:AO47)-1),"") -> 9.579259259 | AN33: =IF(OFFSET(DE104_3!$AP$34,ROWS($AP$34:AP47)-1,COLUMNS($AP$34:AP47)-1)<>"",OFFSET(DE104_3!$AP$34,ROWS($AP$34:AP47)-1,COLUMNS($AP$34:AP47)-1),"") -> 44.68444444 | AO33: =IF(OFFSET(DE104_3!$AQ$34,ROWS($AQ$34:AQ47)-1,COLUMNS($AQ$34:AQ47)-1)<>"",OFFSET(DE104_3!$AQ$34,ROWS($AQ$34:AQ47)-1,COLUMNS($AQ$34:AQ47)-1),"") -> 
A34: =IF(OFFSET(DE104_3!$C$34,ROWS($C$34:C48)-1,COLUMNS($C$34:C48)-1)<>"",OFFSET(DE104_3!$C$34,ROWS($C$34:C48)-1,COLUMNS($C$34:C48)-1),"") -> MED | B34: =IF(OFFSET(DE104_3!$D$34,ROWS($D$34:D48)-1,COLUMNS($D$34:D48)-1)<>"",OFFSET(DE104_3!$D$34,ROWS($D$34:D48)-1,COLUMNS($D$34:D48)-1),"") -> 147025 | C34: =IF(OFFSET(DE104_3!$E$34,ROWS($E$34:E48)-1,COLUMNS($E$34:E48)-1)<>"",OFFSET(DE104_3!$E$34,ROWS($E$34:E48)-1,COLUMNS($E$34:E48)-1),"") -> DR-601 | D34: =IF(OFFSET(DE104_3!$F$34,ROWS($F$34:F48)-1,COLUMNS($F$34:F48)-1)<>"",OFFSET(DE104_3!$F$34,ROWS($F$34:F48)-1,COLUMNS($F$34:F48)-1),"") -> 24 | E34: =IF(OFFSET(DE104_3!$G$34,ROWS($G$34:G48)-1,COLUMNS($G$34:G48)-1)<>"",OFFSET(DE104_3!$G$34,ROWS($G$34:G48)-1,COLUMNS($G$34:G48)-1),"") -> 2000 | F34: =IF(OFFSET(DE104_3!$H$34,ROWS($H$34:H48)-1,COLUMNS($H$34:H48)-1)<>"",OFFSET(DE104_3!$H$34,ROWS($H$34:H48)-1,COLUMNS($H$34:H48)-1),"") -> RCP | G34: =IF(OFFSET(DE104_3!$I$34,ROWS($I$34:I48)-1,COLUMNS($I$34:I48)-1)<>"",OFFSET(DE104_3!$I$34,ROWS($I$34:I48)-1,COLUMNS($I$34:I48)-1),"") -> 80 | H34: =IF(OFFSET(DE104_3!$J$34,ROWS($J$34:J48)-1,COLUMNS($J$34:J48)-1)<>"",OFFSET(DE104_3!$J$34,ROWS($J$34:J48)-1,COLUMNS($J$34:J48)-1),"") -> B | I34: =IF(OFFSET(DE104_3!$K$34,ROWS($K$34:K48)-1,COLUMNS($K$34:K48)-1)<>"",OFFSET(DE104_3!$K$34,ROWS($K$34:K48)-1,COLUMNS($K$34:K48)-1),"") -> 2.6 | J34: =IF(OFFSET(DE104_3!$L$34,ROWS($L$34:L48)-1,COLUMNS($L$34:L48)-1)<>"",OFFSET(DE104_3!$L$34,ROWS($L$34:L48)-1,COLUMNS($L$34:L48)-1),"") ->  | K34: =IF(OFFSET(DE104_3!$M$34,ROWS($M$34:M48)-1,COLUMNS($M$34:M48)-1)<>"",OFFSET(DE104_3!$M$34,ROWS($M$34:M48)-1,COLUMNS($M$34:M48)-1),"") -> 1 | L34: =IF(OFFSET(DE104_3!$N$34,ROWS($N$34:N48)-1,COLUMNS($N$34:N48)-1)<>"",OFFSET(DE104_3!$N$34,ROWS($N$34:N48)-1,COLUMNS($N$34:N48)-1),"") -> 1 | M34: =IF(OFFSET(DE104_3!$O$34,ROWS($O$34:O48)-1,COLUMNS($O$34:O48)-1)<>"",OFFSET(DE104_3!$O$34,ROWS($O$34:O48)-1,COLUMNS($O$34:O48)-1),"") ->  | N34: =IF(OFFSET(DE104_3!$P$34,ROWS($P$34:P48)-1,COLUMNS($P$34:P48)-1)<>"",OFFSET(DE104_3!$P$34,ROWS($P$34:P48)-1,COLUMNS($P$34:P48)-1),"") ->  | O34: =IF(OFFSET(DE104_3!$Q$34,ROWS($Q$34:Q48)-1,COLUMNS($Q$34:Q48)-1)<>"",OFFSET(DE104_3!$Q$34,ROWS($Q$34:Q48)-1,COLUMNS($Q$34:Q48)-1),"") ->  | P34: =IF(OFFSET(DE104_3!$R$34,ROWS($R$34:R48)-1,COLUMNS($R$34:R48)-1)<>"",OFFSET(DE104_3!$R$34,ROWS($R$34:R48)-1,COLUMNS($R$34:R48)-1),"") ->  | Q34: =IF(OFFSET(DE104_3!$S$34,ROWS($S$34:S48)-1,COLUMNS($S$34:S48)-1)<>"",OFFSET(DE104_3!$S$34,ROWS($S$34:S48)-1,COLUMNS($S$34:S48)-1),"") ->  | R34: =IF(OFFSET(DE104_3!$T$34,ROWS($T$34:T48)-1,COLUMNS($T$34:T48)-1)<>"",OFFSET(DE104_3!$T$34,ROWS($T$34:T48)-1,COLUMNS($T$34:T48)-1),"") ->  | S34: =IF(OFFSET(DE104_3!$U$34,ROWS($U$34:U48)-1,COLUMNS($U$34:U48)-1)<>"",OFFSET(DE104_3!$U$34,ROWS($U$34:U48)-1,COLUMNS($U$34:U48)-1),"") ->  | T34: =IF(OFFSET(DE104_3!$V$34,ROWS($V$34:V48)-1,COLUMNS($V$34:V48)-1)<>"",OFFSET(DE104_3!$V$34,ROWS($V$34:V48)-1,COLUMNS($V$34:V48)-1),"") -> Type 3 | U34: =IF(OFFSET(DE104_3!$W$34,ROWS($W$34:W48)-1,COLUMNS($W$34:W48)-1)<>"",OFFSET(DE104_3!$W$34,ROWS($W$34:W48)-1,COLUMNS($W$34:W48)-1),"") ->  | V34: =IF(OFFSET(DE104_3!$X$34,ROWS($X$34:X48)-1,COLUMNS($X$34:X48)-1)<>"",OFFSET(DE104_3!$X$34,ROWS($X$34:X48)-1,COLUMNS($X$34:X48)-1),"") -> 911.29 | W34: =IF(OFFSET(DE104_3!$Y$34,ROWS($Y$34:Y48)-1,COLUMNS($Y$34:Y48)-1)<>"",OFFSET(DE104_3!$Y$34,ROWS($Y$34:Y48)-1,COLUMNS($Y$34:Y48)-1),"") -> 908.08 | X34: =IF(OFFSET(DE104_3!$Z$34,ROWS($Z$34:Z48)-1,COLUMNS($Z$34:Z48)-1)<>"",OFFSET(DE104_3!$Z$34,ROWS($Z$34:Z48)-1,COLUMNS($Z$34:Z48)-1),"") ->  | Y34: =IF(OFFSET(DE104_3!$AA$34,ROWS($AA$34:AA48)-1,COLUMNS($AA$34:AA48)-1)<>"",OFFSET(DE104_3!$AA$34,ROWS($AA$34:AA48)-1,COLUMNS($AA$34:AA48)-1),"") ->  | Z34: =IF(OFFSET(DE104_3!$AB$34,ROWS($AB$34:AB48)-1,COLUMNS($AB$34:AB48)-1)<>"",OFFSET(DE104_3!$AB$34,ROWS($AB$34:AB48)-1,COLUMNS($AB$34:AB48)-1),"") -> 36 | AA34: =IF(OFFSET(DE104_3!$AC$34,ROWS($AC$34:AC48)-1,COLUMNS($AC$34:AC48)-1)<>"",OFFSET(DE104_3!$AC$34,ROWS($AC$34:AC48)-1,COLUMNS($AC$34:AC48)-1),"") -> 56.2 | AB34: =IF(OFFSET(DE104_3!$AD$34,ROWS($AD$34:AD48)-1,COLUMNS($AD$34:AD48)-1)<>"",OFFSET(DE104_3!$AD$34,ROWS($AD$34:AD48)-1,COLUMNS($AD$34:AD48)-1),"") ->  | AC34: =IF(OFFSET(DE104_3!$AE$34,ROWS($AE$34:AE48)-1,COLUMNS($AE$34:AE48)-1)<>"",OFFSET(DE104_3!$AE$34,ROWS($AE$34:AE48)-1,COLUMNS($AE$34:AE48)-1),"") ->  | AD34: =IF(OFFSET(DE104_3!$AF$34,ROWS($AF$34:AF48)-1,COLUMNS($AF$34:AF48)-1)<>"",OFFSET(DE104_3!$AF$34,ROWS($AF$34:AF48)-1,COLUMNS($AF$34:AF48)-1),"") ->  | AE34: =IF(OFFSET(DE104_3!$AG$34,ROWS($AG$34:AG48)-1,COLUMNS($AG$34:AG48)-1)<>"",OFFSET(DE104_3!$AG$34,ROWS($AG$34:AG48)-1,COLUMNS($AG$34:AG48)-1),"") ->  | AF34: =IF(OFFSET(DE104_3!$AH$34,ROWS($AH$34:AH48)-1,COLUMNS($AH$34:AH48)-1)<>"",OFFSET(DE104_3!$AH$34,ROWS($AH$34:AH48)-1,COLUMNS($AH$34:AH48)-1),"") ->  | AG34: =IF(OFFSET(DE104_3!$AI$34,ROWS($AI$34:AI48)-1,COLUMNS($AI$34:AI48)-1)<>"",OFFSET(DE104_3!$AI$34,ROWS($AI$34:AI48)-1,COLUMNS($AI$34:AI48)-1),"") ->  | AH34: =IF(OFFSET(DE104_3!$AJ$34,ROWS($AJ$34:AJ48)-1,COLUMNS($AJ$34:AJ48)-1)<>"",OFFSET(DE104_3!$AJ$34,ROWS($AJ$34:AJ48)-1,COLUMNS($AJ$34:AJ48)-1),"") ->  | AI34: =IF(OFFSET(DE104_3!$AK$34,ROWS($AK$34:AK48)-1,COLUMNS($AK$34:AK48)-1)<>"",OFFSET(DE104_3!$AK$34,ROWS($AK$34:AK48)-1,COLUMNS($AK$34:AK48)-1),"") ->  | AJ34: =IF(OFFSET(DE104_3!$AL$34,ROWS($AL$34:AL48)-1,COLUMNS($AL$34:AL48)-1)<>"",OFFSET(DE104_3!$AL$34,ROWS($AL$34:AL48)-1,COLUMNS($AL$34:AL48)-1),"") -> 233.8366667 | AK34: =IF(OFFSET(DE104_3!$AM$34,ROWS($AM$34:AM48)-1,COLUMNS($AM$34:AM48)-1)<>"",OFFSET(DE104_3!$AM$34,ROWS($AM$34:AM48)-1,COLUMNS($AM$34:AM48)-1),"") ->  | AL34: =IF(OFFSET(DE104_3!$AN$34,ROWS($AN$34:AN48)-1,COLUMNS($AN$34:AN48)-1)<>"",OFFSET(DE104_3!$AN$34,ROWS($AN$34:AN48)-1,COLUMNS($AN$34:AN48)-1),"") -> 16.35555556 | AM34: =IF(OFFSET(DE104_3!$AO$34,ROWS($AO$34:AO48)-1,COLUMNS($AO$34:AO48)-1)<>"",OFFSET(DE104_3!$AO$34,ROWS($AO$34:AO48)-1,COLUMNS($AO$34:AO48)-1),"") -> 7.05287037 | AN34: =IF(OFFSET(DE104_3!$AP$34,ROWS($AP$34:AP48)-1,COLUMNS($AP$34:AP48)-1)<>"",OFFSET(DE104_3!$AP$34,ROWS($AP$34:AP48)-1,COLUMNS($AP$34:AP48)-1),"") -> 23.40842593 | AO34: =IF(OFFSET(DE104_3!$AQ$34,ROWS($AQ$34:AQ48)-1,COLUMNS($AQ$34:AQ48)-1)<>"",OFFSET(DE104_3!$AQ$34,ROWS($AQ$34:AQ48)-1,COLUMNS($AQ$34:AQ48)-1),"") -> 
A35: =IF(OFFSET(DE104_3!$C$34,ROWS($C$34:C49)-1,COLUMNS($C$34:C49)-1)<>"",OFFSET(DE104_3!$C$34,ROWS($C$34:C49)-1,COLUMNS($C$34:C49)-1),"") -> MED | B35: =IF(OFFSET(DE104_3!$D$34,ROWS($D$34:D49)-1,COLUMNS($D$34:D49)-1)<>"",OFFSET(DE104_3!$D$34,ROWS($D$34:D49)-1,COLUMNS($D$34:D49)-1),"") -> 147700 | C35: =IF(OFFSET(DE104_3!$E$34,ROWS($E$34:E49)-1,COLUMNS($E$34:E49)-1)<>"",OFFSET(DE104_3!$E$34,ROWS($E$34:E49)-1,COLUMNS($E$34:E49)-1),"") -> DR-601 | D35: =IF(OFFSET(DE104_3!$F$34,ROWS($F$34:F49)-1,COLUMNS($F$34:F49)-1)<>"",OFFSET(DE104_3!$F$34,ROWS($F$34:F49)-1,COLUMNS($F$34:F49)-1),"") -> 24 | E35: =IF(OFFSET(DE104_3!$G$34,ROWS($G$34:G49)-1,COLUMNS($G$34:G49)-1)<>"",OFFSET(DE104_3!$G$34,ROWS($G$34:G49)-1,COLUMNS($G$34:G49)-1),"") -> 2000 | F35: =IF(OFFSET(DE104_3!$H$34,ROWS($H$34:H49)-1,COLUMNS($H$34:H49)-1)<>"",OFFSET(DE104_3!$H$34,ROWS($H$34:H49)-1,COLUMNS($H$34:H49)-1),"") -> RCP | G35: =IF(OFFSET(DE104_3!$I$34,ROWS($I$34:I49)-1,COLUMNS($I$34:I49)-1)<>"",OFFSET(DE104_3!$I$34,ROWS($I$34:I49)-1,COLUMNS($I$34:I49)-1),"") -> 92 | H35: =IF(OFFSET(DE104_3!$J$34,ROWS($J$34:J49)-1,COLUMNS($J$34:J49)-1)<>"",OFFSET(DE104_3!$J$34,ROWS($J$34:J49)-1,COLUMNS($J$34:J49)-1),"") -> B | I35: =IF(OFFSET(DE104_3!$K$34,ROWS($K$34:K49)-1,COLUMNS($K$34:K49)-1)<>"",OFFSET(DE104_3!$K$34,ROWS($K$34:K49)-1,COLUMNS($K$34:K49)-1),"") -> 2.2 | J35: =IF(OFFSET(DE104_3!$L$34,ROWS($L$34:L49)-1,COLUMNS($L$34:L49)-1)<>"",OFFSET(DE104_3!$L$34,ROWS($L$34:L49)-1,COLUMNS($L$34:L49)-1),"") ->  | K35: =IF(OFFSET(DE104_3!$M$34,ROWS($M$34:M49)-1,COLUMNS($M$34:M49)-1)<>"",OFFSET(DE104_3!$M$34,ROWS($M$34:M49)-1,COLUMNS($M$34:M49)-1),"") -> 1 | L35: =IF(OFFSET(DE104_3!$N$34,ROWS($N$34:N49)-1,COLUMNS($N$34:N49)-1)<>"",OFFSET(DE104_3!$N$34,ROWS($N$34:N49)-1,COLUMNS($N$34:N49)-1),"") -> 1 | M35: =IF(OFFSET(DE104_3!$O$34,ROWS($O$34:O49)-1,COLUMNS($O$34:O49)-1)<>"",OFFSET(DE104_3!$O$34,ROWS($O$34:O49)-1,COLUMNS($O$34:O49)-1),"") ->  | N35: =IF(OFFSET(DE104_3!$P$34,ROWS($P$34:P49)-1,COLUMNS($P$34:P49)-1)<>"",OFFSET(DE104_3!$P$34,ROWS($P$34:P49)-1,COLUMNS($P$34:P49)-1),"") ->  | O35: =IF(OFFSET(DE104_3!$Q$34,ROWS($Q$34:Q49)-1,COLUMNS($Q$34:Q49)-1)<>"",OFFSET(DE104_3!$Q$34,ROWS($Q$34:Q49)-1,COLUMNS($Q$34:Q49)-1),"") ->  | P35: =IF(OFFSET(DE104_3!$R$34,ROWS($R$34:R49)-1,COLUMNS($R$34:R49)-1)<>"",OFFSET(DE104_3!$R$34,ROWS($R$34:R49)-1,COLUMNS($R$34:R49)-1),"") ->  | Q35: =IF(OFFSET(DE104_3!$S$34,ROWS($S$34:S49)-1,COLUMNS($S$34:S49)-1)<>"",OFFSET(DE104_3!$S$34,ROWS($S$34:S49)-1,COLUMNS($S$34:S49)-1),"") ->  | R35: =IF(OFFSET(DE104_3!$T$34,ROWS($T$34:T49)-1,COLUMNS($T$34:T49)-1)<>"",OFFSET(DE104_3!$T$34,ROWS($T$34:T49)-1,COLUMNS($T$34:T49)-1),"") ->  | S35: =IF(OFFSET(DE104_3!$U$34,ROWS($U$34:U49)-1,COLUMNS($U$34:U49)-1)<>"",OFFSET(DE104_3!$U$34,ROWS($U$34:U49)-1,COLUMNS($U$34:U49)-1),"") ->  | T35: =IF(OFFSET(DE104_3!$V$34,ROWS($V$34:V49)-1,COLUMNS($V$34:V49)-1)<>"",OFFSET(DE104_3!$V$34,ROWS($V$34:V49)-1,COLUMNS($V$34:V49)-1),"") -> Type 3 | U35: =IF(OFFSET(DE104_3!$W$34,ROWS($W$34:W49)-1,COLUMNS($W$34:W49)-1)<>"",OFFSET(DE104_3!$W$34,ROWS($W$34:W49)-1,COLUMNS($W$34:W49)-1),"") ->  | V35: =IF(OFFSET(DE104_3!$X$34,ROWS($X$34:X49)-1,COLUMNS($X$34:X49)-1)<>"",OFFSET(DE104_3!$X$34,ROWS($X$34:X49)-1,COLUMNS($X$34:X49)-1),"") -> 919.88 | W35: =IF(OFFSET(DE104_3!$Y$34,ROWS($Y$34:Y49)-1,COLUMNS($Y$34:Y49)-1)<>"",OFFSET(DE104_3!$Y$34,ROWS($Y$34:Y49)-1,COLUMNS($Y$34:Y49)-1),"") -> 917.84 | X35: =IF(OFFSET(DE104_3!$Z$34,ROWS($Z$34:Z49)-1,COLUMNS($Z$34:Z49)-1)<>"",OFFSET(DE104_3!$Z$34,ROWS($Z$34:Z49)-1,COLUMNS($Z$34:Z49)-1),"") ->  | Y35: =IF(OFFSET(DE104_3!$AA$34,ROWS($AA$34:AA49)-1,COLUMNS($AA$34:AA49)-1)<>"",OFFSET(DE104_3!$AA$34,ROWS($AA$34:AA49)-1,COLUMNS($AA$34:AA49)-1),"") ->  | Z35: =IF(OFFSET(DE104_3!$AB$34,ROWS($AB$34:AB49)-1,COLUMNS($AB$34:AB49)-1)<>"",OFFSET(DE104_3!$AB$34,ROWS($AB$34:AB49)-1,COLUMNS($AB$34:AB49)-1),"") -> 35 | AA35: =IF(OFFSET(DE104_3!$AC$34,ROWS($AC$34:AC49)-1,COLUMNS($AC$34:AC49)-1)<>"",OFFSET(DE104_3!$AC$34,ROWS($AC$34:AC49)-1,COLUMNS($AC$34:AC49)-1),"") -> 62.23 | AB35: =IF(OFFSET(DE104_3!$AD$34,ROWS($AD$34:AD49)-1,COLUMNS($AD$34:AD49)-1)<>"",OFFSET(DE104_3!$AD$34,ROWS($AD$34:AD49)-1,COLUMNS($AD$34:AD49)-1),"") ->  | AC35: =IF(OFFSET(DE104_3!$AE$34,ROWS($AE$34:AE49)-1,COLUMNS($AE$34:AE49)-1)<>"",OFFSET(DE104_3!$AE$34,ROWS($AE$34:AE49)-1,COLUMNS($AE$34:AE49)-1),"") ->  | AD35: =IF(OFFSET(DE104_3!$AF$34,ROWS($AF$34:AF49)-1,COLUMNS($AF$34:AF49)-1)<>"",OFFSET(DE104_3!$AF$34,ROWS($AF$34:AF49)-1,COLUMNS($AF$34:AF49)-1),"") ->  | AE35: =IF(OFFSET(DE104_3!$AG$34,ROWS($AG$34:AG49)-1,COLUMNS($AG$34:AG49)-1)<>"",OFFSET(DE104_3!$AG$34,ROWS($AG$34:AG49)-1,COLUMNS($AG$34:AG49)-1),"") ->  | AF35: =IF(OFFSET(DE104_3!$AH$34,ROWS($AH$34:AH49)-1,COLUMNS($AH$34:AH49)-1)<>"",OFFSET(DE104_3!$AH$34,ROWS($AH$34:AH49)-1,COLUMNS($AH$34:AH49)-1),"") ->  | AG35: =IF(OFFSET(DE104_3!$AI$34,ROWS($AI$34:AI49)-1,COLUMNS($AI$34:AI49)-1)<>"",OFFSET(DE104_3!$AI$34,ROWS($AI$34:AI49)-1,COLUMNS($AI$34:AI49)-1),"") ->  | AH35: =IF(OFFSET(DE104_3!$AJ$34,ROWS($AJ$34:AJ49)-1,COLUMNS($AJ$34:AJ49)-1)<>"",OFFSET(DE104_3!$AJ$34,ROWS($AJ$34:AJ49)-1,COLUMNS($AJ$34:AJ49)-1),"") ->  | AI35: =IF(OFFSET(DE104_3!$AK$34,ROWS($AK$34:AK49)-1,COLUMNS($AK$34:AK49)-1)<>"",OFFSET(DE104_3!$AK$34,ROWS($AK$34:AK49)-1,COLUMNS($AK$34:AK49)-1),"") ->  | AJ35: =IF(OFFSET(DE104_3!$AL$34,ROWS($AL$34:AL49)-1,COLUMNS($AL$34:AL49)-1)<>"",OFFSET(DE104_3!$AL$34,ROWS($AL$34:AL49)-1,COLUMNS($AL$34:AL49)-1),"") -> 264.2544444 | AK35: =IF(OFFSET(DE104_3!$AM$34,ROWS($AM$34:AM49)-1,COLUMNS($AM$34:AM49)-1)<>"",OFFSET(DE104_3!$AM$34,ROWS($AM$34:AM49)-1,COLUMNS($AM$34:AM49)-1),"") ->  | AL35: =IF(OFFSET(DE104_3!$AN$34,ROWS($AN$34:AN49)-1,COLUMNS($AN$34:AN49)-1)<>"",OFFSET(DE104_3!$AN$34,ROWS($AN$34:AN49)-1,COLUMNS($AN$34:AN49)-1),"") -> 22.53807407 | AM35: =IF(OFFSET(DE104_3!$AO$34,ROWS($AO$34:AO49)-1,COLUMNS($AO$34:AO49)-1)<>"",OFFSET(DE104_3!$AO$34,ROWS($AO$34:AO49)-1,COLUMNS($AO$34:AO49)-1),"") -> 7.990648148 | AN35: =IF(OFFSET(DE104_3!$AP$34,ROWS($AP$34:AP49)-1,COLUMNS($AP$34:AP49)-1)<>"",OFFSET(DE104_3!$AP$34,ROWS($AP$34:AP49)-1,COLUMNS($AP$34:AP49)-1),"") -> 30.52872222 | AO35: =IF(OFFSET(DE104_3!$AQ$34,ROWS($AQ$34:AQ49)-1,COLUMNS($AQ$34:AQ49)-1)<>"",OFFSET(DE104_3!$AQ$34,ROWS($AQ$34:AQ49)-1,COLUMNS($AQ$34:AQ49)-1),"") -> 
A36: =IF(OFFSET(DE104_3!$C$34,ROWS($C$34:C50)-1,COLUMNS($C$34:C50)-1)<>"",OFFSET(DE104_3!$C$34,ROWS($C$34:C50)-1,COLUMNS($C$34:C50)-1),"") ->  | B36: =IF(OFFSET(DE104_3!$D$34,ROWS($D$34:D50)-1,COLUMNS($D$34:D50)-1)<>"",OFFSET(DE104_3!$D$34,ROWS($D$34:D50)-1,COLUMNS($D$34:D50)-1),"") -> 148400 | C36: =IF(OFFSET(DE104_3!$E$34,ROWS($E$34:E50)-1,COLUMNS($E$34:E50)-1)<>"",OFFSET(DE104_3!$E$34,ROWS($E$34:E50)-1,COLUMNS($E$34:E50)-1),"") -> JACK | D36: =IF(OFFSET(DE104_3!$F$34,ROWS($F$34:F50)-1,COLUMNS($F$34:F50)-1)<>"",OFFSET(DE104_3!$F$34,ROWS($F$34:F50)-1,COLUMNS($F$34:F50)-1),"") -> 36 | E36: =IF(OFFSET(DE104_3!$G$34,ROWS($G$34:G50)-1,COLUMNS($G$34:G50)-1)<>"",OFFSET(DE104_3!$G$34,ROWS($G$34:G50)-1,COLUMNS($G$34:G50)-1),"") -> 2000 | F36: =IF(OFFSET(DE104_3!$H$34,ROWS($H$34:H50)-1,COLUMNS($H$34:H50)-1)<>"",OFFSET(DE104_3!$H$34,ROWS($H$34:H50)-1,COLUMNS($H$34:H50)-1),"") -> RCP | G36: =IF(OFFSET(DE104_3!$I$34,ROWS($I$34:I50)-1,COLUMNS($I$34:I50)-1)<>"",OFFSET(DE104_3!$I$34,ROWS($I$34:I50)-1,COLUMNS($I$34:I50)-1),"") -> 232 | H36: =IF(OFFSET(DE104_3!$J$34,ROWS($J$34:J50)-1,COLUMNS($J$34:J50)-1)<>"",OFFSET(DE104_3!$J$34,ROWS($J$34:J50)-1,COLUMNS($J$34:J50)-1),"") ->  | I36: =IF(OFFSET(DE104_3!$K$34,ROWS($K$34:K50)-1,COLUMNS($K$34:K50)-1)<>"",OFFSET(DE104_3!$K$34,ROWS($K$34:K50)-1,COLUMNS($K$34:K50)-1),"") -> 7 | J36: =IF(OFFSET(DE104_3!$L$34,ROWS($L$34:L50)-1,COLUMNS($L$34:L50)-1)<>"",OFFSET(DE104_3!$L$34,ROWS($L$34:L50)-1,COLUMNS($L$34:L50)-1),"") ->  | K36: =IF(OFFSET(DE104_3!$M$34,ROWS($M$34:M50)-1,COLUMNS($M$34:M50)-1)<>"",OFFSET(DE104_3!$M$34,ROWS($M$34:M50)-1,COLUMNS($M$34:M50)-1),"") -> 1 | L36: =IF(OFFSET(DE104_3!$N$34,ROWS($N$34:N50)-1,COLUMNS($N$34:N50)-1)<>"",OFFSET(DE104_3!$N$34,ROWS($N$34:N50)-1,COLUMNS($N$34:N50)-1),"") -> 1 | M36: =IF(OFFSET(DE104_3!$O$34,ROWS($O$34:O50)-1,COLUMNS($O$34:O50)-1)<>"",OFFSET(DE104_3!$O$34,ROWS($O$34:O50)-1,COLUMNS($O$34:O50)-1),"") ->  | N36: =IF(OFFSET(DE104_3!$P$34,ROWS($P$34:P50)-1,COLUMNS($P$34:P50)-1)<>"",OFFSET(DE104_3!$P$34,ROWS($P$34:P50)-1,COLUMNS($P$34:P50)-1),"") ->  | O36: =IF(OFFSET(DE104_3!$Q$34,ROWS($Q$34:Q50)-1,COLUMNS($Q$34:Q50)-1)<>"",OFFSET(DE104_3!$Q$34,ROWS($Q$34:Q50)-1,COLUMNS($Q$34:Q50)-1),"") ->  | P36: =IF(OFFSET(DE104_3!$R$34,ROWS($R$34:R50)-1,COLUMNS($R$34:R50)-1)<>"",OFFSET(DE104_3!$R$34,ROWS($R$34:R50)-1,COLUMNS($R$34:R50)-1),"") ->  | Q36: =IF(OFFSET(DE104_3!$S$34,ROWS($S$34:S50)-1,COLUMNS($S$34:S50)-1)<>"",OFFSET(DE104_3!$S$34,ROWS($S$34:S50)-1,COLUMNS($S$34:S50)-1),"") ->  | R36: =IF(OFFSET(DE104_3!$T$34,ROWS($T$34:T50)-1,COLUMNS($T$34:T50)-1)<>"",OFFSET(DE104_3!$T$34,ROWS($T$34:T50)-1,COLUMNS($T$34:T50)-1),"") ->  | S36: =IF(OFFSET(DE104_3!$U$34,ROWS($U$34:U50)-1,COLUMNS($U$34:U50)-1)<>"",OFFSET(DE104_3!$U$34,ROWS($U$34:U50)-1,COLUMNS($U$34:U50)-1),"") ->  | T36: =IF(OFFSET(DE104_3!$V$34,ROWS($V$34:V50)-1,COLUMNS($V$34:V50)-1)<>"",OFFSET(DE104_3!$V$34,ROWS($V$34:V50)-1,COLUMNS($V$34:V50)-1),"") -> Type 3 | U36: =IF(OFFSET(DE104_3!$W$34,ROWS($W$34:W50)-1,COLUMNS($W$34:W50)-1)<>"",OFFSET(DE104_3!$W$34,ROWS($W$34:W50)-1,COLUMNS($W$34:W50)-1),"") ->  | V36: =IF(OFFSET(DE104_3!$X$34,ROWS($X$34:X50)-1,COLUMNS($X$34:X50)-1)<>"",OFFSET(DE104_3!$X$34,ROWS($X$34:X50)-1,COLUMNS($X$34:X50)-1),"") -> 920.5 | W36: =IF(OFFSET(DE104_3!$Y$34,ROWS($Y$34:Y50)-1,COLUMNS($Y$34:Y50)-1)<>"",OFFSET(DE104_3!$Y$34,ROWS($Y$34:Y50)-1,COLUMNS($Y$34:Y50)-1),"") -> 915.56 | X36: =IF(OFFSET(DE104_3!$Z$34,ROWS($Z$34:Z50)-1,COLUMNS($Z$34:Z50)-1)<>"",OFFSET(DE104_3!$Z$34,ROWS($Z$34:Z50)-1,COLUMNS($Z$34:Z50)-1),"") ->  | Y36: =IF(OFFSET(DE104_3!$AA$34,ROWS($AA$34:AA50)-1,COLUMNS($AA$34:AA50)-1)<>"",OFFSET(DE104_3!$AA$34,ROWS($AA$34:AA50)-1,COLUMNS($AA$34:AA50)-1),"") ->  | Z36: =IF(OFFSET(DE104_3!$AB$34,ROWS($AB$34:AB50)-1,COLUMNS($AB$34:AB50)-1)<>"",OFFSET(DE104_3!$AB$34,ROWS($AB$34:AB50)-1,COLUMNS($AB$34:AB50)-1),"") -> 106.62 | AA36: =IF(OFFSET(DE104_3!$AC$34,ROWS($AC$34:AC50)-1,COLUMNS($AC$34:AC50)-1)<>"",OFFSET(DE104_3!$AC$34,ROWS($AC$34:AC50)-1,COLUMNS($AC$34:AC50)-1),"") -> 123.33 | AB36: =IF(OFFSET(DE104_3!$AD$34,ROWS($AD$34:AD50)-1,COLUMNS($AD$34:AD50)-1)<>"",OFFSET(DE104_3!$AD$34,ROWS($AD$34:AD50)-1,COLUMNS($AD$34:AD50)-1),"") ->  | AC36: =IF(OFFSET(DE104_3!$AE$34,ROWS($AE$34:AE50)-1,COLUMNS($AE$34:AE50)-1)<>"",OFFSET(DE104_3!$AE$34,ROWS($AE$34:AE50)-1,COLUMNS($AE$34:AE50)-1),"") ->  | AD36: =IF(OFFSET(DE104_3!$AF$34,ROWS($AF$34:AF50)-1,COLUMNS($AF$34:AF50)-1)<>"",OFFSET(DE104_3!$AF$34,ROWS($AF$34:AF50)-1,COLUMNS($AF$34:AF50)-1),"") ->  | AE36: =IF(OFFSET(DE104_3!$AG$34,ROWS($AG$34:AG50)-1,COLUMNS($AG$34:AG50)-1)<>"",OFFSET(DE104_3!$AG$34,ROWS($AG$34:AG50)-1,COLUMNS($AG$34:AG50)-1),"") ->  | AF36: =IF(OFFSET(DE104_3!$AH$34,ROWS($AH$34:AH50)-1,COLUMNS($AH$34:AH50)-1)<>"",OFFSET(DE104_3!$AH$34,ROWS($AH$34:AH50)-1,COLUMNS($AH$34:AH50)-1),"") ->  | AG36: =IF(OFFSET(DE104_3!$AI$34,ROWS($AI$34:AI50)-1,COLUMNS($AI$34:AI50)-1)<>"",OFFSET(DE104_3!$AI$34,ROWS($AI$34:AI50)-1,COLUMNS($AI$34:AI50)-1),"") ->  | AH36: =IF(OFFSET(DE104_3!$AJ$34,ROWS($AJ$34:AJ50)-1,COLUMNS($AJ$34:AJ50)-1)<>"",OFFSET(DE104_3!$AJ$34,ROWS($AJ$34:AJ50)-1,COLUMNS($AJ$34:AJ50)-1),"") ->  | AI36: =IF(OFFSET(DE104_3!$AK$34,ROWS($AK$34:AK50)-1,COLUMNS($AK$34:AK50)-1)<>"",OFFSET(DE104_3!$AK$34,ROWS($AK$34:AK50)-1,COLUMNS($AK$34:AK50)-1),"") ->  | AJ36: =IF(OFFSET(DE104_3!$AL$34,ROWS($AL$34:AL50)-1,COLUMNS($AL$34:AL50)-1)<>"",OFFSET(DE104_3!$AL$34,ROWS($AL$34:AL50)-1,COLUMNS($AL$34:AL50)-1),"") ->  | AK36: =IF(OFFSET(DE104_3!$AM$34,ROWS($AM$34:AM50)-1,COLUMNS($AM$34:AM50)-1)<>"",OFFSET(DE104_3!$AM$34,ROWS($AM$34:AM50)-1,COLUMNS($AM$34:AM50)-1),"") ->  | AL36: =IF(OFFSET(DE104_3!$AN$34,ROWS($AN$34:AN50)-1,COLUMNS($AN$34:AN50)-1)<>"",OFFSET(DE104_3!$AN$34,ROWS($AN$34:AN50)-1,COLUMNS($AN$34:AN50)-1),"") ->  | AM36: =IF(OFFSET(DE104_3!$AO$34,ROWS($AO$34:AO50)-1,COLUMNS($AO$34:AO50)-1)<>"",OFFSET(DE104_3!$AO$34,ROWS($AO$34:AO50)-1,COLUMNS($AO$34:AO50)-1),"") ->  | AN36: =IF(OFFSET(DE104_3!$AP$34,ROWS($AP$34:AP50)-1,COLUMNS($AP$34:AP50)-1)<>"",OFFSET(DE104_3!$AP$34,ROWS($AP$34:AP50)-1,COLUMNS($AP$34:AP50)-1),"") ->  | AO36: =IF(OFFSET(DE104_3!$AQ$34,ROWS($AQ$34:AQ50)-1,COLUMNS($AQ$34:AQ50)-1)<>"",OFFSET(DE104_3!$AQ$34,ROWS($AQ$34:AQ50)-1,COLUMNS($AQ$34:AQ50)-1),"") -> (5)
A37: =IF(OFFSET(DE104_3!$C$34,ROWS($C$34:C51)-1,COLUMNS($C$34:C51)-1)<>"",OFFSET(DE104_3!$C$34,ROWS($C$34:C51)-1,COLUMNS($C$34:C51)-1),"") ->  | B37: =IF(OFFSET(DE104_3!$D$34,ROWS($D$34:D51)-1,COLUMNS($D$34:D51)-1)<>"",OFFSET(DE104_3!$D$34,ROWS($D$34:D51)-1,COLUMNS($D$34:D51)-1),"") -> 149385 | C37: =IF(OFFSET(DE104_3!$E$34,ROWS($E$34:E51)-1,COLUMNS($E$34:E51)-1)<>"",OFFSET(DE104_3!$E$34,ROWS($E$34:E51)-1,COLUMNS($E$34:E51)-1),"") -> JACK | D37: =IF(OFFSET(DE104_3!$F$34,ROWS($F$34:F51)-1,COLUMNS($F$34:F51)-1)<>"",OFFSET(DE104_3!$F$34,ROWS($F$34:F51)-1,COLUMNS($F$34:F51)-1),"") -> 24 | E37: =IF(OFFSET(DE104_3!$G$34,ROWS($G$34:G51)-1,COLUMNS($G$34:G51)-1)<>"",OFFSET(DE104_3!$G$34,ROWS($G$34:G51)-1,COLUMNS($G$34:G51)-1),"") -> 2000 | F37: =IF(OFFSET(DE104_3!$H$34,ROWS($H$34:H51)-1,COLUMNS($H$34:H51)-1)<>"",OFFSET(DE104_3!$H$34,ROWS($H$34:H51)-1,COLUMNS($H$34:H51)-1),"") -> RCP | G37: =IF(OFFSET(DE104_3!$I$34,ROWS($I$34:I51)-1,COLUMNS($I$34:I51)-1)<>"",OFFSET(DE104_3!$I$34,ROWS($I$34:I51)-1,COLUMNS($I$34:I51)-1),"") -> 170 | H37: =IF(OFFSET(DE104_3!$J$34,ROWS($J$34:J51)-1,COLUMNS($J$34:J51)-1)<>"",OFFSET(DE104_3!$J$34,ROWS($J$34:J51)-1,COLUMNS($J$34:J51)-1),"") ->  | I37: =IF(OFFSET(DE104_3!$K$34,ROWS($K$34:K51)-1,COLUMNS($K$34:K51)-1)<>"",OFFSET(DE104_3!$K$34,ROWS($K$34:K51)-1,COLUMNS($K$34:K51)-1),"") -> 4.7 | J37: =IF(OFFSET(DE104_3!$L$34,ROWS($L$34:L51)-1,COLUMNS($L$34:L51)-1)<>"",OFFSET(DE104_3!$L$34,ROWS($L$34:L51)-1,COLUMNS($L$34:L51)-1),"") ->  | K37: =IF(OFFSET(DE104_3!$M$34,ROWS($M$34:M51)-1,COLUMNS($M$34:M51)-1)<>"",OFFSET(DE104_3!$M$34,ROWS($M$34:M51)-1,COLUMNS($M$34:M51)-1),"") -> 1 | L37: =IF(OFFSET(DE104_3!$N$34,ROWS($N$34:N51)-1,COLUMNS($N$34:N51)-1)<>"",OFFSET(DE104_3!$N$34,ROWS($N$34:N51)-1,COLUMNS($N$34:N51)-1),"") ->  | M37: =IF(OFFSET(DE104_3!$O$34,ROWS($O$34:O51)-1,COLUMNS($O$34:O51)-1)<>"",OFFSET(DE104_3!$O$34,ROWS($O$34:O51)-1,COLUMNS($O$34:O51)-1),"") ->  | N37: =IF(OFFSET(DE104_3!$P$34,ROWS($P$34:P51)-1,COLUMNS($P$34:P51)-1)<>"",OFFSET(DE104_3!$P$34,ROWS($P$34:P51)-1,COLUMNS($P$34:P51)-1),"") ->  | O37: =IF(OFFSET(DE104_3!$Q$34,ROWS($Q$34:Q51)-1,COLUMNS($Q$34:Q51)-1)<>"",OFFSET(DE104_3!$Q$34,ROWS($Q$34:Q51)-1,COLUMNS($Q$34:Q51)-1),"") ->  | P37: =IF(OFFSET(DE104_3!$R$34,ROWS($R$34:R51)-1,COLUMNS($R$34:R51)-1)<>"",OFFSET(DE104_3!$R$34,ROWS($R$34:R51)-1,COLUMNS($R$34:R51)-1),"") ->  | Q37: =IF(OFFSET(DE104_3!$S$34,ROWS($S$34:S51)-1,COLUMNS($S$34:S51)-1)<>"",OFFSET(DE104_3!$S$34,ROWS($S$34:S51)-1,COLUMNS($S$34:S51)-1),"") ->  | R37: =IF(OFFSET(DE104_3!$T$34,ROWS($T$34:T51)-1,COLUMNS($T$34:T51)-1)<>"",OFFSET(DE104_3!$T$34,ROWS($T$34:T51)-1,COLUMNS($T$34:T51)-1),"") ->  | S37: =IF(OFFSET(DE104_3!$U$34,ROWS($U$34:U51)-1,COLUMNS($U$34:U51)-1)<>"",OFFSET(DE104_3!$U$34,ROWS($U$34:U51)-1,COLUMNS($U$34:U51)-1),"") ->  | T37: =IF(OFFSET(DE104_3!$V$34,ROWS($V$34:V51)-1,COLUMNS($V$34:V51)-1)<>"",OFFSET(DE104_3!$V$34,ROWS($V$34:V51)-1,COLUMNS($V$34:V51)-1),"") -> Type 3 | U37: =IF(OFFSET(DE104_3!$W$34,ROWS($W$34:W51)-1,COLUMNS($W$34:W51)-1)<>"",OFFSET(DE104_3!$W$34,ROWS($W$34:W51)-1,COLUMNS($W$34:W51)-1),"") ->  | V37: =IF(OFFSET(DE104_3!$X$34,ROWS($X$34:X51)-1,COLUMNS($X$34:X51)-1)<>"",OFFSET(DE104_3!$X$34,ROWS($X$34:X51)-1,COLUMNS($X$34:X51)-1),"") -> 926.52 | W37: =IF(OFFSET(DE104_3!$Y$34,ROWS($Y$34:Y51)-1,COLUMNS($Y$34:Y51)-1)<>"",OFFSET(DE104_3!$Y$34,ROWS($Y$34:Y51)-1,COLUMNS($Y$34:Y51)-1),"") -> 925.51 | X37: =IF(OFFSET(DE104_3!$Z$34,ROWS($Z$34:Z51)-1,COLUMNS($Z$34:Z51)-1)<>"",OFFSET(DE104_3!$Z$34,ROWS($Z$34:Z51)-1,COLUMNS($Z$34:Z51)-1),"") ->  | Y37: =IF(OFFSET(DE104_3!$AA$34,ROWS($AA$34:AA51)-1,COLUMNS($AA$34:AA51)-1)<>"",OFFSET(DE104_3!$AA$34,ROWS($AA$34:AA51)-1,COLUMNS($AA$34:AA51)-1),"") ->  | Z37: =IF(OFFSET(DE104_3!$AB$34,ROWS($AB$34:AB51)-1,COLUMNS($AB$34:AB51)-1)<>"",OFFSET(DE104_3!$AB$34,ROWS($AB$34:AB51)-1,COLUMNS($AB$34:AB51)-1),"") -> 97.98 | AA37: =IF(OFFSET(DE104_3!$AC$34,ROWS($AC$34:AC51)-1,COLUMNS($AC$34:AC51)-1)<>"",OFFSET(DE104_3!$AC$34,ROWS($AC$34:AC51)-1,COLUMNS($AC$34:AC51)-1),"") -> 78.14 | AB37: =IF(OFFSET(DE104_3!$AD$34,ROWS($AD$34:AD51)-1,COLUMNS($AD$34:AD51)-1)<>"",OFFSET(DE104_3!$AD$34,ROWS($AD$34:AD51)-1,COLUMNS($AD$34:AD51)-1),"") ->  | AC37: =IF(OFFSET(DE104_3!$AE$34,ROWS($AE$34:AE51)-1,COLUMNS($AE$34:AE51)-1)<>"",OFFSET(DE104_3!$AE$34,ROWS($AE$34:AE51)-1,COLUMNS($AE$34:AE51)-1),"") ->  | AD37: =IF(OFFSET(DE104_3!$AF$34,ROWS($AF$34:AF51)-1,COLUMNS($AF$34:AF51)-1)<>"",OFFSET(DE104_3!$AF$34,ROWS($AF$34:AF51)-1,COLUMNS($AF$34:AF51)-1),"") ->  | AE37: =IF(OFFSET(DE104_3!$AG$34,ROWS($AG$34:AG51)-1,COLUMNS($AG$34:AG51)-1)<>"",OFFSET(DE104_3!$AG$34,ROWS($AG$34:AG51)-1,COLUMNS($AG$34:AG51)-1),"") ->  | AF37: =IF(OFFSET(DE104_3!$AH$34,ROWS($AH$34:AH51)-1,COLUMNS($AH$34:AH51)-1)<>"",OFFSET(DE104_3!$AH$34,ROWS($AH$34:AH51)-1,COLUMNS($AH$34:AH51)-1),"") ->  | AG37: =IF(OFFSET(DE104_3!$AI$34,ROWS($AI$34:AI51)-1,COLUMNS($AI$34:AI51)-1)<>"",OFFSET(DE104_3!$AI$34,ROWS($AI$34:AI51)-1,COLUMNS($AI$34:AI51)-1),"") ->  | AH37: =IF(OFFSET(DE104_3!$AJ$34,ROWS($AJ$34:AJ51)-1,COLUMNS($AJ$34:AJ51)-1)<>"",OFFSET(DE104_3!$AJ$34,ROWS($AJ$34:AJ51)-1,COLUMNS($AJ$34:AJ51)-1),"") ->  | AI37: =IF(OFFSET(DE104_3!$AK$34,ROWS($AK$34:AK51)-1,COLUMNS($AK$34:AK51)-1)<>"",OFFSET(DE104_3!$AK$34,ROWS($AK$34:AK51)-1,COLUMNS($AK$34:AK51)-1),"") ->  | AJ37: =IF(OFFSET(DE104_3!$AL$34,ROWS($AL$34:AL51)-1,COLUMNS($AL$34:AL51)-1)<>"",OFFSET(DE104_3!$AL$34,ROWS($AL$34:AL51)-1,COLUMNS($AL$34:AL51)-1),"") ->  | AK37: =IF(OFFSET(DE104_3!$AM$34,ROWS($AM$34:AM51)-1,COLUMNS($AM$34:AM51)-1)<>"",OFFSET(DE104_3!$AM$34,ROWS($AM$34:AM51)-1,COLUMNS($AM$34:AM51)-1),"") ->  | AL37: =IF(OFFSET(DE104_3!$AN$34,ROWS($AN$34:AN51)-1,COLUMNS($AN$34:AN51)-1)<>"",OFFSET(DE104_3!$AN$34,ROWS($AN$34:AN51)-1,COLUMNS($AN$34:AN51)-1),"") ->  | AM37: =IF(OFFSET(DE104_3!$AO$34,ROWS($AO$34:AO51)-1,COLUMNS($AO$34:AO51)-1)<>"",OFFSET(DE104_3!$AO$34,ROWS($AO$34:AO51)-1,COLUMNS($AO$34:AO51)-1),"") ->  | AN37: =IF(OFFSET(DE104_3!$AP$34,ROWS($AP$34:AP51)-1,COLUMNS($AP$34:AP51)-1)<>"",OFFSET(DE104_3!$AP$34,ROWS($AP$34:AP51)-1,COLUMNS($AP$34:AP51)-1),"") ->  | AO37: =IF(OFFSET(DE104_3!$AQ$34,ROWS($AQ$34:AQ51)-1,COLUMNS($AQ$34:AQ51)-1)<>"",OFFSET(DE104_3!$AQ$34,ROWS($AQ$34:AQ51)-1,COLUMNS($AQ$34:AQ51)-1),"") -> 
A38: =IF(OFFSET(DE104_3!$C$34,ROWS($C$34:C52)-1,COLUMNS($C$34:C52)-1)<>"",OFFSET(DE104_3!$C$34,ROWS($C$34:C52)-1,COLUMNS($C$34:C52)-1),"") ->  | B38: =IF(OFFSET(DE104_3!$D$34,ROWS($D$34:D52)-1,COLUMNS($D$34:D52)-1)<>"",OFFSET(DE104_3!$D$34,ROWS($D$34:D52)-1,COLUMNS($D$34:D52)-1),"") ->  | C38: =IF(OFFSET(DE104_3!$E$34,ROWS($E$34:E52)-1,COLUMNS($E$34:E52)-1)<>"",OFFSET(DE104_3!$E$34,ROWS($E$34:E52)-1,COLUMNS($E$34:E52)-1),"") -> DR-621 | D38: =IF(OFFSET(DE104_3!$F$34,ROWS($F$34:F52)-1,COLUMNS($F$34:F52)-1)<>"",OFFSET(DE104_3!$F$34,ROWS($F$34:F52)-1,COLUMNS($F$34:F52)-1),"") -> 24 | E38: =IF(OFFSET(DE104_3!$G$34,ROWS($G$34:G52)-1,COLUMNS($G$34:G52)-1)<>"",OFFSET(DE104_3!$G$34,ROWS($G$34:G52)-1,COLUMNS($G$34:G52)-1),"") -> 2000 | F38: =IF(OFFSET(DE104_3!$H$34,ROWS($H$34:H52)-1,COLUMNS($H$34:H52)-1)<>"",OFFSET(DE104_3!$H$34,ROWS($H$34:H52)-1,COLUMNS($H$34:H52)-1),"") -> RCP | G38: =IF(OFFSET(DE104_3!$I$34,ROWS($I$34:I52)-1,COLUMNS($I$34:I52)-1)<>"",OFFSET(DE104_3!$I$34,ROWS($I$34:I52)-1,COLUMNS($I$34:I52)-1),"") -> 32 | H38: =IF(OFFSET(DE104_3!$J$34,ROWS($J$34:J52)-1,COLUMNS($J$34:J52)-1)<>"",OFFSET(DE104_3!$J$34,ROWS($J$34:J52)-1,COLUMNS($J$34:J52)-1),"") -> B | I38: =IF(OFFSET(DE104_3!$K$34,ROWS($K$34:K52)-1,COLUMNS($K$34:K52)-1)<>"",OFFSET(DE104_3!$K$34,ROWS($K$34:K52)-1,COLUMNS($K$34:K52)-1),"") -> 4.7 | J38: =IF(OFFSET(DE104_3!$L$34,ROWS($L$34:L52)-1,COLUMNS($L$34:L52)-1)<>"",OFFSET(DE104_3!$L$34,ROWS($L$34:L52)-1,COLUMNS($L$34:L52)-1),"") ->  | K38: =IF(OFFSET(DE104_3!$M$34,ROWS($M$34:M52)-1,COLUMNS($M$34:M52)-1)<>"",OFFSET(DE104_3!$M$34,ROWS($M$34:M52)-1,COLUMNS($M$34:M52)-1),"") ->  | L38: =IF(OFFSET(DE104_3!$N$34,ROWS($N$34:N52)-1,COLUMNS($N$34:N52)-1)<>"",OFFSET(DE104_3!$N$34,ROWS($N$34:N52)-1,COLUMNS($N$34:N52)-1),"") -> 1 | M38: =IF(OFFSET(DE104_3!$O$34,ROWS($O$34:O52)-1,COLUMNS($O$34:O52)-1)<>"",OFFSET(DE104_3!$O$34,ROWS($O$34:O52)-1,COLUMNS($O$34:O52)-1),"") ->  | N38: =IF(OFFSET(DE104_3!$P$34,ROWS($P$34:P52)-1,COLUMNS($P$34:P52)-1)<>"",OFFSET(DE104_3!$P$34,ROWS($P$34:P52)-1,COLUMNS($P$34:P52)-1),"") ->  | O38: =IF(OFFSET(DE104_3!$Q$34,ROWS($Q$34:Q52)-1,COLUMNS($Q$34:Q52)-1)<>"",OFFSET(DE104_3!$Q$34,ROWS($Q$34:Q52)-1,COLUMNS($Q$34:Q52)-1),"") ->  | P38: =IF(OFFSET(DE104_3!$R$34,ROWS($R$34:R52)-1,COLUMNS($R$34:R52)-1)<>"",OFFSET(DE104_3!$R$34,ROWS($R$34:R52)-1,COLUMNS($R$34:R52)-1),"") ->  | Q38: =IF(OFFSET(DE104_3!$S$34,ROWS($S$34:S52)-1,COLUMNS($S$34:S52)-1)<>"",OFFSET(DE104_3!$S$34,ROWS($S$34:S52)-1,COLUMNS($S$34:S52)-1),"") ->  | R38: =IF(OFFSET(DE104_3!$T$34,ROWS($T$34:T52)-1,COLUMNS($T$34:T52)-1)<>"",OFFSET(DE104_3!$T$34,ROWS($T$34:T52)-1,COLUMNS($T$34:T52)-1),"") ->  | S38: =IF(OFFSET(DE104_3!$U$34,ROWS($U$34:U52)-1,COLUMNS($U$34:U52)-1)<>"",OFFSET(DE104_3!$U$34,ROWS($U$34:U52)-1,COLUMNS($U$34:U52)-1),"") ->  | T38: =IF(OFFSET(DE104_3!$V$34,ROWS($V$34:V52)-1,COLUMNS($V$34:V52)-1)<>"",OFFSET(DE104_3!$V$34,ROWS($V$34:V52)-1,COLUMNS($V$34:V52)-1),"") -> Type 3 | U38: =IF(OFFSET(DE104_3!$W$34,ROWS($W$34:W52)-1,COLUMNS($W$34:W52)-1)<>"",OFFSET(DE104_3!$W$34,ROWS($W$34:W52)-1,COLUMNS($W$34:W52)-1),"") ->  | V38: =IF(OFFSET(DE104_3!$X$34,ROWS($X$34:X52)-1,COLUMNS($X$34:X52)-1)<>"",OFFSET(DE104_3!$X$34,ROWS($X$34:X52)-1,COLUMNS($X$34:X52)-1),"") -> 925.51 | W38: =IF(OFFSET(DE104_3!$Y$34,ROWS($Y$34:Y52)-1,COLUMNS($Y$34:Y52)-1)<>"",OFFSET(DE104_3!$Y$34,ROWS($Y$34:Y52)-1,COLUMNS($Y$34:Y52)-1),"") -> 925.29 | X38: =IF(OFFSET(DE104_3!$Z$34,ROWS($Z$34:Z52)-1,COLUMNS($Z$34:Z52)-1)<>"",OFFSET(DE104_3!$Z$34,ROWS($Z$34:Z52)-1,COLUMNS($Z$34:Z52)-1),"") ->  | Y38: =IF(OFFSET(DE104_3!$AA$34,ROWS($AA$34:AA52)-1,COLUMNS($AA$34:AA52)-1)<>"",OFFSET(DE104_3!$AA$34,ROWS($AA$34:AA52)-1,COLUMNS($AA$34:AA52)-1),"") ->  | Z38: =IF(OFFSET(DE104_3!$AB$34,ROWS($AB$34:AB52)-1,COLUMNS($AB$34:AB52)-1)<>"",OFFSET(DE104_3!$AB$34,ROWS($AB$34:AB52)-1,COLUMNS($AB$34:AB52)-1),"") -> 78.14 | AA38: =IF(OFFSET(DE104_3!$AC$34,ROWS($AC$34:AC52)-1,COLUMNS($AC$34:AC52)-1)<>"",OFFSET(DE104_3!$AC$34,ROWS($AC$34:AC52)-1,COLUMNS($AC$34:AC52)-1),"") -> 116.27 | AB38: =IF(OFFSET(DE104_3!$AD$34,ROWS($AD$34:AD52)-1,COLUMNS($AD$34:AD52)-1)<>"",OFFSET(DE104_3!$AD$34,ROWS($AD$34:AD52)-1,COLUMNS($AD$34:AD52)-1),"") ->  | AC38: =IF(OFFSET(DE104_3!$AE$34,ROWS($AE$34:AE52)-1,COLUMNS($AE$34:AE52)-1)<>"",OFFSET(DE104_3!$AE$34,ROWS($AE$34:AE52)-1,COLUMNS($AE$34:AE52)-1),"") ->  | AD38: =IF(OFFSET(DE104_3!$AF$34,ROWS($AF$34:AF52)-1,COLUMNS($AF$34:AF52)-1)<>"",OFFSET(DE104_3!$AF$34,ROWS($AF$34:AF52)-1,COLUMNS($AF$34:AF52)-1),"") ->  | AE38: =IF(OFFSET(DE104_3!$AG$34,ROWS($AG$34:AG52)-1,COLUMNS($AG$34:AG52)-1)<>"",OFFSET(DE104_3!$AG$34,ROWS($AG$34:AG52)-1,COLUMNS($AG$34:AG52)-1),"") ->  | AF38: =IF(OFFSET(DE104_3!$AH$34,ROWS($AH$34:AH52)-1,COLUMNS($AH$34:AH52)-1)<>"",OFFSET(DE104_3!$AH$34,ROWS($AH$34:AH52)-1,COLUMNS($AH$34:AH52)-1),"") ->  | AG38: =IF(OFFSET(DE104_3!$AI$34,ROWS($AI$34:AI52)-1,COLUMNS($AI$34:AI52)-1)<>"",OFFSET(DE104_3!$AI$34,ROWS($AI$34:AI52)-1,COLUMNS($AI$34:AI52)-1),"") ->  | AH38: =IF(OFFSET(DE104_3!$AJ$34,ROWS($AJ$34:AJ52)-1,COLUMNS($AJ$34:AJ52)-1)<>"",OFFSET(DE104_3!$AJ$34,ROWS($AJ$34:AJ52)-1,COLUMNS($AJ$34:AJ52)-1),"") ->  | AI38: =IF(OFFSET(DE104_3!$AK$34,ROWS($AK$34:AK52)-1,COLUMNS($AK$34:AK52)-1)<>"",OFFSET(DE104_3!$AK$34,ROWS($AK$34:AK52)-1,COLUMNS($AK$34:AK52)-1),"") ->  | AJ38: =IF(OFFSET(DE104_3!$AL$34,ROWS($AL$34:AL52)-1,COLUMNS($AL$34:AL52)-1)<>"",OFFSET(DE104_3!$AL$34,ROWS($AL$34:AL52)-1,COLUMNS($AL$34:AL52)-1),"") -> 18.48356481 | AK38: =IF(OFFSET(DE104_3!$AM$34,ROWS($AM$34:AM52)-1,COLUMNS($AM$34:AM52)-1)<>"",OFFSET(DE104_3!$AM$34,ROWS($AM$34:AM52)-1,COLUMNS($AM$34:AM52)-1),"") ->  | AL38: =IF(OFFSET(DE104_3!$AN$34,ROWS($AN$34:AN52)-1,COLUMNS($AN$34:AN52)-1)<>"",OFFSET(DE104_3!$AN$34,ROWS($AN$34:AN52)-1,COLUMNS($AN$34:AN52)-1),"") ->  | AM38: =IF(OFFSET(DE104_3!$AO$34,ROWS($AO$34:AO52)-1,COLUMNS($AO$34:AO52)-1)<>"",OFFSET(DE104_3!$AO$34,ROWS($AO$34:AO52)-1,COLUMNS($AO$34:AO52)-1),"") -> 2.979398148 | AN38: =IF(OFFSET(DE104_3!$AP$34,ROWS($AP$34:AP52)-1,COLUMNS($AP$34:AP52)-1)<>"",OFFSET(DE104_3!$AP$34,ROWS($AP$34:AP52)-1,COLUMNS($AP$34:AP52)-1),"") -> 2.979398148 | AO38: =IF(OFFSET(DE104_3!$AQ$34,ROWS($AQ$34:AQ52)-1,COLUMNS($AQ$34:AQ52)-1)<>"",OFFSET(DE104_3!$AQ$34,ROWS($AQ$34:AQ52)-1,COLUMNS($AQ$34:AQ52)-1),"") -> 
A39: =IF(OFFSET(DE104_3!$C$34,ROWS($C$34:C53)-1,COLUMNS($C$34:C53)-1)<>"",OFFSET(DE104_3!$C$34,ROWS($C$34:C53)-1,COLUMNS($C$34:C53)-1),"") -> MED | B39: =IF(OFFSET(DE104_3!$D$34,ROWS($D$34:D53)-1,COLUMNS($D$34:D53)-1)<>"",OFFSET(DE104_3!$D$34,ROWS($D$34:D53)-1,COLUMNS($D$34:D53)-1),"") -> 150100 | C39: =IF(OFFSET(DE104_3!$E$34,ROWS($E$34:E53)-1,COLUMNS($E$34:E53)-1)<>"",OFFSET(DE104_3!$E$34,ROWS($E$34:E53)-1,COLUMNS($E$34:E53)-1),"") -> DR-611 | D39: =IF(OFFSET(DE104_3!$F$34,ROWS($F$34:F53)-1,COLUMNS($F$34:F53)-1)<>"",OFFSET(DE104_3!$F$34,ROWS($F$34:F53)-1,COLUMNS($F$34:F53)-1),"") -> 24 | E39: =IF(OFFSET(DE104_3!$G$34,ROWS($G$34:G53)-1,COLUMNS($G$34:G53)-1)<>"",OFFSET(DE104_3!$G$34,ROWS($G$34:G53)-1,COLUMNS($G$34:G53)-1),"") -> 2000 | F39: =IF(OFFSET(DE104_3!$H$34,ROWS($H$34:H53)-1,COLUMNS($H$34:H53)-1)<>"",OFFSET(DE104_3!$H$34,ROWS($H$34:H53)-1,COLUMNS($H$34:H53)-1),"") -> RCP | G39: =IF(OFFSET(DE104_3!$I$34,ROWS($I$34:I53)-1,COLUMNS($I$34:I53)-1)<>"",OFFSET(DE104_3!$I$34,ROWS($I$34:I53)-1,COLUMNS($I$34:I53)-1),"") -> 74 | H39: =IF(OFFSET(DE104_3!$J$34,ROWS($J$34:J53)-1,COLUMNS($J$34:J53)-1)<>"",OFFSET(DE104_3!$J$34,ROWS($J$34:J53)-1,COLUMNS($J$34:J53)-1),"") -> B | I39: =IF(OFFSET(DE104_3!$K$34,ROWS($K$34:K53)-1,COLUMNS($K$34:K53)-1)<>"",OFFSET(DE104_3!$K$34,ROWS($K$34:K53)-1,COLUMNS($K$34:K53)-1),"") -> 3.2 | J39: =IF(OFFSET(DE104_3!$L$34,ROWS($L$34:L53)-1,COLUMNS($L$34:L53)-1)<>"",OFFSET(DE104_3!$L$34,ROWS($L$34:L53)-1,COLUMNS($L$34:L53)-1),"") ->  | K39: =IF(OFFSET(DE104_3!$M$34,ROWS($M$34:M53)-1,COLUMNS($M$34:M53)-1)<>"",OFFSET(DE104_3!$M$34,ROWS($M$34:M53)-1,COLUMNS($M$34:M53)-1),"") -> 1 | L39: =IF(OFFSET(DE104_3!$N$34,ROWS($N$34:N53)-1,COLUMNS($N$34:N53)-1)<>"",OFFSET(DE104_3!$N$34,ROWS($N$34:N53)-1,COLUMNS($N$34:N53)-1),"") -> 1 | M39: =IF(OFFSET(DE104_3!$O$34,ROWS($O$34:O53)-1,COLUMNS($O$34:O53)-1)<>"",OFFSET(DE104_3!$O$34,ROWS($O$34:O53)-1,COLUMNS($O$34:O53)-1),"") ->  | N39: =IF(OFFSET(DE104_3!$P$34,ROWS($P$34:P53)-1,COLUMNS($P$34:P53)-1)<>"",OFFSET(DE104_3!$P$34,ROWS($P$34:P53)-1,COLUMNS($P$34:P53)-1),"") ->  | O39: =IF(OFFSET(DE104_3!$Q$34,ROWS($Q$34:Q53)-1,COLUMNS($Q$34:Q53)-1)<>"",OFFSET(DE104_3!$Q$34,ROWS($Q$34:Q53)-1,COLUMNS($Q$34:Q53)-1),"") ->  | P39: =IF(OFFSET(DE104_3!$R$34,ROWS($R$34:R53)-1,COLUMNS($R$34:R53)-1)<>"",OFFSET(DE104_3!$R$34,ROWS($R$34:R53)-1,COLUMNS($R$34:R53)-1),"") ->  | Q39: =IF(OFFSET(DE104_3!$S$34,ROWS($S$34:S53)-1,COLUMNS($S$34:S53)-1)<>"",OFFSET(DE104_3!$S$34,ROWS($S$34:S53)-1,COLUMNS($S$34:S53)-1),"") ->  | R39: =IF(OFFSET(DE104_3!$T$34,ROWS($T$34:T53)-1,COLUMNS($T$34:T53)-1)<>"",OFFSET(DE104_3!$T$34,ROWS($T$34:T53)-1,COLUMNS($T$34:T53)-1),"") ->  | S39: =IF(OFFSET(DE104_3!$U$34,ROWS($U$34:U53)-1,COLUMNS($U$34:U53)-1)<>"",OFFSET(DE104_3!$U$34,ROWS($U$34:U53)-1,COLUMNS($U$34:U53)-1),"") ->  | T39: =IF(OFFSET(DE104_3!$V$34,ROWS($V$34:V53)-1,COLUMNS($V$34:V53)-1)<>"",OFFSET(DE104_3!$V$34,ROWS($V$34:V53)-1,COLUMNS($V$34:V53)-1),"") -> Type 3 | U39: =IF(OFFSET(DE104_3!$W$34,ROWS($W$34:W53)-1,COLUMNS($W$34:W53)-1)<>"",OFFSET(DE104_3!$W$34,ROWS($W$34:W53)-1,COLUMNS($W$34:W53)-1),"") ->  | V39: =IF(OFFSET(DE104_3!$X$34,ROWS($X$34:X53)-1,COLUMNS($X$34:X53)-1)<>"",OFFSET(DE104_3!$X$34,ROWS($X$34:X53)-1,COLUMNS($X$34:X53)-1),"") -> 927.97 | W39: =IF(OFFSET(DE104_3!$Y$34,ROWS($Y$34:Y53)-1,COLUMNS($Y$34:Y53)-1)<>"",OFFSET(DE104_3!$Y$34,ROWS($Y$34:Y53)-1,COLUMNS($Y$34:Y53)-1),"") -> 926.26 | X39: =IF(OFFSET(DE104_3!$Z$34,ROWS($Z$34:Z53)-1,COLUMNS($Z$34:Z53)-1)<>"",OFFSET(DE104_3!$Z$34,ROWS($Z$34:Z53)-1,COLUMNS($Z$34:Z53)-1),"") -> 927.09 | Y39: =IF(OFFSET(DE104_3!$AA$34,ROWS($AA$34:AA53)-1,COLUMNS($AA$34:AA53)-1)<>"",OFFSET(DE104_3!$AA$34,ROWS($AA$34:AA53)-1,COLUMNS($AA$34:AA53)-1),"") ->  | Z39: =IF(OFFSET(DE104_3!$AB$34,ROWS($AB$34:AB53)-1,COLUMNS($AB$34:AB53)-1)<>"",OFFSET(DE104_3!$AB$34,ROWS($AB$34:AB53)-1,COLUMNS($AB$34:AB53)-1),"") -> 37.5 | AA39: =IF(OFFSET(DE104_3!$AC$34,ROWS($AC$34:AC53)-1,COLUMNS($AC$34:AC53)-1)<>"",OFFSET(DE104_3!$AC$34,ROWS($AC$34:AC53)-1,COLUMNS($AC$34:AC53)-1),"") -> 48.6 | AB39: =IF(OFFSET(DE104_3!$AD$34,ROWS($AD$34:AD53)-1,COLUMNS($AD$34:AD53)-1)<>"",OFFSET(DE104_3!$AD$34,ROWS($AD$34:AD53)-1,COLUMNS($AD$34:AD53)-1),"") ->  | AC39: =IF(OFFSET(DE104_3!$AE$34,ROWS($AE$34:AE53)-1,COLUMNS($AE$34:AE53)-1)<>"",OFFSET(DE104_3!$AE$34,ROWS($AE$34:AE53)-1,COLUMNS($AE$34:AE53)-1),"") ->  | AD39: =IF(OFFSET(DE104_3!$AF$34,ROWS($AF$34:AF53)-1,COLUMNS($AF$34:AF53)-1)<>"",OFFSET(DE104_3!$AF$34,ROWS($AF$34:AF53)-1,COLUMNS($AF$34:AF53)-1),"") ->  | AE39: =IF(OFFSET(DE104_3!$AG$34,ROWS($AG$34:AG53)-1,COLUMNS($AG$34:AG53)-1)<>"",OFFSET(DE104_3!$AG$34,ROWS($AG$34:AG53)-1,COLUMNS($AG$34:AG53)-1),"") ->  | AF39: =IF(OFFSET(DE104_3!$AH$34,ROWS($AH$34:AH53)-1,COLUMNS($AH$34:AH53)-1)<>"",OFFSET(DE104_3!$AH$34,ROWS($AH$34:AH53)-1,COLUMNS($AH$34:AH53)-1),"") ->  | AG39: =IF(OFFSET(DE104_3!$AI$34,ROWS($AI$34:AI53)-1,COLUMNS($AI$34:AI53)-1)<>"",OFFSET(DE104_3!$AI$34,ROWS($AI$34:AI53)-1,COLUMNS($AI$34:AI53)-1),"") ->  | AH39: =IF(OFFSET(DE104_3!$AJ$34,ROWS($AJ$34:AJ53)-1,COLUMNS($AJ$34:AJ53)-1)<>"",OFFSET(DE104_3!$AJ$34,ROWS($AJ$34:AJ53)-1,COLUMNS($AJ$34:AJ53)-1),"") ->  | AI39: =IF(OFFSET(DE104_3!$AK$34,ROWS($AK$34:AK53)-1,COLUMNS($AK$34:AK53)-1)<>"",OFFSET(DE104_3!$AK$34,ROWS($AK$34:AK53)-1,COLUMNS($AK$34:AK53)-1),"") ->  | AJ39: =IF(OFFSET(DE104_3!$AL$34,ROWS($AL$34:AL53)-1,COLUMNS($AL$34:AL53)-1)<>"",OFFSET(DE104_3!$AL$34,ROWS($AL$34:AL53)-1,COLUMNS($AL$34:AL53)-1),"") -> 35.95833333 | AK39: =IF(OFFSET(DE104_3!$AM$34,ROWS($AM$34:AM53)-1,COLUMNS($AM$34:AM53)-1)<>"",OFFSET(DE104_3!$AM$34,ROWS($AM$34:AM53)-1,COLUMNS($AM$34:AM53)-1),"") ->  | AL39: =IF(OFFSET(DE104_3!$AN$34,ROWS($AN$34:AN53)-1,COLUMNS($AN$34:AN53)-1)<>"",OFFSET(DE104_3!$AN$34,ROWS($AN$34:AN53)-1,COLUMNS($AN$34:AN53)-1),"") -> 17.09333333 | AM39: =IF(OFFSET(DE104_3!$AO$34,ROWS($AO$34:AO53)-1,COLUMNS($AO$34:AO53)-1)<>"",OFFSET(DE104_3!$AO$34,ROWS($AO$34:AO53)-1,COLUMNS($AO$34:AO53)-1),"") -> 6.587888889 | AN39: =IF(OFFSET(DE104_3!$AP$34,ROWS($AP$34:AP53)-1,COLUMNS($AP$34:AP53)-1)<>"",OFFSET(DE104_3!$AP$34,ROWS($AP$34:AP53)-1,COLUMNS($AP$34:AP53)-1),"") -> 23.68122222 | AO39: =IF(OFFSET(DE104_3!$AQ$34,ROWS($AQ$34:AQ53)-1,COLUMNS($AQ$34:AQ53)-1)<>"",OFFSET(DE104_3!$AQ$34,ROWS($AQ$34:AQ53)-1,COLUMNS($AQ$34:AQ53)-1),"") -> 
A40: =IF(OFFSET(DE104_3!$C$34,ROWS($C$34:C54)-1,COLUMNS($C$34:C54)-1)<>"",OFFSET(DE104_3!$C$34,ROWS($C$34:C54)-1,COLUMNS($C$34:C54)-1),"") ->  | B40: =IF(OFFSET(DE104_3!$D$34,ROWS($D$34:D54)-1,COLUMNS($D$34:D54)-1)<>"",OFFSET(DE104_3!$D$34,ROWS($D$34:D54)-1,COLUMNS($D$34:D54)-1),"") -> 150625 | C40: =IF(OFFSET(DE104_3!$E$34,ROWS($E$34:E54)-1,COLUMNS($E$34:E54)-1)<>"",OFFSET(DE104_3!$E$34,ROWS($E$34:E54)-1,COLUMNS($E$34:E54)-1),"") -> JACK | D40: =IF(OFFSET(DE104_3!$F$34,ROWS($F$34:F54)-1,COLUMNS($F$34:F54)-1)<>"",OFFSET(DE104_3!$F$34,ROWS($F$34:F54)-1,COLUMNS($F$34:F54)-1),"") -> 24 | E40: =IF(OFFSET(DE104_3!$G$34,ROWS($G$34:G54)-1,COLUMNS($G$34:G54)-1)<>"",OFFSET(DE104_3!$G$34,ROWS($G$34:G54)-1,COLUMNS($G$34:G54)-1),"") -> 2000 | F40: =IF(OFFSET(DE104_3!$H$34,ROWS($H$34:H54)-1,COLUMNS($H$34:H54)-1)<>"",OFFSET(DE104_3!$H$34,ROWS($H$34:H54)-1,COLUMNS($H$34:H54)-1),"") -> RCP | G40: =IF(OFFSET(DE104_3!$I$34,ROWS($I$34:I54)-1,COLUMNS($I$34:I54)-1)<>"",OFFSET(DE104_3!$I$34,ROWS($I$34:I54)-1,COLUMNS($I$34:I54)-1),"") -> 170 | H40: =IF(OFFSET(DE104_3!$J$34,ROWS($J$34:J54)-1,COLUMNS($J$34:J54)-1)<>"",OFFSET(DE104_3!$J$34,ROWS($J$34:J54)-1,COLUMNS($J$34:J54)-1),"") ->  | I40: =IF(OFFSET(DE104_3!$K$34,ROWS($K$34:K54)-1,COLUMNS($K$34:K54)-1)<>"",OFFSET(DE104_3!$K$34,ROWS($K$34:K54)-1,COLUMNS($K$34:K54)-1),"") ->  | J40: =IF(OFFSET(DE104_3!$L$34,ROWS($L$34:L54)-1,COLUMNS($L$34:L54)-1)<>"",OFFSET(DE104_3!$L$34,ROWS($L$34:L54)-1,COLUMNS($L$34:L54)-1),"") ->  | K40: =IF(OFFSET(DE104_3!$M$34,ROWS($M$34:M54)-1,COLUMNS($M$34:M54)-1)<>"",OFFSET(DE104_3!$M$34,ROWS($M$34:M54)-1,COLUMNS($M$34:M54)-1),"") ->  | L40: =IF(OFFSET(DE104_3!$N$34,ROWS($N$34:N54)-1,COLUMNS($N$34:N54)-1)<>"",OFFSET(DE104_3!$N$34,ROWS($N$34:N54)-1,COLUMNS($N$34:N54)-1),"") -> 1 | M40: =IF(OFFSET(DE104_3!$O$34,ROWS($O$34:O54)-1,COLUMNS($O$34:O54)-1)<>"",OFFSET(DE104_3!$O$34,ROWS($O$34:O54)-1,COLUMNS($O$34:O54)-1),"") ->  | N40: =IF(OFFSET(DE104_3!$P$34,ROWS($P$34:P54)-1,COLUMNS($P$34:P54)-1)<>"",OFFSET(DE104_3!$P$34,ROWS($P$34:P54)-1,COLUMNS($P$34:P54)-1),"") ->  | O40: =IF(OFFSET(DE104_3!$Q$34,ROWS($Q$34:Q54)-1,COLUMNS($Q$34:Q54)-1)<>"",OFFSET(DE104_3!$Q$34,ROWS($Q$34:Q54)-1,COLUMNS($Q$34:Q54)-1),"") ->  | P40: =IF(OFFSET(DE104_3!$R$34,ROWS($R$34:R54)-1,COLUMNS($R$34:R54)-1)<>"",OFFSET(DE104_3!$R$34,ROWS($R$34:R54)-1,COLUMNS($R$34:R54)-1),"") ->  | Q40: =IF(OFFSET(DE104_3!$S$34,ROWS($S$34:S54)-1,COLUMNS($S$34:S54)-1)<>"",OFFSET(DE104_3!$S$34,ROWS($S$34:S54)-1,COLUMNS($S$34:S54)-1),"") ->  | R40: =IF(OFFSET(DE104_3!$T$34,ROWS($T$34:T54)-1,COLUMNS($T$34:T54)-1)<>"",OFFSET(DE104_3!$T$34,ROWS($T$34:T54)-1,COLUMNS($T$34:T54)-1),"") ->  | S40: =IF(OFFSET(DE104_3!$U$34,ROWS($U$34:U54)-1,COLUMNS($U$34:U54)-1)<>"",OFFSET(DE104_3!$U$34,ROWS($U$34:U54)-1,COLUMNS($U$34:U54)-1),"") ->  | T40: =IF(OFFSET(DE104_3!$V$34,ROWS($V$34:V54)-1,COLUMNS($V$34:V54)-1)<>"",OFFSET(DE104_3!$V$34,ROWS($V$34:V54)-1,COLUMNS($V$34:V54)-1),"") -> Type 3 | U40: =IF(OFFSET(DE104_3!$W$34,ROWS($W$34:W54)-1,COLUMNS($W$34:W54)-1)<>"",OFFSET(DE104_3!$W$34,ROWS($W$34:W54)-1,COLUMNS($W$34:W54)-1),"") ->  | V40: =IF(OFFSET(DE104_3!$X$34,ROWS($X$34:X54)-1,COLUMNS($X$34:X54)-1)<>"",OFFSET(DE104_3!$X$34,ROWS($X$34:X54)-1,COLUMNS($X$34:X54)-1),"") -> 916.49 | W40: =IF(OFFSET(DE104_3!$Y$34,ROWS($Y$34:Y54)-1,COLUMNS($Y$34:Y54)-1)<>"",OFFSET(DE104_3!$Y$34,ROWS($Y$34:Y54)-1,COLUMNS($Y$34:Y54)-1),"") -> 919.19 | X40: =IF(OFFSET(DE104_3!$Z$34,ROWS($Z$34:Z54)-1,COLUMNS($Z$34:Z54)-1)<>"",OFFSET(DE104_3!$Z$34,ROWS($Z$34:Z54)-1,COLUMNS($Z$34:Z54)-1),"") ->  | Y40: =IF(OFFSET(DE104_3!$AA$34,ROWS($AA$34:AA54)-1,COLUMNS($AA$34:AA54)-1)<>"",OFFSET(DE104_3!$AA$34,ROWS($AA$34:AA54)-1,COLUMNS($AA$34:AA54)-1),"") ->  | Z40: =IF(OFFSET(DE104_3!$AB$34,ROWS($AB$34:AB54)-1,COLUMNS($AB$34:AB54)-1)<>"",OFFSET(DE104_3!$AB$34,ROWS($AB$34:AB54)-1,COLUMNS($AB$34:AB54)-1),"") -> 99.45 | AA40: =IF(OFFSET(DE104_3!$AC$34,ROWS($AC$34:AC54)-1,COLUMNS($AC$34:AC54)-1)<>"",OFFSET(DE104_3!$AC$34,ROWS($AC$34:AC54)-1,COLUMNS($AC$34:AC54)-1),"") -> 76.65 | AB40: =IF(OFFSET(DE104_3!$AD$34,ROWS($AD$34:AD54)-1,COLUMNS($AD$34:AD54)-1)<>"",OFFSET(DE104_3!$AD$34,ROWS($AD$34:AD54)-1,COLUMNS($AD$34:AD54)-1),"") ->  | AC40: =IF(OFFSET(DE104_3!$AE$34,ROWS($AE$34:AE54)-1,COLUMNS($AE$34:AE54)-1)<>"",OFFSET(DE104_3!$AE$34,ROWS($AE$34:AE54)-1,COLUMNS($AE$34:AE54)-1),"") ->  | AD40: =IF(OFFSET(DE104_3!$AF$34,ROWS($AF$34:AF54)-1,COLUMNS($AF$34:AF54)-1)<>"",OFFSET(DE104_3!$AF$34,ROWS($AF$34:AF54)-1,COLUMNS($AF$34:AF54)-1),"") ->  | AE40: =IF(OFFSET(DE104_3!$AG$34,ROWS($AG$34:AG54)-1,COLUMNS($AG$34:AG54)-1)<>"",OFFSET(DE104_3!$AG$34,ROWS($AG$34:AG54)-1,COLUMNS($AG$34:AG54)-1),"") ->  | AF40: =IF(OFFSET(DE104_3!$AH$34,ROWS($AH$34:AH54)-1,COLUMNS($AH$34:AH54)-1)<>"",OFFSET(DE104_3!$AH$34,ROWS($AH$34:AH54)-1,COLUMNS($AH$34:AH54)-1),"") ->  | AG40: =IF(OFFSET(DE104_3!$AI$34,ROWS($AI$34:AI54)-1,COLUMNS($AI$34:AI54)-1)<>"",OFFSET(DE104_3!$AI$34,ROWS($AI$34:AI54)-1,COLUMNS($AI$34:AI54)-1),"") ->  | AH40: =IF(OFFSET(DE104_3!$AJ$34,ROWS($AJ$34:AJ54)-1,COLUMNS($AJ$34:AJ54)-1)<>"",OFFSET(DE104_3!$AJ$34,ROWS($AJ$34:AJ54)-1,COLUMNS($AJ$34:AJ54)-1),"") ->  | AI40: =IF(OFFSET(DE104_3!$AK$34,ROWS($AK$34:AK54)-1,COLUMNS($AK$34:AK54)-1)<>"",OFFSET(DE104_3!$AK$34,ROWS($AK$34:AK54)-1,COLUMNS($AK$34:AK54)-1),"") ->  | AJ40: =IF(OFFSET(DE104_3!$AL$34,ROWS($AL$34:AL54)-1,COLUMNS($AL$34:AL54)-1)<>"",OFFSET(DE104_3!$AL$34,ROWS($AL$34:AL54)-1,COLUMNS($AL$34:AL54)-1),"") ->  | AK40: =IF(OFFSET(DE104_3!$AM$34,ROWS($AM$34:AM54)-1,COLUMNS($AM$34:AM54)-1)<>"",OFFSET(DE104_3!$AM$34,ROWS($AM$34:AM54)-1,COLUMNS($AM$34:AM54)-1),"") ->  | AL40: =IF(OFFSET(DE104_3!$AN$34,ROWS($AN$34:AN54)-1,COLUMNS($AN$34:AN54)-1)<>"",OFFSET(DE104_3!$AN$34,ROWS($AN$34:AN54)-1,COLUMNS($AN$34:AN54)-1),"") ->  | AM40: =IF(OFFSET(DE104_3!$AO$34,ROWS($AO$34:AO54)-1,COLUMNS($AO$34:AO54)-1)<>"",OFFSET(DE104_3!$AO$34,ROWS($AO$34:AO54)-1,COLUMNS($AO$34:AO54)-1),"") ->  | AN40: =IF(OFFSET(DE104_3!$AP$34,ROWS($AP$34:AP54)-1,COLUMNS($AP$34:AP54)-1)<>"",OFFSET(DE104_3!$AP$34,ROWS($AP$34:AP54)-1,COLUMNS($AP$34:AP54)-1),"") ->  | AO40: =IF(OFFSET(DE104_3!$AQ$34,ROWS($AQ$34:AQ54)-1,COLUMNS($AQ$34:AQ54)-1)<>"",OFFSET(DE104_3!$AQ$34,ROWS($AQ$34:AQ54)-1,COLUMNS($AQ$34:AQ54)-1),"") -> 
A41: =IF(OFFSET(DE104_3!$C$34,ROWS($C$34:C55)-1,COLUMNS($C$34:C55)-1)<>"",OFFSET(DE104_3!$C$34,ROWS($C$34:C55)-1,COLUMNS($C$34:C55)-1),"") ->  | B41: =IF(OFFSET(DE104_3!$D$34,ROWS($D$34:D55)-1,COLUMNS($D$34:D55)-1)<>"",OFFSET(DE104_3!$D$34,ROWS($D$34:D55)-1,COLUMNS($D$34:D55)-1),"") ->  | C41: =IF(OFFSET(DE104_3!$E$34,ROWS($E$34:E55)-1,COLUMNS($E$34:E55)-1)<>"",OFFSET(DE104_3!$E$34,ROWS($E$34:E55)-1,COLUMNS($E$34:E55)-1),"") -> DR-621 | D41: =IF(OFFSET(DE104_3!$F$34,ROWS($F$34:F55)-1,COLUMNS($F$34:F55)-1)<>"",OFFSET(DE104_3!$F$34,ROWS($F$34:F55)-1,COLUMNS($F$34:F55)-1),"") -> 24 | E41: =IF(OFFSET(DE104_3!$G$34,ROWS($G$34:G55)-1,COLUMNS($G$34:G55)-1)<>"",OFFSET(DE104_3!$G$34,ROWS($G$34:G55)-1,COLUMNS($G$34:G55)-1),"") -> 2000 | F41: =IF(OFFSET(DE104_3!$H$34,ROWS($H$34:H55)-1,COLUMNS($H$34:H55)-1)<>"",OFFSET(DE104_3!$H$34,ROWS($H$34:H55)-1,COLUMNS($H$34:H55)-1),"") -> RCP | G41: =IF(OFFSET(DE104_3!$I$34,ROWS($I$34:I55)-1,COLUMNS($I$34:I55)-1)<>"",OFFSET(DE104_3!$I$34,ROWS($I$34:I55)-1,COLUMNS($I$34:I55)-1),"") -> 16 | H41: =IF(OFFSET(DE104_3!$J$34,ROWS($J$34:J55)-1,COLUMNS($J$34:J55)-1)<>"",OFFSET(DE104_3!$J$34,ROWS($J$34:J55)-1,COLUMNS($J$34:J55)-1),"") -> B | I41: =IF(OFFSET(DE104_3!$K$34,ROWS($K$34:K55)-1,COLUMNS($K$34:K55)-1)<>"",OFFSET(DE104_3!$K$34,ROWS($K$34:K55)-1,COLUMNS($K$34:K55)-1),"") -> 6.8 | J41: =IF(OFFSET(DE104_3!$L$34,ROWS($L$34:L55)-1,COLUMNS($L$34:L55)-1)<>"",OFFSET(DE104_3!$L$34,ROWS($L$34:L55)-1,COLUMNS($L$34:L55)-1),"") ->  | K41: =IF(OFFSET(DE104_3!$M$34,ROWS($M$34:M55)-1,COLUMNS($M$34:M55)-1)<>"",OFFSET(DE104_3!$M$34,ROWS($M$34:M55)-1,COLUMNS($M$34:M55)-1),"") -> 1 | L41: =IF(OFFSET(DE104_3!$N$34,ROWS($N$34:N55)-1,COLUMNS($N$34:N55)-1)<>"",OFFSET(DE104_3!$N$34,ROWS($N$34:N55)-1,COLUMNS($N$34:N55)-1),"") ->  | M41: =IF(OFFSET(DE104_3!$O$34,ROWS($O$34:O55)-1,COLUMNS($O$34:O55)-1)<>"",OFFSET(DE104_3!$O$34,ROWS($O$34:O55)-1,COLUMNS($O$34:O55)-1),"") ->  | N41: =IF(OFFSET(DE104_3!$P$34,ROWS($P$34:P55)-1,COLUMNS($P$34:P55)-1)<>"",OFFSET(DE104_3!$P$34,ROWS($P$34:P55)-1,COLUMNS($P$34:P55)-1),"") ->  | O41: =IF(OFFSET(DE104_3!$Q$34,ROWS($Q$34:Q55)-1,COLUMNS($Q$34:Q55)-1)<>"",OFFSET(DE104_3!$Q$34,ROWS($Q$34:Q55)-1,COLUMNS($Q$34:Q55)-1),"") ->  | P41: =IF(OFFSET(DE104_3!$R$34,ROWS($R$34:R55)-1,COLUMNS($R$34:R55)-1)<>"",OFFSET(DE104_3!$R$34,ROWS($R$34:R55)-1,COLUMNS($R$34:R55)-1),"") ->  | Q41: =IF(OFFSET(DE104_3!$S$34,ROWS($S$34:S55)-1,COLUMNS($S$34:S55)-1)<>"",OFFSET(DE104_3!$S$34,ROWS($S$34:S55)-1,COLUMNS($S$34:S55)-1),"") ->  | R41: =IF(OFFSET(DE104_3!$T$34,ROWS($T$34:T55)-1,COLUMNS($T$34:T55)-1)<>"",OFFSET(DE104_3!$T$34,ROWS($T$34:T55)-1,COLUMNS($T$34:T55)-1),"") ->  | S41: =IF(OFFSET(DE104_3!$U$34,ROWS($U$34:U55)-1,COLUMNS($U$34:U55)-1)<>"",OFFSET(DE104_3!$U$34,ROWS($U$34:U55)-1,COLUMNS($U$34:U55)-1),"") ->  | T41: =IF(OFFSET(DE104_3!$V$34,ROWS($V$34:V55)-1,COLUMNS($V$34:V55)-1)<>"",OFFSET(DE104_3!$V$34,ROWS($V$34:V55)-1,COLUMNS($V$34:V55)-1),"") -> Type 3 | U41: =IF(OFFSET(DE104_3!$W$34,ROWS($W$34:W55)-1,COLUMNS($W$34:W55)-1)<>"",OFFSET(DE104_3!$W$34,ROWS($W$34:W55)-1,COLUMNS($W$34:W55)-1),"") ->  | V41: =IF(OFFSET(DE104_3!$X$34,ROWS($X$34:X55)-1,COLUMNS($X$34:X55)-1)<>"",OFFSET(DE104_3!$X$34,ROWS($X$34:X55)-1,COLUMNS($X$34:X55)-1),"") -> 919.19 | W41: =IF(OFFSET(DE104_3!$Y$34,ROWS($Y$34:Y55)-1,COLUMNS($Y$34:Y55)-1)<>"",OFFSET(DE104_3!$Y$34,ROWS($Y$34:Y55)-1,COLUMNS($Y$34:Y55)-1),"") -> 919.53 | X41: =IF(OFFSET(DE104_3!$Z$34,ROWS($Z$34:Z55)-1,COLUMNS($Z$34:Z55)-1)<>"",OFFSET(DE104_3!$Z$34,ROWS($Z$34:Z55)-1,COLUMNS($Z$34:Z55)-1),"") ->  | Y41: =IF(OFFSET(DE104_3!$AA$34,ROWS($AA$34:AA55)-1,COLUMNS($AA$34:AA55)-1)<>"",OFFSET(DE104_3!$AA$34,ROWS($AA$34:AA55)-1,COLUMNS($AA$34:AA55)-1),"") ->  | Z41: =IF(OFFSET(DE104_3!$AB$34,ROWS($AB$34:AB55)-1,COLUMNS($AB$34:AB55)-1)<>"",OFFSET(DE104_3!$AB$34,ROWS($AB$34:AB55)-1,COLUMNS($AB$34:AB55)-1),"") -> 79.67 | AA41: =IF(OFFSET(DE104_3!$AC$34,ROWS($AC$34:AC55)-1,COLUMNS($AC$34:AC55)-1)<>"",OFFSET(DE104_3!$AC$34,ROWS($AC$34:AC55)-1,COLUMNS($AC$34:AC55)-1),"") -> 98.78 | AB41: =IF(OFFSET(DE104_3!$AD$34,ROWS($AD$34:AD55)-1,COLUMNS($AD$34:AD55)-1)<>"",OFFSET(DE104_3!$AD$34,ROWS($AD$34:AD55)-1,COLUMNS($AD$34:AD55)-1),"") ->  | AC41: =IF(OFFSET(DE104_3!$AE$34,ROWS($AE$34:AE55)-1,COLUMNS($AE$34:AE55)-1)<>"",OFFSET(DE104_3!$AE$34,ROWS($AE$34:AE55)-1,COLUMNS($AE$34:AE55)-1),"") ->  | AD41: =IF(OFFSET(DE104_3!$AF$34,ROWS($AF$34:AF55)-1,COLUMNS($AF$34:AF55)-1)<>"",OFFSET(DE104_3!$AF$34,ROWS($AF$34:AF55)-1,COLUMNS($AF$34:AF55)-1),"") ->  | AE41: =IF(OFFSET(DE104_3!$AG$34,ROWS($AG$34:AG55)-1,COLUMNS($AG$34:AG55)-1)<>"",OFFSET(DE104_3!$AG$34,ROWS($AG$34:AG55)-1,COLUMNS($AG$34:AG55)-1),"") ->  | AF41: =IF(OFFSET(DE104_3!$AH$34,ROWS($AH$34:AH55)-1,COLUMNS($AH$34:AH55)-1)<>"",OFFSET(DE104_3!$AH$34,ROWS($AH$34:AH55)-1,COLUMNS($AH$34:AH55)-1),"") ->  | AG41: =IF(OFFSET(DE104_3!$AI$34,ROWS($AI$34:AI55)-1,COLUMNS($AI$34:AI55)-1)<>"",OFFSET(DE104_3!$AI$34,ROWS($AI$34:AI55)-1,COLUMNS($AI$34:AI55)-1),"") ->  | AH41: =IF(OFFSET(DE104_3!$AJ$34,ROWS($AJ$34:AJ55)-1,COLUMNS($AJ$34:AJ55)-1)<>"",OFFSET(DE104_3!$AJ$34,ROWS($AJ$34:AJ55)-1,COLUMNS($AJ$34:AJ55)-1),"") ->  | AI41: =IF(OFFSET(DE104_3!$AK$34,ROWS($AK$34:AK55)-1,COLUMNS($AK$34:AK55)-1)<>"",OFFSET(DE104_3!$AK$34,ROWS($AK$34:AK55)-1,COLUMNS($AK$34:AK55)-1),"") ->  | AJ41: =IF(OFFSET(DE104_3!$AL$34,ROWS($AL$34:AL55)-1,COLUMNS($AL$34:AL55)-1)<>"",OFFSET(DE104_3!$AL$34,ROWS($AL$34:AL55)-1,COLUMNS($AL$34:AL55)-1),"") -> 9.964444444 | AK41: =IF(OFFSET(DE104_3!$AM$34,ROWS($AM$34:AM55)-1,COLUMNS($AM$34:AM55)-1)<>"",OFFSET(DE104_3!$AM$34,ROWS($AM$34:AM55)-1,COLUMNS($AM$34:AM55)-1),"") ->  | AL41: =IF(OFFSET(DE104_3!$AN$34,ROWS($AN$34:AN55)-1,COLUMNS($AN$34:AN55)-1)<>"",OFFSET(DE104_3!$AN$34,ROWS($AN$34:AN55)-1,COLUMNS($AN$34:AN55)-1),"") ->  | AM41: =IF(OFFSET(DE104_3!$AO$34,ROWS($AO$34:AO55)-1,COLUMNS($AO$34:AO55)-1)<>"",OFFSET(DE104_3!$AO$34,ROWS($AO$34:AO55)-1,COLUMNS($AO$34:AO55)-1),"") -> 1.729027778 | AN41: =IF(OFFSET(DE104_3!$AP$34,ROWS($AP$34:AP55)-1,COLUMNS($AP$34:AP55)-1)<>"",OFFSET(DE104_3!$AP$34,ROWS($AP$34:AP55)-1,COLUMNS($AP$34:AP55)-1),"") -> 1.729027778 | AO41: =IF(OFFSET(DE104_3!$AQ$34,ROWS($AQ$34:AQ55)-1,COLUMNS($AQ$34:AQ55)-1)<>"",OFFSET(DE104_3!$AQ$34,ROWS($AQ$34:AQ55)-1,COLUMNS($AQ$34:AQ55)-1),"") -> 
A42: =IF(OFFSET(DE104_3!$C$34,ROWS($C$34:C56)-1,COLUMNS($C$34:C56)-1)<>"",OFFSET(DE104_3!$C$34,ROWS($C$34:C56)-1,COLUMNS($C$34:C56)-1),"") ->  | B42: =IF(OFFSET(DE104_3!$D$34,ROWS($D$34:D56)-1,COLUMNS($D$34:D56)-1)<>"",OFFSET(DE104_3!$D$34,ROWS($D$34:D56)-1,COLUMNS($D$34:D56)-1),"") ->  | C42: =IF(OFFSET(DE104_3!$E$34,ROWS($E$34:E56)-1,COLUMNS($E$34:E56)-1)<>"",OFFSET(DE104_3!$E$34,ROWS($E$34:E56)-1,COLUMNS($E$34:E56)-1),"") ->  | D42: =IF(OFFSET(DE104_3!$F$34,ROWS($F$34:F56)-1,COLUMNS($F$34:F56)-1)<>"",OFFSET(DE104_3!$F$34,ROWS($F$34:F56)-1,COLUMNS($F$34:F56)-1),"") ->  | E42: =IF(OFFSET(DE104_3!$G$34,ROWS($G$34:G56)-1,COLUMNS($G$34:G56)-1)<>"",OFFSET(DE104_3!$G$34,ROWS($G$34:G56)-1,COLUMNS($G$34:G56)-1),"") ->  | F42: =IF(OFFSET(DE104_3!$H$34,ROWS($H$34:H56)-1,COLUMNS($H$34:H56)-1)<>"",OFFSET(DE104_3!$H$34,ROWS($H$34:H56)-1,COLUMNS($H$34:H56)-1),"") ->  | G42: =IF(OFFSET(DE104_3!$I$34,ROWS($I$34:I56)-1,COLUMNS($I$34:I56)-1)<>"",OFFSET(DE104_3!$I$34,ROWS($I$34:I56)-1,COLUMNS($I$34:I56)-1),"") ->  | H42: =IF(OFFSET(DE104_3!$J$34,ROWS($J$34:J56)-1,COLUMNS($J$34:J56)-1)<>"",OFFSET(DE104_3!$J$34,ROWS($J$34:J56)-1,COLUMNS($J$34:J56)-1),"") ->  | I42: =IF(OFFSET(DE104_3!$K$34,ROWS($K$34:K56)-1,COLUMNS($K$34:K56)-1)<>"",OFFSET(DE104_3!$K$34,ROWS($K$34:K56)-1,COLUMNS($K$34:K56)-1),"") ->  | J42: =IF(OFFSET(DE104_3!$L$34,ROWS($L$34:L56)-1,COLUMNS($L$34:L56)-1)<>"",OFFSET(DE104_3!$L$34,ROWS($L$34:L56)-1,COLUMNS($L$34:L56)-1),"") ->  | K42: =IF(OFFSET(DE104_3!$M$34,ROWS($M$34:M56)-1,COLUMNS($M$34:M56)-1)<>"",OFFSET(DE104_3!$M$34,ROWS($M$34:M56)-1,COLUMNS($M$34:M56)-1),"") ->  | L42: =IF(OFFSET(DE104_3!$N$34,ROWS($N$34:N56)-1,COLUMNS($N$34:N56)-1)<>"",OFFSET(DE104_3!$N$34,ROWS($N$34:N56)-1,COLUMNS($N$34:N56)-1),"") ->  | M42: =IF(OFFSET(DE104_3!$O$34,ROWS($O$34:O56)-1,COLUMNS($O$34:O56)-1)<>"",OFFSET(DE104_3!$O$34,ROWS($O$34:O56)-1,COLUMNS($O$34:O56)-1),"") ->  | N42: =IF(OFFSET(DE104_3!$P$34,ROWS($P$34:P56)-1,COLUMNS($P$34:P56)-1)<>"",OFFSET(DE104_3!$P$34,ROWS($P$34:P56)-1,COLUMNS($P$34:P56)-1),"") ->  | O42: =IF(OFFSET(DE104_3!$Q$34,ROWS($Q$34:Q56)-1,COLUMNS($Q$34:Q56)-1)<>"",OFFSET(DE104_3!$Q$34,ROWS($Q$34:Q56)-1,COLUMNS($Q$34:Q56)-1),"") ->  | P42: =IF(OFFSET(DE104_3!$R$34,ROWS($R$34:R56)-1,COLUMNS($R$34:R56)-1)<>"",OFFSET(DE104_3!$R$34,ROWS($R$34:R56)-1,COLUMNS($R$34:R56)-1),"") ->  | Q42: =IF(OFFSET(DE104_3!$S$34,ROWS($S$34:S56)-1,COLUMNS($S$34:S56)-1)<>"",OFFSET(DE104_3!$S$34,ROWS($S$34:S56)-1,COLUMNS($S$34:S56)-1),"") ->  | R42: =IF(OFFSET(DE104_3!$T$34,ROWS($T$34:T56)-1,COLUMNS($T$34:T56)-1)<>"",OFFSET(DE104_3!$T$34,ROWS($T$34:T56)-1,COLUMNS($T$34:T56)-1),"") ->  | S42: =IF(OFFSET(DE104_3!$U$34,ROWS($U$34:U56)-1,COLUMNS($U$34:U56)-1)<>"",OFFSET(DE104_3!$U$34,ROWS($U$34:U56)-1,COLUMNS($U$34:U56)-1),"") ->  | T42: =IF(OFFSET(DE104_3!$V$34,ROWS($V$34:V56)-1,COLUMNS($V$34:V56)-1)<>"",OFFSET(DE104_3!$V$34,ROWS($V$34:V56)-1,COLUMNS($V$34:V56)-1),"") ->  | U42: =IF(OFFSET(DE104_3!$W$34,ROWS($W$34:W56)-1,COLUMNS($W$34:W56)-1)<>"",OFFSET(DE104_3!$W$34,ROWS($W$34:W56)-1,COLUMNS($W$34:W56)-1),"") ->  | V42: =IF(OFFSET(DE104_3!$X$34,ROWS($X$34:X56)-1,COLUMNS($X$34:X56)-1)<>"",OFFSET(DE104_3!$X$34,ROWS($X$34:X56)-1,COLUMNS($X$34:X56)-1),"") ->  | W42: =IF(OFFSET(DE104_3!$Y$34,ROWS($Y$34:Y56)-1,COLUMNS($Y$34:Y56)-1)<>"",OFFSET(DE104_3!$Y$34,ROWS($Y$34:Y56)-1,COLUMNS($Y$34:Y56)-1),"") ->  | X42: =IF(OFFSET(DE104_3!$Z$34,ROWS($Z$34:Z56)-1,COLUMNS($Z$34:Z56)-1)<>"",OFFSET(DE104_3!$Z$34,ROWS($Z$34:Z56)-1,COLUMNS($Z$34:Z56)-1),"") ->  | Y42: =IF(OFFSET(DE104_3!$AA$34,ROWS($AA$34:AA56)-1,COLUMNS($AA$34:AA56)-1)<>"",OFFSET(DE104_3!$AA$34,ROWS($AA$34:AA56)-1,COLUMNS($AA$34:AA56)-1),"") ->  | Z42: =IF(OFFSET(DE104_3!$AB$34,ROWS($AB$34:AB56)-1,COLUMNS($AB$34:AB56)-1)<>"",OFFSET(DE104_3!$AB$34,ROWS($AB$34:AB56)-1,COLUMNS($AB$34:AB56)-1),"") ->  | AA42: =IF(OFFSET(DE104_3!$AC$34,ROWS($AC$34:AC56)-1,COLUMNS($AC$34:AC56)-1)<>"",OFFSET(DE104_3!$AC$34,ROWS($AC$34:AC56)-1,COLUMNS($AC$34:AC56)-1),"") ->  | AB42: =IF(OFFSET(DE104_3!$AD$34,ROWS($AD$34:AD56)-1,COLUMNS($AD$34:AD56)-1)<>"",OFFSET(DE104_3!$AD$34,ROWS($AD$34:AD56)-1,COLUMNS($AD$34:AD56)-1),"") ->  | AC42: =IF(OFFSET(DE104_3!$AE$34,ROWS($AE$34:AE56)-1,COLUMNS($AE$34:AE56)-1)<>"",OFFSET(DE104_3!$AE$34,ROWS($AE$34:AE56)-1,COLUMNS($AE$34:AE56)-1),"") ->  | AD42: =IF(OFFSET(DE104_3!$AF$34,ROWS($AF$34:AF56)-1,COLUMNS($AF$34:AF56)-1)<>"",OFFSET(DE104_3!$AF$34,ROWS($AF$34:AF56)-1,COLUMNS($AF$34:AF56)-1),"") ->  | AE42: =IF(OFFSET(DE104_3!$AG$34,ROWS($AG$34:AG56)-1,COLUMNS($AG$34:AG56)-1)<>"",OFFSET(DE104_3!$AG$34,ROWS($AG$34:AG56)-1,COLUMNS($AG$34:AG56)-1),"") ->  | AF42: =IF(OFFSET(DE104_3!$AH$34,ROWS($AH$34:AH56)-1,COLUMNS($AH$34:AH56)-1)<>"",OFFSET(DE104_3!$AH$34,ROWS($AH$34:AH56)-1,COLUMNS($AH$34:AH56)-1),"") ->  | AG42: =IF(OFFSET(DE104_3!$AI$34,ROWS($AI$34:AI56)-1,COLUMNS($AI$34:AI56)-1)<>"",OFFSET(DE104_3!$AI$34,ROWS($AI$34:AI56)-1,COLUMNS($AI$34:AI56)-1),"") ->  | AH42: =IF(OFFSET(DE104_3!$AJ$34,ROWS($AJ$34:AJ56)-1,COLUMNS($AJ$34:AJ56)-1)<>"",OFFSET(DE104_3!$AJ$34,ROWS($AJ$34:AJ56)-1,COLUMNS($AJ$34:AJ56)-1),"") ->  | AI42: =IF(OFFSET(DE104_3!$AK$34,ROWS($AK$34:AK56)-1,COLUMNS($AK$34:AK56)-1)<>"",OFFSET(DE104_3!$AK$34,ROWS($AK$34:AK56)-1,COLUMNS($AK$34:AK56)-1),"") ->  | AJ42: =IF(OFFSET(DE104_3!$AL$34,ROWS($AL$34:AL56)-1,COLUMNS($AL$34:AL56)-1)<>"",OFFSET(DE104_3!$AL$34,ROWS($AL$34:AL56)-1,COLUMNS($AL$34:AL56)-1),"") ->  | AK42: =IF(OFFSET(DE104_3!$AM$34,ROWS($AM$34:AM56)-1,COLUMNS($AM$34:AM56)-1)<>"",OFFSET(DE104_3!$AM$34,ROWS($AM$34:AM56)-1,COLUMNS($AM$34:AM56)-1),"") ->  | AL42: =IF(OFFSET(DE104_3!$AN$34,ROWS($AN$34:AN56)-1,COLUMNS($AN$34:AN56)-1)<>"",OFFSET(DE104_3!$AN$34,ROWS($AN$34:AN56)-1,COLUMNS($AN$34:AN56)-1),"") ->  | AM42: =IF(OFFSET(DE104_3!$AO$34,ROWS($AO$34:AO56)-1,COLUMNS($AO$34:AO56)-1)<>"",OFFSET(DE104_3!$AO$34,ROWS($AO$34:AO56)-1,COLUMNS($AO$34:AO56)-1),"") ->  | AN42: =IF(OFFSET(DE104_3!$AP$34,ROWS($AP$34:AP56)-1,COLUMNS($AP$34:AP56)-1)<>"",OFFSET(DE104_3!$AP$34,ROWS($AP$34:AP56)-1,COLUMNS($AP$34:AP56)-1),"") ->  | AO42: =IF(OFFSET(DE104_3!$AQ$34,ROWS($AQ$34:AQ56)-1,COLUMNS($AQ$34:AQ56)-1)<>"",OFFSET(DE104_3!$AQ$34,ROWS($AQ$34:AQ56)-1,COLUMNS($AQ$34:AQ56)-1),"") -> 
A43: =IF(OFFSET(DE104_3!$C$34,ROWS($C$34:C57)-1,COLUMNS($C$34:C57)-1)<>"",OFFSET(DE104_3!$C$34,ROWS($C$34:C57)-1,COLUMNS($C$34:C57)-1),"") ->  | B43: =IF(OFFSET(DE104_3!$D$34,ROWS($D$34:D57)-1,COLUMNS($D$34:D57)-1)<>"",OFFSET(DE104_3!$D$34,ROWS($D$34:D57)-1,COLUMNS($D$34:D57)-1),"") ->  | C43: =IF(OFFSET(DE104_3!$E$34,ROWS($E$34:E57)-1,COLUMNS($E$34:E57)-1)<>"",OFFSET(DE104_3!$E$34,ROWS($E$34:E57)-1,COLUMNS($E$34:E57)-1),"") ->  | D43: =IF(OFFSET(DE104_3!$F$34,ROWS($F$34:F57)-1,COLUMNS($F$34:F57)-1)<>"",OFFSET(DE104_3!$F$34,ROWS($F$34:F57)-1,COLUMNS($F$34:F57)-1),"") ->  | E43: =IF(OFFSET(DE104_3!$G$34,ROWS($G$34:G57)-1,COLUMNS($G$34:G57)-1)<>"",OFFSET(DE104_3!$G$34,ROWS($G$34:G57)-1,COLUMNS($G$34:G57)-1),"") ->  | F43: =IF(OFFSET(DE104_3!$H$34,ROWS($H$34:H57)-1,COLUMNS($H$34:H57)-1)<>"",OFFSET(DE104_3!$H$34,ROWS($H$34:H57)-1,COLUMNS($H$34:H57)-1),"") ->  | G43: =IF(OFFSET(DE104_3!$I$34,ROWS($I$34:I57)-1,COLUMNS($I$34:I57)-1)<>"",OFFSET(DE104_3!$I$34,ROWS($I$34:I57)-1,COLUMNS($I$34:I57)-1),"") ->  | H43: =IF(OFFSET(DE104_3!$J$34,ROWS($J$34:J57)-1,COLUMNS($J$34:J57)-1)<>"",OFFSET(DE104_3!$J$34,ROWS($J$34:J57)-1,COLUMNS($J$34:J57)-1),"") ->  | I43: =IF(OFFSET(DE104_3!$K$34,ROWS($K$34:K57)-1,COLUMNS($K$34:K57)-1)<>"",OFFSET(DE104_3!$K$34,ROWS($K$34:K57)-1,COLUMNS($K$34:K57)-1),"") ->  | J43: =IF(OFFSET(DE104_3!$L$34,ROWS($L$34:L57)-1,COLUMNS($L$34:L57)-1)<>"",OFFSET(DE104_3!$L$34,ROWS($L$34:L57)-1,COLUMNS($L$34:L57)-1),"") ->  | K43: =IF(OFFSET(DE104_3!$M$34,ROWS($M$34:M57)-1,COLUMNS($M$34:M57)-1)<>"",OFFSET(DE104_3!$M$34,ROWS($M$34:M57)-1,COLUMNS($M$34:M57)-1),"") ->  | L43: =IF(OFFSET(DE104_3!$N$34,ROWS($N$34:N57)-1,COLUMNS($N$34:N57)-1)<>"",OFFSET(DE104_3!$N$34,ROWS($N$34:N57)-1,COLUMNS($N$34:N57)-1),"") ->  | M43: =IF(OFFSET(DE104_3!$O$34,ROWS($O$34:O57)-1,COLUMNS($O$34:O57)-1)<>"",OFFSET(DE104_3!$O$34,ROWS($O$34:O57)-1,COLUMNS($O$34:O57)-1),"") ->  | N43: =IF(OFFSET(DE104_3!$P$34,ROWS($P$34:P57)-1,COLUMNS($P$34:P57)-1)<>"",OFFSET(DE104_3!$P$34,ROWS($P$34:P57)-1,COLUMNS($P$34:P57)-1),"") ->  | O43: =IF(OFFSET(DE104_3!$Q$34,ROWS($Q$34:Q57)-1,COLUMNS($Q$34:Q57)-1)<>"",OFFSET(DE104_3!$Q$34,ROWS($Q$34:Q57)-1,COLUMNS($Q$34:Q57)-1),"") ->  | P43: =IF(OFFSET(DE104_3!$R$34,ROWS($R$34:R57)-1,COLUMNS($R$34:R57)-1)<>"",OFFSET(DE104_3!$R$34,ROWS($R$34:R57)-1,COLUMNS($R$34:R57)-1),"") ->  | Q43: =IF(OFFSET(DE104_3!$S$34,ROWS($S$34:S57)-1,COLUMNS($S$34:S57)-1)<>"",OFFSET(DE104_3!$S$34,ROWS($S$34:S57)-1,COLUMNS($S$34:S57)-1),"") ->  | R43: =IF(OFFSET(DE104_3!$T$34,ROWS($T$34:T57)-1,COLUMNS($T$34:T57)-1)<>"",OFFSET(DE104_3!$T$34,ROWS($T$34:T57)-1,COLUMNS($T$34:T57)-1),"") ->  | S43: =IF(OFFSET(DE104_3!$U$34,ROWS($U$34:U57)-1,COLUMNS($U$34:U57)-1)<>"",OFFSET(DE104_3!$U$34,ROWS($U$34:U57)-1,COLUMNS($U$34:U57)-1),"") ->  | T43: =IF(OFFSET(DE104_3!$V$34,ROWS($V$34:V57)-1,COLUMNS($V$34:V57)-1)<>"",OFFSET(DE104_3!$V$34,ROWS($V$34:V57)-1,COLUMNS($V$34:V57)-1),"") ->  | U43: =IF(OFFSET(DE104_3!$W$34,ROWS($W$34:W57)-1,COLUMNS($W$34:W57)-1)<>"",OFFSET(DE104_3!$W$34,ROWS($W$34:W57)-1,COLUMNS($W$34:W57)-1),"") ->  | V43: =IF(OFFSET(DE104_3!$X$34,ROWS($X$34:X57)-1,COLUMNS($X$34:X57)-1)<>"",OFFSET(DE104_3!$X$34,ROWS($X$34:X57)-1,COLUMNS($X$34:X57)-1),"") ->  | W43: =IF(OFFSET(DE104_3!$Y$34,ROWS($Y$34:Y57)-1,COLUMNS($Y$34:Y57)-1)<>"",OFFSET(DE104_3!$Y$34,ROWS($Y$34:Y57)-1,COLUMNS($Y$34:Y57)-1),"") ->  | X43: =IF(OFFSET(DE104_3!$Z$34,ROWS($Z$34:Z57)-1,COLUMNS($Z$34:Z57)-1)<>"",OFFSET(DE104_3!$Z$34,ROWS($Z$34:Z57)-1,COLUMNS($Z$34:Z57)-1),"") ->  | Y43: =IF(OFFSET(DE104_3!$AA$34,ROWS($AA$34:AA57)-1,COLUMNS($AA$34:AA57)-1)<>"",OFFSET(DE104_3!$AA$34,ROWS($AA$34:AA57)-1,COLUMNS($AA$34:AA57)-1),"") ->  | Z43: =IF(OFFSET(DE104_3!$AB$34,ROWS($AB$34:AB57)-1,COLUMNS($AB$34:AB57)-1)<>"",OFFSET(DE104_3!$AB$34,ROWS($AB$34:AB57)-1,COLUMNS($AB$34:AB57)-1),"") ->  | AA43: =IF(OFFSET(DE104_3!$AC$34,ROWS($AC$34:AC57)-1,COLUMNS($AC$34:AC57)-1)<>"",OFFSET(DE104_3!$AC$34,ROWS($AC$34:AC57)-1,COLUMNS($AC$34:AC57)-1),"") ->  | AB43: =IF(OFFSET(DE104_3!$AD$34,ROWS($AD$34:AD57)-1,COLUMNS($AD$34:AD57)-1)<>"",OFFSET(DE104_3!$AD$34,ROWS($AD$34:AD57)-1,COLUMNS($AD$34:AD57)-1),"") ->  | AC43: =IF(OFFSET(DE104_3!$AE$34,ROWS($AE$34:AE57)-1,COLUMNS($AE$34:AE57)-1)<>"",OFFSET(DE104_3!$AE$34,ROWS($AE$34:AE57)-1,COLUMNS($AE$34:AE57)-1),"") ->  | AD43: =IF(OFFSET(DE104_3!$AF$34,ROWS($AF$34:AF57)-1,COLUMNS($AF$34:AF57)-1)<>"",OFFSET(DE104_3!$AF$34,ROWS($AF$34:AF57)-1,COLUMNS($AF$34:AF57)-1),"") ->  | AE43: =IF(OFFSET(DE104_3!$AG$34,ROWS($AG$34:AG57)-1,COLUMNS($AG$34:AG57)-1)<>"",OFFSET(DE104_3!$AG$34,ROWS($AG$34:AG57)-1,COLUMNS($AG$34:AG57)-1),"") ->  | AF43: =IF(OFFSET(DE104_3!$AH$34,ROWS($AH$34:AH57)-1,COLUMNS($AH$34:AH57)-1)<>"",OFFSET(DE104_3!$AH$34,ROWS($AH$34:AH57)-1,COLUMNS($AH$34:AH57)-1),"") ->  | AG43: =IF(OFFSET(DE104_3!$AI$34,ROWS($AI$34:AI57)-1,COLUMNS($AI$34:AI57)-1)<>"",OFFSET(DE104_3!$AI$34,ROWS($AI$34:AI57)-1,COLUMNS($AI$34:AI57)-1),"") ->  | AH43: =IF(OFFSET(DE104_3!$AJ$34,ROWS($AJ$34:AJ57)-1,COLUMNS($AJ$34:AJ57)-1)<>"",OFFSET(DE104_3!$AJ$34,ROWS($AJ$34:AJ57)-1,COLUMNS($AJ$34:AJ57)-1),"") ->  | AI43: =IF(OFFSET(DE104_3!$AK$34,ROWS($AK$34:AK57)-1,COLUMNS($AK$34:AK57)-1)<>"",OFFSET(DE104_3!$AK$34,ROWS($AK$34:AK57)-1,COLUMNS($AK$34:AK57)-1),"") ->  | AJ43: =IF(OFFSET(DE104_3!$AL$34,ROWS($AL$34:AL57)-1,COLUMNS($AL$34:AL57)-1)<>"",OFFSET(DE104_3!$AL$34,ROWS($AL$34:AL57)-1,COLUMNS($AL$34:AL57)-1),"") ->  | AK43: =IF(OFFSET(DE104_3!$AM$34,ROWS($AM$34:AM57)-1,COLUMNS($AM$34:AM57)-1)<>"",OFFSET(DE104_3!$AM$34,ROWS($AM$34:AM57)-1,COLUMNS($AM$34:AM57)-1),"") ->  | AL43: =IF(OFFSET(DE104_3!$AN$34,ROWS($AN$34:AN57)-1,COLUMNS($AN$34:AN57)-1)<>"",OFFSET(DE104_3!$AN$34,ROWS($AN$34:AN57)-1,COLUMNS($AN$34:AN57)-1),"") ->  | AM43: =IF(OFFSET(DE104_3!$AO$34,ROWS($AO$34:AO57)-1,COLUMNS($AO$34:AO57)-1)<>"",OFFSET(DE104_3!$AO$34,ROWS($AO$34:AO57)-1,COLUMNS($AO$34:AO57)-1),"") ->  | AN43: =IF(OFFSET(DE104_3!$AP$34,ROWS($AP$34:AP57)-1,COLUMNS($AP$34:AP57)-1)<>"",OFFSET(DE104_3!$AP$34,ROWS($AP$34:AP57)-1,COLUMNS($AP$34:AP57)-1),"") ->  | AO43: =IF(OFFSET(DE104_3!$AQ$34,ROWS($AQ$34:AQ57)-1,COLUMNS($AQ$34:AQ57)-1)<>"",OFFSET(DE104_3!$AQ$34,ROWS($AQ$34:AQ57)-1,COLUMNS($AQ$34:AQ57)-1),"") -> 
A44: =IF(OFFSET(DE104_3!$C$34,ROWS($C$34:C58)-1,COLUMNS($C$34:C58)-1)<>"",OFFSET(DE104_3!$C$34,ROWS($C$34:C58)-1,COLUMNS($C$34:C58)-1),"") ->  | B44: =IF(OFFSET(DE104_3!$D$34,ROWS($D$34:D58)-1,COLUMNS($D$34:D58)-1)<>"",OFFSET(DE104_3!$D$34,ROWS($D$34:D58)-1,COLUMNS($D$34:D58)-1),"") -> US 218 Ramp D | C44: =IF(OFFSET(DE104_3!$E$34,ROWS($E$34:E58)-1,COLUMNS($E$34:E58)-1)<>"",OFFSET(DE104_3!$E$34,ROWS($E$34:E58)-1,COLUMNS($E$34:E58)-1),"") ->  | D44: =IF(OFFSET(DE104_3!$F$34,ROWS($F$34:F58)-1,COLUMNS($F$34:F58)-1)<>"",OFFSET(DE104_3!$F$34,ROWS($F$34:F58)-1,COLUMNS($F$34:F58)-1),"") ->  | E44: =IF(OFFSET(DE104_3!$G$34,ROWS($G$34:G58)-1,COLUMNS($G$34:G58)-1)<>"",OFFSET(DE104_3!$G$34,ROWS($G$34:G58)-1,COLUMNS($G$34:G58)-1),"") ->  | F44: =IF(OFFSET(DE104_3!$H$34,ROWS($H$34:H58)-1,COLUMNS($H$34:H58)-1)<>"",OFFSET(DE104_3!$H$34,ROWS($H$34:H58)-1,COLUMNS($H$34:H58)-1),"") ->  | G44: =IF(OFFSET(DE104_3!$I$34,ROWS($I$34:I58)-1,COLUMNS($I$34:I58)-1)<>"",OFFSET(DE104_3!$I$34,ROWS($I$34:I58)-1,COLUMNS($I$34:I58)-1),"") ->  | H44: =IF(OFFSET(DE104_3!$J$34,ROWS($J$34:J58)-1,COLUMNS($J$34:J58)-1)<>"",OFFSET(DE104_3!$J$34,ROWS($J$34:J58)-1,COLUMNS($J$34:J58)-1),"") ->  | I44: =IF(OFFSET(DE104_3!$K$34,ROWS($K$34:K58)-1,COLUMNS($K$34:K58)-1)<>"",OFFSET(DE104_3!$K$34,ROWS($K$34:K58)-1,COLUMNS($K$34:K58)-1),"") ->  | J44: =IF(OFFSET(DE104_3!$L$34,ROWS($L$34:L58)-1,COLUMNS($L$34:L58)-1)<>"",OFFSET(DE104_3!$L$34,ROWS($L$34:L58)-1,COLUMNS($L$34:L58)-1),"") ->  | K44: =IF(OFFSET(DE104_3!$M$34,ROWS($M$34:M58)-1,COLUMNS($M$34:M58)-1)<>"",OFFSET(DE104_3!$M$34,ROWS($M$34:M58)-1,COLUMNS($M$34:M58)-1),"") ->  | L44: =IF(OFFSET(DE104_3!$N$34,ROWS($N$34:N58)-1,COLUMNS($N$34:N58)-1)<>"",OFFSET(DE104_3!$N$34,ROWS($N$34:N58)-1,COLUMNS($N$34:N58)-1),"") ->  | M44: =IF(OFFSET(DE104_3!$O$34,ROWS($O$34:O58)-1,COLUMNS($O$34:O58)-1)<>"",OFFSET(DE104_3!$O$34,ROWS($O$34:O58)-1,COLUMNS($O$34:O58)-1),"") ->  | N44: =IF(OFFSET(DE104_3!$P$34,ROWS($P$34:P58)-1,COLUMNS($P$34:P58)-1)<>"",OFFSET(DE104_3!$P$34,ROWS($P$34:P58)-1,COLUMNS($P$34:P58)-1),"") ->  | O44: =IF(OFFSET(DE104_3!$Q$34,ROWS($Q$34:Q58)-1,COLUMNS($Q$34:Q58)-1)<>"",OFFSET(DE104_3!$Q$34,ROWS($Q$34:Q58)-1,COLUMNS($Q$34:Q58)-1),"") ->  | P44: =IF(OFFSET(DE104_3!$R$34,ROWS($R$34:R58)-1,COLUMNS($R$34:R58)-1)<>"",OFFSET(DE104_3!$R$34,ROWS($R$34:R58)-1,COLUMNS($R$34:R58)-1),"") ->  | Q44: =IF(OFFSET(DE104_3!$S$34,ROWS($S$34:S58)-1,COLUMNS($S$34:S58)-1)<>"",OFFSET(DE104_3!$S$34,ROWS($S$34:S58)-1,COLUMNS($S$34:S58)-1),"") ->  | R44: =IF(OFFSET(DE104_3!$T$34,ROWS($T$34:T58)-1,COLUMNS($T$34:T58)-1)<>"",OFFSET(DE104_3!$T$34,ROWS($T$34:T58)-1,COLUMNS($T$34:T58)-1),"") ->  | S44: =IF(OFFSET(DE104_3!$U$34,ROWS($U$34:U58)-1,COLUMNS($U$34:U58)-1)<>"",OFFSET(DE104_3!$U$34,ROWS($U$34:U58)-1,COLUMNS($U$34:U58)-1),"") ->  | T44: =IF(OFFSET(DE104_3!$V$34,ROWS($V$34:V58)-1,COLUMNS($V$34:V58)-1)<>"",OFFSET(DE104_3!$V$34,ROWS($V$34:V58)-1,COLUMNS($V$34:V58)-1),"") ->  | U44: =IF(OFFSET(DE104_3!$W$34,ROWS($W$34:W58)-1,COLUMNS($W$34:W58)-1)<>"",OFFSET(DE104_3!$W$34,ROWS($W$34:W58)-1,COLUMNS($W$34:W58)-1),"") ->  | V44: =IF(OFFSET(DE104_3!$X$34,ROWS($X$34:X58)-1,COLUMNS($X$34:X58)-1)<>"",OFFSET(DE104_3!$X$34,ROWS($X$34:X58)-1,COLUMNS($X$34:X58)-1),"") ->  | W44: =IF(OFFSET(DE104_3!$Y$34,ROWS($Y$34:Y58)-1,COLUMNS($Y$34:Y58)-1)<>"",OFFSET(DE104_3!$Y$34,ROWS($Y$34:Y58)-1,COLUMNS($Y$34:Y58)-1),"") ->  | X44: =IF(OFFSET(DE104_3!$Z$34,ROWS($Z$34:Z58)-1,COLUMNS($Z$34:Z58)-1)<>"",OFFSET(DE104_3!$Z$34,ROWS($Z$34:Z58)-1,COLUMNS($Z$34:Z58)-1),"") ->  | Y44: =IF(OFFSET(DE104_3!$AA$34,ROWS($AA$34:AA58)-1,COLUMNS($AA$34:AA58)-1)<>"",OFFSET(DE104_3!$AA$34,ROWS($AA$34:AA58)-1,COLUMNS($AA$34:AA58)-1),"") ->  | Z44: =IF(OFFSET(DE104_3!$AB$34,ROWS($AB$34:AB58)-1,COLUMNS($AB$34:AB58)-1)<>"",OFFSET(DE104_3!$AB$34,ROWS($AB$34:AB58)-1,COLUMNS($AB$34:AB58)-1),"") ->  | AA44: =IF(OFFSET(DE104_3!$AC$34,ROWS($AC$34:AC58)-1,COLUMNS($AC$34:AC58)-1)<>"",OFFSET(DE104_3!$AC$34,ROWS($AC$34:AC58)-1,COLUMNS($AC$34:AC58)-1),"") ->  | AB44: =IF(OFFSET(DE104_3!$AD$34,ROWS($AD$34:AD58)-1,COLUMNS($AD$34:AD58)-1)<>"",OFFSET(DE104_3!$AD$34,ROWS($AD$34:AD58)-1,COLUMNS($AD$34:AD58)-1),"") ->  | AC44: =IF(OFFSET(DE104_3!$AE$34,ROWS($AE$34:AE58)-1,COLUMNS($AE$34:AE58)-1)<>"",OFFSET(DE104_3!$AE$34,ROWS($AE$34:AE58)-1,COLUMNS($AE$34:AE58)-1),"") ->  | AD44: =IF(OFFSET(DE104_3!$AF$34,ROWS($AF$34:AF58)-1,COLUMNS($AF$34:AF58)-1)<>"",OFFSET(DE104_3!$AF$34,ROWS($AF$34:AF58)-1,COLUMNS($AF$34:AF58)-1),"") ->  | AE44: =IF(OFFSET(DE104_3!$AG$34,ROWS($AG$34:AG58)-1,COLUMNS($AG$34:AG58)-1)<>"",OFFSET(DE104_3!$AG$34,ROWS($AG$34:AG58)-1,COLUMNS($AG$34:AG58)-1),"") ->  | AF44: =IF(OFFSET(DE104_3!$AH$34,ROWS($AH$34:AH58)-1,COLUMNS($AH$34:AH58)-1)<>"",OFFSET(DE104_3!$AH$34,ROWS($AH$34:AH58)-1,COLUMNS($AH$34:AH58)-1),"") ->  | AG44: =IF(OFFSET(DE104_3!$AI$34,ROWS($AI$34:AI58)-1,COLUMNS($AI$34:AI58)-1)<>"",OFFSET(DE104_3!$AI$34,ROWS($AI$34:AI58)-1,COLUMNS($AI$34:AI58)-1),"") ->  | AH44: =IF(OFFSET(DE104_3!$AJ$34,ROWS($AJ$34:AJ58)-1,COLUMNS($AJ$34:AJ58)-1)<>"",OFFSET(DE104_3!$AJ$34,ROWS($AJ$34:AJ58)-1,COLUMNS($AJ$34:AJ58)-1),"") ->  | AI44: =IF(OFFSET(DE104_3!$AK$34,ROWS($AK$34:AK58)-1,COLUMNS($AK$34:AK58)-1)<>"",OFFSET(DE104_3!$AK$34,ROWS($AK$34:AK58)-1,COLUMNS($AK$34:AK58)-1),"") ->  | AJ44: =IF(OFFSET(DE104_3!$AL$34,ROWS($AL$34:AL58)-1,COLUMNS($AL$34:AL58)-1)<>"",OFFSET(DE104_3!$AL$34,ROWS($AL$34:AL58)-1,COLUMNS($AL$34:AL58)-1),"") ->  | AK44: =IF(OFFSET(DE104_3!$AM$34,ROWS($AM$34:AM58)-1,COLUMNS($AM$34:AM58)-1)<>"",OFFSET(DE104_3!$AM$34,ROWS($AM$34:AM58)-1,COLUMNS($AM$34:AM58)-1),"") ->  | AL44: =IF(OFFSET(DE104_3!$AN$34,ROWS($AN$34:AN58)-1,COLUMNS($AN$34:AN58)-1)<>"",OFFSET(DE104_3!$AN$34,ROWS($AN$34:AN58)-1,COLUMNS($AN$34:AN58)-1),"") ->  | AM44: =IF(OFFSET(DE104_3!$AO$34,ROWS($AO$34:AO58)-1,COLUMNS($AO$34:AO58)-1)<>"",OFFSET(DE104_3!$AO$34,ROWS($AO$34:AO58)-1,COLUMNS($AO$34:AO58)-1),"") ->  | AN44: =IF(OFFSET(DE104_3!$AP$34,ROWS($AP$34:AP58)-1,COLUMNS($AP$34:AP58)-1)<>"",OFFSET(DE104_3!$AP$34,ROWS($AP$34:AP58)-1,COLUMNS($AP$34:AP58)-1),"") ->  | AO44: =IF(OFFSET(DE104_3!$AQ$34,ROWS($AQ$34:AQ58)-1,COLUMNS($AQ$34:AQ58)-1)<>"",OFFSET(DE104_3!$AQ$34,ROWS($AQ$34:AQ58)-1,COLUMNS($AQ$34:AQ58)-1),"") -> 
A45: =IF(OFFSET(DE104_3!$C$34,ROWS($C$34:C59)-1,COLUMNS($C$34:C59)-1)<>"",OFFSET(DE104_3!$C$34,ROWS($C$34:C59)-1,COLUMNS($C$34:C59)-1),"") ->  | B45: =IF(OFFSET(DE104_3!$D$34,ROWS($D$34:D59)-1,COLUMNS($D$34:D59)-1)<>"",OFFSET(DE104_3!$D$34,ROWS($D$34:D59)-1,COLUMNS($D$34:D59)-1),"") -> 4147617 | C45: =IF(OFFSET(DE104_3!$E$34,ROWS($E$34:E59)-1,COLUMNS($E$34:E59)-1)<>"",OFFSET(DE104_3!$E$34,ROWS($E$34:E59)-1,COLUMNS($E$34:E59)-1),"") -> DR-601 | D45: =IF(OFFSET(DE104_3!$F$34,ROWS($F$34:F59)-1,COLUMNS($F$34:F59)-1)<>"",OFFSET(DE104_3!$F$34,ROWS($F$34:F59)-1,COLUMNS($F$34:F59)-1),"") -> 24 | E45: =IF(OFFSET(DE104_3!$G$34,ROWS($G$34:G59)-1,COLUMNS($G$34:G59)-1)<>"",OFFSET(DE104_3!$G$34,ROWS($G$34:G59)-1,COLUMNS($G$34:G59)-1),"") -> 3000 | F45: =IF(OFFSET(DE104_3!$H$34,ROWS($H$34:H59)-1,COLUMNS($H$34:H59)-1)<>"",OFFSET(DE104_3!$H$34,ROWS($H$34:H59)-1,COLUMNS($H$34:H59)-1),"") -> RCP | G45: =IF(OFFSET(DE104_3!$I$34,ROWS($I$34:I59)-1,COLUMNS($I$34:I59)-1)<>"",OFFSET(DE104_3!$I$34,ROWS($I$34:I59)-1,COLUMNS($I$34:I59)-1),"") -> 210 | H45: =IF(OFFSET(DE104_3!$J$34,ROWS($J$34:J59)-1,COLUMNS($J$34:J59)-1)<>"",OFFSET(DE104_3!$J$34,ROWS($J$34:J59)-1,COLUMNS($J$34:J59)-1),"") -> B | I45: =IF(OFFSET(DE104_3!$K$34,ROWS($K$34:K59)-1,COLUMNS($K$34:K59)-1)<>"",OFFSET(DE104_3!$K$34,ROWS($K$34:K59)-1,COLUMNS($K$34:K59)-1),"") -> 19.8 | J45: =IF(OFFSET(DE104_3!$L$34,ROWS($L$34:L59)-1,COLUMNS($L$34:L59)-1)<>"",OFFSET(DE104_3!$L$34,ROWS($L$34:L59)-1,COLUMNS($L$34:L59)-1),"") ->  | K45: =IF(OFFSET(DE104_3!$M$34,ROWS($M$34:M59)-1,COLUMNS($M$34:M59)-1)<>"",OFFSET(DE104_3!$M$34,ROWS($M$34:M59)-1,COLUMNS($M$34:M59)-1),"") -> 1 | L45: =IF(OFFSET(DE104_3!$N$34,ROWS($N$34:N59)-1,COLUMNS($N$34:N59)-1)<>"",OFFSET(DE104_3!$N$34,ROWS($N$34:N59)-1,COLUMNS($N$34:N59)-1),"") -> 1 | M45: =IF(OFFSET(DE104_3!$O$34,ROWS($O$34:O59)-1,COLUMNS($O$34:O59)-1)<>"",OFFSET(DE104_3!$O$34,ROWS($O$34:O59)-1,COLUMNS($O$34:O59)-1),"") ->  | N45: =IF(OFFSET(DE104_3!$P$34,ROWS($P$34:P59)-1,COLUMNS($P$34:P59)-1)<>"",OFFSET(DE104_3!$P$34,ROWS($P$34:P59)-1,COLUMNS($P$34:P59)-1),"") ->  | O45: =IF(OFFSET(DE104_3!$Q$34,ROWS($Q$34:Q59)-1,COLUMNS($Q$34:Q59)-1)<>"",OFFSET(DE104_3!$Q$34,ROWS($Q$34:Q59)-1,COLUMNS($Q$34:Q59)-1),"") ->  | P45: =IF(OFFSET(DE104_3!$R$34,ROWS($R$34:R59)-1,COLUMNS($R$34:R59)-1)<>"",OFFSET(DE104_3!$R$34,ROWS($R$34:R59)-1,COLUMNS($R$34:R59)-1),"") ->  | Q45: =IF(OFFSET(DE104_3!$S$34,ROWS($S$34:S59)-1,COLUMNS($S$34:S59)-1)<>"",OFFSET(DE104_3!$S$34,ROWS($S$34:S59)-1,COLUMNS($S$34:S59)-1),"") ->  | R45: =IF(OFFSET(DE104_3!$T$34,ROWS($T$34:T59)-1,COLUMNS($T$34:T59)-1)<>"",OFFSET(DE104_3!$T$34,ROWS($T$34:T59)-1,COLUMNS($T$34:T59)-1),"") ->  | S45: =IF(OFFSET(DE104_3!$U$34,ROWS($U$34:U59)-1,COLUMNS($U$34:U59)-1)<>"",OFFSET(DE104_3!$U$34,ROWS($U$34:U59)-1,COLUMNS($U$34:U59)-1),"") ->  | T45: =IF(OFFSET(DE104_3!$V$34,ROWS($V$34:V59)-1,COLUMNS($V$34:V59)-1)<>"",OFFSET(DE104_3!$V$34,ROWS($V$34:V59)-1,COLUMNS($V$34:V59)-1),"") -> Type 3 | U45: =IF(OFFSET(DE104_3!$W$34,ROWS($W$34:W59)-1,COLUMNS($W$34:W59)-1)<>"",OFFSET(DE104_3!$W$34,ROWS($W$34:W59)-1,COLUMNS($W$34:W59)-1),"") ->  | V45: =IF(OFFSET(DE104_3!$X$34,ROWS($X$34:X59)-1,COLUMNS($X$34:X59)-1)<>"",OFFSET(DE104_3!$X$34,ROWS($X$34:X59)-1,COLUMNS($X$34:X59)-1),"") -> 912.32 | W45: =IF(OFFSET(DE104_3!$Y$34,ROWS($Y$34:Y59)-1,COLUMNS($Y$34:Y59)-1)<>"",OFFSET(DE104_3!$Y$34,ROWS($Y$34:Y59)-1,COLUMNS($Y$34:Y59)-1),"") -> 910.82 | X45: =IF(OFFSET(DE104_3!$Z$34,ROWS($Z$34:Z59)-1,COLUMNS($Z$34:Z59)-1)<>"",OFFSET(DE104_3!$Z$34,ROWS($Z$34:Z59)-1,COLUMNS($Z$34:Z59)-1),"") ->  | Y45: =IF(OFFSET(DE104_3!$AA$34,ROWS($AA$34:AA59)-1,COLUMNS($AA$34:AA59)-1)<>"",OFFSET(DE104_3!$AA$34,ROWS($AA$34:AA59)-1,COLUMNS($AA$34:AA59)-1),"") ->  | Z45: =IF(OFFSET(DE104_3!$AB$34,ROWS($AB$34:AB59)-1,COLUMNS($AB$34:AB59)-1)<>"",OFFSET(DE104_3!$AB$34,ROWS($AB$34:AB59)-1,COLUMNS($AB$34:AB59)-1),"") -> 129.33 | AA45: =IF(OFFSET(DE104_3!$AC$34,ROWS($AC$34:AC59)-1,COLUMNS($AC$34:AC59)-1)<>"",OFFSET(DE104_3!$AC$34,ROWS($AC$34:AC59)-1,COLUMNS($AC$34:AC59)-1),"") -> 92.91 | AB45: =IF(OFFSET(DE104_3!$AD$34,ROWS($AD$34:AD59)-1,COLUMNS($AD$34:AD59)-1)<>"",OFFSET(DE104_3!$AD$34,ROWS($AD$34:AD59)-1,COLUMNS($AD$34:AD59)-1),"") ->  | AC45: =IF(OFFSET(DE104_3!$AE$34,ROWS($AE$34:AE59)-1,COLUMNS($AE$34:AE59)-1)<>"",OFFSET(DE104_3!$AE$34,ROWS($AE$34:AE59)-1,COLUMNS($AE$34:AE59)-1),"") ->  | AD45: =IF(OFFSET(DE104_3!$AF$34,ROWS($AF$34:AF59)-1,COLUMNS($AF$34:AF59)-1)<>"",OFFSET(DE104_3!$AF$34,ROWS($AF$34:AF59)-1,COLUMNS($AF$34:AF59)-1),"") ->  | AE45: =IF(OFFSET(DE104_3!$AG$34,ROWS($AG$34:AG59)-1,COLUMNS($AG$34:AG59)-1)<>"",OFFSET(DE104_3!$AG$34,ROWS($AG$34:AG59)-1,COLUMNS($AG$34:AG59)-1),"") ->  | AF45: =IF(OFFSET(DE104_3!$AH$34,ROWS($AH$34:AH59)-1,COLUMNS($AH$34:AH59)-1)<>"",OFFSET(DE104_3!$AH$34,ROWS($AH$34:AH59)-1,COLUMNS($AH$34:AH59)-1),"") ->  | AG45: =IF(OFFSET(DE104_3!$AI$34,ROWS($AI$34:AI59)-1,COLUMNS($AI$34:AI59)-1)<>"",OFFSET(DE104_3!$AI$34,ROWS($AI$34:AI59)-1,COLUMNS($AI$34:AI59)-1),"") ->  | AH45: =IF(OFFSET(DE104_3!$AJ$34,ROWS($AJ$34:AJ59)-1,COLUMNS($AJ$34:AJ59)-1)<>"",OFFSET(DE104_3!$AJ$34,ROWS($AJ$34:AJ59)-1,COLUMNS($AJ$34:AJ59)-1),"") ->  | AI45: =IF(OFFSET(DE104_3!$AK$34,ROWS($AK$34:AK59)-1,COLUMNS($AK$34:AK59)-1)<>"",OFFSET(DE104_3!$AK$34,ROWS($AK$34:AK59)-1,COLUMNS($AK$34:AK59)-1),"") ->  | AJ45: =IF(OFFSET(DE104_3!$AL$34,ROWS($AL$34:AL59)-1,COLUMNS($AL$34:AL59)-1)<>"",OFFSET(DE104_3!$AL$34,ROWS($AL$34:AL59)-1,COLUMNS($AL$34:AL59)-1),"") -> 189.6618667 | AK45: =IF(OFFSET(DE104_3!$AM$34,ROWS($AM$34:AM59)-1,COLUMNS($AM$34:AM59)-1)<>"",OFFSET(DE104_3!$AM$34,ROWS($AM$34:AM59)-1,COLUMNS($AM$34:AM59)-1),"") ->  | AL45: =IF(OFFSET(DE104_3!$AN$34,ROWS($AN$34:AN59)-1,COLUMNS($AN$34:AN59)-1)<>"",OFFSET(DE104_3!$AN$34,ROWS($AN$34:AN59)-1,COLUMNS($AN$34:AN59)-1),"") -> 923.2665 | AM45: =IF(OFFSET(DE104_3!$AO$34,ROWS($AO$34:AO59)-1,COLUMNS($AO$34:AO59)-1)<>"",OFFSET(DE104_3!$AO$34,ROWS($AO$34:AO59)-1,COLUMNS($AO$34:AO59)-1),"") -> 17.21291111 | AN45: =IF(OFFSET(DE104_3!$AP$34,ROWS($AP$34:AP59)-1,COLUMNS($AP$34:AP59)-1)<>"",OFFSET(DE104_3!$AP$34,ROWS($AP$34:AP59)-1,COLUMNS($AP$34:AP59)-1),"") -> 940.4794111 | AO45: =IF(OFFSET(DE104_3!$AQ$34,ROWS($AQ$34:AQ59)-1,COLUMNS($AQ$34:AQ59)-1)<>"",OFFSET(DE104_3!$AQ$34,ROWS($AQ$34:AQ59)-1,COLUMNS($AQ$34:AQ59)-1),"") -> 
A46: =IF(OFFSET(DE104_3!$C$34,ROWS($C$34:C60)-1,COLUMNS($C$34:C60)-1)<>"",OFFSET(DE104_3!$C$34,ROWS($C$34:C60)-1,COLUMNS($C$34:C60)-1),"") ->  | B46: =IF(OFFSET(DE104_3!$D$34,ROWS($D$34:D60)-1,COLUMNS($D$34:D60)-1)<>"",OFFSET(DE104_3!$D$34,ROWS($D$34:D60)-1,COLUMNS($D$34:D60)-1),"") -> 4148200 | C46: =IF(OFFSET(DE104_3!$E$34,ROWS($E$34:E60)-1,COLUMNS($E$34:E60)-1)<>"",OFFSET(DE104_3!$E$34,ROWS($E$34:E60)-1,COLUMNS($E$34:E60)-1),"") -> DR-601 | D46: =IF(OFFSET(DE104_3!$F$34,ROWS($F$34:F60)-1,COLUMNS($F$34:F60)-1)<>"",OFFSET(DE104_3!$F$34,ROWS($F$34:F60)-1,COLUMNS($F$34:F60)-1),"") -> 42 | E46: =IF(OFFSET(DE104_3!$G$34,ROWS($G$34:G60)-1,COLUMNS($G$34:G60)-1)<>"",OFFSET(DE104_3!$G$34,ROWS($G$34:G60)-1,COLUMNS($G$34:G60)-1),"") -> 2000 | F46: =IF(OFFSET(DE104_3!$H$34,ROWS($H$34:H60)-1,COLUMNS($H$34:H60)-1)<>"",OFFSET(DE104_3!$H$34,ROWS($H$34:H60)-1,COLUMNS($H$34:H60)-1),"") -> RCP | G46: =IF(OFFSET(DE104_3!$I$34,ROWS($I$34:I60)-1,COLUMNS($I$34:I60)-1)<>"",OFFSET(DE104_3!$I$34,ROWS($I$34:I60)-1,COLUMNS($I$34:I60)-1),"") -> 282 | H46: =IF(OFFSET(DE104_3!$J$34,ROWS($J$34:J60)-1,COLUMNS($J$34:J60)-1)<>"",OFFSET(DE104_3!$J$34,ROWS($J$34:J60)-1,COLUMNS($J$34:J60)-1),"") -> B | I46: =IF(OFFSET(DE104_3!$K$34,ROWS($K$34:K60)-1,COLUMNS($K$34:K60)-1)<>"",OFFSET(DE104_3!$K$34,ROWS($K$34:K60)-1,COLUMNS($K$34:K60)-1),"") -> 11.8 | J46: =IF(OFFSET(DE104_3!$L$34,ROWS($L$34:L60)-1,COLUMNS($L$34:L60)-1)<>"",OFFSET(DE104_3!$L$34,ROWS($L$34:L60)-1,COLUMNS($L$34:L60)-1),"") ->  | K46: =IF(OFFSET(DE104_3!$M$34,ROWS($M$34:M60)-1,COLUMNS($M$34:M60)-1)<>"",OFFSET(DE104_3!$M$34,ROWS($M$34:M60)-1,COLUMNS($M$34:M60)-1),"") -> 1 | L46: =IF(OFFSET(DE104_3!$N$34,ROWS($N$34:N60)-1,COLUMNS($N$34:N60)-1)<>"",OFFSET(DE104_3!$N$34,ROWS($N$34:N60)-1,COLUMNS($N$34:N60)-1),"") -> 1 | M46: =IF(OFFSET(DE104_3!$O$34,ROWS($O$34:O60)-1,COLUMNS($O$34:O60)-1)<>"",OFFSET(DE104_3!$O$34,ROWS($O$34:O60)-1,COLUMNS($O$34:O60)-1),"") ->  | N46: =IF(OFFSET(DE104_3!$P$34,ROWS($P$34:P60)-1,COLUMNS($P$34:P60)-1)<>"",OFFSET(DE104_3!$P$34,ROWS($P$34:P60)-1,COLUMNS($P$34:P60)-1),"") ->  | O46: =IF(OFFSET(DE104_3!$Q$34,ROWS($Q$34:Q60)-1,COLUMNS($Q$34:Q60)-1)<>"",OFFSET(DE104_3!$Q$34,ROWS($Q$34:Q60)-1,COLUMNS($Q$34:Q60)-1),"") ->  | P46: =IF(OFFSET(DE104_3!$R$34,ROWS($R$34:R60)-1,COLUMNS($R$34:R60)-1)<>"",OFFSET(DE104_3!$R$34,ROWS($R$34:R60)-1,COLUMNS($R$34:R60)-1),"") ->  | Q46: =IF(OFFSET(DE104_3!$S$34,ROWS($S$34:S60)-1,COLUMNS($S$34:S60)-1)<>"",OFFSET(DE104_3!$S$34,ROWS($S$34:S60)-1,COLUMNS($S$34:S60)-1),"") ->  | R46: =IF(OFFSET(DE104_3!$T$34,ROWS($T$34:T60)-1,COLUMNS($T$34:T60)-1)<>"",OFFSET(DE104_3!$T$34,ROWS($T$34:T60)-1,COLUMNS($T$34:T60)-1),"") ->  | S46: =IF(OFFSET(DE104_3!$U$34,ROWS($U$34:U60)-1,COLUMNS($U$34:U60)-1)<>"",OFFSET(DE104_3!$U$34,ROWS($U$34:U60)-1,COLUMNS($U$34:U60)-1),"") ->  | T46: =IF(OFFSET(DE104_3!$V$34,ROWS($V$34:V60)-1,COLUMNS($V$34:V60)-1)<>"",OFFSET(DE104_3!$V$34,ROWS($V$34:V60)-1,COLUMNS($V$34:V60)-1),"") -> Type 3 | U46: =IF(OFFSET(DE104_3!$W$34,ROWS($W$34:W60)-1,COLUMNS($W$34:W60)-1)<>"",OFFSET(DE104_3!$W$34,ROWS($W$34:W60)-1,COLUMNS($W$34:W60)-1),"") ->  | V46: =IF(OFFSET(DE104_3!$X$34,ROWS($X$34:X60)-1,COLUMNS($X$34:X60)-1)<>"",OFFSET(DE104_3!$X$34,ROWS($X$34:X60)-1,COLUMNS($X$34:X60)-1),"") -> 912.71 | W46: =IF(OFFSET(DE104_3!$Y$34,ROWS($Y$34:Y60)-1,COLUMNS($Y$34:Y60)-1)<>"",OFFSET(DE104_3!$Y$34,ROWS($Y$34:Y60)-1,COLUMNS($Y$34:Y60)-1),"") -> 907.48 | X46: =IF(OFFSET(DE104_3!$Z$34,ROWS($Z$34:Z60)-1,COLUMNS($Z$34:Z60)-1)<>"",OFFSET(DE104_3!$Z$34,ROWS($Z$34:Z60)-1,COLUMNS($Z$34:Z60)-1),"") ->  | Y46: =IF(OFFSET(DE104_3!$AA$34,ROWS($AA$34:AA60)-1,COLUMNS($AA$34:AA60)-1)<>"",OFFSET(DE104_3!$AA$34,ROWS($AA$34:AA60)-1,COLUMNS($AA$34:AA60)-1),"") ->  | Z46: =IF(OFFSET(DE104_3!$AB$34,ROWS($AB$34:AB60)-1,COLUMNS($AB$34:AB60)-1)<>"",OFFSET(DE104_3!$AB$34,ROWS($AB$34:AB60)-1,COLUMNS($AB$34:AB60)-1),"") -> 146.39 | AA46: =IF(OFFSET(DE104_3!$AC$34,ROWS($AC$34:AC60)-1,COLUMNS($AC$34:AC60)-1)<>"",OFFSET(DE104_3!$AC$34,ROWS($AC$34:AC60)-1,COLUMNS($AC$34:AC60)-1),"") -> 151.56 | AB46: =IF(OFFSET(DE104_3!$AD$34,ROWS($AD$34:AD60)-1,COLUMNS($AD$34:AD60)-1)<>"",OFFSET(DE104_3!$AD$34,ROWS($AD$34:AD60)-1,COLUMNS($AD$34:AD60)-1),"") ->  | AC46: =IF(OFFSET(DE104_3!$AE$34,ROWS($AE$34:AE60)-1,COLUMNS($AE$34:AE60)-1)<>"",OFFSET(DE104_3!$AE$34,ROWS($AE$34:AE60)-1,COLUMNS($AE$34:AE60)-1),"") ->  | AD46: =IF(OFFSET(DE104_3!$AF$34,ROWS($AF$34:AF60)-1,COLUMNS($AF$34:AF60)-1)<>"",OFFSET(DE104_3!$AF$34,ROWS($AF$34:AF60)-1,COLUMNS($AF$34:AF60)-1),"") -> 61 | AE46: =IF(OFFSET(DE104_3!$AG$34,ROWS($AG$34:AG60)-1,COLUMNS($AG$34:AG60)-1)<>"",OFFSET(DE104_3!$AG$34,ROWS($AG$34:AG60)-1,COLUMNS($AG$34:AG60)-1),"") ->  | AF46: =IF(OFFSET(DE104_3!$AH$34,ROWS($AH$34:AH60)-1,COLUMNS($AH$34:AH60)-1)<>"",OFFSET(DE104_3!$AH$34,ROWS($AH$34:AH60)-1,COLUMNS($AH$34:AH60)-1),"") ->  | AG46: =IF(OFFSET(DE104_3!$AI$34,ROWS($AI$34:AI60)-1,COLUMNS($AI$34:AI60)-1)<>"",OFFSET(DE104_3!$AI$34,ROWS($AI$34:AI60)-1,COLUMNS($AI$34:AI60)-1),"") ->  | AH46: =IF(OFFSET(DE104_3!$AJ$34,ROWS($AJ$34:AJ60)-1,COLUMNS($AJ$34:AJ60)-1)<>"",OFFSET(DE104_3!$AJ$34,ROWS($AJ$34:AJ60)-1,COLUMNS($AJ$34:AJ60)-1),"") ->  | AI46: =IF(OFFSET(DE104_3!$AK$34,ROWS($AK$34:AK60)-1,COLUMNS($AK$34:AK60)-1)<>"",OFFSET(DE104_3!$AK$34,ROWS($AK$34:AK60)-1,COLUMNS($AK$34:AK60)-1),"") ->  | AJ46: =IF(OFFSET(DE104_3!$AL$34,ROWS($AL$34:AL60)-1,COLUMNS($AL$34:AL60)-1)<>"",OFFSET(DE104_3!$AL$34,ROWS($AL$34:AL60)-1,COLUMNS($AL$34:AL60)-1),"") -> 93.81481481 | AK46: =IF(OFFSET(DE104_3!$AM$34,ROWS($AM$34:AM60)-1,COLUMNS($AM$34:AM60)-1)<>"",OFFSET(DE104_3!$AM$34,ROWS($AM$34:AM60)-1,COLUMNS($AM$34:AM60)-1),"") ->  | AL46: =IF(OFFSET(DE104_3!$AN$34,ROWS($AN$34:AN60)-1,COLUMNS($AN$34:AN60)-1)<>"",OFFSET(DE104_3!$AN$34,ROWS($AN$34:AN60)-1,COLUMNS($AN$34:AN60)-1),"") -> 366.4844444 | AM46: =IF(OFFSET(DE104_3!$AO$34,ROWS($AO$34:AO60)-1,COLUMNS($AO$34:AO60)-1)<>"",OFFSET(DE104_3!$AO$34,ROWS($AO$34:AO60)-1,COLUMNS($AO$34:AO60)-1),"") -> 28.61333333 | AN46: =IF(OFFSET(DE104_3!$AP$34,ROWS($AP$34:AP60)-1,COLUMNS($AP$34:AP60)-1)<>"",OFFSET(DE104_3!$AP$34,ROWS($AP$34:AP60)-1,COLUMNS($AP$34:AP60)-1),"") -> 395.0977778 | AO46: =IF(OFFSET(DE104_3!$AQ$34,ROWS($AQ$34:AQ60)-1,COLUMNS($AQ$34:AQ60)-1)<>"",OFFSET(DE104_3!$AQ$34,ROWS($AQ$34:AQ60)-1,COLUMNS($AQ$34:AQ60)-1),"") -> 
A47: =IF(OFFSET(DE104_3!$C$34,ROWS($C$34:C61)-1,COLUMNS($C$34:C61)-1)<>"",OFFSET(DE104_3!$C$34,ROWS($C$34:C61)-1,COLUMNS($C$34:C61)-1),"") ->  | B47: =IF(OFFSET(DE104_3!$D$34,ROWS($D$34:D61)-1,COLUMNS($D$34:D61)-1)<>"",OFFSET(DE104_3!$D$34,ROWS($D$34:D61)-1,COLUMNS($D$34:D61)-1),"") ->  | C47: =IF(OFFSET(DE104_3!$E$34,ROWS($E$34:E61)-1,COLUMNS($E$34:E61)-1)<>"",OFFSET(DE104_3!$E$34,ROWS($E$34:E61)-1,COLUMNS($E$34:E61)-1),"") ->  | D47: =IF(OFFSET(DE104_3!$F$34,ROWS($F$34:F61)-1,COLUMNS($F$34:F61)-1)<>"",OFFSET(DE104_3!$F$34,ROWS($F$34:F61)-1,COLUMNS($F$34:F61)-1),"") ->  | E47: =IF(OFFSET(DE104_3!$G$34,ROWS($G$34:G61)-1,COLUMNS($G$34:G61)-1)<>"",OFFSET(DE104_3!$G$34,ROWS($G$34:G61)-1,COLUMNS($G$34:G61)-1),"") ->  | F47: =IF(OFFSET(DE104_3!$H$34,ROWS($H$34:H61)-1,COLUMNS($H$34:H61)-1)<>"",OFFSET(DE104_3!$H$34,ROWS($H$34:H61)-1,COLUMNS($H$34:H61)-1),"") ->  | G47: =IF(OFFSET(DE104_3!$I$34,ROWS($I$34:I61)-1,COLUMNS($I$34:I61)-1)<>"",OFFSET(DE104_3!$I$34,ROWS($I$34:I61)-1,COLUMNS($I$34:I61)-1),"") ->  | H47: =IF(OFFSET(DE104_3!$J$34,ROWS($J$34:J61)-1,COLUMNS($J$34:J61)-1)<>"",OFFSET(DE104_3!$J$34,ROWS($J$34:J61)-1,COLUMNS($J$34:J61)-1),"") ->  | I47: =IF(OFFSET(DE104_3!$K$34,ROWS($K$34:K61)-1,COLUMNS($K$34:K61)-1)<>"",OFFSET(DE104_3!$K$34,ROWS($K$34:K61)-1,COLUMNS($K$34:K61)-1),"") ->  | J47: =IF(OFFSET(DE104_3!$L$34,ROWS($L$34:L61)-1,COLUMNS($L$34:L61)-1)<>"",OFFSET(DE104_3!$L$34,ROWS($L$34:L61)-1,COLUMNS($L$34:L61)-1),"") ->  | K47: =IF(OFFSET(DE104_3!$M$34,ROWS($M$34:M61)-1,COLUMNS($M$34:M61)-1)<>"",OFFSET(DE104_3!$M$34,ROWS($M$34:M61)-1,COLUMNS($M$34:M61)-1),"") ->  | L47: =IF(OFFSET(DE104_3!$N$34,ROWS($N$34:N61)-1,COLUMNS($N$34:N61)-1)<>"",OFFSET(DE104_3!$N$34,ROWS($N$34:N61)-1,COLUMNS($N$34:N61)-1),"") ->  | M47: =IF(OFFSET(DE104_3!$O$34,ROWS($O$34:O61)-1,COLUMNS($O$34:O61)-1)<>"",OFFSET(DE104_3!$O$34,ROWS($O$34:O61)-1,COLUMNS($O$34:O61)-1),"") ->  | N47: =IF(OFFSET(DE104_3!$P$34,ROWS($P$34:P61)-1,COLUMNS($P$34:P61)-1)<>"",OFFSET(DE104_3!$P$34,ROWS($P$34:P61)-1,COLUMNS($P$34:P61)-1),"") ->  | O47: =IF(OFFSET(DE104_3!$Q$34,ROWS($Q$34:Q61)-1,COLUMNS($Q$34:Q61)-1)<>"",OFFSET(DE104_3!$Q$34,ROWS($Q$34:Q61)-1,COLUMNS($Q$34:Q61)-1),"") ->  | P47: =IF(OFFSET(DE104_3!$R$34,ROWS($R$34:R61)-1,COLUMNS($R$34:R61)-1)<>"",OFFSET(DE104_3!$R$34,ROWS($R$34:R61)-1,COLUMNS($R$34:R61)-1),"") ->  | Q47: =IF(OFFSET(DE104_3!$S$34,ROWS($S$34:S61)-1,COLUMNS($S$34:S61)-1)<>"",OFFSET(DE104_3!$S$34,ROWS($S$34:S61)-1,COLUMNS($S$34:S61)-1),"") ->  | R47: =IF(OFFSET(DE104_3!$T$34,ROWS($T$34:T61)-1,COLUMNS($T$34:T61)-1)<>"",OFFSET(DE104_3!$T$34,ROWS($T$34:T61)-1,COLUMNS($T$34:T61)-1),"") ->  | S47: =IF(OFFSET(DE104_3!$U$34,ROWS($U$34:U61)-1,COLUMNS($U$34:U61)-1)<>"",OFFSET(DE104_3!$U$34,ROWS($U$34:U61)-1,COLUMNS($U$34:U61)-1),"") ->  | T47: =IF(OFFSET(DE104_3!$V$34,ROWS($V$34:V61)-1,COLUMNS($V$34:V61)-1)<>"",OFFSET(DE104_3!$V$34,ROWS($V$34:V61)-1,COLUMNS($V$34:V61)-1),"") ->  | U47: =IF(OFFSET(DE104_3!$W$34,ROWS($W$34:W61)-1,COLUMNS($W$34:W61)-1)<>"",OFFSET(DE104_3!$W$34,ROWS($W$34:W61)-1,COLUMNS($W$34:W61)-1),"") ->  | V47: =IF(OFFSET(DE104_3!$X$34,ROWS($X$34:X61)-1,COLUMNS($X$34:X61)-1)<>"",OFFSET(DE104_3!$X$34,ROWS($X$34:X61)-1,COLUMNS($X$34:X61)-1),"") ->  | W47: =IF(OFFSET(DE104_3!$Y$34,ROWS($Y$34:Y61)-1,COLUMNS($Y$34:Y61)-1)<>"",OFFSET(DE104_3!$Y$34,ROWS($Y$34:Y61)-1,COLUMNS($Y$34:Y61)-1),"") ->  | X47: =IF(OFFSET(DE104_3!$Z$34,ROWS($Z$34:Z61)-1,COLUMNS($Z$34:Z61)-1)<>"",OFFSET(DE104_3!$Z$34,ROWS($Z$34:Z61)-1,COLUMNS($Z$34:Z61)-1),"") ->  | Y47: =IF(OFFSET(DE104_3!$AA$34,ROWS($AA$34:AA61)-1,COLUMNS($AA$34:AA61)-1)<>"",OFFSET(DE104_3!$AA$34,ROWS($AA$34:AA61)-1,COLUMNS($AA$34:AA61)-1),"") ->  | Z47: =IF(OFFSET(DE104_3!$AB$34,ROWS($AB$34:AB61)-1,COLUMNS($AB$34:AB61)-1)<>"",OFFSET(DE104_3!$AB$34,ROWS($AB$34:AB61)-1,COLUMNS($AB$34:AB61)-1),"") ->  | AA47: =IF(OFFSET(DE104_3!$AC$34,ROWS($AC$34:AC61)-1,COLUMNS($AC$34:AC61)-1)<>"",OFFSET(DE104_3!$AC$34,ROWS($AC$34:AC61)-1,COLUMNS($AC$34:AC61)-1),"") ->  | AB47: =IF(OFFSET(DE104_3!$AD$34,ROWS($AD$34:AD61)-1,COLUMNS($AD$34:AD61)-1)<>"",OFFSET(DE104_3!$AD$34,ROWS($AD$34:AD61)-1,COLUMNS($AD$34:AD61)-1),"") ->  | AC47: =IF(OFFSET(DE104_3!$AE$34,ROWS($AE$34:AE61)-1,COLUMNS($AE$34:AE61)-1)<>"",OFFSET(DE104_3!$AE$34,ROWS($AE$34:AE61)-1,COLUMNS($AE$34:AE61)-1),"") ->  | AD47: =IF(OFFSET(DE104_3!$AF$34,ROWS($AF$34:AF61)-1,COLUMNS($AF$34:AF61)-1)<>"",OFFSET(DE104_3!$AF$34,ROWS($AF$34:AF61)-1,COLUMNS($AF$34:AF61)-1),"") ->  | AE47: =IF(OFFSET(DE104_3!$AG$34,ROWS($AG$34:AG61)-1,COLUMNS($AG$34:AG61)-1)<>"",OFFSET(DE104_3!$AG$34,ROWS($AG$34:AG61)-1,COLUMNS($AG$34:AG61)-1),"") ->  | AF47: =IF(OFFSET(DE104_3!$AH$34,ROWS($AH$34:AH61)-1,COLUMNS($AH$34:AH61)-1)<>"",OFFSET(DE104_3!$AH$34,ROWS($AH$34:AH61)-1,COLUMNS($AH$34:AH61)-1),"") ->  | AG47: =IF(OFFSET(DE104_3!$AI$34,ROWS($AI$34:AI61)-1,COLUMNS($AI$34:AI61)-1)<>"",OFFSET(DE104_3!$AI$34,ROWS($AI$34:AI61)-1,COLUMNS($AI$34:AI61)-1),"") ->  | AH47: =IF(OFFSET(DE104_3!$AJ$34,ROWS($AJ$34:AJ61)-1,COLUMNS($AJ$34:AJ61)-1)<>"",OFFSET(DE104_3!$AJ$34,ROWS($AJ$34:AJ61)-1,COLUMNS($AJ$34:AJ61)-1),"") ->  | AI47: =IF(OFFSET(DE104_3!$AK$34,ROWS($AK$34:AK61)-1,COLUMNS($AK$34:AK61)-1)<>"",OFFSET(DE104_3!$AK$34,ROWS($AK$34:AK61)-1,COLUMNS($AK$34:AK61)-1),"") ->  | AJ47: =IF(OFFSET(DE104_3!$AL$34,ROWS($AL$34:AL61)-1,COLUMNS($AL$34:AL61)-1)<>"",OFFSET(DE104_3!$AL$34,ROWS($AL$34:AL61)-1,COLUMNS($AL$34:AL61)-1),"") ->  | AK47: =IF(OFFSET(DE104_3!$AM$34,ROWS($AM$34:AM61)-1,COLUMNS($AM$34:AM61)-1)<>"",OFFSET(DE104_3!$AM$34,ROWS($AM$34:AM61)-1,COLUMNS($AM$34:AM61)-1),"") ->  | AL47: =IF(OFFSET(DE104_3!$AN$34,ROWS($AN$34:AN61)-1,COLUMNS($AN$34:AN61)-1)<>"",OFFSET(DE104_3!$AN$34,ROWS($AN$34:AN61)-1,COLUMNS($AN$34:AN61)-1),"") ->  | AM47: =IF(OFFSET(DE104_3!$AO$34,ROWS($AO$34:AO61)-1,COLUMNS($AO$34:AO61)-1)<>"",OFFSET(DE104_3!$AO$34,ROWS($AO$34:AO61)-1,COLUMNS($AO$34:AO61)-1),"") ->  | AN47: =IF(OFFSET(DE104_3!$AP$34,ROWS($AP$34:AP61)-1,COLUMNS($AP$34:AP61)-1)<>"",OFFSET(DE104_3!$AP$34,ROWS($AP$34:AP61)-1,COLUMNS($AP$34:AP61)-1),"") ->  | AO47: =IF(OFFSET(DE104_3!$AQ$34,ROWS($AQ$34:AQ61)-1,COLUMNS($AQ$34:AQ61)-1)<>"",OFFSET(DE104_3!$AQ$34,ROWS($AQ$34:AQ61)-1,COLUMNS($AQ$34:AQ61)-1),"") -> 
A48: =IF(OFFSET(DE104_3!$C$34,ROWS($C$34:C62)-1,COLUMNS($C$34:C62)-1)<>"",OFFSET(DE104_3!$C$34,ROWS($C$34:C62)-1,COLUMNS($C$34:C62)-1),"") ->  | B48: =IF(OFFSET(DE104_3!$D$34,ROWS($D$34:D62)-1,COLUMNS($D$34:D62)-1)<>"",OFFSET(DE104_3!$D$34,ROWS($D$34:D62)-1,COLUMNS($D$34:D62)-1),"") ->  | C48: =IF(OFFSET(DE104_3!$E$34,ROWS($E$34:E62)-1,COLUMNS($E$34:E62)-1)<>"",OFFSET(DE104_3!$E$34,ROWS($E$34:E62)-1,COLUMNS($E$34:E62)-1),"") ->  | D48: =IF(OFFSET(DE104_3!$F$34,ROWS($F$34:F62)-1,COLUMNS($F$34:F62)-1)<>"",OFFSET(DE104_3!$F$34,ROWS($F$34:F62)-1,COLUMNS($F$34:F62)-1),"") ->  | E48: =IF(OFFSET(DE104_3!$G$34,ROWS($G$34:G62)-1,COLUMNS($G$34:G62)-1)<>"",OFFSET(DE104_3!$G$34,ROWS($G$34:G62)-1,COLUMNS($G$34:G62)-1),"") ->  | F48: =IF(OFFSET(DE104_3!$H$34,ROWS($H$34:H62)-1,COLUMNS($H$34:H62)-1)<>"",OFFSET(DE104_3!$H$34,ROWS($H$34:H62)-1,COLUMNS($H$34:H62)-1),"") ->  | G48: =IF(OFFSET(DE104_3!$I$34,ROWS($I$34:I62)-1,COLUMNS($I$34:I62)-1)<>"",OFFSET(DE104_3!$I$34,ROWS($I$34:I62)-1,COLUMNS($I$34:I62)-1),"") ->  | H48: =IF(OFFSET(DE104_3!$J$34,ROWS($J$34:J62)-1,COLUMNS($J$34:J62)-1)<>"",OFFSET(DE104_3!$J$34,ROWS($J$34:J62)-1,COLUMNS($J$34:J62)-1),"") ->  | I48: =IF(OFFSET(DE104_3!$K$34,ROWS($K$34:K62)-1,COLUMNS($K$34:K62)-1)<>"",OFFSET(DE104_3!$K$34,ROWS($K$34:K62)-1,COLUMNS($K$34:K62)-1),"") ->  | J48: =IF(OFFSET(DE104_3!$L$34,ROWS($L$34:L62)-1,COLUMNS($L$34:L62)-1)<>"",OFFSET(DE104_3!$L$34,ROWS($L$34:L62)-1,COLUMNS($L$34:L62)-1),"") ->  | K48: =IF(OFFSET(DE104_3!$M$34,ROWS($M$34:M62)-1,COLUMNS($M$34:M62)-1)<>"",OFFSET(DE104_3!$M$34,ROWS($M$34:M62)-1,COLUMNS($M$34:M62)-1),"") ->  | L48: =IF(OFFSET(DE104_3!$N$34,ROWS($N$34:N62)-1,COLUMNS($N$34:N62)-1)<>"",OFFSET(DE104_3!$N$34,ROWS($N$34:N62)-1,COLUMNS($N$34:N62)-1),"") ->  | M48: =IF(OFFSET(DE104_3!$O$34,ROWS($O$34:O62)-1,COLUMNS($O$34:O62)-1)<>"",OFFSET(DE104_3!$O$34,ROWS($O$34:O62)-1,COLUMNS($O$34:O62)-1),"") ->  | N48: =IF(OFFSET(DE104_3!$P$34,ROWS($P$34:P62)-1,COLUMNS($P$34:P62)-1)<>"",OFFSET(DE104_3!$P$34,ROWS($P$34:P62)-1,COLUMNS($P$34:P62)-1),"") ->  | O48: =IF(OFFSET(DE104_3!$Q$34,ROWS($Q$34:Q62)-1,COLUMNS($Q$34:Q62)-1)<>"",OFFSET(DE104_3!$Q$34,ROWS($Q$34:Q62)-1,COLUMNS($Q$34:Q62)-1),"") ->  | P48: =IF(OFFSET(DE104_3!$R$34,ROWS($R$34:R62)-1,COLUMNS($R$34:R62)-1)<>"",OFFSET(DE104_3!$R$34,ROWS($R$34:R62)-1,COLUMNS($R$34:R62)-1),"") ->  | Q48: =IF(OFFSET(DE104_3!$S$34,ROWS($S$34:S62)-1,COLUMNS($S$34:S62)-1)<>"",OFFSET(DE104_3!$S$34,ROWS($S$34:S62)-1,COLUMNS($S$34:S62)-1),"") ->  | R48: =IF(OFFSET(DE104_3!$T$34,ROWS($T$34:T62)-1,COLUMNS($T$34:T62)-1)<>"",OFFSET(DE104_3!$T$34,ROWS($T$34:T62)-1,COLUMNS($T$34:T62)-1),"") ->  | S48: =IF(OFFSET(DE104_3!$U$34,ROWS($U$34:U62)-1,COLUMNS($U$34:U62)-1)<>"",OFFSET(DE104_3!$U$34,ROWS($U$34:U62)-1,COLUMNS($U$34:U62)-1),"") ->  | T48: =IF(OFFSET(DE104_3!$V$34,ROWS($V$34:V62)-1,COLUMNS($V$34:V62)-1)<>"",OFFSET(DE104_3!$V$34,ROWS($V$34:V62)-1,COLUMNS($V$34:V62)-1),"") ->  | U48: =IF(OFFSET(DE104_3!$W$34,ROWS($W$34:W62)-1,COLUMNS($W$34:W62)-1)<>"",OFFSET(DE104_3!$W$34,ROWS($W$34:W62)-1,COLUMNS($W$34:W62)-1),"") ->  | V48: =IF(OFFSET(DE104_3!$X$34,ROWS($X$34:X62)-1,COLUMNS($X$34:X62)-1)<>"",OFFSET(DE104_3!$X$34,ROWS($X$34:X62)-1,COLUMNS($X$34:X62)-1),"") ->  | W48: =IF(OFFSET(DE104_3!$Y$34,ROWS($Y$34:Y62)-1,COLUMNS($Y$34:Y62)-1)<>"",OFFSET(DE104_3!$Y$34,ROWS($Y$34:Y62)-1,COLUMNS($Y$34:Y62)-1),"") ->  | X48: =IF(OFFSET(DE104_3!$Z$34,ROWS($Z$34:Z62)-1,COLUMNS($Z$34:Z62)-1)<>"",OFFSET(DE104_3!$Z$34,ROWS($Z$34:Z62)-1,COLUMNS($Z$34:Z62)-1),"") ->  | Y48: =IF(OFFSET(DE104_3!$AA$34,ROWS($AA$34:AA62)-1,COLUMNS($AA$34:AA62)-1)<>"",OFFSET(DE104_3!$AA$34,ROWS($AA$34:AA62)-1,COLUMNS($AA$34:AA62)-1),"") ->  | Z48: =IF(OFFSET(DE104_3!$AB$34,ROWS($AB$34:AB62)-1,COLUMNS($AB$34:AB62)-1)<>"",OFFSET(DE104_3!$AB$34,ROWS($AB$34:AB62)-1,COLUMNS($AB$34:AB62)-1),"") ->  | AA48: =IF(OFFSET(DE104_3!$AC$34,ROWS($AC$34:AC62)-1,COLUMNS($AC$34:AC62)-1)<>"",OFFSET(DE104_3!$AC$34,ROWS($AC$34:AC62)-1,COLUMNS($AC$34:AC62)-1),"") ->  | AB48: =IF(OFFSET(DE104_3!$AD$34,ROWS($AD$34:AD62)-1,COLUMNS($AD$34:AD62)-1)<>"",OFFSET(DE104_3!$AD$34,ROWS($AD$34:AD62)-1,COLUMNS($AD$34:AD62)-1),"") ->  | AC48: =IF(OFFSET(DE104_3!$AE$34,ROWS($AE$34:AE62)-1,COLUMNS($AE$34:AE62)-1)<>"",OFFSET(DE104_3!$AE$34,ROWS($AE$34:AE62)-1,COLUMNS($AE$34:AE62)-1),"") ->  | AD48: =IF(OFFSET(DE104_3!$AF$34,ROWS($AF$34:AF62)-1,COLUMNS($AF$34:AF62)-1)<>"",OFFSET(DE104_3!$AF$34,ROWS($AF$34:AF62)-1,COLUMNS($AF$34:AF62)-1),"") ->  | AE48: =IF(OFFSET(DE104_3!$AG$34,ROWS($AG$34:AG62)-1,COLUMNS($AG$34:AG62)-1)<>"",OFFSET(DE104_3!$AG$34,ROWS($AG$34:AG62)-1,COLUMNS($AG$34:AG62)-1),"") ->  | AF48: =IF(OFFSET(DE104_3!$AH$34,ROWS($AH$34:AH62)-1,COLUMNS($AH$34:AH62)-1)<>"",OFFSET(DE104_3!$AH$34,ROWS($AH$34:AH62)-1,COLUMNS($AH$34:AH62)-1),"") ->  | AG48: =IF(OFFSET(DE104_3!$AI$34,ROWS($AI$34:AI62)-1,COLUMNS($AI$34:AI62)-1)<>"",OFFSET(DE104_3!$AI$34,ROWS($AI$34:AI62)-1,COLUMNS($AI$34:AI62)-1),"") ->  | AH48: =IF(OFFSET(DE104_3!$AJ$34,ROWS($AJ$34:AJ62)-1,COLUMNS($AJ$34:AJ62)-1)<>"",OFFSET(DE104_3!$AJ$34,ROWS($AJ$34:AJ62)-1,COLUMNS($AJ$34:AJ62)-1),"") ->  | AI48: =IF(OFFSET(DE104_3!$AK$34,ROWS($AK$34:AK62)-1,COLUMNS($AK$34:AK62)-1)<>"",OFFSET(DE104_3!$AK$34,ROWS($AK$34:AK62)-1,COLUMNS($AK$34:AK62)-1),"") ->  | AJ48: =IF(OFFSET(DE104_3!$AL$34,ROWS($AL$34:AL62)-1,COLUMNS($AL$34:AL62)-1)<>"",OFFSET(DE104_3!$AL$34,ROWS($AL$34:AL62)-1,COLUMNS($AL$34:AL62)-1),"") ->  | AK48: =IF(OFFSET(DE104_3!$AM$34,ROWS($AM$34:AM62)-1,COLUMNS($AM$34:AM62)-1)<>"",OFFSET(DE104_3!$AM$34,ROWS($AM$34:AM62)-1,COLUMNS($AM$34:AM62)-1),"") ->  | AL48: =IF(OFFSET(DE104_3!$AN$34,ROWS($AN$34:AN62)-1,COLUMNS($AN$34:AN62)-1)<>"",OFFSET(DE104_3!$AN$34,ROWS($AN$34:AN62)-1,COLUMNS($AN$34:AN62)-1),"") ->  | AM48: =IF(OFFSET(DE104_3!$AO$34,ROWS($AO$34:AO62)-1,COLUMNS($AO$34:AO62)-1)<>"",OFFSET(DE104_3!$AO$34,ROWS($AO$34:AO62)-1,COLUMNS($AO$34:AO62)-1),"") ->  | AN48: =IF(OFFSET(DE104_3!$AP$34,ROWS($AP$34:AP62)-1,COLUMNS($AP$34:AP62)-1)<>"",OFFSET(DE104_3!$AP$34,ROWS($AP$34:AP62)-1,COLUMNS($AP$34:AP62)-1),"") ->  | AO48: =IF(OFFSET(DE104_3!$AQ$34,ROWS($AQ$34:AQ62)-1,COLUMNS($AQ$34:AQ62)-1)<>"",OFFSET(DE104_3!$AQ$34,ROWS($AQ$34:AQ62)-1,COLUMNS($AQ$34:AQ62)-1),"") -> 
A49: =IF(OFFSET(DE104_3!$C$34,ROWS($C$34:C63)-1,COLUMNS($C$34:C63)-1)<>"",OFFSET(DE104_3!$C$34,ROWS($C$34:C63)-1,COLUMNS($C$34:C63)-1),"") ->  | B49: =IF(OFFSET(DE104_3!$D$34,ROWS($D$34:D63)-1,COLUMNS($D$34:D63)-1)<>"",OFFSET(DE104_3!$D$34,ROWS($D$34:D63)-1,COLUMNS($D$34:D63)-1),"") -> 23rd Avenue | C49: =IF(OFFSET(DE104_3!$E$34,ROWS($E$34:E63)-1,COLUMNS($E$34:E63)-1)<>"",OFFSET(DE104_3!$E$34,ROWS($E$34:E63)-1,COLUMNS($E$34:E63)-1),"") ->  | D49: =IF(OFFSET(DE104_3!$F$34,ROWS($F$34:F63)-1,COLUMNS($F$34:F63)-1)<>"",OFFSET(DE104_3!$F$34,ROWS($F$34:F63)-1,COLUMNS($F$34:F63)-1),"") ->  | E49: =IF(OFFSET(DE104_3!$G$34,ROWS($G$34:G63)-1,COLUMNS($G$34:G63)-1)<>"",OFFSET(DE104_3!$G$34,ROWS($G$34:G63)-1,COLUMNS($G$34:G63)-1),"") ->  | F49: =IF(OFFSET(DE104_3!$H$34,ROWS($H$34:H63)-1,COLUMNS($H$34:H63)-1)<>"",OFFSET(DE104_3!$H$34,ROWS($H$34:H63)-1,COLUMNS($H$34:H63)-1),"") ->  | G49: =IF(OFFSET(DE104_3!$I$34,ROWS($I$34:I63)-1,COLUMNS($I$34:I63)-1)<>"",OFFSET(DE104_3!$I$34,ROWS($I$34:I63)-1,COLUMNS($I$34:I63)-1),"") ->  | H49: =IF(OFFSET(DE104_3!$J$34,ROWS($J$34:J63)-1,COLUMNS($J$34:J63)-1)<>"",OFFSET(DE104_3!$J$34,ROWS($J$34:J63)-1,COLUMNS($J$34:J63)-1),"") ->  | I49: =IF(OFFSET(DE104_3!$K$34,ROWS($K$34:K63)-1,COLUMNS($K$34:K63)-1)<>"",OFFSET(DE104_3!$K$34,ROWS($K$34:K63)-1,COLUMNS($K$34:K63)-1),"") ->  | J49: =IF(OFFSET(DE104_3!$L$34,ROWS($L$34:L63)-1,COLUMNS($L$34:L63)-1)<>"",OFFSET(DE104_3!$L$34,ROWS($L$34:L63)-1,COLUMNS($L$34:L63)-1),"") ->  | K49: =IF(OFFSET(DE104_3!$M$34,ROWS($M$34:M63)-1,COLUMNS($M$34:M63)-1)<>"",OFFSET(DE104_3!$M$34,ROWS($M$34:M63)-1,COLUMNS($M$34:M63)-1),"") ->  | L49: =IF(OFFSET(DE104_3!$N$34,ROWS($N$34:N63)-1,COLUMNS($N$34:N63)-1)<>"",OFFSET(DE104_3!$N$34,ROWS($N$34:N63)-1,COLUMNS($N$34:N63)-1),"") ->  | M49: =IF(OFFSET(DE104_3!$O$34,ROWS($O$34:O63)-1,COLUMNS($O$34:O63)-1)<>"",OFFSET(DE104_3!$O$34,ROWS($O$34:O63)-1,COLUMNS($O$34:O63)-1),"") ->  | N49: =IF(OFFSET(DE104_3!$P$34,ROWS($P$34:P63)-1,COLUMNS($P$34:P63)-1)<>"",OFFSET(DE104_3!$P$34,ROWS($P$34:P63)-1,COLUMNS($P$34:P63)-1),"") ->  | O49: =IF(OFFSET(DE104_3!$Q$34,ROWS($Q$34:Q63)-1,COLUMNS($Q$34:Q63)-1)<>"",OFFSET(DE104_3!$Q$34,ROWS($Q$34:Q63)-1,COLUMNS($Q$34:Q63)-1),"") ->  | P49: =IF(OFFSET(DE104_3!$R$34,ROWS($R$34:R63)-1,COLUMNS($R$34:R63)-1)<>"",OFFSET(DE104_3!$R$34,ROWS($R$34:R63)-1,COLUMNS($R$34:R63)-1),"") ->  | Q49: =IF(OFFSET(DE104_3!$S$34,ROWS($S$34:S63)-1,COLUMNS($S$34:S63)-1)<>"",OFFSET(DE104_3!$S$34,ROWS($S$34:S63)-1,COLUMNS($S$34:S63)-1),"") ->  | R49: =IF(OFFSET(DE104_3!$T$34,ROWS($T$34:T63)-1,COLUMNS($T$34:T63)-1)<>"",OFFSET(DE104_3!$T$34,ROWS($T$34:T63)-1,COLUMNS($T$34:T63)-1),"") ->  | S49: =IF(OFFSET(DE104_3!$U$34,ROWS($U$34:U63)-1,COLUMNS($U$34:U63)-1)<>"",OFFSET(DE104_3!$U$34,ROWS($U$34:U63)-1,COLUMNS($U$34:U63)-1),"") ->  | T49: =IF(OFFSET(DE104_3!$V$34,ROWS($V$34:V63)-1,COLUMNS($V$34:V63)-1)<>"",OFFSET(DE104_3!$V$34,ROWS($V$34:V63)-1,COLUMNS($V$34:V63)-1),"") ->  | U49: =IF(OFFSET(DE104_3!$W$34,ROWS($W$34:W63)-1,COLUMNS($W$34:W63)-1)<>"",OFFSET(DE104_3!$W$34,ROWS($W$34:W63)-1,COLUMNS($W$34:W63)-1),"") ->  | V49: =IF(OFFSET(DE104_3!$X$34,ROWS($X$34:X63)-1,COLUMNS($X$34:X63)-1)<>"",OFFSET(DE104_3!$X$34,ROWS($X$34:X63)-1,COLUMNS($X$34:X63)-1),"") ->  | W49: =IF(OFFSET(DE104_3!$Y$34,ROWS($Y$34:Y63)-1,COLUMNS($Y$34:Y63)-1)<>"",OFFSET(DE104_3!$Y$34,ROWS($Y$34:Y63)-1,COLUMNS($Y$34:Y63)-1),"") ->  | X49: =IF(OFFSET(DE104_3!$Z$34,ROWS($Z$34:Z63)-1,COLUMNS($Z$34:Z63)-1)<>"",OFFSET(DE104_3!$Z$34,ROWS($Z$34:Z63)-1,COLUMNS($Z$34:Z63)-1),"") ->  | Y49: =IF(OFFSET(DE104_3!$AA$34,ROWS($AA$34:AA63)-1,COLUMNS($AA$34:AA63)-1)<>"",OFFSET(DE104_3!$AA$34,ROWS($AA$34:AA63)-1,COLUMNS($AA$34:AA63)-1),"") ->  | Z49: =IF(OFFSET(DE104_3!$AB$34,ROWS($AB$34:AB63)-1,COLUMNS($AB$34:AB63)-1)<>"",OFFSET(DE104_3!$AB$34,ROWS($AB$34:AB63)-1,COLUMNS($AB$34:AB63)-1),"") ->  | AA49: =IF(OFFSET(DE104_3!$AC$34,ROWS($AC$34:AC63)-1,COLUMNS($AC$34:AC63)-1)<>"",OFFSET(DE104_3!$AC$34,ROWS($AC$34:AC63)-1,COLUMNS($AC$34:AC63)-1),"") ->  | AB49: =IF(OFFSET(DE104_3!$AD$34,ROWS($AD$34:AD63)-1,COLUMNS($AD$34:AD63)-1)<>"",OFFSET(DE104_3!$AD$34,ROWS($AD$34:AD63)-1,COLUMNS($AD$34:AD63)-1),"") ->  | AC49: =IF(OFFSET(DE104_3!$AE$34,ROWS($AE$34:AE63)-1,COLUMNS($AE$34:AE63)-1)<>"",OFFSET(DE104_3!$AE$34,ROWS($AE$34:AE63)-1,COLUMNS($AE$34:AE63)-1),"") ->  | AD49: =IF(OFFSET(DE104_3!$AF$34,ROWS($AF$34:AF63)-1,COLUMNS($AF$34:AF63)-1)<>"",OFFSET(DE104_3!$AF$34,ROWS($AF$34:AF63)-1,COLUMNS($AF$34:AF63)-1),"") ->  | AE49: =IF(OFFSET(DE104_3!$AG$34,ROWS($AG$34:AG63)-1,COLUMNS($AG$34:AG63)-1)<>"",OFFSET(DE104_3!$AG$34,ROWS($AG$34:AG63)-1,COLUMNS($AG$34:AG63)-1),"") ->  | AF49: =IF(OFFSET(DE104_3!$AH$34,ROWS($AH$34:AH63)-1,COLUMNS($AH$34:AH63)-1)<>"",OFFSET(DE104_3!$AH$34,ROWS($AH$34:AH63)-1,COLUMNS($AH$34:AH63)-1),"") ->  | AG49: =IF(OFFSET(DE104_3!$AI$34,ROWS($AI$34:AI63)-1,COLUMNS($AI$34:AI63)-1)<>"",OFFSET(DE104_3!$AI$34,ROWS($AI$34:AI63)-1,COLUMNS($AI$34:AI63)-1),"") ->  | AH49: =IF(OFFSET(DE104_3!$AJ$34,ROWS($AJ$34:AJ63)-1,COLUMNS($AJ$34:AJ63)-1)<>"",OFFSET(DE104_3!$AJ$34,ROWS($AJ$34:AJ63)-1,COLUMNS($AJ$34:AJ63)-1),"") ->  | AI49: =IF(OFFSET(DE104_3!$AK$34,ROWS($AK$34:AK63)-1,COLUMNS($AK$34:AK63)-1)<>"",OFFSET(DE104_3!$AK$34,ROWS($AK$34:AK63)-1,COLUMNS($AK$34:AK63)-1),"") ->  | AJ49: =IF(OFFSET(DE104_3!$AL$34,ROWS($AL$34:AL63)-1,COLUMNS($AL$34:AL63)-1)<>"",OFFSET(DE104_3!$AL$34,ROWS($AL$34:AL63)-1,COLUMNS($AL$34:AL63)-1),"") ->  | AK49: =IF(OFFSET(DE104_3!$AM$34,ROWS($AM$34:AM63)-1,COLUMNS($AM$34:AM63)-1)<>"",OFFSET(DE104_3!$AM$34,ROWS($AM$34:AM63)-1,COLUMNS($AM$34:AM63)-1),"") ->  | AL49: =IF(OFFSET(DE104_3!$AN$34,ROWS($AN$34:AN63)-1,COLUMNS($AN$34:AN63)-1)<>"",OFFSET(DE104_3!$AN$34,ROWS($AN$34:AN63)-1,COLUMNS($AN$34:AN63)-1),"") ->  | AM49: =IF(OFFSET(DE104_3!$AO$34,ROWS($AO$34:AO63)-1,COLUMNS($AO$34:AO63)-1)<>"",OFFSET(DE104_3!$AO$34,ROWS($AO$34:AO63)-1,COLUMNS($AO$34:AO63)-1),"") ->  | AN49: =IF(OFFSET(DE104_3!$AP$34,ROWS($AP$34:AP63)-1,COLUMNS($AP$34:AP63)-1)<>"",OFFSET(DE104_3!$AP$34,ROWS($AP$34:AP63)-1,COLUMNS($AP$34:AP63)-1),"") ->  | AO49: =IF(OFFSET(DE104_3!$AQ$34,ROWS($AQ$34:AQ63)-1,COLUMNS($AQ$34:AQ63)-1)<>"",OFFSET(DE104_3!$AQ$34,ROWS($AQ$34:AQ63)-1,COLUMNS($AQ$34:AQ63)-1),"") -> 
A50: =IF(OFFSET(DE104_3!$C$34,ROWS($C$34:C64)-1,COLUMNS($C$34:C64)-1)<>"",OFFSET(DE104_3!$C$34,ROWS($C$34:C64)-1,COLUMNS($C$34:C64)-1),"") -> 325 | B50: =IF(OFFSET(DE104_3!$D$34,ROWS($D$34:D64)-1,COLUMNS($D$34:D64)-1)<>"",OFFSET(DE104_3!$D$34,ROWS($D$34:D64)-1,COLUMNS($D$34:D64)-1),"") -> 23142088 | C50: =IF(OFFSET(DE104_3!$E$34,ROWS($E$34:E64)-1,COLUMNS($E$34:E64)-1)<>"",OFFSET(DE104_3!$E$34,ROWS($E$34:E64)-1,COLUMNS($E$34:E64)-1),"") -> DR-601 | D50: =IF(OFFSET(DE104_3!$F$34,ROWS($F$34:F64)-1,COLUMNS($F$34:F64)-1)<>"",OFFSET(DE104_3!$F$34,ROWS($F$34:F64)-1,COLUMNS($F$34:F64)-1),"") -> 78 | E50: =IF(OFFSET(DE104_3!$G$34,ROWS($G$34:G64)-1,COLUMNS($G$34:G64)-1)<>"",OFFSET(DE104_3!$G$34,ROWS($G$34:G64)-1,COLUMNS($G$34:G64)-1),"") -> 2000 | F50: =IF(OFFSET(DE104_3!$H$34,ROWS($H$34:H64)-1,COLUMNS($H$34:H64)-1)<>"",OFFSET(DE104_3!$H$34,ROWS($H$34:H64)-1,COLUMNS($H$34:H64)-1),"") -> RCP | G50: =IF(OFFSET(DE104_3!$I$34,ROWS($I$34:I64)-1,COLUMNS($I$34:I64)-1)<>"",OFFSET(DE104_3!$I$34,ROWS($I$34:I64)-1,COLUMNS($I$34:I64)-1),"") -> 74 | H50: =IF(OFFSET(DE104_3!$J$34,ROWS($J$34:J64)-1,COLUMNS($J$34:J64)-1)<>"",OFFSET(DE104_3!$J$34,ROWS($J$34:J64)-1,COLUMNS($J$34:J64)-1),"") -> B | I50: =IF(OFFSET(DE104_3!$K$34,ROWS($K$34:K64)-1,COLUMNS($K$34:K64)-1)<>"",OFFSET(DE104_3!$K$34,ROWS($K$34:K64)-1,COLUMNS($K$34:K64)-1),"") -> 7 | J50: =IF(OFFSET(DE104_3!$L$34,ROWS($L$34:L64)-1,COLUMNS($L$34:L64)-1)<>"",OFFSET(DE104_3!$L$34,ROWS($L$34:L64)-1,COLUMNS($L$34:L64)-1),"") ->  | K50: =IF(OFFSET(DE104_3!$M$34,ROWS($M$34:M64)-1,COLUMNS($M$34:M64)-1)<>"",OFFSET(DE104_3!$M$34,ROWS($M$34:M64)-1,COLUMNS($M$34:M64)-1),"") -> 1 | L50: =IF(OFFSET(DE104_3!$N$34,ROWS($N$34:N64)-1,COLUMNS($N$34:N64)-1)<>"",OFFSET(DE104_3!$N$34,ROWS($N$34:N64)-1,COLUMNS($N$34:N64)-1),"") -> 1 | M50: =IF(OFFSET(DE104_3!$O$34,ROWS($O$34:O64)-1,COLUMNS($O$34:O64)-1)<>"",OFFSET(DE104_3!$O$34,ROWS($O$34:O64)-1,COLUMNS($O$34:O64)-1),"") ->  | N50: =IF(OFFSET(DE104_3!$P$34,ROWS($P$34:P64)-1,COLUMNS($P$34:P64)-1)<>"",OFFSET(DE104_3!$P$34,ROWS($P$34:P64)-1,COLUMNS($P$34:P64)-1),"") ->  | O50: =IF(OFFSET(DE104_3!$Q$34,ROWS($Q$34:Q64)-1,COLUMNS($Q$34:Q64)-1)<>"",OFFSET(DE104_3!$Q$34,ROWS($Q$34:Q64)-1,COLUMNS($Q$34:Q64)-1),"") ->  | P50: =IF(OFFSET(DE104_3!$R$34,ROWS($R$34:R64)-1,COLUMNS($R$34:R64)-1)<>"",OFFSET(DE104_3!$R$34,ROWS($R$34:R64)-1,COLUMNS($R$34:R64)-1),"") ->  | Q50: =IF(OFFSET(DE104_3!$S$34,ROWS($S$34:S64)-1,COLUMNS($S$34:S64)-1)<>"",OFFSET(DE104_3!$S$34,ROWS($S$34:S64)-1,COLUMNS($S$34:S64)-1),"") ->  | R50: =IF(OFFSET(DE104_3!$T$34,ROWS($T$34:T64)-1,COLUMNS($T$34:T64)-1)<>"",OFFSET(DE104_3!$T$34,ROWS($T$34:T64)-1,COLUMNS($T$34:T64)-1),"") ->  | S50: =IF(OFFSET(DE104_3!$U$34,ROWS($U$34:U64)-1,COLUMNS($U$34:U64)-1)<>"",OFFSET(DE104_3!$U$34,ROWS($U$34:U64)-1,COLUMNS($U$34:U64)-1),"") ->  | T50: =IF(OFFSET(DE104_3!$V$34,ROWS($V$34:V64)-1,COLUMNS($V$34:V64)-1)<>"",OFFSET(DE104_3!$V$34,ROWS($V$34:V64)-1,COLUMNS($V$34:V64)-1),"") -> Type 3 | U50: =IF(OFFSET(DE104_3!$W$34,ROWS($W$34:W64)-1,COLUMNS($W$34:W64)-1)<>"",OFFSET(DE104_3!$W$34,ROWS($W$34:W64)-1,COLUMNS($W$34:W64)-1),"") ->  | V50: =IF(OFFSET(DE104_3!$X$34,ROWS($X$34:X64)-1,COLUMNS($X$34:X64)-1)<>"",OFFSET(DE104_3!$X$34,ROWS($X$34:X64)-1,COLUMNS($X$34:X64)-1),"") -> 875.5 | W50: =IF(OFFSET(DE104_3!$Y$34,ROWS($Y$34:Y64)-1,COLUMNS($Y$34:Y64)-1)<>"",OFFSET(DE104_3!$Y$34,ROWS($Y$34:Y64)-1,COLUMNS($Y$34:Y64)-1),"") -> 876.05 | X50: =IF(OFFSET(DE104_3!$Z$34,ROWS($Z$34:Z64)-1,COLUMNS($Z$34:Z64)-1)<>"",OFFSET(DE104_3!$Z$34,ROWS($Z$34:Z64)-1,COLUMNS($Z$34:Z64)-1),"") ->  | Y50: =IF(OFFSET(DE104_3!$AA$34,ROWS($AA$34:AA64)-1,COLUMNS($AA$34:AA64)-1)<>"",OFFSET(DE104_3!$AA$34,ROWS($AA$34:AA64)-1,COLUMNS($AA$34:AA64)-1),"") ->  | Z50: =IF(OFFSET(DE104_3!$AB$34,ROWS($AB$34:AB64)-1,COLUMNS($AB$34:AB64)-1)<>"",OFFSET(DE104_3!$AB$34,ROWS($AB$34:AB64)-1,COLUMNS($AB$34:AB64)-1),"") -> 46.95 | AA50: =IF(OFFSET(DE104_3!$AC$34,ROWS($AC$34:AC64)-1,COLUMNS($AC$34:AC64)-1)<>"",OFFSET(DE104_3!$AC$34,ROWS($AC$34:AC64)-1,COLUMNS($AC$34:AC64)-1),"") -> 45.55 | AB50: =IF(OFFSET(DE104_3!$AD$34,ROWS($AD$34:AD64)-1,COLUMNS($AD$34:AD64)-1)<>"",OFFSET(DE104_3!$AD$34,ROWS($AD$34:AD64)-1,COLUMNS($AD$34:AD64)-1),"") ->  | AC50: =IF(OFFSET(DE104_3!$AE$34,ROWS($AE$34:AE64)-1,COLUMNS($AE$34:AE64)-1)<>"",OFFSET(DE104_3!$AE$34,ROWS($AE$34:AE64)-1,COLUMNS($AE$34:AE64)-1),"") ->  | AD50: =IF(OFFSET(DE104_3!$AF$34,ROWS($AF$34:AF64)-1,COLUMNS($AF$34:AF64)-1)<>"",OFFSET(DE104_3!$AF$34,ROWS($AF$34:AF64)-1,COLUMNS($AF$34:AF64)-1),"") ->  | AE50: =IF(OFFSET(DE104_3!$AG$34,ROWS($AG$34:AG64)-1,COLUMNS($AG$34:AG64)-1)<>"",OFFSET(DE104_3!$AG$34,ROWS($AG$34:AG64)-1,COLUMNS($AG$34:AG64)-1),"") ->  | AF50: =IF(OFFSET(DE104_3!$AH$34,ROWS($AH$34:AH64)-1,COLUMNS($AH$34:AH64)-1)<>"",OFFSET(DE104_3!$AH$34,ROWS($AH$34:AH64)-1,COLUMNS($AH$34:AH64)-1),"") ->  | AG50: =IF(OFFSET(DE104_3!$AI$34,ROWS($AI$34:AI64)-1,COLUMNS($AI$34:AI64)-1)<>"",OFFSET(DE104_3!$AI$34,ROWS($AI$34:AI64)-1,COLUMNS($AI$34:AI64)-1),"") ->  | AH50: =IF(OFFSET(DE104_3!$AJ$34,ROWS($AJ$34:AJ64)-1,COLUMNS($AJ$34:AJ64)-1)<>"",OFFSET(DE104_3!$AJ$34,ROWS($AJ$34:AJ64)-1,COLUMNS($AJ$34:AJ64)-1),"") ->  | AI50: =IF(OFFSET(DE104_3!$AK$34,ROWS($AK$34:AK64)-1,COLUMNS($AK$34:AK64)-1)<>"",OFFSET(DE104_3!$AK$34,ROWS($AK$34:AK64)-1,COLUMNS($AK$34:AK64)-1),"") ->  | AJ50: =IF(OFFSET(DE104_3!$AL$34,ROWS($AL$34:AL64)-1,COLUMNS($AL$34:AL64)-1)<>"",OFFSET(DE104_3!$AL$34,ROWS($AL$34:AL64)-1,COLUMNS($AL$34:AL64)-1),"") -> 224.6037037 | AK50: =IF(OFFSET(DE104_3!$AM$34,ROWS($AM$34:AM64)-1,COLUMNS($AM$34:AM64)-1)<>"",OFFSET(DE104_3!$AM$34,ROWS($AM$34:AM64)-1,COLUMNS($AM$34:AM64)-1),"") ->  | AL50: =IF(OFFSET(DE104_3!$AN$34,ROWS($AN$34:AN64)-1,COLUMNS($AN$34:AN64)-1)<>"",OFFSET(DE104_3!$AN$34,ROWS($AN$34:AN64)-1,COLUMNS($AN$34:AN64)-1),"") -> 380.3444444 | AM50: =IF(OFFSET(DE104_3!$AO$34,ROWS($AO$34:AO64)-1,COLUMNS($AO$34:AO64)-1)<>"",OFFSET(DE104_3!$AO$34,ROWS($AO$34:AO64)-1,COLUMNS($AO$34:AO64)-1),"") -> 12.10018519 | AN50: =IF(OFFSET(DE104_3!$AP$34,ROWS($AP$34:AP64)-1,COLUMNS($AP$34:AP64)-1)<>"",OFFSET(DE104_3!$AP$34,ROWS($AP$34:AP64)-1,COLUMNS($AP$34:AP64)-1),"") -> 392.4446296 | AO50: =IF(OFFSET(DE104_3!$AQ$34,ROWS($AQ$34:AQ64)-1,COLUMNS($AQ$34:AQ64)-1)<>"",OFFSET(DE104_3!$AQ$34,ROWS($AQ$34:AQ64)-1,COLUMNS($AQ$34:AQ64)-1),"") -> 
A51: =IF(OFFSET(DE104_3!$C$34,ROWS($C$34:C65)-1,COLUMNS($C$34:C65)-1)<>"",OFFSET(DE104_3!$C$34,ROWS($C$34:C65)-1,COLUMNS($C$34:C65)-1),"") ->  | B51: =IF(OFFSET(DE104_3!$D$34,ROWS($D$34:D65)-1,COLUMNS($D$34:D65)-1)<>"",OFFSET(DE104_3!$D$34,ROWS($D$34:D65)-1,COLUMNS($D$34:D65)-1),"") ->  | C51: =IF(OFFSET(DE104_3!$E$34,ROWS($E$34:E65)-1,COLUMNS($E$34:E65)-1)<>"",OFFSET(DE104_3!$E$34,ROWS($E$34:E65)-1,COLUMNS($E$34:E65)-1),"") ->  | D51: =IF(OFFSET(DE104_3!$F$34,ROWS($F$34:F65)-1,COLUMNS($F$34:F65)-1)<>"",OFFSET(DE104_3!$F$34,ROWS($F$34:F65)-1,COLUMNS($F$34:F65)-1),"") ->  | E51: =IF(OFFSET(DE104_3!$G$34,ROWS($G$34:G65)-1,COLUMNS($G$34:G65)-1)<>"",OFFSET(DE104_3!$G$34,ROWS($G$34:G65)-1,COLUMNS($G$34:G65)-1),"") ->  | F51: =IF(OFFSET(DE104_3!$H$34,ROWS($H$34:H65)-1,COLUMNS($H$34:H65)-1)<>"",OFFSET(DE104_3!$H$34,ROWS($H$34:H65)-1,COLUMNS($H$34:H65)-1),"") ->  | G51: =IF(OFFSET(DE104_3!$I$34,ROWS($I$34:I65)-1,COLUMNS($I$34:I65)-1)<>"",OFFSET(DE104_3!$I$34,ROWS($I$34:I65)-1,COLUMNS($I$34:I65)-1),"") ->  | H51: =IF(OFFSET(DE104_3!$J$34,ROWS($J$34:J65)-1,COLUMNS($J$34:J65)-1)<>"",OFFSET(DE104_3!$J$34,ROWS($J$34:J65)-1,COLUMNS($J$34:J65)-1),"") ->  | I51: =IF(OFFSET(DE104_3!$K$34,ROWS($K$34:K65)-1,COLUMNS($K$34:K65)-1)<>"",OFFSET(DE104_3!$K$34,ROWS($K$34:K65)-1,COLUMNS($K$34:K65)-1),"") ->  | J51: =IF(OFFSET(DE104_3!$L$34,ROWS($L$34:L65)-1,COLUMNS($L$34:L65)-1)<>"",OFFSET(DE104_3!$L$34,ROWS($L$34:L65)-1,COLUMNS($L$34:L65)-1),"") ->  | K51: =IF(OFFSET(DE104_3!$M$34,ROWS($M$34:M65)-1,COLUMNS($M$34:M65)-1)<>"",OFFSET(DE104_3!$M$34,ROWS($M$34:M65)-1,COLUMNS($M$34:M65)-1),"") ->  | L51: =IF(OFFSET(DE104_3!$N$34,ROWS($N$34:N65)-1,COLUMNS($N$34:N65)-1)<>"",OFFSET(DE104_3!$N$34,ROWS($N$34:N65)-1,COLUMNS($N$34:N65)-1),"") ->  | M51: =IF(OFFSET(DE104_3!$O$34,ROWS($O$34:O65)-1,COLUMNS($O$34:O65)-1)<>"",OFFSET(DE104_3!$O$34,ROWS($O$34:O65)-1,COLUMNS($O$34:O65)-1),"") ->  | N51: =IF(OFFSET(DE104_3!$P$34,ROWS($P$34:P65)-1,COLUMNS($P$34:P65)-1)<>"",OFFSET(DE104_3!$P$34,ROWS($P$34:P65)-1,COLUMNS($P$34:P65)-1),"") ->  | O51: =IF(OFFSET(DE104_3!$Q$34,ROWS($Q$34:Q65)-1,COLUMNS($Q$34:Q65)-1)<>"",OFFSET(DE104_3!$Q$34,ROWS($Q$34:Q65)-1,COLUMNS($Q$34:Q65)-1),"") ->  | P51: =IF(OFFSET(DE104_3!$R$34,ROWS($R$34:R65)-1,COLUMNS($R$34:R65)-1)<>"",OFFSET(DE104_3!$R$34,ROWS($R$34:R65)-1,COLUMNS($R$34:R65)-1),"") ->  | Q51: =IF(OFFSET(DE104_3!$S$34,ROWS($S$34:S65)-1,COLUMNS($S$34:S65)-1)<>"",OFFSET(DE104_3!$S$34,ROWS($S$34:S65)-1,COLUMNS($S$34:S65)-1),"") ->  | R51: =IF(OFFSET(DE104_3!$T$34,ROWS($T$34:T65)-1,COLUMNS($T$34:T65)-1)<>"",OFFSET(DE104_3!$T$34,ROWS($T$34:T65)-1,COLUMNS($T$34:T65)-1),"") ->  | S51: =IF(OFFSET(DE104_3!$U$34,ROWS($U$34:U65)-1,COLUMNS($U$34:U65)-1)<>"",OFFSET(DE104_3!$U$34,ROWS($U$34:U65)-1,COLUMNS($U$34:U65)-1),"") ->  | T51: =IF(OFFSET(DE104_3!$V$34,ROWS($V$34:V65)-1,COLUMNS($V$34:V65)-1)<>"",OFFSET(DE104_3!$V$34,ROWS($V$34:V65)-1,COLUMNS($V$34:V65)-1),"") ->  | U51: =IF(OFFSET(DE104_3!$W$34,ROWS($W$34:W65)-1,COLUMNS($W$34:W65)-1)<>"",OFFSET(DE104_3!$W$34,ROWS($W$34:W65)-1,COLUMNS($W$34:W65)-1),"") ->  | V51: =IF(OFFSET(DE104_3!$X$34,ROWS($X$34:X65)-1,COLUMNS($X$34:X65)-1)<>"",OFFSET(DE104_3!$X$34,ROWS($X$34:X65)-1,COLUMNS($X$34:X65)-1),"") ->  | W51: =IF(OFFSET(DE104_3!$Y$34,ROWS($Y$34:Y65)-1,COLUMNS($Y$34:Y65)-1)<>"",OFFSET(DE104_3!$Y$34,ROWS($Y$34:Y65)-1,COLUMNS($Y$34:Y65)-1),"") ->  | X51: =IF(OFFSET(DE104_3!$Z$34,ROWS($Z$34:Z65)-1,COLUMNS($Z$34:Z65)-1)<>"",OFFSET(DE104_3!$Z$34,ROWS($Z$34:Z65)-1,COLUMNS($Z$34:Z65)-1),"") ->  | Y51: =IF(OFFSET(DE104_3!$AA$34,ROWS($AA$34:AA65)-1,COLUMNS($AA$34:AA65)-1)<>"",OFFSET(DE104_3!$AA$34,ROWS($AA$34:AA65)-1,COLUMNS($AA$34:AA65)-1),"") ->  | Z51: =IF(OFFSET(DE104_3!$AB$34,ROWS($AB$34:AB65)-1,COLUMNS($AB$34:AB65)-1)<>"",OFFSET(DE104_3!$AB$34,ROWS($AB$34:AB65)-1,COLUMNS($AB$34:AB65)-1),"") ->  | AA51: =IF(OFFSET(DE104_3!$AC$34,ROWS($AC$34:AC65)-1,COLUMNS($AC$34:AC65)-1)<>"",OFFSET(DE104_3!$AC$34,ROWS($AC$34:AC65)-1,COLUMNS($AC$34:AC65)-1),"") ->  | AB51: =IF(OFFSET(DE104_3!$AD$34,ROWS($AD$34:AD65)-1,COLUMNS($AD$34:AD65)-1)<>"",OFFSET(DE104_3!$AD$34,ROWS($AD$34:AD65)-1,COLUMNS($AD$34:AD65)-1),"") ->  | AC51: =IF(OFFSET(DE104_3!$AE$34,ROWS($AE$34:AE65)-1,COLUMNS($AE$34:AE65)-1)<>"",OFFSET(DE104_3!$AE$34,ROWS($AE$34:AE65)-1,COLUMNS($AE$34:AE65)-1),"") ->  | AD51: =IF(OFFSET(DE104_3!$AF$34,ROWS($AF$34:AF65)-1,COLUMNS($AF$34:AF65)-1)<>"",OFFSET(DE104_3!$AF$34,ROWS($AF$34:AF65)-1,COLUMNS($AF$34:AF65)-1),"") ->  | AE51: =IF(OFFSET(DE104_3!$AG$34,ROWS($AG$34:AG65)-1,COLUMNS($AG$34:AG65)-1)<>"",OFFSET(DE104_3!$AG$34,ROWS($AG$34:AG65)-1,COLUMNS($AG$34:AG65)-1),"") ->  | AF51: =IF(OFFSET(DE104_3!$AH$34,ROWS($AH$34:AH65)-1,COLUMNS($AH$34:AH65)-1)<>"",OFFSET(DE104_3!$AH$34,ROWS($AH$34:AH65)-1,COLUMNS($AH$34:AH65)-1),"") ->  | AG51: =IF(OFFSET(DE104_3!$AI$34,ROWS($AI$34:AI65)-1,COLUMNS($AI$34:AI65)-1)<>"",OFFSET(DE104_3!$AI$34,ROWS($AI$34:AI65)-1,COLUMNS($AI$34:AI65)-1),"") ->  | AH51: =IF(OFFSET(DE104_3!$AJ$34,ROWS($AJ$34:AJ65)-1,COLUMNS($AJ$34:AJ65)-1)<>"",OFFSET(DE104_3!$AJ$34,ROWS($AJ$34:AJ65)-1,COLUMNS($AJ$34:AJ65)-1),"") ->  | AI51: =IF(OFFSET(DE104_3!$AK$34,ROWS($AK$34:AK65)-1,COLUMNS($AK$34:AK65)-1)<>"",OFFSET(DE104_3!$AK$34,ROWS($AK$34:AK65)-1,COLUMNS($AK$34:AK65)-1),"") ->  | AJ51: =IF(OFFSET(DE104_3!$AL$34,ROWS($AL$34:AL65)-1,COLUMNS($AL$34:AL65)-1)<>"",OFFSET(DE104_3!$AL$34,ROWS($AL$34:AL65)-1,COLUMNS($AL$34:AL65)-1),"") ->  | AK51: =IF(OFFSET(DE104_3!$AM$34,ROWS($AM$34:AM65)-1,COLUMNS($AM$34:AM65)-1)<>"",OFFSET(DE104_3!$AM$34,ROWS($AM$34:AM65)-1,COLUMNS($AM$34:AM65)-1),"") ->  | AL51: =IF(OFFSET(DE104_3!$AN$34,ROWS($AN$34:AN65)-1,COLUMNS($AN$34:AN65)-1)<>"",OFFSET(DE104_3!$AN$34,ROWS($AN$34:AN65)-1,COLUMNS($AN$34:AN65)-1),"") ->  | AM51: =IF(OFFSET(DE104_3!$AO$34,ROWS($AO$34:AO65)-1,COLUMNS($AO$34:AO65)-1)<>"",OFFSET(DE104_3!$AO$34,ROWS($AO$34:AO65)-1,COLUMNS($AO$34:AO65)-1),"") ->  | AN51: =IF(OFFSET(DE104_3!$AP$34,ROWS($AP$34:AP65)-1,COLUMNS($AP$34:AP65)-1)<>"",OFFSET(DE104_3!$AP$34,ROWS($AP$34:AP65)-1,COLUMNS($AP$34:AP65)-1),"") ->  | AO51: =IF(OFFSET(DE104_3!$AQ$34,ROWS($AQ$34:AQ65)-1,COLUMNS($AQ$34:AQ65)-1)<>"",OFFSET(DE104_3!$AQ$34,ROWS($AQ$34:AQ65)-1,COLUMNS($AQ$34:AQ65)-1),"") -> 
A52: =IF(OFFSET(DE104_3!$C$34,ROWS($C$34:C66)-1,COLUMNS($C$34:C66)-1)<>"",OFFSET(DE104_3!$C$34,ROWS($C$34:C66)-1,COLUMNS($C$34:C66)-1),"") ->  | B52: =IF(OFFSET(DE104_3!$D$34,ROWS($D$34:D66)-1,COLUMNS($D$34:D66)-1)<>"",OFFSET(DE104_3!$D$34,ROWS($D$34:D66)-1,COLUMNS($D$34:D66)-1),"") ->  | C52: =IF(OFFSET(DE104_3!$E$34,ROWS($E$34:E66)-1,COLUMNS($E$34:E66)-1)<>"",OFFSET(DE104_3!$E$34,ROWS($E$34:E66)-1,COLUMNS($E$34:E66)-1),"") ->  | D52: =IF(OFFSET(DE104_3!$F$34,ROWS($F$34:F66)-1,COLUMNS($F$34:F66)-1)<>"",OFFSET(DE104_3!$F$34,ROWS($F$34:F66)-1,COLUMNS($F$34:F66)-1),"") ->  | E52: =IF(OFFSET(DE104_3!$G$34,ROWS($G$34:G66)-1,COLUMNS($G$34:G66)-1)<>"",OFFSET(DE104_3!$G$34,ROWS($G$34:G66)-1,COLUMNS($G$34:G66)-1),"") ->  | F52: =IF(OFFSET(DE104_3!$H$34,ROWS($H$34:H66)-1,COLUMNS($H$34:H66)-1)<>"",OFFSET(DE104_3!$H$34,ROWS($H$34:H66)-1,COLUMNS($H$34:H66)-1),"") ->  | G52: =IF(OFFSET(DE104_3!$I$34,ROWS($I$34:I66)-1,COLUMNS($I$34:I66)-1)<>"",OFFSET(DE104_3!$I$34,ROWS($I$34:I66)-1,COLUMNS($I$34:I66)-1),"") ->  | H52: =IF(OFFSET(DE104_3!$J$34,ROWS($J$34:J66)-1,COLUMNS($J$34:J66)-1)<>"",OFFSET(DE104_3!$J$34,ROWS($J$34:J66)-1,COLUMNS($J$34:J66)-1),"") ->  | I52: =IF(OFFSET(DE104_3!$K$34,ROWS($K$34:K66)-1,COLUMNS($K$34:K66)-1)<>"",OFFSET(DE104_3!$K$34,ROWS($K$34:K66)-1,COLUMNS($K$34:K66)-1),"") ->  | J52: =IF(OFFSET(DE104_3!$L$34,ROWS($L$34:L66)-1,COLUMNS($L$34:L66)-1)<>"",OFFSET(DE104_3!$L$34,ROWS($L$34:L66)-1,COLUMNS($L$34:L66)-1),"") ->  | K52: =IF(OFFSET(DE104_3!$M$34,ROWS($M$34:M66)-1,COLUMNS($M$34:M66)-1)<>"",OFFSET(DE104_3!$M$34,ROWS($M$34:M66)-1,COLUMNS($M$34:M66)-1),"") ->  | L52: =IF(OFFSET(DE104_3!$N$34,ROWS($N$34:N66)-1,COLUMNS($N$34:N66)-1)<>"",OFFSET(DE104_3!$N$34,ROWS($N$34:N66)-1,COLUMNS($N$34:N66)-1),"") ->  | M52: =IF(OFFSET(DE104_3!$O$34,ROWS($O$34:O66)-1,COLUMNS($O$34:O66)-1)<>"",OFFSET(DE104_3!$O$34,ROWS($O$34:O66)-1,COLUMNS($O$34:O66)-1),"") ->  | N52: =IF(OFFSET(DE104_3!$P$34,ROWS($P$34:P66)-1,COLUMNS($P$34:P66)-1)<>"",OFFSET(DE104_3!$P$34,ROWS($P$34:P66)-1,COLUMNS($P$34:P66)-1),"") ->  | O52: =IF(OFFSET(DE104_3!$Q$34,ROWS($Q$34:Q66)-1,COLUMNS($Q$34:Q66)-1)<>"",OFFSET(DE104_3!$Q$34,ROWS($Q$34:Q66)-1,COLUMNS($Q$34:Q66)-1),"") ->  | P52: =IF(OFFSET(DE104_3!$R$34,ROWS($R$34:R66)-1,COLUMNS($R$34:R66)-1)<>"",OFFSET(DE104_3!$R$34,ROWS($R$34:R66)-1,COLUMNS($R$34:R66)-1),"") ->  | Q52: =IF(OFFSET(DE104_3!$S$34,ROWS($S$34:S66)-1,COLUMNS($S$34:S66)-1)<>"",OFFSET(DE104_3!$S$34,ROWS($S$34:S66)-1,COLUMNS($S$34:S66)-1),"") ->  | R52: =IF(OFFSET(DE104_3!$T$34,ROWS($T$34:T66)-1,COLUMNS($T$34:T66)-1)<>"",OFFSET(DE104_3!$T$34,ROWS($T$34:T66)-1,COLUMNS($T$34:T66)-1),"") ->  | S52: =IF(OFFSET(DE104_3!$U$34,ROWS($U$34:U66)-1,COLUMNS($U$34:U66)-1)<>"",OFFSET(DE104_3!$U$34,ROWS($U$34:U66)-1,COLUMNS($U$34:U66)-1),"") ->  | T52: =IF(OFFSET(DE104_3!$V$34,ROWS($V$34:V66)-1,COLUMNS($V$34:V66)-1)<>"",OFFSET(DE104_3!$V$34,ROWS($V$34:V66)-1,COLUMNS($V$34:V66)-1),"") ->  | U52: =IF(OFFSET(DE104_3!$W$34,ROWS($W$34:W66)-1,COLUMNS($W$34:W66)-1)<>"",OFFSET(DE104_3!$W$34,ROWS($W$34:W66)-1,COLUMNS($W$34:W66)-1),"") ->  | V52: =IF(OFFSET(DE104_3!$X$34,ROWS($X$34:X66)-1,COLUMNS($X$34:X66)-1)<>"",OFFSET(DE104_3!$X$34,ROWS($X$34:X66)-1,COLUMNS($X$34:X66)-1),"") ->  | W52: =IF(OFFSET(DE104_3!$Y$34,ROWS($Y$34:Y66)-1,COLUMNS($Y$34:Y66)-1)<>"",OFFSET(DE104_3!$Y$34,ROWS($Y$34:Y66)-1,COLUMNS($Y$34:Y66)-1),"") ->  | X52: =IF(OFFSET(DE104_3!$Z$34,ROWS($Z$34:Z66)-1,COLUMNS($Z$34:Z66)-1)<>"",OFFSET(DE104_3!$Z$34,ROWS($Z$34:Z66)-1,COLUMNS($Z$34:Z66)-1),"") ->  | Y52: =IF(OFFSET(DE104_3!$AA$34,ROWS($AA$34:AA66)-1,COLUMNS($AA$34:AA66)-1)<>"",OFFSET(DE104_3!$AA$34,ROWS($AA$34:AA66)-1,COLUMNS($AA$34:AA66)-1),"") ->  | Z52: =IF(OFFSET(DE104_3!$AB$34,ROWS($AB$34:AB66)-1,COLUMNS($AB$34:AB66)-1)<>"",OFFSET(DE104_3!$AB$34,ROWS($AB$34:AB66)-1,COLUMNS($AB$34:AB66)-1),"") ->  | AA52: =IF(OFFSET(DE104_3!$AC$34,ROWS($AC$34:AC66)-1,COLUMNS($AC$34:AC66)-1)<>"",OFFSET(DE104_3!$AC$34,ROWS($AC$34:AC66)-1,COLUMNS($AC$34:AC66)-1),"") ->  | AB52: =IF(OFFSET(DE104_3!$AD$34,ROWS($AD$34:AD66)-1,COLUMNS($AD$34:AD66)-1)<>"",OFFSET(DE104_3!$AD$34,ROWS($AD$34:AD66)-1,COLUMNS($AD$34:AD66)-1),"") ->  | AC52: =IF(OFFSET(DE104_3!$AE$34,ROWS($AE$34:AE66)-1,COLUMNS($AE$34:AE66)-1)<>"",OFFSET(DE104_3!$AE$34,ROWS($AE$34:AE66)-1,COLUMNS($AE$34:AE66)-1),"") ->  | AD52: =IF(OFFSET(DE104_3!$AF$34,ROWS($AF$34:AF66)-1,COLUMNS($AF$34:AF66)-1)<>"",OFFSET(DE104_3!$AF$34,ROWS($AF$34:AF66)-1,COLUMNS($AF$34:AF66)-1),"") ->  | AE52: =IF(OFFSET(DE104_3!$AG$34,ROWS($AG$34:AG66)-1,COLUMNS($AG$34:AG66)-1)<>"",OFFSET(DE104_3!$AG$34,ROWS($AG$34:AG66)-1,COLUMNS($AG$34:AG66)-1),"") ->  | AF52: =IF(OFFSET(DE104_3!$AH$34,ROWS($AH$34:AH66)-1,COLUMNS($AH$34:AH66)-1)<>"",OFFSET(DE104_3!$AH$34,ROWS($AH$34:AH66)-1,COLUMNS($AH$34:AH66)-1),"") ->  | AG52: =IF(OFFSET(DE104_3!$AI$34,ROWS($AI$34:AI66)-1,COLUMNS($AI$34:AI66)-1)<>"",OFFSET(DE104_3!$AI$34,ROWS($AI$34:AI66)-1,COLUMNS($AI$34:AI66)-1),"") ->  | AH52: =IF(OFFSET(DE104_3!$AJ$34,ROWS($AJ$34:AJ66)-1,COLUMNS($AJ$34:AJ66)-1)<>"",OFFSET(DE104_3!$AJ$34,ROWS($AJ$34:AJ66)-1,COLUMNS($AJ$34:AJ66)-1),"") ->  | AI52: =IF(OFFSET(DE104_3!$AK$34,ROWS($AK$34:AK66)-1,COLUMNS($AK$34:AK66)-1)<>"",OFFSET(DE104_3!$AK$34,ROWS($AK$34:AK66)-1,COLUMNS($AK$34:AK66)-1),"") ->  | AJ52: =IF(OFFSET(DE104_3!$AL$34,ROWS($AL$34:AL66)-1,COLUMNS($AL$34:AL66)-1)<>"",OFFSET(DE104_3!$AL$34,ROWS($AL$34:AL66)-1,COLUMNS($AL$34:AL66)-1),"") ->  | AK52: =IF(OFFSET(DE104_3!$AM$34,ROWS($AM$34:AM66)-1,COLUMNS($AM$34:AM66)-1)<>"",OFFSET(DE104_3!$AM$34,ROWS($AM$34:AM66)-1,COLUMNS($AM$34:AM66)-1),"") ->  | AL52: =IF(OFFSET(DE104_3!$AN$34,ROWS($AN$34:AN66)-1,COLUMNS($AN$34:AN66)-1)<>"",OFFSET(DE104_3!$AN$34,ROWS($AN$34:AN66)-1,COLUMNS($AN$34:AN66)-1),"") ->  | AM52: =IF(OFFSET(DE104_3!$AO$34,ROWS($AO$34:AO66)-1,COLUMNS($AO$34:AO66)-1)<>"",OFFSET(DE104_3!$AO$34,ROWS($AO$34:AO66)-1,COLUMNS($AO$34:AO66)-1),"") ->  | AN52: =IF(OFFSET(DE104_3!$AP$34,ROWS($AP$34:AP66)-1,COLUMNS($AP$34:AP66)-1)<>"",OFFSET(DE104_3!$AP$34,ROWS($AP$34:AP66)-1,COLUMNS($AP$34:AP66)-1),"") ->  | AO52: =IF(OFFSET(DE104_3!$AQ$34,ROWS($AQ$34:AQ66)-1,COLUMNS($AQ$34:AQ66)-1)<>"",OFFSET(DE104_3!$AQ$34,ROWS($AQ$34:AQ66)-1,COLUMNS($AQ$34:AQ66)-1),"") -> 
A53: =IF(OFFSET(DE104_3!$C$34,ROWS($C$34:C67)-1,COLUMNS($C$34:C67)-1)<>"",OFFSET(DE104_3!$C$34,ROWS($C$34:C67)-1,COLUMNS($C$34:C67)-1),"") ->  | B53: =IF(OFFSET(DE104_3!$D$34,ROWS($D$34:D67)-1,COLUMNS($D$34:D67)-1)<>"",OFFSET(DE104_3!$D$34,ROWS($D$34:D67)-1,COLUMNS($D$34:D67)-1),"") ->  | C53: =IF(OFFSET(DE104_3!$E$34,ROWS($E$34:E67)-1,COLUMNS($E$34:E67)-1)<>"",OFFSET(DE104_3!$E$34,ROWS($E$34:E67)-1,COLUMNS($E$34:E67)-1),"") ->  | D53: =IF(OFFSET(DE104_3!$F$34,ROWS($F$34:F67)-1,COLUMNS($F$34:F67)-1)<>"",OFFSET(DE104_3!$F$34,ROWS($F$34:F67)-1,COLUMNS($F$34:F67)-1),"") ->  | E53: =IF(OFFSET(DE104_3!$G$34,ROWS($G$34:G67)-1,COLUMNS($G$34:G67)-1)<>"",OFFSET(DE104_3!$G$34,ROWS($G$34:G67)-1,COLUMNS($G$34:G67)-1),"") ->  | F53: =IF(OFFSET(DE104_3!$H$34,ROWS($H$34:H67)-1,COLUMNS($H$34:H67)-1)<>"",OFFSET(DE104_3!$H$34,ROWS($H$34:H67)-1,COLUMNS($H$34:H67)-1),"") ->  | G53: =IF(OFFSET(DE104_3!$I$34,ROWS($I$34:I67)-1,COLUMNS($I$34:I67)-1)<>"",OFFSET(DE104_3!$I$34,ROWS($I$34:I67)-1,COLUMNS($I$34:I67)-1),"") ->  | H53: =IF(OFFSET(DE104_3!$J$34,ROWS($J$34:J67)-1,COLUMNS($J$34:J67)-1)<>"",OFFSET(DE104_3!$J$34,ROWS($J$34:J67)-1,COLUMNS($J$34:J67)-1),"") ->  | I53: =IF(OFFSET(DE104_3!$K$34,ROWS($K$34:K67)-1,COLUMNS($K$34:K67)-1)<>"",OFFSET(DE104_3!$K$34,ROWS($K$34:K67)-1,COLUMNS($K$34:K67)-1),"") ->  | J53: =IF(OFFSET(DE104_3!$L$34,ROWS($L$34:L67)-1,COLUMNS($L$34:L67)-1)<>"",OFFSET(DE104_3!$L$34,ROWS($L$34:L67)-1,COLUMNS($L$34:L67)-1),"") ->  | K53: =IF(OFFSET(DE104_3!$M$34,ROWS($M$34:M67)-1,COLUMNS($M$34:M67)-1)<>"",OFFSET(DE104_3!$M$34,ROWS($M$34:M67)-1,COLUMNS($M$34:M67)-1),"") ->  | L53: =IF(OFFSET(DE104_3!$N$34,ROWS($N$34:N67)-1,COLUMNS($N$34:N67)-1)<>"",OFFSET(DE104_3!$N$34,ROWS($N$34:N67)-1,COLUMNS($N$34:N67)-1),"") ->  | M53: =IF(OFFSET(DE104_3!$O$34,ROWS($O$34:O67)-1,COLUMNS($O$34:O67)-1)<>"",OFFSET(DE104_3!$O$34,ROWS($O$34:O67)-1,COLUMNS($O$34:O67)-1),"") ->  | N53: =IF(OFFSET(DE104_3!$P$34,ROWS($P$34:P67)-1,COLUMNS($P$34:P67)-1)<>"",OFFSET(DE104_3!$P$34,ROWS($P$34:P67)-1,COLUMNS($P$34:P67)-1),"") ->  | O53: =IF(OFFSET(DE104_3!$Q$34,ROWS($Q$34:Q67)-1,COLUMNS($Q$34:Q67)-1)<>"",OFFSET(DE104_3!$Q$34,ROWS($Q$34:Q67)-1,COLUMNS($Q$34:Q67)-1),"") ->  | P53: =IF(OFFSET(DE104_3!$R$34,ROWS($R$34:R67)-1,COLUMNS($R$34:R67)-1)<>"",OFFSET(DE104_3!$R$34,ROWS($R$34:R67)-1,COLUMNS($R$34:R67)-1),"") ->  | Q53: =IF(OFFSET(DE104_3!$S$34,ROWS($S$34:S67)-1,COLUMNS($S$34:S67)-1)<>"",OFFSET(DE104_3!$S$34,ROWS($S$34:S67)-1,COLUMNS($S$34:S67)-1),"") ->  | R53: =IF(OFFSET(DE104_3!$T$34,ROWS($T$34:T67)-1,COLUMNS($T$34:T67)-1)<>"",OFFSET(DE104_3!$T$34,ROWS($T$34:T67)-1,COLUMNS($T$34:T67)-1),"") ->  | S53: =IF(OFFSET(DE104_3!$U$34,ROWS($U$34:U67)-1,COLUMNS($U$34:U67)-1)<>"",OFFSET(DE104_3!$U$34,ROWS($U$34:U67)-1,COLUMNS($U$34:U67)-1),"") ->  | T53: =IF(OFFSET(DE104_3!$V$34,ROWS($V$34:V67)-1,COLUMNS($V$34:V67)-1)<>"",OFFSET(DE104_3!$V$34,ROWS($V$34:V67)-1,COLUMNS($V$34:V67)-1),"") ->  | U53: =IF(OFFSET(DE104_3!$W$34,ROWS($W$34:W67)-1,COLUMNS($W$34:W67)-1)<>"",OFFSET(DE104_3!$W$34,ROWS($W$34:W67)-1,COLUMNS($W$34:W67)-1),"") ->  | V53: =IF(OFFSET(DE104_3!$X$34,ROWS($X$34:X67)-1,COLUMNS($X$34:X67)-1)<>"",OFFSET(DE104_3!$X$34,ROWS($X$34:X67)-1,COLUMNS($X$34:X67)-1),"") ->  | W53: =IF(OFFSET(DE104_3!$Y$34,ROWS($Y$34:Y67)-1,COLUMNS($Y$34:Y67)-1)<>"",OFFSET(DE104_3!$Y$34,ROWS($Y$34:Y67)-1,COLUMNS($Y$34:Y67)-1),"") ->  | X53: =IF(OFFSET(DE104_3!$Z$34,ROWS($Z$34:Z67)-1,COLUMNS($Z$34:Z67)-1)<>"",OFFSET(DE104_3!$Z$34,ROWS($Z$34:Z67)-1,COLUMNS($Z$34:Z67)-1),"") ->  | Y53: =IF(OFFSET(DE104_3!$AA$34,ROWS($AA$34:AA67)-1,COLUMNS($AA$34:AA67)-1)<>"",OFFSET(DE104_3!$AA$34,ROWS($AA$34:AA67)-1,COLUMNS($AA$34:AA67)-1),"") ->  | Z53: =IF(OFFSET(DE104_3!$AB$34,ROWS($AB$34:AB67)-1,COLUMNS($AB$34:AB67)-1)<>"",OFFSET(DE104_3!$AB$34,ROWS($AB$34:AB67)-1,COLUMNS($AB$34:AB67)-1),"") ->  | AA53: =IF(OFFSET(DE104_3!$AC$34,ROWS($AC$34:AC67)-1,COLUMNS($AC$34:AC67)-1)<>"",OFFSET(DE104_3!$AC$34,ROWS($AC$34:AC67)-1,COLUMNS($AC$34:AC67)-1),"") ->  | AB53: =IF(OFFSET(DE104_3!$AD$34,ROWS($AD$34:AD67)-1,COLUMNS($AD$34:AD67)-1)<>"",OFFSET(DE104_3!$AD$34,ROWS($AD$34:AD67)-1,COLUMNS($AD$34:AD67)-1),"") ->  | AC53: =IF(OFFSET(DE104_3!$AE$34,ROWS($AE$34:AE67)-1,COLUMNS($AE$34:AE67)-1)<>"",OFFSET(DE104_3!$AE$34,ROWS($AE$34:AE67)-1,COLUMNS($AE$34:AE67)-1),"") ->  | AD53: =IF(OFFSET(DE104_3!$AF$34,ROWS($AF$34:AF67)-1,COLUMNS($AF$34:AF67)-1)<>"",OFFSET(DE104_3!$AF$34,ROWS($AF$34:AF67)-1,COLUMNS($AF$34:AF67)-1),"") ->  | AE53: =IF(OFFSET(DE104_3!$AG$34,ROWS($AG$34:AG67)-1,COLUMNS($AG$34:AG67)-1)<>"",OFFSET(DE104_3!$AG$34,ROWS($AG$34:AG67)-1,COLUMNS($AG$34:AG67)-1),"") ->  | AF53: =IF(OFFSET(DE104_3!$AH$34,ROWS($AH$34:AH67)-1,COLUMNS($AH$34:AH67)-1)<>"",OFFSET(DE104_3!$AH$34,ROWS($AH$34:AH67)-1,COLUMNS($AH$34:AH67)-1),"") ->  | AG53: =IF(OFFSET(DE104_3!$AI$34,ROWS($AI$34:AI67)-1,COLUMNS($AI$34:AI67)-1)<>"",OFFSET(DE104_3!$AI$34,ROWS($AI$34:AI67)-1,COLUMNS($AI$34:AI67)-1),"") ->  | AH53: =IF(OFFSET(DE104_3!$AJ$34,ROWS($AJ$34:AJ67)-1,COLUMNS($AJ$34:AJ67)-1)<>"",OFFSET(DE104_3!$AJ$34,ROWS($AJ$34:AJ67)-1,COLUMNS($AJ$34:AJ67)-1),"") ->  | AI53: =IF(OFFSET(DE104_3!$AK$34,ROWS($AK$34:AK67)-1,COLUMNS($AK$34:AK67)-1)<>"",OFFSET(DE104_3!$AK$34,ROWS($AK$34:AK67)-1,COLUMNS($AK$34:AK67)-1),"") ->  | AJ53: =IF(OFFSET(DE104_3!$AL$34,ROWS($AL$34:AL67)-1,COLUMNS($AL$34:AL67)-1)<>"",OFFSET(DE104_3!$AL$34,ROWS($AL$34:AL67)-1,COLUMNS($AL$34:AL67)-1),"") ->  | AK53: =IF(OFFSET(DE104_3!$AM$34,ROWS($AM$34:AM67)-1,COLUMNS($AM$34:AM67)-1)<>"",OFFSET(DE104_3!$AM$34,ROWS($AM$34:AM67)-1,COLUMNS($AM$34:AM67)-1),"") ->  | AL53: =IF(OFFSET(DE104_3!$AN$34,ROWS($AN$34:AN67)-1,COLUMNS($AN$34:AN67)-1)<>"",OFFSET(DE104_3!$AN$34,ROWS($AN$34:AN67)-1,COLUMNS($AN$34:AN67)-1),"") ->  | AM53: =IF(OFFSET(DE104_3!$AO$34,ROWS($AO$34:AO67)-1,COLUMNS($AO$34:AO67)-1)<>"",OFFSET(DE104_3!$AO$34,ROWS($AO$34:AO67)-1,COLUMNS($AO$34:AO67)-1),"") ->  | AN53: =IF(OFFSET(DE104_3!$AP$34,ROWS($AP$34:AP67)-1,COLUMNS($AP$34:AP67)-1)<>"",OFFSET(DE104_3!$AP$34,ROWS($AP$34:AP67)-1,COLUMNS($AP$34:AP67)-1),"") ->  | AO53: =IF(OFFSET(DE104_3!$AQ$34,ROWS($AQ$34:AQ67)-1,COLUMNS($AQ$34:AQ67)-1)<>"",OFFSET(DE104_3!$AQ$34,ROWS($AQ$34:AQ67)-1,COLUMNS($AQ$34:AQ67)-1),"") -> 
A54: =IF(OFFSET(DE104_3!$C$34,ROWS($C$34:C68)-1,COLUMNS($C$34:C68)-1)<>"",OFFSET(DE104_3!$C$34,ROWS($C$34:C68)-1,COLUMNS($C$34:C68)-1),"") ->  | B54: =IF(OFFSET(DE104_3!$D$34,ROWS($D$34:D68)-1,COLUMNS($D$34:D68)-1)<>"",OFFSET(DE104_3!$D$34,ROWS($D$34:D68)-1,COLUMNS($D$34:D68)-1),"") ->  | C54: =IF(OFFSET(DE104_3!$E$34,ROWS($E$34:E68)-1,COLUMNS($E$34:E68)-1)<>"",OFFSET(DE104_3!$E$34,ROWS($E$34:E68)-1,COLUMNS($E$34:E68)-1),"") ->  | D54: =IF(OFFSET(DE104_3!$F$34,ROWS($F$34:F68)-1,COLUMNS($F$34:F68)-1)<>"",OFFSET(DE104_3!$F$34,ROWS($F$34:F68)-1,COLUMNS($F$34:F68)-1),"") ->  | E54: =IF(OFFSET(DE104_3!$G$34,ROWS($G$34:G68)-1,COLUMNS($G$34:G68)-1)<>"",OFFSET(DE104_3!$G$34,ROWS($G$34:G68)-1,COLUMNS($G$34:G68)-1),"") ->  | F54: =IF(OFFSET(DE104_3!$H$34,ROWS($H$34:H68)-1,COLUMNS($H$34:H68)-1)<>"",OFFSET(DE104_3!$H$34,ROWS($H$34:H68)-1,COLUMNS($H$34:H68)-1),"") ->  | G54: =IF(OFFSET(DE104_3!$I$34,ROWS($I$34:I68)-1,COLUMNS($I$34:I68)-1)<>"",OFFSET(DE104_3!$I$34,ROWS($I$34:I68)-1,COLUMNS($I$34:I68)-1),"") ->  | H54: =IF(OFFSET(DE104_3!$J$34,ROWS($J$34:J68)-1,COLUMNS($J$34:J68)-1)<>"",OFFSET(DE104_3!$J$34,ROWS($J$34:J68)-1,COLUMNS($J$34:J68)-1),"") ->  | I54: =IF(OFFSET(DE104_3!$K$34,ROWS($K$34:K68)-1,COLUMNS($K$34:K68)-1)<>"",OFFSET(DE104_3!$K$34,ROWS($K$34:K68)-1,COLUMNS($K$34:K68)-1),"") ->  | J54: =IF(OFFSET(DE104_3!$L$34,ROWS($L$34:L68)-1,COLUMNS($L$34:L68)-1)<>"",OFFSET(DE104_3!$L$34,ROWS($L$34:L68)-1,COLUMNS($L$34:L68)-1),"") ->  | K54: =IF(OFFSET(DE104_3!$M$34,ROWS($M$34:M68)-1,COLUMNS($M$34:M68)-1)<>"",OFFSET(DE104_3!$M$34,ROWS($M$34:M68)-1,COLUMNS($M$34:M68)-1),"") ->  | L54: =IF(OFFSET(DE104_3!$N$34,ROWS($N$34:N68)-1,COLUMNS($N$34:N68)-1)<>"",OFFSET(DE104_3!$N$34,ROWS($N$34:N68)-1,COLUMNS($N$34:N68)-1),"") ->  | M54: =IF(OFFSET(DE104_3!$O$34,ROWS($O$34:O68)-1,COLUMNS($O$34:O68)-1)<>"",OFFSET(DE104_3!$O$34,ROWS($O$34:O68)-1,COLUMNS($O$34:O68)-1),"") ->  | N54: =IF(OFFSET(DE104_3!$P$34,ROWS($P$34:P68)-1,COLUMNS($P$34:P68)-1)<>"",OFFSET(DE104_3!$P$34,ROWS($P$34:P68)-1,COLUMNS($P$34:P68)-1),"") ->  | O54: =IF(OFFSET(DE104_3!$Q$34,ROWS($Q$34:Q68)-1,COLUMNS($Q$34:Q68)-1)<>"",OFFSET(DE104_3!$Q$34,ROWS($Q$34:Q68)-1,COLUMNS($Q$34:Q68)-1),"") ->  | P54: =IF(OFFSET(DE104_3!$R$34,ROWS($R$34:R68)-1,COLUMNS($R$34:R68)-1)<>"",OFFSET(DE104_3!$R$34,ROWS($R$34:R68)-1,COLUMNS($R$34:R68)-1),"") ->  | Q54: =IF(OFFSET(DE104_3!$S$34,ROWS($S$34:S68)-1,COLUMNS($S$34:S68)-1)<>"",OFFSET(DE104_3!$S$34,ROWS($S$34:S68)-1,COLUMNS($S$34:S68)-1),"") ->  | R54: =IF(OFFSET(DE104_3!$T$34,ROWS($T$34:T68)-1,COLUMNS($T$34:T68)-1)<>"",OFFSET(DE104_3!$T$34,ROWS($T$34:T68)-1,COLUMNS($T$34:T68)-1),"") ->  | S54: =IF(OFFSET(DE104_3!$U$34,ROWS($U$34:U68)-1,COLUMNS($U$34:U68)-1)<>"",OFFSET(DE104_3!$U$34,ROWS($U$34:U68)-1,COLUMNS($U$34:U68)-1),"") ->  | T54: =IF(OFFSET(DE104_3!$V$34,ROWS($V$34:V68)-1,COLUMNS($V$34:V68)-1)<>"",OFFSET(DE104_3!$V$34,ROWS($V$34:V68)-1,COLUMNS($V$34:V68)-1),"") ->  | U54: =IF(OFFSET(DE104_3!$W$34,ROWS($W$34:W68)-1,COLUMNS($W$34:W68)-1)<>"",OFFSET(DE104_3!$W$34,ROWS($W$34:W68)-1,COLUMNS($W$34:W68)-1),"") ->  | V54: =IF(OFFSET(DE104_3!$X$34,ROWS($X$34:X68)-1,COLUMNS($X$34:X68)-1)<>"",OFFSET(DE104_3!$X$34,ROWS($X$34:X68)-1,COLUMNS($X$34:X68)-1),"") ->  | W54: =IF(OFFSET(DE104_3!$Y$34,ROWS($Y$34:Y68)-1,COLUMNS($Y$34:Y68)-1)<>"",OFFSET(DE104_3!$Y$34,ROWS($Y$34:Y68)-1,COLUMNS($Y$34:Y68)-1),"") ->  | X54: =IF(OFFSET(DE104_3!$Z$34,ROWS($Z$34:Z68)-1,COLUMNS($Z$34:Z68)-1)<>"",OFFSET(DE104_3!$Z$34,ROWS($Z$34:Z68)-1,COLUMNS($Z$34:Z68)-1),"") ->  | Y54: =IF(OFFSET(DE104_3!$AA$34,ROWS($AA$34:AA68)-1,COLUMNS($AA$34:AA68)-1)<>"",OFFSET(DE104_3!$AA$34,ROWS($AA$34:AA68)-1,COLUMNS($AA$34:AA68)-1),"") ->  | Z54: =IF(OFFSET(DE104_3!$AB$34,ROWS($AB$34:AB68)-1,COLUMNS($AB$34:AB68)-1)<>"",OFFSET(DE104_3!$AB$34,ROWS($AB$34:AB68)-1,COLUMNS($AB$34:AB68)-1),"") ->  | AA54: =IF(OFFSET(DE104_3!$AC$34,ROWS($AC$34:AC68)-1,COLUMNS($AC$34:AC68)-1)<>"",OFFSET(DE104_3!$AC$34,ROWS($AC$34:AC68)-1,COLUMNS($AC$34:AC68)-1),"") ->  | AB54: =IF(OFFSET(DE104_3!$AD$34,ROWS($AD$34:AD68)-1,COLUMNS($AD$34:AD68)-1)<>"",OFFSET(DE104_3!$AD$34,ROWS($AD$34:AD68)-1,COLUMNS($AD$34:AD68)-1),"") ->  | AC54: =IF(OFFSET(DE104_3!$AE$34,ROWS($AE$34:AE68)-1,COLUMNS($AE$34:AE68)-1)<>"",OFFSET(DE104_3!$AE$34,ROWS($AE$34:AE68)-1,COLUMNS($AE$34:AE68)-1),"") ->  | AD54: =IF(OFFSET(DE104_3!$AF$34,ROWS($AF$34:AF68)-1,COLUMNS($AF$34:AF68)-1)<>"",OFFSET(DE104_3!$AF$34,ROWS($AF$34:AF68)-1,COLUMNS($AF$34:AF68)-1),"") ->  | AE54: =IF(OFFSET(DE104_3!$AG$34,ROWS($AG$34:AG68)-1,COLUMNS($AG$34:AG68)-1)<>"",OFFSET(DE104_3!$AG$34,ROWS($AG$34:AG68)-1,COLUMNS($AG$34:AG68)-1),"") ->  | AF54: =IF(OFFSET(DE104_3!$AH$34,ROWS($AH$34:AH68)-1,COLUMNS($AH$34:AH68)-1)<>"",OFFSET(DE104_3!$AH$34,ROWS($AH$34:AH68)-1,COLUMNS($AH$34:AH68)-1),"") ->  | AG54: =IF(OFFSET(DE104_3!$AI$34,ROWS($AI$34:AI68)-1,COLUMNS($AI$34:AI68)-1)<>"",OFFSET(DE104_3!$AI$34,ROWS($AI$34:AI68)-1,COLUMNS($AI$34:AI68)-1),"") ->  | AH54: =IF(OFFSET(DE104_3!$AJ$34,ROWS($AJ$34:AJ68)-1,COLUMNS($AJ$34:AJ68)-1)<>"",OFFSET(DE104_3!$AJ$34,ROWS($AJ$34:AJ68)-1,COLUMNS($AJ$34:AJ68)-1),"") ->  | AI54: =IF(OFFSET(DE104_3!$AK$34,ROWS($AK$34:AK68)-1,COLUMNS($AK$34:AK68)-1)<>"",OFFSET(DE104_3!$AK$34,ROWS($AK$34:AK68)-1,COLUMNS($AK$34:AK68)-1),"") ->  | AJ54: =IF(OFFSET(DE104_3!$AL$34,ROWS($AL$34:AL68)-1,COLUMNS($AL$34:AL68)-1)<>"",OFFSET(DE104_3!$AL$34,ROWS($AL$34:AL68)-1,COLUMNS($AL$34:AL68)-1),"") ->  | AK54: =IF(OFFSET(DE104_3!$AM$34,ROWS($AM$34:AM68)-1,COLUMNS($AM$34:AM68)-1)<>"",OFFSET(DE104_3!$AM$34,ROWS($AM$34:AM68)-1,COLUMNS($AM$34:AM68)-1),"") ->  | AL54: =IF(OFFSET(DE104_3!$AN$34,ROWS($AN$34:AN68)-1,COLUMNS($AN$34:AN68)-1)<>"",OFFSET(DE104_3!$AN$34,ROWS($AN$34:AN68)-1,COLUMNS($AN$34:AN68)-1),"") ->  | AM54: =IF(OFFSET(DE104_3!$AO$34,ROWS($AO$34:AO68)-1,COLUMNS($AO$34:AO68)-1)<>"",OFFSET(DE104_3!$AO$34,ROWS($AO$34:AO68)-1,COLUMNS($AO$34:AO68)-1),"") ->  | AN54: =IF(OFFSET(DE104_3!$AP$34,ROWS($AP$34:AP68)-1,COLUMNS($AP$34:AP68)-1)<>"",OFFSET(DE104_3!$AP$34,ROWS($AP$34:AP68)-1,COLUMNS($AP$34:AP68)-1),"") ->  | AO54: =IF(OFFSET(DE104_3!$AQ$34,ROWS($AQ$34:AQ68)-1,COLUMNS($AQ$34:AQ68)-1)<>"",OFFSET(DE104_3!$AQ$34,ROWS($AQ$34:AQ68)-1,COLUMNS($AQ$34:AQ68)-1),"") -> 
A55: =IF(OFFSET(DE104_3!$C$34,ROWS($C$34:C69)-1,COLUMNS($C$34:C69)-1)<>"",OFFSET(DE104_3!$C$34,ROWS($C$34:C69)-1,COLUMNS($C$34:C69)-1),"") ->  | B55: =IF(OFFSET(DE104_3!$D$34,ROWS($D$34:D69)-1,COLUMNS($D$34:D69)-1)<>"",OFFSET(DE104_3!$D$34,ROWS($D$34:D69)-1,COLUMNS($D$34:D69)-1),"") -> STAGE 2 | C55: =IF(OFFSET(DE104_3!$E$34,ROWS($E$34:E69)-1,COLUMNS($E$34:E69)-1)<>"",OFFSET(DE104_3!$E$34,ROWS($E$34:E69)-1,COLUMNS($E$34:E69)-1),"") ->  | D55: =IF(OFFSET(DE104_3!$F$34,ROWS($F$34:F69)-1,COLUMNS($F$34:F69)-1)<>"",OFFSET(DE104_3!$F$34,ROWS($F$34:F69)-1,COLUMNS($F$34:F69)-1),"") ->  | E55: =IF(OFFSET(DE104_3!$G$34,ROWS($G$34:G69)-1,COLUMNS($G$34:G69)-1)<>"",OFFSET(DE104_3!$G$34,ROWS($G$34:G69)-1,COLUMNS($G$34:G69)-1),"") ->  | F55: =IF(OFFSET(DE104_3!$H$34,ROWS($H$34:H69)-1,COLUMNS($H$34:H69)-1)<>"",OFFSET(DE104_3!$H$34,ROWS($H$34:H69)-1,COLUMNS($H$34:H69)-1),"") ->  | G55: =IF(OFFSET(DE104_3!$I$34,ROWS($I$34:I69)-1,COLUMNS($I$34:I69)-1)<>"",OFFSET(DE104_3!$I$34,ROWS($I$34:I69)-1,COLUMNS($I$34:I69)-1),"") ->  | H55: =IF(OFFSET(DE104_3!$J$34,ROWS($J$34:J69)-1,COLUMNS($J$34:J69)-1)<>"",OFFSET(DE104_3!$J$34,ROWS($J$34:J69)-1,COLUMNS($J$34:J69)-1),"") ->  | I55: =IF(OFFSET(DE104_3!$K$34,ROWS($K$34:K69)-1,COLUMNS($K$34:K69)-1)<>"",OFFSET(DE104_3!$K$34,ROWS($K$34:K69)-1,COLUMNS($K$34:K69)-1),"") ->  | J55: =IF(OFFSET(DE104_3!$L$34,ROWS($L$34:L69)-1,COLUMNS($L$34:L69)-1)<>"",OFFSET(DE104_3!$L$34,ROWS($L$34:L69)-1,COLUMNS($L$34:L69)-1),"") ->  | K55: =IF(OFFSET(DE104_3!$M$34,ROWS($M$34:M69)-1,COLUMNS($M$34:M69)-1)<>"",OFFSET(DE104_3!$M$34,ROWS($M$34:M69)-1,COLUMNS($M$34:M69)-1),"") ->  | L55: =IF(OFFSET(DE104_3!$N$34,ROWS($N$34:N69)-1,COLUMNS($N$34:N69)-1)<>"",OFFSET(DE104_3!$N$34,ROWS($N$34:N69)-1,COLUMNS($N$34:N69)-1),"") ->  | M55: =IF(OFFSET(DE104_3!$O$34,ROWS($O$34:O69)-1,COLUMNS($O$34:O69)-1)<>"",OFFSET(DE104_3!$O$34,ROWS($O$34:O69)-1,COLUMNS($O$34:O69)-1),"") ->  | N55: =IF(OFFSET(DE104_3!$P$34,ROWS($P$34:P69)-1,COLUMNS($P$34:P69)-1)<>"",OFFSET(DE104_3!$P$34,ROWS($P$34:P69)-1,COLUMNS($P$34:P69)-1),"") ->  | O55: =IF(OFFSET(DE104_3!$Q$34,ROWS($Q$34:Q69)-1,COLUMNS($Q$34:Q69)-1)<>"",OFFSET(DE104_3!$Q$34,ROWS($Q$34:Q69)-1,COLUMNS($Q$34:Q69)-1),"") ->  | P55: =IF(OFFSET(DE104_3!$R$34,ROWS($R$34:R69)-1,COLUMNS($R$34:R69)-1)<>"",OFFSET(DE104_3!$R$34,ROWS($R$34:R69)-1,COLUMNS($R$34:R69)-1),"") ->  | Q55: =IF(OFFSET(DE104_3!$S$34,ROWS($S$34:S69)-1,COLUMNS($S$34:S69)-1)<>"",OFFSET(DE104_3!$S$34,ROWS($S$34:S69)-1,COLUMNS($S$34:S69)-1),"") ->  | R55: =IF(OFFSET(DE104_3!$T$34,ROWS($T$34:T69)-1,COLUMNS($T$34:T69)-1)<>"",OFFSET(DE104_3!$T$34,ROWS($T$34:T69)-1,COLUMNS($T$34:T69)-1),"") ->  | S55: =IF(OFFSET(DE104_3!$U$34,ROWS($U$34:U69)-1,COLUMNS($U$34:U69)-1)<>"",OFFSET(DE104_3!$U$34,ROWS($U$34:U69)-1,COLUMNS($U$34:U69)-1),"") ->  | T55: =IF(OFFSET(DE104_3!$V$34,ROWS($V$34:V69)-1,COLUMNS($V$34:V69)-1)<>"",OFFSET(DE104_3!$V$34,ROWS($V$34:V69)-1,COLUMNS($V$34:V69)-1),"") ->  | U55: =IF(OFFSET(DE104_3!$W$34,ROWS($W$34:W69)-1,COLUMNS($W$34:W69)-1)<>"",OFFSET(DE104_3!$W$34,ROWS($W$34:W69)-1,COLUMNS($W$34:W69)-1),"") ->  | V55: =IF(OFFSET(DE104_3!$X$34,ROWS($X$34:X69)-1,COLUMNS($X$34:X69)-1)<>"",OFFSET(DE104_3!$X$34,ROWS($X$34:X69)-1,COLUMNS($X$34:X69)-1),"") ->  | W55: =IF(OFFSET(DE104_3!$Y$34,ROWS($Y$34:Y69)-1,COLUMNS($Y$34:Y69)-1)<>"",OFFSET(DE104_3!$Y$34,ROWS($Y$34:Y69)-1,COLUMNS($Y$34:Y69)-1),"") ->  | X55: =IF(OFFSET(DE104_3!$Z$34,ROWS($Z$34:Z69)-1,COLUMNS($Z$34:Z69)-1)<>"",OFFSET(DE104_3!$Z$34,ROWS($Z$34:Z69)-1,COLUMNS($Z$34:Z69)-1),"") ->  | Y55: =IF(OFFSET(DE104_3!$AA$34,ROWS($AA$34:AA69)-1,COLUMNS($AA$34:AA69)-1)<>"",OFFSET(DE104_3!$AA$34,ROWS($AA$34:AA69)-1,COLUMNS($AA$34:AA69)-1),"") ->  | Z55: =IF(OFFSET(DE104_3!$AB$34,ROWS($AB$34:AB69)-1,COLUMNS($AB$34:AB69)-1)<>"",OFFSET(DE104_3!$AB$34,ROWS($AB$34:AB69)-1,COLUMNS($AB$34:AB69)-1),"") ->  | AA55: =IF(OFFSET(DE104_3!$AC$34,ROWS($AC$34:AC69)-1,COLUMNS($AC$34:AC69)-1)<>"",OFFSET(DE104_3!$AC$34,ROWS($AC$34:AC69)-1,COLUMNS($AC$34:AC69)-1),"") ->  | AB55: =IF(OFFSET(DE104_3!$AD$34,ROWS($AD$34:AD69)-1,COLUMNS($AD$34:AD69)-1)<>"",OFFSET(DE104_3!$AD$34,ROWS($AD$34:AD69)-1,COLUMNS($AD$34:AD69)-1),"") ->  | AC55: =IF(OFFSET(DE104_3!$AE$34,ROWS($AE$34:AE69)-1,COLUMNS($AE$34:AE69)-1)<>"",OFFSET(DE104_3!$AE$34,ROWS($AE$34:AE69)-1,COLUMNS($AE$34:AE69)-1),"") ->  | AD55: =IF(OFFSET(DE104_3!$AF$34,ROWS($AF$34:AF69)-1,COLUMNS($AF$34:AF69)-1)<>"",OFFSET(DE104_3!$AF$34,ROWS($AF$34:AF69)-1,COLUMNS($AF$34:AF69)-1),"") ->  | AE55: =IF(OFFSET(DE104_3!$AG$34,ROWS($AG$34:AG69)-1,COLUMNS($AG$34:AG69)-1)<>"",OFFSET(DE104_3!$AG$34,ROWS($AG$34:AG69)-1,COLUMNS($AG$34:AG69)-1),"") ->  | AF55: =IF(OFFSET(DE104_3!$AH$34,ROWS($AH$34:AH69)-1,COLUMNS($AH$34:AH69)-1)<>"",OFFSET(DE104_3!$AH$34,ROWS($AH$34:AH69)-1,COLUMNS($AH$34:AH69)-1),"") ->  | AG55: =IF(OFFSET(DE104_3!$AI$34,ROWS($AI$34:AI69)-1,COLUMNS($AI$34:AI69)-1)<>"",OFFSET(DE104_3!$AI$34,ROWS($AI$34:AI69)-1,COLUMNS($AI$34:AI69)-1),"") ->  | AH55: =IF(OFFSET(DE104_3!$AJ$34,ROWS($AJ$34:AJ69)-1,COLUMNS($AJ$34:AJ69)-1)<>"",OFFSET(DE104_3!$AJ$34,ROWS($AJ$34:AJ69)-1,COLUMNS($AJ$34:AJ69)-1),"") ->  | AI55: =IF(OFFSET(DE104_3!$AK$34,ROWS($AK$34:AK69)-1,COLUMNS($AK$34:AK69)-1)<>"",OFFSET(DE104_3!$AK$34,ROWS($AK$34:AK69)-1,COLUMNS($AK$34:AK69)-1),"") ->  | AJ55: =IF(OFFSET(DE104_3!$AL$34,ROWS($AL$34:AL69)-1,COLUMNS($AL$34:AL69)-1)<>"",OFFSET(DE104_3!$AL$34,ROWS($AL$34:AL69)-1,COLUMNS($AL$34:AL69)-1),"") ->  | AK55: =IF(OFFSET(DE104_3!$AM$34,ROWS($AM$34:AM69)-1,COLUMNS($AM$34:AM69)-1)<>"",OFFSET(DE104_3!$AM$34,ROWS($AM$34:AM69)-1,COLUMNS($AM$34:AM69)-1),"") ->  | AL55: =IF(OFFSET(DE104_3!$AN$34,ROWS($AN$34:AN69)-1,COLUMNS($AN$34:AN69)-1)<>"",OFFSET(DE104_3!$AN$34,ROWS($AN$34:AN69)-1,COLUMNS($AN$34:AN69)-1),"") ->  | AM55: =IF(OFFSET(DE104_3!$AO$34,ROWS($AO$34:AO69)-1,COLUMNS($AO$34:AO69)-1)<>"",OFFSET(DE104_3!$AO$34,ROWS($AO$34:AO69)-1,COLUMNS($AO$34:AO69)-1),"") ->  | AN55: =IF(OFFSET(DE104_3!$AP$34,ROWS($AP$34:AP69)-1,COLUMNS($AP$34:AP69)-1)<>"",OFFSET(DE104_3!$AP$34,ROWS($AP$34:AP69)-1,COLUMNS($AP$34:AP69)-1),"") ->  | AO55: =IF(OFFSET(DE104_3!$AQ$34,ROWS($AQ$34:AQ69)-1,COLUMNS($AQ$34:AQ69)-1)<>"",OFFSET(DE104_3!$AQ$34,ROWS($AQ$34:AQ69)-1,COLUMNS($AQ$34:AQ69)-1),"") -> 
A56: =IF(OFFSET(DE104_3!$C$34,ROWS($C$34:C70)-1,COLUMNS($C$34:C70)-1)<>"",OFFSET(DE104_3!$C$34,ROWS($C$34:C70)-1,COLUMNS($C$34:C70)-1),"") ->  | B56: =IF(OFFSET(DE104_3!$D$34,ROWS($D$34:D70)-1,COLUMNS($D$34:D70)-1)<>"",OFFSET(DE104_3!$D$34,ROWS($D$34:D70)-1,COLUMNS($D$34:D70)-1),"") -> US HWY 30 | C56: =IF(OFFSET(DE104_3!$E$34,ROWS($E$34:E70)-1,COLUMNS($E$34:E70)-1)<>"",OFFSET(DE104_3!$E$34,ROWS($E$34:E70)-1,COLUMNS($E$34:E70)-1),"") ->  | D56: =IF(OFFSET(DE104_3!$F$34,ROWS($F$34:F70)-1,COLUMNS($F$34:F70)-1)<>"",OFFSET(DE104_3!$F$34,ROWS($F$34:F70)-1,COLUMNS($F$34:F70)-1),"") ->  | E56: =IF(OFFSET(DE104_3!$G$34,ROWS($G$34:G70)-1,COLUMNS($G$34:G70)-1)<>"",OFFSET(DE104_3!$G$34,ROWS($G$34:G70)-1,COLUMNS($G$34:G70)-1),"") ->  | F56: =IF(OFFSET(DE104_3!$H$34,ROWS($H$34:H70)-1,COLUMNS($H$34:H70)-1)<>"",OFFSET(DE104_3!$H$34,ROWS($H$34:H70)-1,COLUMNS($H$34:H70)-1),"") ->  | G56: =IF(OFFSET(DE104_3!$I$34,ROWS($I$34:I70)-1,COLUMNS($I$34:I70)-1)<>"",OFFSET(DE104_3!$I$34,ROWS($I$34:I70)-1,COLUMNS($I$34:I70)-1),"") ->  | H56: =IF(OFFSET(DE104_3!$J$34,ROWS($J$34:J70)-1,COLUMNS($J$34:J70)-1)<>"",OFFSET(DE104_3!$J$34,ROWS($J$34:J70)-1,COLUMNS($J$34:J70)-1),"") ->  | I56: =IF(OFFSET(DE104_3!$K$34,ROWS($K$34:K70)-1,COLUMNS($K$34:K70)-1)<>"",OFFSET(DE104_3!$K$34,ROWS($K$34:K70)-1,COLUMNS($K$34:K70)-1),"") ->  | J56: =IF(OFFSET(DE104_3!$L$34,ROWS($L$34:L70)-1,COLUMNS($L$34:L70)-1)<>"",OFFSET(DE104_3!$L$34,ROWS($L$34:L70)-1,COLUMNS($L$34:L70)-1),"") ->  | K56: =IF(OFFSET(DE104_3!$M$34,ROWS($M$34:M70)-1,COLUMNS($M$34:M70)-1)<>"",OFFSET(DE104_3!$M$34,ROWS($M$34:M70)-1,COLUMNS($M$34:M70)-1),"") ->  | L56: =IF(OFFSET(DE104_3!$N$34,ROWS($N$34:N70)-1,COLUMNS($N$34:N70)-1)<>"",OFFSET(DE104_3!$N$34,ROWS($N$34:N70)-1,COLUMNS($N$34:N70)-1),"") ->  | M56: =IF(OFFSET(DE104_3!$O$34,ROWS($O$34:O70)-1,COLUMNS($O$34:O70)-1)<>"",OFFSET(DE104_3!$O$34,ROWS($O$34:O70)-1,COLUMNS($O$34:O70)-1),"") ->  | N56: =IF(OFFSET(DE104_3!$P$34,ROWS($P$34:P70)-1,COLUMNS($P$34:P70)-1)<>"",OFFSET(DE104_3!$P$34,ROWS($P$34:P70)-1,COLUMNS($P$34:P70)-1),"") ->  | O56: =IF(OFFSET(DE104_3!$Q$34,ROWS($Q$34:Q70)-1,COLUMNS($Q$34:Q70)-1)<>"",OFFSET(DE104_3!$Q$34,ROWS($Q$34:Q70)-1,COLUMNS($Q$34:Q70)-1),"") ->  | P56: =IF(OFFSET(DE104_3!$R$34,ROWS($R$34:R70)-1,COLUMNS($R$34:R70)-1)<>"",OFFSET(DE104_3!$R$34,ROWS($R$34:R70)-1,COLUMNS($R$34:R70)-1),"") ->  | Q56: =IF(OFFSET(DE104_3!$S$34,ROWS($S$34:S70)-1,COLUMNS($S$34:S70)-1)<>"",OFFSET(DE104_3!$S$34,ROWS($S$34:S70)-1,COLUMNS($S$34:S70)-1),"") ->  | R56: =IF(OFFSET(DE104_3!$T$34,ROWS($T$34:T70)-1,COLUMNS($T$34:T70)-1)<>"",OFFSET(DE104_3!$T$34,ROWS($T$34:T70)-1,COLUMNS($T$34:T70)-1),"") ->  | S56: =IF(OFFSET(DE104_3!$U$34,ROWS($U$34:U70)-1,COLUMNS($U$34:U70)-1)<>"",OFFSET(DE104_3!$U$34,ROWS($U$34:U70)-1,COLUMNS($U$34:U70)-1),"") ->  | T56: =IF(OFFSET(DE104_3!$V$34,ROWS($V$34:V70)-1,COLUMNS($V$34:V70)-1)<>"",OFFSET(DE104_3!$V$34,ROWS($V$34:V70)-1,COLUMNS($V$34:V70)-1),"") ->  | U56: =IF(OFFSET(DE104_3!$W$34,ROWS($W$34:W70)-1,COLUMNS($W$34:W70)-1)<>"",OFFSET(DE104_3!$W$34,ROWS($W$34:W70)-1,COLUMNS($W$34:W70)-1),"") ->  | V56: =IF(OFFSET(DE104_3!$X$34,ROWS($X$34:X70)-1,COLUMNS($X$34:X70)-1)<>"",OFFSET(DE104_3!$X$34,ROWS($X$34:X70)-1,COLUMNS($X$34:X70)-1),"") ->  | W56: =IF(OFFSET(DE104_3!$Y$34,ROWS($Y$34:Y70)-1,COLUMNS($Y$34:Y70)-1)<>"",OFFSET(DE104_3!$Y$34,ROWS($Y$34:Y70)-1,COLUMNS($Y$34:Y70)-1),"") ->  | X56: =IF(OFFSET(DE104_3!$Z$34,ROWS($Z$34:Z70)-1,COLUMNS($Z$34:Z70)-1)<>"",OFFSET(DE104_3!$Z$34,ROWS($Z$34:Z70)-1,COLUMNS($Z$34:Z70)-1),"") ->  | Y56: =IF(OFFSET(DE104_3!$AA$34,ROWS($AA$34:AA70)-1,COLUMNS($AA$34:AA70)-1)<>"",OFFSET(DE104_3!$AA$34,ROWS($AA$34:AA70)-1,COLUMNS($AA$34:AA70)-1),"") ->  | Z56: =IF(OFFSET(DE104_3!$AB$34,ROWS($AB$34:AB70)-1,COLUMNS($AB$34:AB70)-1)<>"",OFFSET(DE104_3!$AB$34,ROWS($AB$34:AB70)-1,COLUMNS($AB$34:AB70)-1),"") ->  | AA56: =IF(OFFSET(DE104_3!$AC$34,ROWS($AC$34:AC70)-1,COLUMNS($AC$34:AC70)-1)<>"",OFFSET(DE104_3!$AC$34,ROWS($AC$34:AC70)-1,COLUMNS($AC$34:AC70)-1),"") ->  | AB56: =IF(OFFSET(DE104_3!$AD$34,ROWS($AD$34:AD70)-1,COLUMNS($AD$34:AD70)-1)<>"",OFFSET(DE104_3!$AD$34,ROWS($AD$34:AD70)-1,COLUMNS($AD$34:AD70)-1),"") ->  | AC56: =IF(OFFSET(DE104_3!$AE$34,ROWS($AE$34:AE70)-1,COLUMNS($AE$34:AE70)-1)<>"",OFFSET(DE104_3!$AE$34,ROWS($AE$34:AE70)-1,COLUMNS($AE$34:AE70)-1),"") ->  | AD56: =IF(OFFSET(DE104_3!$AF$34,ROWS($AF$34:AF70)-1,COLUMNS($AF$34:AF70)-1)<>"",OFFSET(DE104_3!$AF$34,ROWS($AF$34:AF70)-1,COLUMNS($AF$34:AF70)-1),"") ->  | AE56: =IF(OFFSET(DE104_3!$AG$34,ROWS($AG$34:AG70)-1,COLUMNS($AG$34:AG70)-1)<>"",OFFSET(DE104_3!$AG$34,ROWS($AG$34:AG70)-1,COLUMNS($AG$34:AG70)-1),"") ->  | AF56: =IF(OFFSET(DE104_3!$AH$34,ROWS($AH$34:AH70)-1,COLUMNS($AH$34:AH70)-1)<>"",OFFSET(DE104_3!$AH$34,ROWS($AH$34:AH70)-1,COLUMNS($AH$34:AH70)-1),"") ->  | AG56: =IF(OFFSET(DE104_3!$AI$34,ROWS($AI$34:AI70)-1,COLUMNS($AI$34:AI70)-1)<>"",OFFSET(DE104_3!$AI$34,ROWS($AI$34:AI70)-1,COLUMNS($AI$34:AI70)-1),"") ->  | AH56: =IF(OFFSET(DE104_3!$AJ$34,ROWS($AJ$34:AJ70)-1,COLUMNS($AJ$34:AJ70)-1)<>"",OFFSET(DE104_3!$AJ$34,ROWS($AJ$34:AJ70)-1,COLUMNS($AJ$34:AJ70)-1),"") ->  | AI56: =IF(OFFSET(DE104_3!$AK$34,ROWS($AK$34:AK70)-1,COLUMNS($AK$34:AK70)-1)<>"",OFFSET(DE104_3!$AK$34,ROWS($AK$34:AK70)-1,COLUMNS($AK$34:AK70)-1),"") ->  | AJ56: =IF(OFFSET(DE104_3!$AL$34,ROWS($AL$34:AL70)-1,COLUMNS($AL$34:AL70)-1)<>"",OFFSET(DE104_3!$AL$34,ROWS($AL$34:AL70)-1,COLUMNS($AL$34:AL70)-1),"") ->  | AK56: =IF(OFFSET(DE104_3!$AM$34,ROWS($AM$34:AM70)-1,COLUMNS($AM$34:AM70)-1)<>"",OFFSET(DE104_3!$AM$34,ROWS($AM$34:AM70)-1,COLUMNS($AM$34:AM70)-1),"") ->  | AL56: =IF(OFFSET(DE104_3!$AN$34,ROWS($AN$34:AN70)-1,COLUMNS($AN$34:AN70)-1)<>"",OFFSET(DE104_3!$AN$34,ROWS($AN$34:AN70)-1,COLUMNS($AN$34:AN70)-1),"") ->  | AM56: =IF(OFFSET(DE104_3!$AO$34,ROWS($AO$34:AO70)-1,COLUMNS($AO$34:AO70)-1)<>"",OFFSET(DE104_3!$AO$34,ROWS($AO$34:AO70)-1,COLUMNS($AO$34:AO70)-1),"") ->  | AN56: =IF(OFFSET(DE104_3!$AP$34,ROWS($AP$34:AP70)-1,COLUMNS($AP$34:AP70)-1)<>"",OFFSET(DE104_3!$AP$34,ROWS($AP$34:AP70)-1,COLUMNS($AP$34:AP70)-1),"") ->  | AO56: =IF(OFFSET(DE104_3!$AQ$34,ROWS($AQ$34:AQ70)-1,COLUMNS($AQ$34:AQ70)-1)<>"",OFFSET(DE104_3!$AQ$34,ROWS($AQ$34:AQ70)-1,COLUMNS($AQ$34:AQ70)-1),"") -> 
A57: =IF(OFFSET(DE104_3!$C$34,ROWS($C$34:C71)-1,COLUMNS($C$34:C71)-1)<>"",OFFSET(DE104_3!$C$34,ROWS($C$34:C71)-1,COLUMNS($C$34:C71)-1),"") -> 113 | B57: =IF(OFFSET(DE104_3!$D$34,ROWS($D$34:D71)-1,COLUMNS($D$34:D71)-1)<>"",OFFSET(DE104_3!$D$34,ROWS($D$34:D71)-1,COLUMNS($D$34:D71)-1),"") -> 138810 | C57: =IF(OFFSET(DE104_3!$E$34,ROWS($E$34:E71)-1,COLUMNS($E$34:E71)-1)<>"",OFFSET(DE104_3!$E$34,ROWS($E$34:E71)-1,COLUMNS($E$34:E71)-1),"") -> DR-621 | D57: =IF(OFFSET(DE104_3!$F$34,ROWS($F$34:F71)-1,COLUMNS($F$34:F71)-1)<>"",OFFSET(DE104_3!$F$34,ROWS($F$34:F71)-1,COLUMNS($F$34:F71)-1),"") -> 54 | E57: =IF(OFFSET(DE104_3!$G$34,ROWS($G$34:G71)-1,COLUMNS($G$34:G71)-1)<>"",OFFSET(DE104_3!$G$34,ROWS($G$34:G71)-1,COLUMNS($G$34:G71)-1),"") -> 2000 | F57: =IF(OFFSET(DE104_3!$H$34,ROWS($H$34:H71)-1,COLUMNS($H$34:H71)-1)<>"",OFFSET(DE104_3!$H$34,ROWS($H$34:H71)-1,COLUMNS($H$34:H71)-1),"") -> RCP | G57: =IF(OFFSET(DE104_3!$I$34,ROWS($I$34:I71)-1,COLUMNS($I$34:I71)-1)<>"",OFFSET(DE104_3!$I$34,ROWS($I$34:I71)-1,COLUMNS($I$34:I71)-1),"") -> 90 | H57: =IF(OFFSET(DE104_3!$J$34,ROWS($J$34:J71)-1,COLUMNS($J$34:J71)-1)<>"",OFFSET(DE104_3!$J$34,ROWS($J$34:J71)-1,COLUMNS($J$34:J71)-1),"") -> B | I57: =IF(OFFSET(DE104_3!$K$34,ROWS($K$34:K71)-1,COLUMNS($K$34:K71)-1)<>"",OFFSET(DE104_3!$K$34,ROWS($K$34:K71)-1,COLUMNS($K$34:K71)-1),"") -> 14.8 | J57: =IF(OFFSET(DE104_3!$L$34,ROWS($L$34:L71)-1,COLUMNS($L$34:L71)-1)<>"",OFFSET(DE104_3!$L$34,ROWS($L$34:L71)-1,COLUMNS($L$34:L71)-1),"") ->  | K57: =IF(OFFSET(DE104_3!$M$34,ROWS($M$34:M71)-1,COLUMNS($M$34:M71)-1)<>"",OFFSET(DE104_3!$M$34,ROWS($M$34:M71)-1,COLUMNS($M$34:M71)-1),"") -> 1 | L57: =IF(OFFSET(DE104_3!$N$34,ROWS($N$34:N71)-1,COLUMNS($N$34:N71)-1)<>"",OFFSET(DE104_3!$N$34,ROWS($N$34:N71)-1,COLUMNS($N$34:N71)-1),"") ->  | M57: =IF(OFFSET(DE104_3!$O$34,ROWS($O$34:O71)-1,COLUMNS($O$34:O71)-1)<>"",OFFSET(DE104_3!$O$34,ROWS($O$34:O71)-1,COLUMNS($O$34:O71)-1),"") ->  | N57: =IF(OFFSET(DE104_3!$P$34,ROWS($P$34:P71)-1,COLUMNS($P$34:P71)-1)<>"",OFFSET(DE104_3!$P$34,ROWS($P$34:P71)-1,COLUMNS($P$34:P71)-1),"") ->  | O57: =IF(OFFSET(DE104_3!$Q$34,ROWS($Q$34:Q71)-1,COLUMNS($Q$34:Q71)-1)<>"",OFFSET(DE104_3!$Q$34,ROWS($Q$34:Q71)-1,COLUMNS($Q$34:Q71)-1),"") ->  | P57: =IF(OFFSET(DE104_3!$R$34,ROWS($R$34:R71)-1,COLUMNS($R$34:R71)-1)<>"",OFFSET(DE104_3!$R$34,ROWS($R$34:R71)-1,COLUMNS($R$34:R71)-1),"") ->  | Q57: =IF(OFFSET(DE104_3!$S$34,ROWS($S$34:S71)-1,COLUMNS($S$34:S71)-1)<>"",OFFSET(DE104_3!$S$34,ROWS($S$34:S71)-1,COLUMNS($S$34:S71)-1),"") ->  | R57: =IF(OFFSET(DE104_3!$T$34,ROWS($T$34:T71)-1,COLUMNS($T$34:T71)-1)<>"",OFFSET(DE104_3!$T$34,ROWS($T$34:T71)-1,COLUMNS($T$34:T71)-1),"") ->  | S57: =IF(OFFSET(DE104_3!$U$34,ROWS($U$34:U71)-1,COLUMNS($U$34:U71)-1)<>"",OFFSET(DE104_3!$U$34,ROWS($U$34:U71)-1,COLUMNS($U$34:U71)-1),"") ->  | T57: =IF(OFFSET(DE104_3!$V$34,ROWS($V$34:V71)-1,COLUMNS($V$34:V71)-1)<>"",OFFSET(DE104_3!$V$34,ROWS($V$34:V71)-1,COLUMNS($V$34:V71)-1),"") -> Type 3 | U57: =IF(OFFSET(DE104_3!$W$34,ROWS($W$34:W71)-1,COLUMNS($W$34:W71)-1)<>"",OFFSET(DE104_3!$W$34,ROWS($W$34:W71)-1,COLUMNS($W$34:W71)-1),"") ->  | V57: =IF(OFFSET(DE104_3!$X$34,ROWS($X$34:X71)-1,COLUMNS($X$34:X71)-1)<>"",OFFSET(DE104_3!$X$34,ROWS($X$34:X71)-1,COLUMNS($X$34:X71)-1),"") -> 870.09 | W57: =IF(OFFSET(DE104_3!$Y$34,ROWS($Y$34:Y71)-1,COLUMNS($Y$34:Y71)-1)<>"",OFFSET(DE104_3!$Y$34,ROWS($Y$34:Y71)-1,COLUMNS($Y$34:Y71)-1),"") -> 869.48 | X57: =IF(OFFSET(DE104_3!$Z$34,ROWS($Z$34:Z71)-1,COLUMNS($Z$34:Z71)-1)<>"",OFFSET(DE104_3!$Z$34,ROWS($Z$34:Z71)-1,COLUMNS($Z$34:Z71)-1),"") ->  | Y57: =IF(OFFSET(DE104_3!$AA$34,ROWS($AA$34:AA71)-1,COLUMNS($AA$34:AA71)-1)<>"",OFFSET(DE104_3!$AA$34,ROWS($AA$34:AA71)-1,COLUMNS($AA$34:AA71)-1),"") ->  | Z57: =IF(OFFSET(DE104_3!$AB$34,ROWS($AB$34:AB71)-1,COLUMNS($AB$34:AB71)-1)<>"",OFFSET(DE104_3!$AB$34,ROWS($AB$34:AB71)-1,COLUMNS($AB$34:AB71)-1),"") -> 134.05 | AA57: =IF(OFFSET(DE104_3!$AC$34,ROWS($AC$34:AC71)-1,COLUMNS($AC$34:AC71)-1)<>"",OFFSET(DE104_3!$AC$34,ROWS($AC$34:AC71)-1,COLUMNS($AC$34:AC71)-1),"") -> 36.06 | AB57: =IF(OFFSET(DE104_3!$AD$34,ROWS($AD$34:AD71)-1,COLUMNS($AD$34:AD71)-1)<>"",OFFSET(DE104_3!$AD$34,ROWS($AD$34:AD71)-1,COLUMNS($AD$34:AD71)-1),"") -> 90 | AC57: =IF(OFFSET(DE104_3!$AE$34,ROWS($AE$34:AE71)-1,COLUMNS($AE$34:AE71)-1)<>"",OFFSET(DE104_3!$AE$34,ROWS($AE$34:AE71)-1,COLUMNS($AE$34:AE71)-1),"") ->  | AD57: =IF(OFFSET(DE104_3!$AF$34,ROWS($AF$34:AF71)-1,COLUMNS($AF$34:AF71)-1)<>"",OFFSET(DE104_3!$AF$34,ROWS($AF$34:AF71)-1,COLUMNS($AF$34:AF71)-1),"") ->  | AE57: =IF(OFFSET(DE104_3!$AG$34,ROWS($AG$34:AG71)-1,COLUMNS($AG$34:AG71)-1)<>"",OFFSET(DE104_3!$AG$34,ROWS($AG$34:AG71)-1,COLUMNS($AG$34:AG71)-1),"") ->  | AF57: =IF(OFFSET(DE104_3!$AH$34,ROWS($AH$34:AH71)-1,COLUMNS($AH$34:AH71)-1)<>"",OFFSET(DE104_3!$AH$34,ROWS($AH$34:AH71)-1,COLUMNS($AH$34:AH71)-1),"") ->  | AG57: =IF(OFFSET(DE104_3!$AI$34,ROWS($AI$34:AI71)-1,COLUMNS($AI$34:AI71)-1)<>"",OFFSET(DE104_3!$AI$34,ROWS($AI$34:AI71)-1,COLUMNS($AI$34:AI71)-1),"") ->  | AH57: =IF(OFFSET(DE104_3!$AJ$34,ROWS($AJ$34:AJ71)-1,COLUMNS($AJ$34:AJ71)-1)<>"",OFFSET(DE104_3!$AJ$34,ROWS($AJ$34:AJ71)-1,COLUMNS($AJ$34:AJ71)-1),"") ->  | AI57: =IF(OFFSET(DE104_3!$AK$34,ROWS($AK$34:AK71)-1,COLUMNS($AK$34:AK71)-1)<>"",OFFSET(DE104_3!$AK$34,ROWS($AK$34:AK71)-1,COLUMNS($AK$34:AK71)-1),"") ->  | AJ57: =IF(OFFSET(DE104_3!$AL$34,ROWS($AL$34:AL71)-1,COLUMNS($AL$34:AL71)-1)<>"",OFFSET(DE104_3!$AL$34,ROWS($AL$34:AL71)-1,COLUMNS($AL$34:AL71)-1),"") -> 301.0414815 | AK57: =IF(OFFSET(DE104_3!$AM$34,ROWS($AM$34:AM71)-1,COLUMNS($AM$34:AM71)-1)<>"",OFFSET(DE104_3!$AM$34,ROWS($AM$34:AM71)-1,COLUMNS($AM$34:AM71)-1),"") ->  | AL57: =IF(OFFSET(DE104_3!$AN$34,ROWS($AN$34:AN71)-1,COLUMNS($AN$34:AN71)-1)<>"",OFFSET(DE104_3!$AN$34,ROWS($AN$34:AN71)-1,COLUMNS($AN$34:AN71)-1),"") -> 256.5614815 | AM57: =IF(OFFSET(DE104_3!$AO$34,ROWS($AO$34:AO71)-1,COLUMNS($AO$34:AO71)-1)<>"",OFFSET(DE104_3!$AO$34,ROWS($AO$34:AO71)-1,COLUMNS($AO$34:AO71)-1),"") -> 10.45333333 | AN57: =IF(OFFSET(DE104_3!$AP$34,ROWS($AP$34:AP71)-1,COLUMNS($AP$34:AP71)-1)<>"",OFFSET(DE104_3!$AP$34,ROWS($AP$34:AP71)-1,COLUMNS($AP$34:AP71)-1),"") -> 267.0148148 | AO57: =IF(OFFSET(DE104_3!$AQ$34,ROWS($AQ$34:AQ71)-1,COLUMNS($AQ$34:AQ71)-1)<>"",OFFSET(DE104_3!$AQ$34,ROWS($AQ$34:AQ71)-1,COLUMNS($AQ$34:AQ71)-1),"") -> 
A58: =IF(OFFSET(DE104_3!$C$34,ROWS($C$34:C72)-1,COLUMNS($C$34:C72)-1)<>"",OFFSET(DE104_3!$C$34,ROWS($C$34:C72)-1,COLUMNS($C$34:C72)-1),"") -> MED | B58: =IF(OFFSET(DE104_3!$D$34,ROWS($D$34:D72)-1,COLUMNS($D$34:D72)-1)<>"",OFFSET(DE104_3!$D$34,ROWS($D$34:D72)-1,COLUMNS($D$34:D72)-1),"") -> 139750 | C58: =IF(OFFSET(DE104_3!$E$34,ROWS($E$34:E72)-1,COLUMNS($E$34:E72)-1)<>"",OFFSET(DE104_3!$E$34,ROWS($E$34:E72)-1,COLUMNS($E$34:E72)-1),"") -> DR-601 | D58: =IF(OFFSET(DE104_3!$F$34,ROWS($F$34:F72)-1,COLUMNS($F$34:F72)-1)<>"",OFFSET(DE104_3!$F$34,ROWS($F$34:F72)-1,COLUMNS($F$34:F72)-1),"") -> 24 | E58: =IF(OFFSET(DE104_3!$G$34,ROWS($G$34:G72)-1,COLUMNS($G$34:G72)-1)<>"",OFFSET(DE104_3!$G$34,ROWS($G$34:G72)-1,COLUMNS($G$34:G72)-1),"") -> 2000 | F58: =IF(OFFSET(DE104_3!$H$34,ROWS($H$34:H72)-1,COLUMNS($H$34:H72)-1)<>"",OFFSET(DE104_3!$H$34,ROWS($H$34:H72)-1,COLUMNS($H$34:H72)-1),"") -> RCP | G58: =IF(OFFSET(DE104_3!$I$34,ROWS($I$34:I72)-1,COLUMNS($I$34:I72)-1)<>"",OFFSET(DE104_3!$I$34,ROWS($I$34:I72)-1,COLUMNS($I$34:I72)-1),"") -> 68 | H58: =IF(OFFSET(DE104_3!$J$34,ROWS($J$34:J72)-1,COLUMNS($J$34:J72)-1)<>"",OFFSET(DE104_3!$J$34,ROWS($J$34:J72)-1,COLUMNS($J$34:J72)-1),"") -> B | I58: =IF(OFFSET(DE104_3!$K$34,ROWS($K$34:K72)-1,COLUMNS($K$34:K72)-1)<>"",OFFSET(DE104_3!$K$34,ROWS($K$34:K72)-1,COLUMNS($K$34:K72)-1),"") -> 2.2 | J58: =IF(OFFSET(DE104_3!$L$34,ROWS($L$34:L72)-1,COLUMNS($L$34:L72)-1)<>"",OFFSET(DE104_3!$L$34,ROWS($L$34:L72)-1,COLUMNS($L$34:L72)-1),"") ->  | K58: =IF(OFFSET(DE104_3!$M$34,ROWS($M$34:M72)-1,COLUMNS($M$34:M72)-1)<>"",OFFSET(DE104_3!$M$34,ROWS($M$34:M72)-1,COLUMNS($M$34:M72)-1),"") -> 1 | L58: =IF(OFFSET(DE104_3!$N$34,ROWS($N$34:N72)-1,COLUMNS($N$34:N72)-1)<>"",OFFSET(DE104_3!$N$34,ROWS($N$34:N72)-1,COLUMNS($N$34:N72)-1),"") -> 1 | M58: =IF(OFFSET(DE104_3!$O$34,ROWS($O$34:O72)-1,COLUMNS($O$34:O72)-1)<>"",OFFSET(DE104_3!$O$34,ROWS($O$34:O72)-1,COLUMNS($O$34:O72)-1),"") ->  | N58: =IF(OFFSET(DE104_3!$P$34,ROWS($P$34:P72)-1,COLUMNS($P$34:P72)-1)<>"",OFFSET(DE104_3!$P$34,ROWS($P$34:P72)-1,COLUMNS($P$34:P72)-1),"") ->  | O58: =IF(OFFSET(DE104_3!$Q$34,ROWS($Q$34:Q72)-1,COLUMNS($Q$34:Q72)-1)<>"",OFFSET(DE104_3!$Q$34,ROWS($Q$34:Q72)-1,COLUMNS($Q$34:Q72)-1),"") ->  | P58: =IF(OFFSET(DE104_3!$R$34,ROWS($R$34:R72)-1,COLUMNS($R$34:R72)-1)<>"",OFFSET(DE104_3!$R$34,ROWS($R$34:R72)-1,COLUMNS($R$34:R72)-1),"") ->  | Q58: =IF(OFFSET(DE104_3!$S$34,ROWS($S$34:S72)-1,COLUMNS($S$34:S72)-1)<>"",OFFSET(DE104_3!$S$34,ROWS($S$34:S72)-1,COLUMNS($S$34:S72)-1),"") ->  | R58: =IF(OFFSET(DE104_3!$T$34,ROWS($T$34:T72)-1,COLUMNS($T$34:T72)-1)<>"",OFFSET(DE104_3!$T$34,ROWS($T$34:T72)-1,COLUMNS($T$34:T72)-1),"") ->  | S58: =IF(OFFSET(DE104_3!$U$34,ROWS($U$34:U72)-1,COLUMNS($U$34:U72)-1)<>"",OFFSET(DE104_3!$U$34,ROWS($U$34:U72)-1,COLUMNS($U$34:U72)-1),"") ->  | T58: =IF(OFFSET(DE104_3!$V$34,ROWS($V$34:V72)-1,COLUMNS($V$34:V72)-1)<>"",OFFSET(DE104_3!$V$34,ROWS($V$34:V72)-1,COLUMNS($V$34:V72)-1),"") -> Type 3 | U58: =IF(OFFSET(DE104_3!$W$34,ROWS($W$34:W72)-1,COLUMNS($W$34:W72)-1)<>"",OFFSET(DE104_3!$W$34,ROWS($W$34:W72)-1,COLUMNS($W$34:W72)-1),"") ->  | V58: =IF(OFFSET(DE104_3!$X$34,ROWS($X$34:X72)-1,COLUMNS($X$34:X72)-1)<>"",OFFSET(DE104_3!$X$34,ROWS($X$34:X72)-1,COLUMNS($X$34:X72)-1),"") -> 878.55 | W58: =IF(OFFSET(DE104_3!$Y$34,ROWS($Y$34:Y72)-1,COLUMNS($Y$34:Y72)-1)<>"",OFFSET(DE104_3!$Y$34,ROWS($Y$34:Y72)-1,COLUMNS($Y$34:Y72)-1),"") -> 880.2 | X58: =IF(OFFSET(DE104_3!$Z$34,ROWS($Z$34:Z72)-1,COLUMNS($Z$34:Z72)-1)<>"",OFFSET(DE104_3!$Z$34,ROWS($Z$34:Z72)-1,COLUMNS($Z$34:Z72)-1),"") ->  | Y58: =IF(OFFSET(DE104_3!$AA$34,ROWS($AA$34:AA72)-1,COLUMNS($AA$34:AA72)-1)<>"",OFFSET(DE104_3!$AA$34,ROWS($AA$34:AA72)-1,COLUMNS($AA$34:AA72)-1),"") ->  | Z58: =IF(OFFSET(DE104_3!$AB$34,ROWS($AB$34:AB72)-1,COLUMNS($AB$34:AB72)-1)<>"",OFFSET(DE104_3!$AB$34,ROWS($AB$34:AB72)-1,COLUMNS($AB$34:AB72)-1),"") -> 45.23 | AA58: =IF(OFFSET(DE104_3!$AC$34,ROWS($AC$34:AC72)-1,COLUMNS($AC$34:AC72)-1)<>"",OFFSET(DE104_3!$AC$34,ROWS($AC$34:AC72)-1,COLUMNS($AC$34:AC72)-1),"") -> 35 | AB58: =IF(OFFSET(DE104_3!$AD$34,ROWS($AD$34:AD72)-1,COLUMNS($AD$34:AD72)-1)<>"",OFFSET(DE104_3!$AD$34,ROWS($AD$34:AD72)-1,COLUMNS($AD$34:AD72)-1),"") ->  | AC58: =IF(OFFSET(DE104_3!$AE$34,ROWS($AE$34:AE72)-1,COLUMNS($AE$34:AE72)-1)<>"",OFFSET(DE104_3!$AE$34,ROWS($AE$34:AE72)-1,COLUMNS($AE$34:AE72)-1),"") ->  | AD58: =IF(OFFSET(DE104_3!$AF$34,ROWS($AF$34:AF72)-1,COLUMNS($AF$34:AF72)-1)<>"",OFFSET(DE104_3!$AF$34,ROWS($AF$34:AF72)-1,COLUMNS($AF$34:AF72)-1),"") ->  | AE58: =IF(OFFSET(DE104_3!$AG$34,ROWS($AG$34:AG72)-1,COLUMNS($AG$34:AG72)-1)<>"",OFFSET(DE104_3!$AG$34,ROWS($AG$34:AG72)-1,COLUMNS($AG$34:AG72)-1),"") ->  | AF58: =IF(OFFSET(DE104_3!$AH$34,ROWS($AH$34:AH72)-1,COLUMNS($AH$34:AH72)-1)<>"",OFFSET(DE104_3!$AH$34,ROWS($AH$34:AH72)-1,COLUMNS($AH$34:AH72)-1),"") ->  | AG58: =IF(OFFSET(DE104_3!$AI$34,ROWS($AI$34:AI72)-1,COLUMNS($AI$34:AI72)-1)<>"",OFFSET(DE104_3!$AI$34,ROWS($AI$34:AI72)-1,COLUMNS($AI$34:AI72)-1),"") ->  | AH58: =IF(OFFSET(DE104_3!$AJ$34,ROWS($AJ$34:AJ72)-1,COLUMNS($AJ$34:AJ72)-1)<>"",OFFSET(DE104_3!$AJ$34,ROWS($AJ$34:AJ72)-1,COLUMNS($AJ$34:AJ72)-1),"") ->  | AI58: =IF(OFFSET(DE104_3!$AK$34,ROWS($AK$34:AK72)-1,COLUMNS($AK$34:AK72)-1)<>"",OFFSET(DE104_3!$AK$34,ROWS($AK$34:AK72)-1,COLUMNS($AK$34:AK72)-1),"") ->  | AJ58: =IF(OFFSET(DE104_3!$AL$34,ROWS($AL$34:AL72)-1,COLUMNS($AL$34:AL72)-1)<>"",OFFSET(DE104_3!$AL$34,ROWS($AL$34:AL72)-1,COLUMNS($AL$34:AL72)-1),"") -> 26.76592593 | AK58: =IF(OFFSET(DE104_3!$AM$34,ROWS($AM$34:AM72)-1,COLUMNS($AM$34:AM72)-1)<>"",OFFSET(DE104_3!$AM$34,ROWS($AM$34:AM72)-1,COLUMNS($AM$34:AM72)-1),"") ->  | AL58: =IF(OFFSET(DE104_3!$AN$34,ROWS($AN$34:AN72)-1,COLUMNS($AN$34:AN72)-1)<>"",OFFSET(DE104_3!$AN$34,ROWS($AN$34:AN72)-1,COLUMNS($AN$34:AN72)-1),"") -> 10.59555556 | AM58: =IF(OFFSET(DE104_3!$AO$34,ROWS($AO$34:AO72)-1,COLUMNS($AO$34:AO72)-1)<>"",OFFSET(DE104_3!$AO$34,ROWS($AO$34:AO72)-1,COLUMNS($AO$34:AO72)-1),"") -> 6.115092593 | AN58: =IF(OFFSET(DE104_3!$AP$34,ROWS($AP$34:AP72)-1,COLUMNS($AP$34:AP72)-1)<>"",OFFSET(DE104_3!$AP$34,ROWS($AP$34:AP72)-1,COLUMNS($AP$34:AP72)-1),"") -> 16.71064815 | AO58: =IF(OFFSET(DE104_3!$AQ$34,ROWS($AQ$34:AQ72)-1,COLUMNS($AQ$34:AQ72)-1)<>"",OFFSET(DE104_3!$AQ$34,ROWS($AQ$34:AQ72)-1,COLUMNS($AQ$34:AQ72)-1),"") -> 
A59: =IF(OFFSET(DE104_3!$C$34,ROWS($C$34:C73)-1,COLUMNS($C$34:C73)-1)<>"",OFFSET(DE104_3!$C$34,ROWS($C$34:C73)-1,COLUMNS($C$34:C73)-1),"") -> MED | B59: =IF(OFFSET(DE104_3!$D$34,ROWS($D$34:D73)-1,COLUMNS($D$34:D73)-1)<>"",OFFSET(DE104_3!$D$34,ROWS($D$34:D73)-1,COLUMNS($D$34:D73)-1),"") -> 140475 | C59: =IF(OFFSET(DE104_3!$E$34,ROWS($E$34:E73)-1,COLUMNS($E$34:E73)-1)<>"",OFFSET(DE104_3!$E$34,ROWS($E$34:E73)-1,COLUMNS($E$34:E73)-1),"") -> DR-611 | D59: =IF(OFFSET(DE104_3!$F$34,ROWS($F$34:F73)-1,COLUMNS($F$34:F73)-1)<>"",OFFSET(DE104_3!$F$34,ROWS($F$34:F73)-1,COLUMNS($F$34:F73)-1),"") -> 24 | E59: =IF(OFFSET(DE104_3!$G$34,ROWS($G$34:G73)-1,COLUMNS($G$34:G73)-1)<>"",OFFSET(DE104_3!$G$34,ROWS($G$34:G73)-1,COLUMNS($G$34:G73)-1),"") -> 2000 | F59: =IF(OFFSET(DE104_3!$H$34,ROWS($H$34:H73)-1,COLUMNS($H$34:H73)-1)<>"",OFFSET(DE104_3!$H$34,ROWS($H$34:H73)-1,COLUMNS($H$34:H73)-1),"") -> RCP | G59: =IF(OFFSET(DE104_3!$I$34,ROWS($I$34:I73)-1,COLUMNS($I$34:I73)-1)<>"",OFFSET(DE104_3!$I$34,ROWS($I$34:I73)-1,COLUMNS($I$34:I73)-1),"") -> 92 | H59: =IF(OFFSET(DE104_3!$J$34,ROWS($J$34:J73)-1,COLUMNS($J$34:J73)-1)<>"",OFFSET(DE104_3!$J$34,ROWS($J$34:J73)-1,COLUMNS($J$34:J73)-1),"") -> B | I59: =IF(OFFSET(DE104_3!$K$34,ROWS($K$34:K73)-1,COLUMNS($K$34:K73)-1)<>"",OFFSET(DE104_3!$K$34,ROWS($K$34:K73)-1,COLUMNS($K$34:K73)-1),"") -> 3.8 | J59: =IF(OFFSET(DE104_3!$L$34,ROWS($L$34:L73)-1,COLUMNS($L$34:L73)-1)<>"",OFFSET(DE104_3!$L$34,ROWS($L$34:L73)-1,COLUMNS($L$34:L73)-1),"") ->  | K59: =IF(OFFSET(DE104_3!$M$34,ROWS($M$34:M73)-1,COLUMNS($M$34:M73)-1)<>"",OFFSET(DE104_3!$M$34,ROWS($M$34:M73)-1,COLUMNS($M$34:M73)-1),"") -> 1 | L59: =IF(OFFSET(DE104_3!$N$34,ROWS($N$34:N73)-1,COLUMNS($N$34:N73)-1)<>"",OFFSET(DE104_3!$N$34,ROWS($N$34:N73)-1,COLUMNS($N$34:N73)-1),"") -> 1 | M59: =IF(OFFSET(DE104_3!$O$34,ROWS($O$34:O73)-1,COLUMNS($O$34:O73)-1)<>"",OFFSET(DE104_3!$O$34,ROWS($O$34:O73)-1,COLUMNS($O$34:O73)-1),"") ->  | N59: =IF(OFFSET(DE104_3!$P$34,ROWS($P$34:P73)-1,COLUMNS($P$34:P73)-1)<>"",OFFSET(DE104_3!$P$34,ROWS($P$34:P73)-1,COLUMNS($P$34:P73)-1),"") -> 1 | O59: =IF(OFFSET(DE104_3!$Q$34,ROWS($Q$34:Q73)-1,COLUMNS($Q$34:Q73)-1)<>"",OFFSET(DE104_3!$Q$34,ROWS($Q$34:Q73)-1,COLUMNS($Q$34:Q73)-1),"") ->  | P59: =IF(OFFSET(DE104_3!$R$34,ROWS($R$34:R73)-1,COLUMNS($R$34:R73)-1)<>"",OFFSET(DE104_3!$R$34,ROWS($R$34:R73)-1,COLUMNS($R$34:R73)-1),"") ->  | Q59: =IF(OFFSET(DE104_3!$S$34,ROWS($S$34:S73)-1,COLUMNS($S$34:S73)-1)<>"",OFFSET(DE104_3!$S$34,ROWS($S$34:S73)-1,COLUMNS($S$34:S73)-1),"") ->  | R59: =IF(OFFSET(DE104_3!$T$34,ROWS($T$34:T73)-1,COLUMNS($T$34:T73)-1)<>"",OFFSET(DE104_3!$T$34,ROWS($T$34:T73)-1,COLUMNS($T$34:T73)-1),"") ->  | S59: =IF(OFFSET(DE104_3!$U$34,ROWS($U$34:U73)-1,COLUMNS($U$34:U73)-1)<>"",OFFSET(DE104_3!$U$34,ROWS($U$34:U73)-1,COLUMNS($U$34:U73)-1),"") ->  | T59: =IF(OFFSET(DE104_3!$V$34,ROWS($V$34:V73)-1,COLUMNS($V$34:V73)-1)<>"",OFFSET(DE104_3!$V$34,ROWS($V$34:V73)-1,COLUMNS($V$34:V73)-1),"") -> Type 3 | U59: =IF(OFFSET(DE104_3!$W$34,ROWS($W$34:W73)-1,COLUMNS($W$34:W73)-1)<>"",OFFSET(DE104_3!$W$34,ROWS($W$34:W73)-1,COLUMNS($W$34:W73)-1),"") ->  | V59: =IF(OFFSET(DE104_3!$X$34,ROWS($X$34:X73)-1,COLUMNS($X$34:X73)-1)<>"",OFFSET(DE104_3!$X$34,ROWS($X$34:X73)-1,COLUMNS($X$34:X73)-1),"") -> 870 | W59: =IF(OFFSET(DE104_3!$Y$34,ROWS($Y$34:Y73)-1,COLUMNS($Y$34:Y73)-1)<>"",OFFSET(DE104_3!$Y$34,ROWS($Y$34:Y73)-1,COLUMNS($Y$34:Y73)-1),"") -> 876.91 | X59: =IF(OFFSET(DE104_3!$Z$34,ROWS($Z$34:Z73)-1,COLUMNS($Z$34:Z73)-1)<>"",OFFSET(DE104_3!$Z$34,ROWS($Z$34:Z73)-1,COLUMNS($Z$34:Z73)-1),"") -> 870.93 | Y59: =IF(OFFSET(DE104_3!$AA$34,ROWS($AA$34:AA73)-1,COLUMNS($AA$34:AA73)-1)<>"",OFFSET(DE104_3!$AA$34,ROWS($AA$34:AA73)-1,COLUMNS($AA$34:AA73)-1),"") ->  | Z59: =IF(OFFSET(DE104_3!$AB$34,ROWS($AB$34:AB73)-1,COLUMNS($AB$34:AB73)-1)<>"",OFFSET(DE104_3!$AB$34,ROWS($AB$34:AB73)-1,COLUMNS($AB$34:AB73)-1),"") -> 64.04 | AA59: =IF(OFFSET(DE104_3!$AC$34,ROWS($AC$34:AC73)-1,COLUMNS($AC$34:AC73)-1)<>"",OFFSET(DE104_3!$AC$34,ROWS($AC$34:AC73)-1,COLUMNS($AC$34:AC73)-1),"") -> 40 | AB59: =IF(OFFSET(DE104_3!$AD$34,ROWS($AD$34:AD73)-1,COLUMNS($AD$34:AD73)-1)<>"",OFFSET(DE104_3!$AD$34,ROWS($AD$34:AD73)-1,COLUMNS($AD$34:AD73)-1),"") ->  | AC59: =IF(OFFSET(DE104_3!$AE$34,ROWS($AE$34:AE73)-1,COLUMNS($AE$34:AE73)-1)<>"",OFFSET(DE104_3!$AE$34,ROWS($AE$34:AE73)-1,COLUMNS($AE$34:AE73)-1),"") ->  | AD59: =IF(OFFSET(DE104_3!$AF$34,ROWS($AF$34:AF73)-1,COLUMNS($AF$34:AF73)-1)<>"",OFFSET(DE104_3!$AF$34,ROWS($AF$34:AF73)-1,COLUMNS($AF$34:AF73)-1),"") ->  | AE59: =IF(OFFSET(DE104_3!$AG$34,ROWS($AG$34:AG73)-1,COLUMNS($AG$34:AG73)-1)<>"",OFFSET(DE104_3!$AG$34,ROWS($AG$34:AG73)-1,COLUMNS($AG$34:AG73)-1),"") ->  | AF59: =IF(OFFSET(DE104_3!$AH$34,ROWS($AH$34:AH73)-1,COLUMNS($AH$34:AH73)-1)<>"",OFFSET(DE104_3!$AH$34,ROWS($AH$34:AH73)-1,COLUMNS($AH$34:AH73)-1),"") ->  | AG59: =IF(OFFSET(DE104_3!$AI$34,ROWS($AI$34:AI73)-1,COLUMNS($AI$34:AI73)-1)<>"",OFFSET(DE104_3!$AI$34,ROWS($AI$34:AI73)-1,COLUMNS($AI$34:AI73)-1),"") ->  | AH59: =IF(OFFSET(DE104_3!$AJ$34,ROWS($AJ$34:AJ73)-1,COLUMNS($AJ$34:AJ73)-1)<>"",OFFSET(DE104_3!$AJ$34,ROWS($AJ$34:AJ73)-1,COLUMNS($AJ$34:AJ73)-1),"") ->  | AI59: =IF(OFFSET(DE104_3!$AK$34,ROWS($AK$34:AK73)-1,COLUMNS($AK$34:AK73)-1)<>"",OFFSET(DE104_3!$AK$34,ROWS($AK$34:AK73)-1,COLUMNS($AK$34:AK73)-1),"") ->  | AJ59: =IF(OFFSET(DE104_3!$AL$34,ROWS($AL$34:AL73)-1,COLUMNS($AL$34:AL73)-1)<>"",OFFSET(DE104_3!$AL$34,ROWS($AL$34:AL73)-1,COLUMNS($AL$34:AL73)-1),"") -> 85.68 | AK59: =IF(OFFSET(DE104_3!$AM$34,ROWS($AM$34:AM73)-1,COLUMNS($AM$34:AM73)-1)<>"",OFFSET(DE104_3!$AM$34,ROWS($AM$34:AM73)-1,COLUMNS($AM$34:AM73)-1),"") ->  | AL59: =IF(OFFSET(DE104_3!$AN$34,ROWS($AN$34:AN73)-1,COLUMNS($AN$34:AN73)-1)<>"",OFFSET(DE104_3!$AN$34,ROWS($AN$34:AN73)-1,COLUMNS($AN$34:AN73)-1),"") -> 42.45333333 | AM59: =IF(OFFSET(DE104_3!$AO$34,ROWS($AO$34:AO73)-1,COLUMNS($AO$34:AO73)-1)<>"",OFFSET(DE104_3!$AO$34,ROWS($AO$34:AO73)-1,COLUMNS($AO$34:AO73)-1),"") -> 7.998462963 | AN59: =IF(OFFSET(DE104_3!$AP$34,ROWS($AP$34:AP73)-1,COLUMNS($AP$34:AP73)-1)<>"",OFFSET(DE104_3!$AP$34,ROWS($AP$34:AP73)-1,COLUMNS($AP$34:AP73)-1),"") -> 50.4517963 | AO59: =IF(OFFSET(DE104_3!$AQ$34,ROWS($AQ$34:AQ73)-1,COLUMNS($AQ$34:AQ73)-1)<>"",OFFSET(DE104_3!$AQ$34,ROWS($AQ$34:AQ73)-1,COLUMNS($AQ$34:AQ73)-1),"") -> (6)
A60: =IF(OFFSET(DE104_3!$C$34,ROWS($C$34:C74)-1,COLUMNS($C$34:C74)-1)<>"",OFFSET(DE104_3!$C$34,ROWS($C$34:C74)-1,COLUMNS($C$34:C74)-1),"") -> MED | B60: =IF(OFFSET(DE104_3!$D$34,ROWS($D$34:D74)-1,COLUMNS($D$34:D74)-1)<>"",OFFSET(DE104_3!$D$34,ROWS($D$34:D74)-1,COLUMNS($D$34:D74)-1),"") -> 141375 | C60: =IF(OFFSET(DE104_3!$E$34,ROWS($E$34:E74)-1,COLUMNS($E$34:E74)-1)<>"",OFFSET(DE104_3!$E$34,ROWS($E$34:E74)-1,COLUMNS($E$34:E74)-1),"") -> DR-611 | D60: =IF(OFFSET(DE104_3!$F$34,ROWS($F$34:F74)-1,COLUMNS($F$34:F74)-1)<>"",OFFSET(DE104_3!$F$34,ROWS($F$34:F74)-1,COLUMNS($F$34:F74)-1),"") -> 24 | E60: =IF(OFFSET(DE104_3!$G$34,ROWS($G$34:G74)-1,COLUMNS($G$34:G74)-1)<>"",OFFSET(DE104_3!$G$34,ROWS($G$34:G74)-1,COLUMNS($G$34:G74)-1),"") -> 2000 | F60: =IF(OFFSET(DE104_3!$H$34,ROWS($H$34:H74)-1,COLUMNS($H$34:H74)-1)<>"",OFFSET(DE104_3!$H$34,ROWS($H$34:H74)-1,COLUMNS($H$34:H74)-1),"") -> RCP | G60: =IF(OFFSET(DE104_3!$I$34,ROWS($I$34:I74)-1,COLUMNS($I$34:I74)-1)<>"",OFFSET(DE104_3!$I$34,ROWS($I$34:I74)-1,COLUMNS($I$34:I74)-1),"") -> 86 | H60: =IF(OFFSET(DE104_3!$J$34,ROWS($J$34:J74)-1,COLUMNS($J$34:J74)-1)<>"",OFFSET(DE104_3!$J$34,ROWS($J$34:J74)-1,COLUMNS($J$34:J74)-1),"") -> B | I60: =IF(OFFSET(DE104_3!$K$34,ROWS($K$34:K74)-1,COLUMNS($K$34:K74)-1)<>"",OFFSET(DE104_3!$K$34,ROWS($K$34:K74)-1,COLUMNS($K$34:K74)-1),"") -> 3.4 | J60: =IF(OFFSET(DE104_3!$L$34,ROWS($L$34:L74)-1,COLUMNS($L$34:L74)-1)<>"",OFFSET(DE104_3!$L$34,ROWS($L$34:L74)-1,COLUMNS($L$34:L74)-1),"") ->  | K60: =IF(OFFSET(DE104_3!$M$34,ROWS($M$34:M74)-1,COLUMNS($M$34:M74)-1)<>"",OFFSET(DE104_3!$M$34,ROWS($M$34:M74)-1,COLUMNS($M$34:M74)-1),"") -> 1 | L60: =IF(OFFSET(DE104_3!$N$34,ROWS($N$34:N74)-1,COLUMNS($N$34:N74)-1)<>"",OFFSET(DE104_3!$N$34,ROWS($N$34:N74)-1,COLUMNS($N$34:N74)-1),"") -> 1 | M60: =IF(OFFSET(DE104_3!$O$34,ROWS($O$34:O74)-1,COLUMNS($O$34:O74)-1)<>"",OFFSET(DE104_3!$O$34,ROWS($O$34:O74)-1,COLUMNS($O$34:O74)-1),"") ->  | N60: =IF(OFFSET(DE104_3!$P$34,ROWS($P$34:P74)-1,COLUMNS($P$34:P74)-1)<>"",OFFSET(DE104_3!$P$34,ROWS($P$34:P74)-1,COLUMNS($P$34:P74)-1),"") -> 1 | O60: =IF(OFFSET(DE104_3!$Q$34,ROWS($Q$34:Q74)-1,COLUMNS($Q$34:Q74)-1)<>"",OFFSET(DE104_3!$Q$34,ROWS($Q$34:Q74)-1,COLUMNS($Q$34:Q74)-1),"") ->  | P60: =IF(OFFSET(DE104_3!$R$34,ROWS($R$34:R74)-1,COLUMNS($R$34:R74)-1)<>"",OFFSET(DE104_3!$R$34,ROWS($R$34:R74)-1,COLUMNS($R$34:R74)-1),"") ->  | Q60: =IF(OFFSET(DE104_3!$S$34,ROWS($S$34:S74)-1,COLUMNS($S$34:S74)-1)<>"",OFFSET(DE104_3!$S$34,ROWS($S$34:S74)-1,COLUMNS($S$34:S74)-1),"") ->  | R60: =IF(OFFSET(DE104_3!$T$34,ROWS($T$34:T74)-1,COLUMNS($T$34:T74)-1)<>"",OFFSET(DE104_3!$T$34,ROWS($T$34:T74)-1,COLUMNS($T$34:T74)-1),"") ->  | S60: =IF(OFFSET(DE104_3!$U$34,ROWS($U$34:U74)-1,COLUMNS($U$34:U74)-1)<>"",OFFSET(DE104_3!$U$34,ROWS($U$34:U74)-1,COLUMNS($U$34:U74)-1),"") ->  | T60: =IF(OFFSET(DE104_3!$V$34,ROWS($V$34:V74)-1,COLUMNS($V$34:V74)-1)<>"",OFFSET(DE104_3!$V$34,ROWS($V$34:V74)-1,COLUMNS($V$34:V74)-1),"") -> Type 3 | U60: =IF(OFFSET(DE104_3!$W$34,ROWS($W$34:W74)-1,COLUMNS($W$34:W74)-1)<>"",OFFSET(DE104_3!$W$34,ROWS($W$34:W74)-1,COLUMNS($W$34:W74)-1),"") ->  | V60: =IF(OFFSET(DE104_3!$X$34,ROWS($X$34:X74)-1,COLUMNS($X$34:X74)-1)<>"",OFFSET(DE104_3!$X$34,ROWS($X$34:X74)-1,COLUMNS($X$34:X74)-1),"") -> 878.7 | W60: =IF(OFFSET(DE104_3!$Y$34,ROWS($Y$34:Y74)-1,COLUMNS($Y$34:Y74)-1)<>"",OFFSET(DE104_3!$Y$34,ROWS($Y$34:Y74)-1,COLUMNS($Y$34:Y74)-1),"") -> 883.45 | X60: =IF(OFFSET(DE104_3!$Z$34,ROWS($Z$34:Z74)-1,COLUMNS($Z$34:Z74)-1)<>"",OFFSET(DE104_3!$Z$34,ROWS($Z$34:Z74)-1,COLUMNS($Z$34:Z74)-1),"") -> 878.89 | Y60: =IF(OFFSET(DE104_3!$AA$34,ROWS($AA$34:AA74)-1,COLUMNS($AA$34:AA74)-1)<>"",OFFSET(DE104_3!$AA$34,ROWS($AA$34:AA74)-1,COLUMNS($AA$34:AA74)-1),"") ->  | Z60: =IF(OFFSET(DE104_3!$AB$34,ROWS($AB$34:AB74)-1,COLUMNS($AB$34:AB74)-1)<>"",OFFSET(DE104_3!$AB$34,ROWS($AB$34:AB74)-1,COLUMNS($AB$34:AB74)-1),"") -> 61.16 | AA60: =IF(OFFSET(DE104_3!$AC$34,ROWS($AC$34:AC74)-1,COLUMNS($AC$34:AC74)-1)<>"",OFFSET(DE104_3!$AC$34,ROWS($AC$34:AC74)-1,COLUMNS($AC$34:AC74)-1),"") -> 37 | AB60: =IF(OFFSET(DE104_3!$AD$34,ROWS($AD$34:AD74)-1,COLUMNS($AD$34:AD74)-1)<>"",OFFSET(DE104_3!$AD$34,ROWS($AD$34:AD74)-1,COLUMNS($AD$34:AD74)-1),"") ->  | AC60: =IF(OFFSET(DE104_3!$AE$34,ROWS($AE$34:AE74)-1,COLUMNS($AE$34:AE74)-1)<>"",OFFSET(DE104_3!$AE$34,ROWS($AE$34:AE74)-1,COLUMNS($AE$34:AE74)-1),"") ->  | AD60: =IF(OFFSET(DE104_3!$AF$34,ROWS($AF$34:AF74)-1,COLUMNS($AF$34:AF74)-1)<>"",OFFSET(DE104_3!$AF$34,ROWS($AF$34:AF74)-1,COLUMNS($AF$34:AF74)-1),"") ->  | AE60: =IF(OFFSET(DE104_3!$AG$34,ROWS($AG$34:AG74)-1,COLUMNS($AG$34:AG74)-1)<>"",OFFSET(DE104_3!$AG$34,ROWS($AG$34:AG74)-1,COLUMNS($AG$34:AG74)-1),"") ->  | AF60: =IF(OFFSET(DE104_3!$AH$34,ROWS($AH$34:AH74)-1,COLUMNS($AH$34:AH74)-1)<>"",OFFSET(DE104_3!$AH$34,ROWS($AH$34:AH74)-1,COLUMNS($AH$34:AH74)-1),"") -> MED | AG60: =IF(OFFSET(DE104_3!$AI$34,ROWS($AI$34:AI74)-1,COLUMNS($AI$34:AI74)-1)<>"",OFFSET(DE104_3!$AI$34,ROWS($AI$34:AI74)-1,COLUMNS($AI$34:AI74)-1),"") -> 141355 | AH60: =IF(OFFSET(DE104_3!$AJ$34,ROWS($AJ$34:AJ74)-1,COLUMNS($AJ$34:AJ74)-1)<>"",OFFSET(DE104_3!$AJ$34,ROWS($AJ$34:AJ74)-1,COLUMNS($AJ$34:AJ74)-1),"") -> 886.21 | AI60: =IF(OFFSET(DE104_3!$AK$34,ROWS($AK$34:AK74)-1,COLUMNS($AK$34:AK74)-1)<>"",OFFSET(DE104_3!$AK$34,ROWS($AK$34:AK74)-1,COLUMNS($AK$34:AK74)-1),"") -> M | AJ60: =IF(OFFSET(DE104_3!$AL$34,ROWS($AL$34:AL74)-1,COLUMNS($AL$34:AL74)-1)<>"",OFFSET(DE104_3!$AL$34,ROWS($AL$34:AL74)-1,COLUMNS($AL$34:AL74)-1),"") -> 103.68 | AK60: =IF(OFFSET(DE104_3!$AM$34,ROWS($AM$34:AM74)-1,COLUMNS($AM$34:AM74)-1)<>"",OFFSET(DE104_3!$AM$34,ROWS($AM$34:AM74)-1,COLUMNS($AM$34:AM74)-1),"") ->  | AL60: =IF(OFFSET(DE104_3!$AN$34,ROWS($AN$34:AN74)-1,COLUMNS($AN$34:AN74)-1)<>"",OFFSET(DE104_3!$AN$34,ROWS($AN$34:AN74)-1,COLUMNS($AN$34:AN74)-1),"") -> 32.64 | AM60: =IF(OFFSET(DE104_3!$AO$34,ROWS($AO$34:AO74)-1,COLUMNS($AO$34:AO74)-1)<>"",OFFSET(DE104_3!$AO$34,ROWS($AO$34:AO74)-1,COLUMNS($AO$34:AO74)-1),"") -> 7.529574074 | AN60: =IF(OFFSET(DE104_3!$AP$34,ROWS($AP$34:AP74)-1,COLUMNS($AP$34:AP74)-1)<>"",OFFSET(DE104_3!$AP$34,ROWS($AP$34:AP74)-1,COLUMNS($AP$34:AP74)-1),"") -> 40.16957407 | AO60: =IF(OFFSET(DE104_3!$AQ$34,ROWS($AQ$34:AQ74)-1,COLUMNS($AQ$34:AQ74)-1)<>"",OFFSET(DE104_3!$AQ$34,ROWS($AQ$34:AQ74)-1,COLUMNS($AQ$34:AQ74)-1),"") -> (7)
